Workbook

Sheet WWD Crashes
A1: CASENUMBER | B1: Date | C1: Interchange | D1: Interchange ID | E1: Major AADT | F1: Minor AADT | G1: Certainty | H1: COUNTY | I1: Direction | J1: Possible/Unknown Injuries | K1: Minor Injuries | L1: Major Injuries | M1: Fatalities | N1: PROPDMG
A2: 2008416086 | B2: 2008-01-10 | C2: I-235 & Keosauqua Way | D2: 501 | E2: 91300 | F2: 13800 | G2: 1 | H2: Polk | I2: EB in WB | J2: 0 | K2: 0 | L2: 0 | M2: 0 | N2: 3000
A3: 2008419331 | B3: 2008-01-20 | C3: I-29 & Bunge Ave | D3: 41 | E3: 19000 | F3: 5000 | G3: 1 | H3: Mills | I3: SB in NB | J3: 0 | K3: 3 | L3: 0 | M3: 0 | N3: 20000
A4: 2008430552 | B4: 2008-02-21 | C4: US-61 & Main St | D4: 365 | E4: 8200 | F4: 4900 | G4: 1 | H4: Jackson | I4: NB in SB | J4: 0 | K4: 0 | L4: 0 | M4: 0 | N4: 19000
A5: 2008428344 | B5: 2008-02-26 | C5: I-80 & Hubbell Ave | D5: 272 | E5: 42800 | F5: 13700 | G5: 0 | H5: Polk | I5: WB in EB | J5: 0 | K5: 0 | L5: 0 | M5: 0 | N5: 3000
A6: 2008434985 | B6: 2008-04-01 | C6: US-30 & University Blvd | D6: 337 | E6: 18300 | F6: 15400 | G6: 1 | H6: Story | I6: WB in EB | J6: 2 | K6: 1 | L6: 0 | M6: 0 | N6: 1500
A7: 2008435399 | B7: 2008-04-05 | C7: I- 29 W & 1ST ST | D7: 80 | E7: =VLOOKUP(C7,Intersections!A:F,6,FALSE) -> 25600 | F7: =VLOOKUP(C7,Intersections!A:G,7,FALSE) -> 6800 | G7: 0.25 | H7: Woodbury | I7: NB in SB | J7: 0 | K7: 0 | L7: 0 | M7: 0 | N7: 11500
A8: 2008435399 | B8: 2008-04-05 | C8: I-29 & Singing Hills Blvd | D8: 133 | E8: 42000 | F8: 13600 | G8: 0.75 | H8: Woodbury | I8: NB in SB | J8: 0 | K8: 0 | L8: 0 | M8: 0 | N8: 11500
A9: 2008437216 | B9: 2008-04-18 | C9: I-80 & IA-415/2nd St | D9: 122 | E9: 101100 | F9: 35800 | G9: 1 | H9: Polk | I9: WB in EB | J9: 0 | K9: 0 | L9: 0 | M9: 0 | N9: 9200
A10: 2008445199 | B10: 2008-06-10 | C10: US-30 & 6th Ave | D10: 373 | E10: 11100 | F10: 6300 | G10: 1 | H10: Clinton | I10: EB in WB | J10: 0 | K10: 0 | L10: 0 | M10: 0 | N10: 3000
A11: 2008448093 | B11: 2008-06-20 | C11: IA-163 & IA-92 | D11: 301 | E11: 10600 | F11: 11000 | G11: 0.99 | H11: Mahaska | I11: WB in EB | J11: 0 | K11: 1 | L11: 2 | M11: 0 | N11: 8500
A12: 2008451179 | B12: 2008-07-03 | C12: US-218 & IA-16 | E12: =VLOOKUP(C12,Intersections!A:F,6,FALSE) -> 8900 | F12: =VLOOKUP(C12,Intersections!A:G,7,FALSE) -> 1150 | G12: 0.25 | H12: Lee | I12: NB in SB | J12: 0 | K12: 0 | L12: 0 | M12: 1 | N12: 17000
A13: 2008451179 | B13: 2008-07-03 | C13: US-218 & IA-2 | D13: 202 | E13: 6500 | F13: 3380 | G13: 0.75 | H13: Lee | I13: NB in SB | J13: 0 | K13: 0 | L13: 0 | M13: 1 | N13: 17000
A14: 2008452578 | B14: 2008-07-27 | C14: Nebraska | E14: 18000 | G14: 1 | H14: Woodbury | I14: EB in WB | J14: 0 | K14: 0 | L14: 0 | M14: 0 | N14: 1000
A15: 2008455788 | B15: 2008-08-14 | C15: I-380 SE RAMP & IA-150 | D15: 247 | E15: =VLOOKUP(C15,Intersections!A:F,6,FALSE) -> 21000 | F15: =VLOOKUP(C15,Intersections!A:G,7,FALSE) -> 4820 | G15: 0.25 | H15: Buchanan | I15: NB in SB | J15: 0 | K15: 1 | L15: 0 | M15: 2 | N15: 37000
A16: 2008455788 | B16: 2008-08-14 | C16: I-380 SE RAMP & 54 ST TRL | D16: 244 | E16: =VLOOKUP(C16,Intersections!A:F,6,FALSE) -> 24100 | F16: =VLOOKUP(C16,Intersections!A:G,7,FALSE) -> 4490 | G16: 0.25 | H16: Buchanan | I16: NB in SB | J16: 0 | K16: 1 | L16: 0 | M16: 2 | N16: 37000
A17: 2008455788 | B17: 2008-08-14 | C17: I-380 & 330th St | D17: 248 | E17: 17700 | F17: 1560 | G17: 0.5 | H17: Buchanan | I17: NB in SB | J17: 0 | K17: 1 | L17: 0 | M17: 2 | N17: 37000
A18: 2008466363 | B18: 2008-09-06 | C18: US-20 RAMP & CENTER AVE S/PLACID RD | D18: 220 | E18: =VLOOKUP(C18,Intersections!A:F,6,FALSE) -> 13800 | F18: =VLOOKUP(C18,Intersections!A:G,7,FALSE) -> 4100 | G18: 0.25 | H18: Dubuque | I18: EB in WB | J18: 0 | K18: 0 | L18: 3 | M18: 0 | N18: 35000
A19: 2008466363 | B19: 2008-09-06 | C19: US-20 & 1st St | D19: 219 | E19: =VLOOKUP(C19,Intersections!A:F,6,FALSE) -> 14300 | F19: =VLOOKUP(C19,Intersections!A:G,7,FALSE) -> 1860 | G19: 0.25 | H19: Dubuque | I19: EB in WB | J19: 0 | K19: 0 | L19: 3 | M19: 0 | N19: 35000
A20: 2008466363 | B20: 2008-09-06 | C20: US-20 & Peosta St | D20: 221 | E20: 18000 | F20: 8600 | G20: 0.5 | H20: Dubuque | I20: EB in WB | J20: 0 | K20: 0 | L20: 3 | M20: 0 | N20: 35000
A21: 2008475036 | B21: 2008-09-21 | C21: I-80 & 1st Ave | D21: 419 | E21: 64300 | F21: 24200 | G21: 1 | H21: Johnson | I21: WB in EB | J21: 0 | K21: 1 | L21: 1 | M21: 1 | N21: 25000
A22: 2008488002 | B22: 2008-12-09 | C22: I-35 & Corporate Woods Dr | D22: 137 | E22: =VLOOKUP(C22,Intersections!A:F,6,FALSE) -> 89800 | F22: =VLOOKUP(C22,Intersections!A:G,7,FALSE) -> 18700 | G22: 0.5 | H22: Polk | I22: SB in NB | J22: 3 | K22: 0 | L22: 1 | M22: 1 | N22: 17500
A23: 2008488002 | B23: 2008-12-09 | C23: I-35 & Oralabor Rd | D23: 141 | E23: 80700 | F23: 30200 | G23: 0.5 | H23: Polk | I23: SB in NB | J23: 3 | K23: 0 | L23: 1 | M23: 1 | N23: 17500
A24: 2008476953 | B24: 2008-12-10 | C24: US-20 & Charles Ave | E24: 11300 | F24: 400 | G24: 1 | H24: Woodbury | I24: WB in EB | J24: 0 | K24: 0 | L24: 4 | M24: 0 | N24: 17000
A25: 2008491849 | B25: 2008-12-26 | C25: I-80 & Division St | D25: 116 | E25: 27100 | F25: 4620 | G25: 1 | H25: Adair | I25: EB in WB | J25: 0 | K25: 0 | L25: 0 | M25: 0 | N25: 2100
A26: 2008481695 | B26: 2008-12-28 | C26: US-218 & Greenhill Rd | D26: 298 | E26: 27500 | F26: 6900 | G26: 1 | H26: Black Hawk | I26: NB in SB | J26: 0 | K26: 0 | L26: 0 | M26: 0 | N26: 1500
A27: 2009484384 | B27: 2009-01-07 | C27: I-80 SW RAMP/LOOP & MIDDLE RD | D27: 425 | E27: =VLOOKUP(C27,Intersections!A:F,6,FALSE) -> 34400 | F27: =VLOOKUP(C27,Intersections!A:G,7,FALSE) -> 6400 | G27: 0.5 | H27: Scott | I27: EB in WB | J27: 0 | K27: 0 | L27: 0 | M27: 0 | N27: 5000
A28: 2009484384 | B28: 2009-01-07 | C28: US-61 NE RAMP & E 90TH ST/210 ST | D28: 399 | E28: =VLOOKUP(C28,Intersections!A:F,6,FALSE) -> 42200 | F28: =VLOOKUP(C28,Intersections!A:G,7,FALSE) -> 8200 | G28: 0.5 | H28: Scott | I28: EB in WB | J28: 0 | K28: 0 | L28: 0 | M28: 0 | N28: 5000
A29: 2009493938 | B29: 2009-02-12 | C29: I-380 & County Home Rd | D29: 241 | E29: 34400 | F29: 12800 | G29: 1 | H29: Linn | I29: SB in NB | J29: 2 | K29: 0 | L29: 0 | M29: 0 | N29: 5250
A30: 2009498158 | B30: 2009-03-05 | C30: I 35 N & US 18 W | D30: 48 | E30: =VLOOKUP(C30,Intersections!A:F,6,FALSE) -> 16000 | F30: =VLOOKUP(C30,Intersections!A:G,7,FALSE) -> 22100 | G30: 0.25 | H30: Cerro Gordo | I30: SB in NB | J30: 1 | K30: 0 | L30: 0 | M30: 0 | N30: 2200
A31: 2009498158 | B31: 2009-03-05 | C31: I-35 & 4th Ave | D31: 52 | E31: 21600 | F31: 5900 | G31: 0.75 | H31: Cerro Gordo | I31: SB in NB | J31: 1 | K31: 0 | L31: 0 | M31: 0 | N31: 2200
A32: 2009507578 | B32: 2009-05-20 | C32: I-29 & Floyd Blvd | D32: 454 | E32: 37700 | F32: 7099 | G32: 0.0001 | H32: Woodbury | I32: SB in NB | J32: 1 | K32: 1 | L32: 0 | M32: 2 | N32: 255500
A33: 2009514228 | B33: 2009-06-14 | C33: I-380 & 1st St | D33: 466 | E33: =VLOOKUP(C33,Intersections!A:F,6,FALSE) -> 79400 | F33: =VLOOKUP(C33,Intersections!A:G,7,FALSE) -> 4550 | G33: 0.75 | H33: Linn | I33: NB in SB | J33: 0 | K33: 0 | L33: 0 | M33: 1 | N33: 20000
A34: 2009514228 | B34: 2009-06-14 | C34: I-380 & 1st Ave | D34: 465 | E34: =VLOOKUP(C34,Intersections!A:F,6,FALSE) -> 79400 | F34: =VLOOKUP(C34,Intersections!A:G,7,FALSE) -> 22500 | G34: 0.25 | H34: Linn | I34: NB in SB | J34: 0 | K34: 0 | L34: 0 | M34: 1 | N34: 20000
A35: 2009521041 | B35: 2009-07-02 | C35: US-30 & Story St | E35: 11700 | F35: 6700 | G35: 0.99 | H35: Boone | I35: EB in WB | J35: 0 | K35: 0 | L35: 0 | M35: 0 | N35: 11000
A36: 2009521268 | B36: 2009-08-19 | C36: I-35 & Grand Ave | D36: 54 | E36: 53700 | F36: 4660 | G36: 0.99 | H36: Polk | I36: NB in SB | J36: 0 | K36: 1 | L36: 0 | M36: 1 | N36: 50000
A37: 2009534971 | B37: 2009-09-29 | C37: I-80 & 1st Ave | D37: 419 | E37: 64300 | F37: 24200 | G37: 1 | H37: Johnson | I37: WB in EB | J37: 0 | K37: 0 | L37: 0 | M37: 0 | N37: 5500
A38: 2009531827 | B38: 2009-10-01 | C38: U-Turn | E38: 0 | F38: 0 | G38: 0.5 | H38: Boone | I38: EB in WB | J38: 0 | K38: 0 | L38: 0 | M38: 0 | N38: 6000
A39: 2009545387 | B39: 2009-11-11 | C39: US-30 & 6th Ave | D39: 373 | E39: =VLOOKUP(C39,Intersections!A:F,6,FALSE) -> 11100 | F39: =VLOOKUP(C39,Intersections!A:G,7,FALSE) -> 6300 | G39: 0.25 | H39: Clinton | I39: EB in WB | J39: 0 | K39: 0 | L39: 1 | M39: 1 | N39: 10000
A40: 2009536948 | B40: 2009-11-14 | C40: US-61 & Main St | D40: 365 | E40: =VLOOKUP(C40,Intersections!A:F,6,FALSE) -> 8200 | F40: =VLOOKUP(C40,Intersections!A:G,7,FALSE) -> 4900 | G40: 0.75 | H40: Jackson | I40: NB in SB | J40: 0 | K40: 0 | L40: 0 | M40: 0 | N40: 3500
A41: 2009536948 | B41: 2009-11-14 | C41: US-61 & IA-64 | D41: 363 | E41: 8200 | F41: 7600 | H41: Jackson | I41: NB in SB | J41: 0 | K41: 0 | L41: 0 | M41: 0 | N41: 3500
A42: 2009538822 | B42: 2009-11-25 | C42: U-Turn | E42: 24400 | F42: 0 | G42: 1 | H42: Story | I42: EB in WB | J42: 0 | K42: 0 | L42: 0 | M42: 2 | N42: 45000
A43: 2009561753 | B43: 2009-12-05 | C43: US-75 & IA-3 | D43: 99 | E43: =VLOOKUP(C43,Intersections!A:F,6,FALSE) -> 7800 | F43: =VLOOKUP(C43,Intersections!A:G,7,FALSE) -> 4510 | G43: 0.5 | H43: Plymouth | I43: NB in SB | J43: 0 | K43: 0 | L43: 1 | M43: 0 | N43: 42000
A44: 2009561753 | B44: 2009-12-05 | C44: US-75 & 24th St | D44: 94 | E44: =VLOOKUP(C44,Intersections!A:F,6,FALSE) -> 12900 | F44: =VLOOKUP(C44,Intersections!A:G,7,FALSE) -> 7700 | G44: 0.5 | H44: Plymouth | I44: NB in SB | J44: 0 | K44: 0 | L44: 1 | M44: 0 | N44: 42000
A45: 2009544434 | B45: 2009-12-23 | C45: I-80 & US-6 | D45: 160 | E45: 29500 | F45: 7900 | G45: 0.99 | H45: Pottawattamie | I45: WB in EB | J45: 1 | K45: 1 | L45: 0 | M45: 0 | N45: 11000
A46: 2010547550 | B46: 2010-01-01 | C46: US-67 & 2nd St | D46: 539 | E46: 33400 | F46: 11500 | G46: 1 | H46: Scott | I46: SB in NB | J46: 0 | K46: 1 | L46: 0 | M46: 0 | N46: 5000
A47: 2010546164 | B47: 2010-01-03 | C47: US-169 & Kenyon Rd | E47: 8700 | F47: 8000 | G47: 1 | H47: Webster | I47: SB in NB | J47: 1 | K47: 0 | L47: 0 | M47: 0 | N47: 5500
A48: 2010548583 | B48: 2010-01-07 | C48: US-218 & Greenhill Rd | D48: 298 | E48: 27500 | F48: 6900 | G48: 1 | H48: Black Hawk | I48: NB in SB | J48: 1 | K48: 0 | L48: 1 | M48: 0 | N48: 13000
A49: 2010547828 | B49: 2010-01-11 | C49: I-380 & Glass Rd | D49: 460 | E49: 83100 | F49: 13900 | G49: 0.99 | H49: Linn | I49: NB in SB | J49: 0 | K49: 0 | L49: 0 | M49: 0 | N49: 1200
A50: 2010549862 | B50: 2010-01-16 | C50: U-Turn | D50: 56 | E50: 0 | F50: 0 | G50: 1 | H50: Pottawattamie | I50: EB in WB | J50: 0 | K50: 0 | L50: 0 | M50: 0 | N50: 1000
A51: 2010552832 | B51: 2010-01-31 | C51: I-29 & 9th Ave | D51: 418 | E51: =VLOOKUP(C51,Intersections!A:F,6,FALSE) -> 39100 | F51: =VLOOKUP(C51,Intersections!A:G,7,FALSE) -> 8100 | G51: 0.79 | H51: Pottawattamie | I51: NB in SB | J51: 1 | K51: 0 | L51: 0 | M51: 0 | N51: 20000
A52: 2010552832 | B52: 2010-01-31 | C52: Nebraska | E52: =VLOOKUP(C52,Intersections!A:F,6,FALSE) -> 0 | F52: =VLOOKUP(C52,Intersections!A:G,7,FALSE) -> 0 | G52: 0.2 | H52: Pottawattamie | I52: NB in SB | J52: 1 | K52: 0 | L52: 0 | M52: 0 | N52: 20000
A53: 2010552832 | B53: 2010-01-31 | C53: I-29 & Ave G | D53: 417 | E53: 22700 | F53: 3450 | G53: 0.01 | H53: Pottawattamie | I53: NB in SB | J53: 1 | K53: 0 | L53: 0 | M53: 0 | N53: 20000
A54: 2010562563 | B54: 2010-03-01 | C54: I-80 & IA-21 | D54: 352 | E54: =VLOOKUP(C54,Intersections!A:F,6,FALSE) -> 28700 | F54: =VLOOKUP(C54,Intersections!A:G,7,FALSE) -> 3430 | G54: 1 | H54: Poweshiek | I54: EB in WB | J54: 0 | K54: 0 | L54: 0 | M54: 0 | N54: 1500
A55: 2010569964 | B55: 2010-03-08 | C55: Fork | E55: =VLOOKUP(C55,Intersections!A:F,6,FALSE) -> 0 | F55: =VLOOKUP(C55,Intersections!A:G,7,FALSE) -> 0 | G55: 0.5 | H55: Benton | I55: EB in WB | J55: 1 | K55: 0 | L55: 0 | M55: 0 | N55: 16000
A56: 2010569964 | B56: 2010-03-08 | C56: US-30 & IA-287 | E56: 10700 | F56: 1250 | G56: 0.5 | H56: Benton | I56: EB in WB | J56: 1 | K56: 0 | L56: 0 | M56: 0 | N56: 16000
A57: 2010562600 | B57: 2010-03-10 | C57: I-29 & IA-141 | D57: 71 | E57: 18400 | F57: 3560 | G57: 0.99 | H57: Woodbury | I57: NB in SB | J57: 0 | K57: 1 | L57: 2 | M57: 0 | N57: 1500
A58: 2010565003 | B58: 2010-03-27 | C58: US-61 & IA-64 | D58: 363 | E58: =VLOOKUP(C58,Intersections!A:F,6,FALSE) -> 8200 | F58: =VLOOKUP(C58,Intersections!A:G,7,FALSE) -> 7600 | G58: 0.25 | H58: Clinton | I58: SB in NB | J58: 3 | K58: 0 | L58: 0 | M58: 0 | N58: 7000
A59: 2010565003 | B59: 2010-03-27 | C59: US-61 & Main St | D59: 365 | E59: 8200 | F59: 4900 | G59: 0.75 | H59: Clinton | I59: SB in NB | J59: 3 | K59: 0 | L59: 0 | M59: 0 | N59: 7000
A60: 2010576787 | B60: 2010-06-12 | C60: I-280 & US-6 | D60: 444 | E60: =VLOOKUP(C60,Intersections!A:F,6,FALSE) -> 22400 | F60: =VLOOKUP(C60,Intersections!A:G,7,FALSE) -> 6600 | G60: 0.75 | H60: Scott | I60: EB in WB | J60: 1 | K60: 0 | L60: 0 | M60: 1 | N60: 11000
A61: 2010576787 | B61: 2010-06-12 | C61: I-280 & Locust St | D61: 433 | E61: 24400 | F61: 8800 | G61: 0.25 | H61: Scott | I61: EB in WB | J61: 1 | K61: 0 | L61: 0 | M61: 1 | N61: 11000
A62: 2010578422 | B62: 2010-06-24 | C62: I-35 & Merle Hay Rd | D62: 120 | E62: =VLOOKUP(C62,Intersections!A:F,6,FALSE) -> 101100 | F62: =VLOOKUP(C62,Intersections!A:G,7,FALSE) -> 30600 | G62: 1 | H62: Polk | I62: WB in EB | J62: 0 | K62: 0 | L62: 1 | M62: 0 | N62: 2500
A63: 2010580661 | B63: 2010-07-08 | C63: I-680 & CR-L34 | D63: 15 | E63: =VLOOKUP(C63,Intersections!A:F,6,FALSE) -> 6600 | F63: =VLOOKUP(C63,Intersections!A:G,7,FALSE) -> 800 | G63: 0.25 | H63: Pottawattamie | I63: SB in NB | J63: 0 | K63: 0 | L63: 0 | M63: 0 | N63: 3000
A64: 2010580661 | B64: 2010-07-08 | C64: I-680 & Missouri Valley Eastbound Rest Area | E64: 6600 | F64: 0 | G64: 0.75 | H64: Pottawattamie | I64: SB in NB | J64: 0 | K64: 0 | L64: 0 | M64: 0 | N64: 3000
A65: 2010580853 | B65: 2010-07-10 | C65: I-235 & 7th St/5th Ave | D65: 470 | E65: =VLOOKUP(C65,Intersections!A:F,6,FALSE) -> 91800 | F65: =VLOOKUP(C65,Intersections!A:G,7,FALSE) -> 9100 | G65: 0.5 | H65: Polk | I65: WB in EB | J65: 0 | K65: 0 | L65: 0 | M65: 0 | N65: 1500
A66: 2010580853 | B66: 2010-07-10 | C66: I-235 & Keosauqua Way | D66: 501 | E66: 91300 | F66: 13800 | G66: 0.5 | H66: Polk | I66: WB in EB | J66: 0 | K66: 0 | L66: 0 | M66: 0 | N66: 1500
A67: 2010585255 | B67: 2010-08-04 | C67: I-80 & US-65 | D67: 259 | E67: =VLOOKUP(C67,Intersections!A:F,6,FALSE) -> 65400 | F67: =VLOOKUP(C67,Intersections!A:G,7,FALSE) -> 15900 | G67: 0.25 | H67: Polk | I67: WB in EB | J67: 0 | K67: 1 | L67: 0 | M67: 0 | N67: 9500
A68: 2010585255 | B68: 2010-08-04 | C68: I-80 & Hubbell Ave | D68: 272 | E68: =VLOOKUP(C68,Intersections!A:F,6,FALSE) -> 42800 | F68: =VLOOKUP(C68,Intersections!A:G,7,FALSE) -> 13700 | G68: 0.25 | H68: Polk | I68: WB in EB | J68: 0 | K68: 1 | L68: 0 | M68: 0 | N68: 9500
A69: 2010585255 | B69: 2010-08-04 | C69: I 80 E & NE 72ND ST/1ST AVE N | D69: 278 | E69: =VLOOKUP(C69,Intersections!A:F,6,FALSE) -> 45100 | F69: =VLOOKUP(C69,Intersections!A:G,7,FALSE) -> 11000 | G69: 0.25 | H69: Polk | I69: WB in EB | J69: 0 | K69: 1 | L69: 0 | M69: 0 | N69: 9500
A70: 2010587945 | B70: 2010-08-22 | C70: I 80 E & I 80 E TO HWY F-48 W E | D70: 292 | E70: =VLOOKUP(C70,Intersections!A:F,6,FALSE) -> 31300 | F70: =VLOOKUP(C70,Intersections!A:G,7,FALSE) -> 3850 | G70: 0.5 | H70: Jasper | I70: WB in EB | J70: 1 | K70: 0 | L70: 0 | M70: 0 | N70: 11000
A71: 2010587945 | B71: 2010-08-22 | C71: I-80 & IA-117 | D71: 287 | E71: 32100 | F71: 6900 | G71: 0.5 | H71: Jasper | I71: WB in EB | J71: 1 | K71: 0 | L71: 0 | M71: 0 | N71: 11000
A72: 2010595934 | B72: 2010-10-05 | C72: US-34 & 235th St | D72: 313 | E72: =VLOOKUP(C72,Intersections!A:F,6,FALSE) -> 7400 | F72: =VLOOKUP(C72,Intersections!A:G,7,FALSE) -> 2010 | G72: 0.25 | H72: Jefferson | I72: WB in EB | J72: 0 | K72: 0 | L72: 0 | M72: 0 | N72: 6500
A73: 2010595934 | B73: 2010-10-05 | C73: US-34 & Wintergreen Blvd | E73: 6900 | F73: 760 | G73: 0.75 | H73: Jefferson | I73: WB in EB | J73: 0 | K73: 0 | L73: 0 | M73: 0 | N73: 6500
A74: 2011620158 | B74: 2011-02-21 | C74: I-29 & 275th St | D74: 74 | E74: 19300 | F74: 1050 | G74: 0.99 | H74: Woodbury | I74: SB in NB | J74: 0 | K74: 1 | L74: 0 | M74: 1 | N74: 18000
A75: 2011628997 | B75: 2011-05-08 | C75: I-35 & Mills Civic Pkwy | D75: 57 | E75: 73200 | F75: 20500 | G75: 1 | H75: Polk | I75: NB in SB | J75: 0 | K75: 0 | L75: 0 | M75: 0 | N75: 14000
A76: 2011636200 | B76: 2011-05-14 | C76: US 63 E RAMP & FAYETTE ST | D76: 264 | E76: =VLOOKUP(C76,Intersections!A:F,6,FALSE) -> 5900 | F76: =VLOOKUP(C76,Intersections!A:G,7,FALSE) -> 3200 | G76: 0.25 | H76: Black Hawk | I76: SB in NB | J76: 0 | K76: 1 | L76: 0 | M76: 0 | N76: 7000
A77: 2011636200 | B77: 2011-05-14 | C77: US-63 & State St | E77: =VLOOKUP(C77,Intersections!A:F,6,FALSE) -> 9000 | F77: =VLOOKUP(C77,Intersections!A:G,7,FALSE) -> 3120 | G77: 0.25 | H77: Black Hawk | I77: SB in NB | J77: 0 | K77: 1 | L77: 0 | M77: 0 | N77: 7000
A78: 2011636200 | B78: 2011-05-14 | C78: US-63 & Cedar Wapsi Rd | E78: 9300 | F78: 3370 | G78: 0.5 | H78: Black Hawk | I78: SB in NB | J78: 0 | K78: 1 | L78: 0 | M78: 0 | N78: 7000
A79: 2011632220 | B79: 2011-05-22 | C79: I-29 & IA-333 | D79: 13 | E79: 14100 | F79: 1450 | G79: 0.99 | H79: Fremont | I79: NB in SB | J79: 0 | K79: 2 | L79: 0 | M79: 0 | N79: 25000
A80: 2011639843 | B80: 2011-07-23 | C80: IA-100 & Center Point Rd | D80: 452 | E80: 25300 | F80: 13100 | G80: 0.99 | H80: Linn | I80: WB in EB | J80: 0 | K80: 0 | L80: 0 | M80: 0 | N80: 10000
A81: 2011640529 | B81: 2011-07-29 | C81: US-218 & Sergeant Rd | D81: 261 | E81: 25500 | F81: 7000 | G81: 0.99 | H81: Black Hawk | I81: NB in SB | J81: 0 | K81: 0 | L81: 0 | M81: 0 | N81: 2000
A82: 2011647085 | B82: 2011-09-12 | C82: I-80 SW RAMP/LOOP & MIDDLE RD | D82: 425 | E82: =VLOOKUP(C82,Intersections!A:F,6,FALSE) -> 34400 | F82: =VLOOKUP(C82,Intersections!A:G,7,FALSE) -> 6400 | G82: 1 | H82: Scott | I82: EB in WB | J82: 0 | K82: 0 | L82: 0 | M82: 0 | N82: 8000
A83: 2011649090 | B83: 2011-09-28 | C83: Fork | E83: 13500 | F83: 0 | G83: 1 | H83: Linn | I83: WB in EB | J83: 0 | K83: 1 | L83: 0 | M83: 0 | N83: 18500
A84: 2011654387 | B84: 2011-10-26 | C84: U-Turn | E84: 9000 | F84: 0 | G84: 1 | H84: Des Moines | I84: EB in WB | J84: 0 | K84: 1 | L84: 0 | M84: 0 | N84: 20000
A85: 2011656309 | B85: 2011-10-28 | C85: US-30 & IA-330 | D85: 360 | E85: 8900 | F85: 11700 | G85: 0.99 | H85: Marshall | I85: NB in SB | J85: 0 | K85: 0 | L85: 4 | M85: 0 | N85: 14500
A86: 2011658461 | B86: 2011-10-29 | C86: US-61 & 65th St | E86: 28700 | F86: 11100 | G86: 1 | H86: Scott | I86: NB in SB | J86: 0 | K86: 0 | L86: 1 | M86: 0 | N86: 12000
A87: 2011656668 | B87: 2011-11-11 | C87: IA-5 & 9th St | D87: 390 | E87: 27500 | F87: 8400 | G87: 0.99 | H87: Warren | I87: WB in EB | J87: 1 | K87: 1 | L87: 0 | M87: 0 | N87: 10000
A88: 2011658454 | B88: 2011-11-18 | C88: I-74 & 53rd St | D88: 523 | E88: =VLOOKUP(C88,Intersections!A:F,6,FALSE) -> 36600 | F88: =VLOOKUP(C88,Intersections!A:G,7,FALSE) -> 44900 | G88: 0.5 | H88: Scott | I88: EB in WB | J88: 0 | K88: 0 | L88: 0 | M88: 0 | N88: 22000
A89: 2011658454 | B89: 2011-11-18 | C89: I-74 & US-6/Spruce Hills Dr | D89: 434 | E89: 49800 | F89: 33700 | G89: 0.5 | H89: Scott | I89: EB in WB | J89: 0 | K89: 0 | L89: 0 | M89: 0 | N89: 22000
A90: 2012666522 | B90: 2012-01-01 | C90: US-20 & 330th Ave/CR-X49 | E90: =VLOOKUP(C90,Intersections!A:F,6,FALSE) -> 12000 | F90: =VLOOKUP(C90,Intersections!A:G,7,FALSE) -> 3960 | G90: 0.5 | H90: Delaware | I90: WB in EB | J90: 0 | K90: 1 | L90: 0 | M90: 1 | N90: 27000
A91: 2012666522 | B91: 2012-01-01 | C91: US-20 & 270th Ave | D91: 331 | E91: 8800 | F91: 1710 | G91: 0.5 | H91: Delaware | I91: WB in EB | J91: 0 | K91: 1 | L91: 0 | M91: 1 | N91: 27000
A92: 2012667607 | B92: 2012-01-04 | C92: US-30 & 3rd St/CR-S14 | E92: =VLOOKUP(C92,Intersections!A:F,6,FALSE) ->  | F92: =VLOOKUP(C92,Intersections!A:G,7,FALSE) ->  | G92: 0.5 | H92: Story | I92: WB in EB | J92: 1 | K92: 0 | L92: 1 | M92: 0 | N92: 7000
A93: 2012667607 | B93: 2012-01-04 | C93: US-30 & 580th Ave | E93: 17300 | F93: 1790 | G93: 0.5 | H93: Story | I93: WB in EB | J93: 1 | K93: 0 | L93: 1 | M93: 0 | N93: 7000
A94: 2012666080 | B94: 2012-01-08 | C94: IA-141 & IA-210 | D94: 394 | E94: 9900 | F94: 3810 | G94: 1 | H94: Dallas | I94: EB in WB | J94: 0 | K94: 0 | L94: 0 | M94: 0 | N94: 3000
A95: 2012669313 | B95: 2012-01-25 | C95: I-29 & 9th Ave | D95: 418 | E95: 39100 | F95: 8100 | G95: 1 | H95: Pottawattamie | I95: SB in NB | J95: 0 | K95: 1 | L95: 1 | M95: 0 | N95: 20000
A96: 2012672260 | B96: 2012-02-08 | C96: Fork | E96: =VLOOKUP(C96,Intersections!A:F,6,FALSE) -> 0 | F96: =VLOOKUP(C96,Intersections!A:G,7,FALSE) -> 0 | G96: 0.25 | H96: Wapello | I96: EB in WB | J96: 0 | K96: 4 | L96: 0 | M96: 0 | N96: 10000
A97: 2012672260 | B97: 2012-02-08 | C97: US-34 & Quincy Ave | E97: 18900 | F97: 11800 | G97: 0.75 | H97: Wapello | I97: EB in WB | J97: 0 | K97: 4 | L97: 0 | M97: 0 | N97: 10000
A98: 2012677105 | B98: 2012-02-09 | C98: I-29 & I-680 | D98: 191 | E98: 22800 | F98: 17500 | G98: 1 | H98: Pottawattamie | I98: SB in NB | J98: 0 | K98: 0 | L98: 0 | M98: 0 | N98: 10000
A99: 2012677927 | B99: 2012-02-16 | C99: US-34 & Burlington Ave | D99: 260 | E99: 8000 | F99: 5200 | G99: 0.5 | H99: Jefferson | I99: EB in WB | J99: 1 | K99: 0 | L99: 0 | M99: 0 | N99: 5000
A100: 2012675640 | B100: 2012-02-23 | C100: US-34 & Roemer Ave | E100: 10200 | F100: 2910 | G100: 0.5 | H100: Wapello | I100: WB in EB | J100: 0 | K100: 1 | L100: 0 | M100: 0 | N100: 5000
A101: 2012676781 | B101: 2012-03-11 | C101: US-63 & US-34 | D101: 280 | E101: 10800 | F101: 10600 | G101: 0.99 | H101: Wapello | I101: SB in NB | J101: 0 | K101: 0 | L101: 0 | M101: 0 | N101: 3750
A102: 2012683812 | B102: 2012-04-20 | C102: US-218 & 9th St | E102: =VLOOKUP(C102,Intersections!A:F,6,FALSE) -> 34700 | F102: =VLOOKUP(C102,Intersections!A:G,7,FALSE) -> 7500 | G102: 0.5 | H102: Black Hawk | I102: NB in SB | J102: 0 | K102: 1 | L102: 1 | M102: 0 | N102: 8000
A103: 2012683122 | B103: 2012-04-25 | C103: US-75 & IA-3 | D103: 99 | E103: =VLOOKUP(C103,Intersections!A:F,6,FALSE) -> 7800 | F103: =VLOOKUP(C103,Intersections!A:G,7,FALSE) -> 4510 | G103: 0.5 | H103: Plymouth | I103: SB in NB | J103: 0 | K103: 0 | L103: 0 | M103: 0 | N103: 1500
A104: 2012683122 | B104: 2012-04-25 | C104: US-75 & 24th St | D104: 94 | E104: 12900 | F104: 7700 | G104: 0.5 | H104: Plymouth | I104: SB in NB | J104: 0 | K104: 0 | L104: 0 | M104: 0 | N104: 1500
A105: 2012687442 | B105: 2012-05-22 | C105: US 63 NE RAMP & 100TH ST/Pennsylvania Ave | D105: 273 | E105: =VLOOKUP(C105,Intersections!A:F,6,FALSE) -> 8000 | F105: =VLOOKUP(C105,Intersections!A:G,7,FALSE) -> 2780 | G105: 0.25 | H105: Wapello | I105: EB in WB | J105: 0 | K105: 0 | L105: 0 | M105: 0 | N105: 2000
A106: 2012687442 | B106: 2012-05-22 | C106: US-63 & US-34 | D106: 280 | E106: 10800 | F106: 10600 | G106: 0.75 | H106: Wapello | I106: EB in WB | J106: 0 | K106: 0 | L106: 0 | M106: 0 | N106: 2000
A107: 2012689083 | B107: 2012-05-25 | C107: I 235 W & I 235 W TO 31ST ST S | D107: 245 | E107: =VLOOKUP(C107,Intersections!A:F,6,FALSE) -> 134700 | F107: =VLOOKUP(C107,Intersections!A:G,7,FALSE) -> 15800 | G107: 1 | H107: Polk | I107: EB in WB | J107: 0 | K107: 0 | L107: 0 | M107: 0 | N107: 2760
A108: 2012691154 | B108: 2012-06-16 | C108: US-63 & Almond St | E108: 12100 | F108: 1390 | G108: 0.99 | H108: Black Hawk | I108: SB in NB | J108: 0 | K108: 0 | L108: 0 | M108: 0 | N108: 2500
A109: 2012694439 | B109: 2012-06-30 | C109: Crossover | E109: 22500 | F109: 0 | G109: 1 | H109: Warren | I109: NB in SB | J109: 0 | K109: 1 | L109: 0 | M109: 0 | N109: 35000
A110: 2012696716 | B110: 2012-07-27 | C110: I-74 & 53rd St | D110: 523 | E110: =VLOOKUP(C110,Intersections!A:F,6,FALSE) -> 36600 | F110: =VLOOKUP(C110,Intersections!A:G,7,FALSE) -> 44900 | G110: 0.25 | H110: Scott | I110: EB in WB | J110: 0 | K110: 2 | L110: 0 | M110: 0 | N110: 15000
A111: 2012696716 | B111: 2012-07-27 | C111: I-74 & US-6/Spruce Hills Dr | D111: 434 | E111: =VLOOKUP(C111,Intersections!A:F,6,FALSE) -> 49800 | F111: =VLOOKUP(C111,Intersections!A:G,7,FALSE) -> 33700 | G111: 0.25 | H111: Scott | I111: EB in WB | J111: 0 | K111: 2 | L111: 0 | M111: 0 | N111: 15000
A112: 2012696716 | B112: 2012-07-27 | C112: I-74 SE RAMP & MIDDLE RD | D112: 427 | E112: 67000 | F112: 15000 | G112: 0.25 | H112: Scott | I112: EB in WB | J112: 0 | K112: 2 | L112: 0 | M112: 0 | N112: 15000
A113: 2012700492 | B113: 2012-08-26 | C113: US-18 & US-65 | D113: 159 | E113: 11100 | F113: 6900 | G113: 1 | H113: Cerro Gordo | I113: WB in EB | J113: 0 | K113: 1 | L113: 1 | M113: 0 | N113: 35000
A114: 2012701305 | B114: 2012-08-31 | C114: US-34 & Beaverdale Rd | D114: 232 | E114: =VLOOKUP(C114,Intersections!A:F,6,FALSE) -> 9000 | F114: =VLOOKUP(C114,Intersections!A:G,7,FALSE) -> 3090 | G114: 0.25 | H114: Des Moines | I114: EB in WB | J114: 0 | K114: 2 | L114: 0 | M114: 0 | N114: 3000
A115: 2012701305 | B115: 2012-08-31 | C115: US-34 & Mount Pleasant St | D115: 235 | E115: 9600 | F115: 3760 | G115: 0.75 | H115: Des Moines | I115: EB in WB | J115: 0 | K115: 2 | L115: 0 | M115: 0 | N115: 3000
A116: 2012703623 | B116: 2012-09-08 | C116: I-80 & IA-244 | D116: 162 | E116: 22100 | F116: 2060 | G116: 0.99 | H116: Pottawattamie | I116: EB in WB | J116: 0 | K116: 0 | L116: 1 | M116: 0 | N116: 19500
A117: 2012705565 | B117: 2012-10-02 | C117: US-20 & Jamesmeier Rd | E117: 12600 | F117: 1560 | G117: 1 | H117: Dubuque | I117: EB in WB | J117: 0 | K117: 0 | L117: 0 | M117: 0 | N117: 4000
A118: 2012708914 | B118: 2012-10-02 | C118: I-80 & 86th St | D118: 100 | E118: =VLOOKUP(C118,Intersections!A:F,6,FALSE) -> 96500 | F118: =VLOOKUP(C118,Intersections!A:G,7,FALSE) -> 17500 | G118: 0.5 | H118: Polk | I118: EB in WB | J118: 0 | K118: 0 | L118: 0 | M118: 2 | N118: 23000
A119: 2012708914 | B119: 2012-10-02 | C119: I-35 & Merle Hay Rd | D119: 120 | E119: 101100 | F119: 30600 | G119: 0.5 | H119: Polk | I119: EB in WB | J119: 0 | K119: 0 | L119: 0 | M119: 2 | N119: 23000
A120: 2012712561 | B120: 2012-11-12 | C120: I-35 & 1st St | D120: 148 | E120: =VLOOKUP(C120,Intersections!A:F,6,FALSE) -> 67200 | F120: =VLOOKUP(C120,Intersections!A:G,7,FALSE) -> 12400 | G120: 0.5 | H120: Polk | I120: SB in NB | J120: 1 | K120: 0 | L120: 0 | M120: 0 | N120: 13700
A121: 2012712561 | B121: 2012-11-12 | C121: I-35 & Oralabor Rd | D121: 141 | E121: 80700 | F121: 30200 | G121: 0.5 | H121: Polk | I121: SB in NB | J121: 1 | K121: 0 | L121: 0 | M121: 0 | N121: 13700
A122: 2012713020 | B122: 2012-11-17 | C122: I-235 & 7th St/5th Ave | D122: 470 | E122: 91800 | F122: 9100 | G122: 1 | H122: Polk | I122: WB in EB | J122: 1 | K122: 0 | L122: 0 | M122: 0 | N122: 10000
A123: 2012714245 | B123: 2012-11-18 | C123: I-380 & Wilson Ave | D123: 203 | E123: =VLOOKUP(C123,Intersections!A:F,6,FALSE) -> 81100 | F123: =VLOOKUP(C123,Intersections!A:G,7,FALSE) -> 15000 | G123: 0.25 | H123: Linn | I123: SB in NB | J123: 0 | K123: 0 | L123: 1 | M123: 1 | N123: 19000
A124: 2012714245 | B124: 2012-11-18 | C124: I-380 & 33rd Ave | D124: 199 | E124: =VLOOKUP(C124,Intersections!A:F,6,FALSE) -> 76100 | F124: =VLOOKUP(C124,Intersections!A:G,7,FALSE) -> 20400 | G124: 0.25 | H124: Linn | I124: SB in NB | J124: 0 | K124: 0 | L124: 1 | M124: 1 | N124: 19000
A125: 2012714245 | B125: 2012-11-18 | C125: US-30 & Kirkwood Blvd | D125: 407 | E125: =VLOOKUP(C125,Intersections!A:F,6,FALSE) -> 31700 | F125: =VLOOKUP(C125,Intersections!A:G,7,FALSE) -> 16200 | G125: 0.25 | H125: Linn | I125: SB in NB | J125: 0 | K125: 0 | L125: 1 | M125: 1 | N125: 19000
A126: 2012714245 | B126: 2012-11-18 | C126: I-380 & Wright Brothers Blvd | D126: 183 | E126: 59800 | F126: 6800 | G126: 0.25 | H126: Linn | I126: SB in NB | J126: 0 | K126: 0 | L126: 1 | M126: 1 | N126: 19000
A127: 2012723492 | B127: 2012-12-09 | C127: I-380 & Poyner Rd | D127: 258 | E127: 16700 | F127: 710 | G127: 1 | H127: Black Hawk | I127: SB in NB | J127: 0 | K127: 6 | L127: 0 | M127: 0 | N127: 20500
A128: 2012721390 | B128: 2012-12-22 | C128: US-218 & Salem Rd | E128: =VLOOKUP(C128,Intersections!A:F,6,FALSE) -> 9300 | F128: =VLOOKUP(C128,Intersections!A:G,7,FALSE) -> 880 | G128: 0.5 | H128: Henry | I128: SB in NB | J128: 0 | K128: 0 | L128: 0 | M128: 0 | N128: 16000
A129: 2012721390 | B129: 2012-12-22 | C129: US-34 & US-218 | D129: 249 | E129: 9800 | F129: 7900 | G129: 0.5 | H129: Henry | I129: SB in NB | J129: 0 | K129: 0 | L129: 0 | M129: 0 | N129: 16000
A130: 2013724742 | B130: 2013-02-01 | C130: US-61 & 9th St/11th St | D130: 359 | E130: 24700 | F130: 3850 | G130: 1 | H130: Dubuque | I130: SB in NB | J130: 0 | K130: 0 | L130: 0 | M130: 0 | N130: 2500
A131: 2013742785 | B131: 2013-05-10 | C131: US-61 & US-52 | E131: 20000 | F131: 6800 | G131: 0.99 | H131: Dubuque | I131: NB in SB | J131: 1 | K131: 0 | L131: 0 | M131: 1 | N131: 17500
A132: 2013752876 | B132: 2013-06-09 | C132: I-80 & CR-F60/ELDORADO AVE | D132: 139 | E132: =VLOOKUP(C132,Intersections!A:F,6,FALSE) -> 28900 | F132: =VLOOKUP(C132,Intersections!A:G,7,FALSE) -> 3170 | G132: 0.5 | H132: Dallas | I132: EB in WB | J132: 0 | K132: 2 | L132: 0 | M132: 2 | N132: 25000
A133: 2013752876 | B133: 2013-06-09 | C133: I 80W & I 80 W TO ADAIR-MADISON AVE, S | D133: 119 | E133: =VLOOKUP(C133,Intersections!A:F,6,FALSE) -> 27100 | F133: =VLOOKUP(C133,Intersections!A:G,7,FALSE) -> 320 | G133: 0.25 | H133: Dallas | I133: EB in WB | J133: 0 | K133: 2 | L133: 0 | M133: 2 | N133: 25000
A134: 2013752876 | B134: 2013-06-09 | C134: I-80 & CR-P57 | D134: 142 | E134: 31500 | F134: 3110 | G134: 0.25 | H134: Dallas | I134: EB in WB | J134: 0 | K134: 2 | L134: 0 | M134: 2 | N134: 25000
A135: 2013744318 | B135: 2013-06-15 | C135: Crossover | E135: =VLOOKUP(C135,Intersections!A:F,6,FALSE) -> 22500 | F135: =VLOOKUP(C135,Intersections!A:G,7,FALSE) -> 0 | G135: 0.5 | H135: Polk | I135: NB in SB | J135: 0 | K135: 0 | L135: 0 | M135: 0 | N135: 10000
A136: 2013744318 | B136: 2013-06-15 | C136: I-35 & CR-G14 | D136: 46 | E136: 26700 | F136: 3290 | G136: 0.5 | H136: Polk | I136: NB in SB | J136: 0 | K136: 0 | L136: 0 | M136: 0 | N136: 10000
A137: 2013750431 | B137: 2013-07-24 | C137: US-218 & Cedar Wapsi Rd | E137: =VLOOKUP(C137,Intersections!A:F,6,FALSE) -> 23900 | F137: =VLOOKUP(C137,Intersections!A:G,7,FALSE) -> 3370 | G137: 0 | H137: Bremer | I137: NB in SB | J137: 1 | K137: 0 | L137: 1 | M137: 1 | N137: 38500
A138: 2013750431 | B138: 2013-07-24 | C138: US-218 & Barrick Rd | D138: 210 | E138: 19000 | F138: 2900 | G138: 0.75 | H138: Bremer | I138: NB in SB | J138: 1 | K138: 0 | L138: 1 | M138: 1 | N138: 38500
A139: 2013751805 | B139: 2013-07-29 | C139: IA-141 & IA-210 | D139: 394 | E139: 9900 | F139: 3810 | G139: 1 | H139: Dallas | I139: WB in EB | J139: 0 | K139: 0 | L139: 0 | M139: 0 | N139: 17000
A140: 2013752730 | B140: 2013-08-11 | C140: US-20 & Lakeport St | D140: 86 | E140: 33200 | F140: 20000 | G140: 1 | H140: Woodbury | I140: EB in WB | J140: 0 | K140: 0 | L140: 0 | M140: 0 | N140: 1520
A141: 2013755978 | B141: 2013-08-30 | C141: I-29 & Wesley Pkwy & US-77 | D141: 479 | E141: 36800 | F141: 28300 | G141: 1 | H141: Woodbury | I141: NB in SB | J141: 0 | K141: 0 | L141: 0 | M141: 0 | N141: 2500
A142: 2013757549 | B142: 2013-08-31 | C142: U-Turn | E142: 29700 | F142: 0 | G142: 1 | H142: Story | I142: SB in NB | J142: 0 | K142: 0 | L142: 0 | M142: 0 | N142: 3000
A143: 2013756927 | B143: 2013-09-11 | C143: I-380 & County Home Rd | D143: 241 | E143: 34400 | F143: 12800 | G143: 1 | H143: Linn | I143: SB in NB | J143: 0 | K143: 0 | L143: 0 | M143: 0 | N143: 3500
A144: 2013759287 | B144: 2013-09-21 | C144: I-80 & US-6/IA-38/ROSE AVE | D144: 446 | E144: =VLOOKUP(C144,Intersections!A:F,6,FALSE) -> 36200 | F144: =VLOOKUP(C144,Intersections!A:G,7,FALSE) -> 3580 | G144: 0.125 | H144: Cedar | I144: WB in EB | J144: 0 | K144: 1 | L144: 0 | M144: 0 | N144: 15000
A145: 2013759287 | B145: 2013-09-21 | C145: I-80 & EB Wilton Rest Area | E145: =VLOOKUP(C145,Intersections!A:F,6,FALSE) -> 36200 | F145: =VLOOKUP(C145,Intersections!A:G,7,FALSE) -> 0 | G145: 0.125 | H145: Cedar | I145: WB in EB | J145: 0 | K145: 1 | L145: 0 | M145: 0 | N145: 15000
A146: 2013759287 | B146: 2013-09-21 | C146: I-80 & IA-38 | D146: 440 | E146: 36200 | F146: 3540 | G146: 0.5 | H146: Cedar | I146: WB in EB | J146: 0 | K146: 1 | L146: 0 | M146: 0 | N146: 15000
A147: 2013762021 | B147: 2013-10-15 | C147: US-61 & Hurtsville Rd | E147: 8100 | F147: 1460 | G147: 0.5 | H147: Jackson | I147: SB in NB | J147: 1 | K147: 0 | L147: 0 | M147: 0 | N147: 5500
A148: 2013763057 | B148: 2013-10-22 | C148: I-80 & Hubbell Ave | D148: 272 | E148: 42800 | F148: 13700 | G148: 1 | H148: Polk | I148: WB in EB | J148: 0 | K148: 0 | L148: 1 | M148: 0 | N148: 5200
A149: 2013770164 | B149: 2013-11-15 | C149: I-35 & Oralabor Rd | D149: 141 | E149: 80700 | F149: 30200 | G149: 1 | H149: Polk | I149: NB in SB | J149: 0 | K149: 0 | L149: 0 | M149: 0 | N149: 20500
A150: 2013771944 | B150: 2013-11-23 | C150: I-35 & Clay St | D150: 30 | E150: =VLOOKUP(C150,Intersections!A:F,6,FALSE) -> 16900 | F150: =VLOOKUP(C150,Intersections!A:G,7,FALSE) -> 800 | G150: 0.5 | H150: Clarke | I150: SB in NB | J150: 1 | K150: 0 | L150: 0 | M150: 0 | N150: 3000
A151: 2013771944 | B151: 2013-11-23 | C151: I-35 & US-34 | D151: 25 | E151: 16900 | F151: 9700 | G151: 0.5 | H151: Clarke | I151: SB in NB | J151: 1 | K151: 0 | L151: 0 | M151: 0 | N151: 3000
A152: 2013773050 | B152: 2013-12-16 | C152: IA-934 & Greenhill Rd | E152: 7000 | F152: 4620 | G152: 0.5 | H152: Black Hawk | I152: EB in WB | J152: 0 | K152: 0 | L152: 0 | M152: 0 | N152: 2200
A153: 2013775267 | B153: 2013-12-23 | C153: Fork | E153: =VLOOKUP(C153,Intersections!A:F,6,FALSE) -> 0 | F153: =VLOOKUP(C153,Intersections!A:G,7,FALSE) -> 0 | H153: Boone | I153: EB in WB | J153: 0 | K153: 0 | L153: 0 | M153: 0 | N153: 1500
A154: 2013775267 | B154: 2013-12-23 | C154: US-30 & US-169 | D154: 324 | E154: 7500 | F154: 3550 | G154: 0.5 | H154: Boone | I154: EB in WB | J154: 0 | K154: 0 | L154: 0 | M154: 0 | N154: 1500
A155: 2013782425 | B155: 2013-12-27 | C155: US-151 & Skyline Rd | E155: 6200 | F155: 1480 | G155: 1 | H155: Dubuque | I155: SB in NB | J155: 0 | K155: 0 | L155: 0 | M155: 0 | N155: 3500
A156: 2014781205 | B156: 2014-01-17 | C156: I-29 & 25th St | D156: 167 | E156: =VLOOKUP(C156,Intersections!A:F,6,FALSE) -> 19700 | F156: =VLOOKUP(C156,Intersections!A:G,7,FALSE) -> 8000 | G156: 0.2 | H156: Pottawattamie | I156: NB in SB | J156: 0 | K156: 1 | L156: 2 | M156: 1 | N156: 26000
A157: 2014781205 | B157: 2014-01-17 | C157: I-29 & Ave G | D157: 417 | E157: =VLOOKUP(C157,Intersections!A:F,6,FALSE) -> 22700 | F157: =VLOOKUP(C157,Intersections!A:G,7,FALSE) -> 3450 | G157: 0.01 | H157: Pottawattamie | I157: NB in SB | J157: 0 | K157: 1 | L157: 2 | M157: 1 | N157: 26000
A158: 2014781205 | B158: 2014-01-17 | C158: I-29 & IA-192/16th St | D158: 488 | E158: 18200 | F158: 8700 | G158: 0.79 | H158: Pottawattamie | I158: NB in SB | J158: 0 | K158: 1 | L158: 2 | M158: 1 | N158: 26000
A159: 2014786965 | B159: 2014-02-14 | C159: I-80 & Division St | D159: 116 | E159: 27100 | F159: 4620 | G159: 1 | H159: Dallas | I159: EB in WB | J159: 6 | K159: 0 | L159: 2 | M159: 0 | N159: 16000
A160: 2014789518 | B160: 2014-02-28 | C160: US-61 & 210th St | E160: =VLOOKUP(C160,Intersections!A:F,6,FALSE) -> 13800 | F160: =VLOOKUP(C160,Intersections!A:G,7,FALSE) -> 390 | G160: 0.75 | H160: Clinton | I160: SB in NB | J160: 0 | K160: 0 | L160: 0 | M160: 0 | N160: 7000
A161: 2014789518 | B161: 2014-02-28 | C161: US-61 & US-30 (North of De Witt) | D161: 371 | E161: 17400 | F161: 7700 | G161: 0.25 | H161: Clinton | I161: SB in NB | J161: 0 | K161: 0 | L161: 0 | M161: 0 | N161: 7000
A162: 2014793572 | B162: 2014-03-26 | C162: I-35 & US-69 | D162: 2 | E162: 13200 | F162: 610 | G162: 0.99 | H162: Decatur | I162: NB in SB | J162: 0 | K162: 0 | L162: 0 | M162: 0 | N162: 2500
A163: 2014792541 | B163: 2014-03-28 | C163: I-380 NW RAMP & H AVE NE | D163: 225 | E163: =VLOOKUP(C163,Intersections!A:F,6,FALSE) -> 97700 | F163: =VLOOKUP(C163,Intersections!A:G,7,FALSE) -> 9000 | G163: 0.25 | H163: Linn | I163: NB in SB | J163: 0 | K163: 0 | L163: 0 | M163: 0 | N163: 9500
A164: 2014792541 | B164: 2014-03-28 | C164: I-380 & Glass Rd | D164: 460 | E164: 83100 | F164: 13900 | G164: 0.75 | H164: Linn | I164: NB in SB | J164: 0 | K164: 0 | L164: 0 | M164: 0 | N164: 9500
A165: 2014798808 | B165: 2014-05-12 | C165: I-80 & US-61 | D165: 421 | E165: 53000 | F165: 42200 | G165: 1 | H165: Scott | I165: NB in SB | J165: 0 | K165: 0 | L165: 0 | M165: 0 | N165: 10150
A166: 2014803809 | B166: 2014-06-06 | C166: I-380 & Penn St | D166: 175 | E166: 51100 | F166: 19700 | G166: 0.99 | H166: Johnson | I166: NB in SB | J166: 0 | K166: 0 | L166: 0 | M166: 0 | N166: 3500
A167: 2014803291 | B167: 2014-06-15 | C167: Fork | E167: 6300 | F167: 650 | G167: 1 | H167: Boone | I167: EB in WB | J167: 0 | K167: 0 | L167: 0 | M167: 0 | N167: 2000
A168: 2014804270 | B168: 2014-06-20 | C168: I-35 & Mills Civic Pkwy | D168: 57 | E168: 73200 | F168: 20500 | G168: 1 | H168: Polk | I168: NB in SB | J168: 0 | K168: 0 | L168: 0 | M168: 0 | N168: 20000
A169: 2014807550 | B169: 2014-07-11 | C169: US-75 & US-20 | D169: 143 | E169: 27300 | F169: 11900 | G169: 1 | H169: Woodbury | I169: WB in EB | J169: 0 | K169: 0 | L169: 0 | M169: 0 | N169: 2000
A170: 2014807466 | B170: 2014-07-12 | C170: IA-5 & 35th St | D170: 334 | E170: 33200 | F170: 2360 | G170: 0.99 | H170: Polk | I170: EB in WB | J170: 0 | K170: 0 | L170: 0 | M170: 0 | N170: 8500
A171: 2014811247 | B171: 2014-07-16 | C171: U-Turn | E171: 45400 | F171: 0 | G171: 1 | H171: Polk | I171: SB in NB | J171: 0 | K171: 0 | L171: 0 | M171: 0 | N171: 4000
A172: 2014815265 | B172: 2014-08-29 | C172: US-20/Dodge St & Locust St | E172: =VLOOKUP(C172,Intersections!A:F,6,FALSE) -> 29000 | F172: =VLOOKUP(C172,Intersections!A:G,7,FALSE) -> 29300 | G172: 0.25 | H172: Dubuque | I172: WB in EB | J172: 0 | K172: 0 | L172: 0 | M172: 0 | N172: 1500
A173: 2014815265 | B173: 2014-08-29 | C173: US-20 & Bryant St | D173: 338 | E173: 35500 | F173: 9300 | G173: 0.75 | H173: Dubuque | I173: WB in EB | J173: 0 | K173: 0 | L173: 0 | M173: 0 | N173: 1500
A174: 2014815317 | B174: 2014-08-30 | C174: US 30 S Ramp & ZELLER AVE/ IOWA 146 | D174: 370 | E174: =VLOOKUP(C174,Intersections!A:F,6,FALSE) -> 12100 | F174: =VLOOKUP(C174,Intersections!A:G,7,FALSE) -> 3800 | G174: 0.25 | H174: Marshall | I174: WB in EB | J174: 0 | K174: 1 | L174: 0 | M174: 0 | N174: 14000
A175: 2014815317 | B175: 2014-08-30 | C175: US-30 & 18th Ave | D175: 366 | E175: 13100 | F175: 5600 | G175: 0.75 | H175: Marshall | I175: WB in EB | J175: 0 | K175: 1 | L175: 0 | M175: 0 | N175: 14000
A176: 2014814612 | B176: 2014-08-31 | C176: I-80 & US-6 | D176: 160 | E176: 29500 | F176: 7900 | G176: 0.99 | H176: Pottawattamie | I176: WB in EB | J176: 1 | K176: 1 | L176: 0 | M176: 0 | N176: 23000
A177: 2014819352 | B177: 2014-09-25 | C177: US-34 & BUS-34 / Middletown | D177: 237 | E177: =VLOOKUP(C177,Intersections!A:F,6,FALSE) -> 7700 | F177: =VLOOKUP(C177,Intersections!A:G,7,FALSE) -> 2720 | G177: 0.5 | H177: Des Moines | I177: EB in WB | J177: 0 | K177: 1 | L177: 0 | M177: 0 | N177: 5100
A178: 2014819352 | B178: 2014-09-25 | C178: US-34 & Beaverdale Rd | D178: 232 | E178: 9000 | F178: 3090 | G178: 0.5 | H178: Des Moines | I178: EB in WB | J178: 0 | K178: 1 | L178: 0 | M178: 0 | N178: 5100
A179: 2014823357 | B179: 2014-10-24 | C179: U-Turn | E179: 23900 | F179: 0 | G179: 1 | H179: Warren | I179: EB in WB | J179: 2 | K179: 0 | L179: 0 | M179: 0 | N179: 20000
A180: 2014823453 | B180: 2014-10-26 | C180: I-80 & Madison Ave | D180: 56 | E180: 43000 | F180: 9300 | G180: 1 | H180: Pottawattamie | I180: EB in WB | J180: 0 | K180: 1 | L180: 0 | M180: 0 | N180: 20000
A181: 2014827688 | B181: 2014-11-14 | C181: US-169 & Kenyon Rd | E181: 8700 | F181: 8000 | G181: 1 | H181: Webster | I181: SB in NB | J181: 0 | K181: 0 | L181: 0 | M181: 0 | N181: 1500
A182: 2014833821 | B182: 2014-12-10 | C182: US-30 & US-169 | D182: 324 | E182: =VLOOKUP(C182,Intersections!A:F,6,FALSE) -> 7500 | F182: =VLOOKUP(C182,Intersections!A:G,7,FALSE) -> 3550 | G182: 0.5 | H182: Boone | I182: EB in WB | J182: 2 | K182: 0 | L182: 0 | M182: 0 | N182: 8000
A183: 2014833821 | B183: 2014-12-10 | C183: US-30 & 215th Dr/Walnut St/Old Lincoln Highway | E183: =VLOOKUP(C183,Intersections!A:F,6,FALSE) -> 6000 | F183: =VLOOKUP(C183,Intersections!A:G,7,FALSE) -> 650 | G183: 0.5 | H183: Boone | I183: EB in WB | J183: 2 | K183: 0 | L183: 0 | M183: 0 | N183: 8000
A184: 2014834455 | B184: 2014-12-19 | C184: I-29 & Wesley Pkwy & US-77 | D184: 479 | E184: =VLOOKUP(C184,Intersections!A:F,6,FALSE) -> 36800 | F184: =VLOOKUP(C184,Intersections!A:G,7,FALSE) -> 28400 | G184: 1 | H184: Woodbury | I184: SB in NB | J184: 0 | K184: 0 | L184: 0 | M184: 0 | N184: 3500
A185: 2014837085 | B185: 2014-12-31 | C185: I- 680 N Ramp & 130TH ST | D185: 45 | E185: =VLOOKUP(C185,Intersections!A:F,6,FALSE) -> 17300 | F185: =VLOOKUP(C185,Intersections!A:G,7,FALSE) -> 210 | G185: 0.25 | H185: Pottawattamie | I185: WB in EB | J185: 0 | K185: 1 | L185: 0 | M185: 0 | N185: 10000
A186: 2014837085 | B186: 2014-12-31 | C186: I-29 & I-680 | D186: 191 | E186: 22800 | F186: 17500 | G186: 0.75 | H186: Pottawattamie | I186: WB in EB | J186: 0 | K186: 1 | L186: 0 | M186: 0 | N186: 10000
A187: 2015839571 | B187: 2015-01-12 | C187: Fork | E187: 3150 | F187: 0 | G187: 1 | H187: Marion | I187: WB in EB | J187: 1 | K187: 0 | L187: 0 | M187: 0 | N187: 1500
A188: 2015845182 | B188: 2015-02-01 | C188: U-Turn | E188: 6300 | F188: 0 | G188: 1 | H188: Dubuque | I188: NB in SB | J188: 0 | K188: 1 | L188: 0 | M188: 0 | N188: 18500
A189: 2015842883 | B189: 2015-02-02 | C189: US-34 & Main St | D189: 217 | E189: 14800 | F189: 3740 | G189: 1 | H189: Des Moines | I189: WB in EB | J189: 0 | K189: 0 | L189: 0 | M189: 0 | N189: 5000
A190: 2015850799 | B190: 2015-03-18 | C190: Nebraska | E190: 0 | F190: 0 | G190: 1 | H190: Woodbury | I190: EB in WB | J190: 0 | K190: 1 | L190: 0 | M190: 1 | N190: 12500
A191: 2015859573 | B191: 2015-05-16 | C191: I 80 W & I 80 W TO OLIVE ST, S | D191: 65 | E191: =VLOOKUP(C191,Intersections!A:F,6,FALSE) -> 22400 | F191: =VLOOKUP(C191,Intersections!A:G,7,FALSE) -> 1310 | G191: 0.25 | H191: Cass | I191: WB in EB | J191: 0 | K191: 0 | L191: 1 | M191: 1 | N191: 31000
A192: 2015859573 | B192: 2015-05-16 | C192: I 80 & US 71 | D192: 72 | E192: =VLOOKUP(C192,Intersections!A:F,6,FALSE) -> 22700 | F192: =VLOOKUP(C192,Intersections!A:G,7,FALSE) -> 2870 | G192: 0.25 | H192: Cass | I192: WB in EB | J192: 0 | K192: 0 | L192: 1 | M192: 1 | N192: 31000
A193: 2015859573 | B193: 2015-05-16 | C193: I-80 & IA-173 | D193: 62 | E193: 22800 | F193: 1510 | G193: 0.5 | H193: Cass | I193: WB in EB | J193: 0 | K193: 0 | L193: 1 | M193: 1 | N193: 31000
A194: 2015866570 | B194: 2015-06-14 | C194: Fork | E194: 6400 | F194: 0 | G194: 1 | H194: Harrison | I194: EB in WB | J194: 0 | K194: 0 | L194: 0 | M194: 0 | N194: 1500
A195: 2015867565 | B195: 2015-07-09 | C195: I-80 & Expressway St | D195: 177 | E195: 73700 | F195: 27000 | G195: 1 | H195: Pottawattamie | I195: EB in WB | J195: 0 | K195: 0 | L195: 0 | M195: 0 | N195: 2500
A196: 2015867981 | B196: 2015-07-12 | C196: I-80 & Expressway St | D196: 177 | E196: 73700 | F196: 27000 | G196: 1 | H196: Pottawattamie | I196: EB in WB | J196: 0 | K196: 0 | L196: 1 | M196: 0 | N196: 8000
A197: 2015874221 | B197: 2015-07-12 | C197: Crossover | E197: 14700 | F197: 3650 | G197: 1 | H197: Story | I197: EB in WB | J197: 0 | K197: 0 | L197: 0 | M197: 0 | N197: 21995
A198: 2015869068 | B198: 2015-07-17 | C198: US-30 & Kirkwood Blvd | D198: 407 | E198: 69200 | F198: 16200 | G198: 1 | H198: Linn | I198: WB in EB | J198: 0 | K198: 0 | L198: 0 | M198: 0 | N198: 30000
A199: 2015869225 | B199: 2015-07-17 | C199: US-20 & Lakeport St | D199: 86 | E199: =VLOOKUP(C199,Intersections!A:F,6,FALSE) -> 33200 | F199: =VLOOKUP(C199,Intersections!A:G,7,FALSE) -> 20000 | G199: 0.25 | H199: Woodbury | I199: NB in SB | J199: 0 | K199: 0 | L199: 0 | M199: 0 | N199: 10500
A200: 2015869225 | B200: 2015-07-17 | C200: I-29 & Singing Hills Blvd | D200: 133 | E200: 42000 | F200: 13600 | G200: 0.75 | H200: Woodbury | I200: NB in SB | J200: 0 | K200: 0 | L200: 0 | M200: 0 | N200: 10500
... 178 more rows

Sheet Non-Crash Events
A1: UID | B1: Interchange | C1: Major AADT | D1: Minor AADT | E1: City | F1: Interchange Type | G1: Date | H1: Military_Time | I1: Day | J1: Adj. Day | K1: Direction | L1: POE_Known | M1: Video | N1: Caught | O1: EIN # | P1: Crash Case Number | Q1: Crash_Severity | R1: Certainty
A2: AMES-na | B2: US-30 & Dayton Ave | C2: =VLOOKUP(B2,Intersections!A:G,6,FALSE) -> 32100 | D2: =VLOOKUP(B2,Intersections!A:G,7,FALSE) -> 12000 | E2: Ames | F2: =VLOOKUP(B2,Intersections!A:E,5,FALSE) -> Diamond | G2: 2013-11-05 | H2: 2243 | I2: Tuesday | J2: Tuesday | K2: EB in WB | L2: Yes | M2: Yes | N2: 0-No | R2: 1
A3: AMES-na | B3: US-30 & Dayton Ave | C3: =VLOOKUP(B3,Intersections!A:G,6,FALSE) -> 32100 | D3: =VLOOKUP(B3,Intersections!A:G,7,FALSE) -> 12000 | E3: Ames | F3: =VLOOKUP(B3,Intersections!A:E,5,FALSE) -> Diamond | G3: 2013-11-22 | H3: 107 | I3: Friday | J3: Thursday | K3: EB in WB | L3: Yes | M3: Yes | N3: 0-No | R3: 1
A4: AMES-1 | B4: I 35 S & I 35 S TO US 30 W | C4: =VLOOKUP(B4,Intersections!A:G,6,FALSE) -> 44300 | D4: =VLOOKUP(B4,Intersections!A:G,7,FALSE) -> 30900 | E4: Ames | F4: =VLOOKUP(B4,Intersections!A:E,5,FALSE) -> System | G4: 2014-07-05 | H4: 256 | I4: Saturday | J4: Friday | K4: WB in EB | L4: Yes | M4: Yes | N4: 0-No | R4: 1
A5: AMES-2 | B5: US-30 & Dayton Ave | C5: =VLOOKUP(B5,Intersections!A:G,6,FALSE) -> 32100 | D5: =VLOOKUP(B5,Intersections!A:G,7,FALSE) -> 12000 | E5: Ames | F5: =VLOOKUP(B5,Intersections!A:E,5,FALSE) -> Diamond | G5: 2014-07-08 | H5: 822 | I5: Tuesday | J5: Tuesday | K5: WB in EB | L5: Yes | M5: No | N5: 0-No | R5: 1
A6: AMES-3 | B6: I 35 S & I 35 S TO US 30 W | C6: =VLOOKUP(B6,Intersections!A:G,6,FALSE) -> 44300 | D6: =VLOOKUP(B6,Intersections!A:G,7,FALSE) -> 30900 | E6: Ames | F6: =VLOOKUP(B6,Intersections!A:E,5,FALSE) -> System | G6: 2014-07-27 | H6: 411 | I6: Sunday | J6: Saturday | K6: WB in EB and EB in WB | L6: Yes | M6: Yes | N6: 0-No | R6: 1
A7: AMES-7 | B7: US-30 & Dayton Ave | C7: =VLOOKUP(B7,Intersections!A:G,6,FALSE) -> 32100 | D7: =VLOOKUP(B7,Intersections!A:G,7,FALSE) -> 12000 | E7: Ames | F7: =VLOOKUP(B7,Intersections!A:E,5,FALSE) -> Diamond | G7: 2014-09-21 | H7: 140 | I7: Sunday | J7: Saturday | K7: WB in EB | L7: Yes | M7: No | N7: 0-No | R7: 1
A8: AMES-8 | B8: US-30 & 650th Ave/CR-S27 | C8: =VLOOKUP(B8,Intersections!A:G,6,FALSE) -> 10300 | D8: =VLOOKUP(B8,Intersections!A:G,7,FALSE) -> 1040 | E8: Nevada | F8: =VLOOKUP(B8,Intersections!A:E,5,FALSE) -> At Grade | G8: 2014-09-23 | H8: 350 | I8: Tuesday | J8: Monday | K8: WB in EB | L8: Yes | M8: Yes | N8: 0-No | R8: 1
A9: AMES-78 | B9: US-30 & Dayton Ave | C9: =VLOOKUP(B9,Intersections!A:G,6,FALSE) -> 32100 | D9: =VLOOKUP(B9,Intersections!A:G,7,FALSE) -> 12000 | E9: Ames | F9: =VLOOKUP(B9,Intersections!A:E,5,FALSE) -> Diamond | G9: 2014-10-07 | H9: 1854 | I9: Tuesday | J9: Tuesday | K9: EB in WB | L9: Yes | M9: Yes | N9: 0-No | R9: 1
A10: AMES-10 | B10: U-Turn | C10: =VLOOKUP(B10,Intersections!A:G,6,FALSE) -> 0 | D10: =VLOOKUP(B10,Intersections!A:G,7,FALSE) -> 0 | E10: Boone | F10: =VLOOKUP(B10,Intersections!A:E,5,FALSE) -> n/a | G10: 2014-10-21 | H10: 2049 | I10: Tuesday | J10: Tuesday | K10: WB in EB | L10: Yes | M10: Yes | N10: 0-No | R10: 1
A11: AMES-12 | B11: US-30 & IA-930/Lincoln Way | C11: =VLOOKUP(B11,Intersections!A:G,6,FALSE) -> 17100 | D11: =VLOOKUP(B11,Intersections!A:G,7,FALSE) -> 5600 | E11: Ames | F11: =VLOOKUP(B11,Intersections!A:E,5,FALSE) -> Split | G11: 2014-11-30 | H11: 1542 | I11: Sunday | J11: Saturday | K11: WB in EB | L11: Yes | M11: Yes | N11: 0-No | R11: 1
A12: AMES-13 | B12: US-30 & University Blvd | C12: =VLOOKUP(B12,Intersections!A:G,6,FALSE) -> 18300 | D12: =VLOOKUP(B12,Intersections!A:G,7,FALSE) -> 15400 | E12: Ames | F12: =VLOOKUP(B12,Intersections!A:E,5,FALSE) -> Diamond | G12: 2015-02-13 | H12: 1346 | I12: Friday | J12: Friday | K12: WB in EB | L12: Yes | M12: Yes | N12: 0-No | R12: 1
A13: 103 | B13: IA-163 & 91st St | C13: 15000 | D13: 220 | E13: Pleasant Hill | F13: =VLOOKUP(B13,Intersections!A:E,5,FALSE) -> At Grade | G13: 2015-03-24 | H13: 2343 | I13: Tuesday | J13: Tuesday | K13: 3-WB in EB | L13: No | M13: No | N13: 0-No | R13: 0.25
A14: AMES-15 | B14: US-30 & IA-930/Lincoln Way | C14: =VLOOKUP(B14,Intersections!A:G,6,FALSE) -> 17100 | D14: =VLOOKUP(B14,Intersections!A:G,7,FALSE) -> 5600 | E14: Ames | F14: =VLOOKUP(B14,Intersections!A:E,5,FALSE) -> Split | G14: 2015-04-10 | H14: 1336 | I14: Friday | J14: Friday | K14: WB in EB | L14: Yes | M14: Yes | N14: 0-No | R14: 1
A15: AMES-16 | B15: US-30 & W Ave | C15: =VLOOKUP(B15,Intersections!A:G,6,FALSE) -> 16400 | D15: =VLOOKUP(B15,Intersections!A:G,7,FALSE) -> 820 | E15: Ames | F15: =VLOOKUP(B15,Intersections!A:E,5,FALSE) -> At Grade | G15: 2015-05-10 | H15: 506 | I15: Sunday | J15: Saturday | K15: EB in WB | L15: Yes | M15: Yes | N15: 0-No | R15: 1
A16: AMES-18 | B16: US-30 & Duff Ave/US-69 | C16: =VLOOKUP(B16,Intersections!A:G,6,FALSE) -> 32400 | D16: =VLOOKUP(B16,Intersections!A:G,7,FALSE) -> 25900 | E16: Ames | F16: =VLOOKUP(B16,Intersections!A:E,5,FALSE) -> Excluded Unique | G16: 2015-05-29 | H16: 2145 | I16: Friday | J16: Friday | K16: EB in WB | L16: Yes | M16: No | N16: 0-No | R16: 1
A17: AMES-19 | B17: US-30 & 19th St | C17: =VLOOKUP(B17,Intersections!A:G,6,FALSE) -> 12200 | D17: =VLOOKUP(B17,Intersections!A:G,7,FALSE) -> 4240 | E17: Nevada | F17: =VLOOKUP(B17,Intersections!A:E,5,FALSE) -> Unique | G17: 2015-06-19 | H17: 2130 | I17: =IF(G17="","",CHOOSE(WEEKDAY(G17,2),"Monday","Tuesday","Wednesday","Thursday","Friday","Saturday","Sunday")) -> Friday | J17: =IF(H17="","",CHOOSE(WEEKDAY(H17,2),"Monday","Tuesday","Wednesday","Thursday","Friday","Saturday","Sunday")) -> Monday | K17: WB in EB | L17: Yes | M17: Yes | N17: 0-No | R17: 1
A18: AMES-20 | B18: US-30 & S Linn St | C18: =VLOOKUP(B18,Intersections!A:G,6,FALSE) -> 14100 | D18: =VLOOKUP(B18,Intersections!A:G,7,FALSE) -> 5100 | E18: Boone | F18: =VLOOKUP(B18,Intersections!A:E,5,FALSE) -> At Grade | G18: 2015-06-26 | H18: 128 | I18: Thursday | J18: Wednesday | K18: EB in WB | L18: Yes | M18: Yes | N18: 1-Yes | R18: 1
A19: AMES-21 | B19: US-30 & 19th St | C19: =VLOOKUP(B19,Intersections!A:G,6,FALSE) -> 12200 | D19: =VLOOKUP(B19,Intersections!A:G,7,FALSE) -> 4240 | E19: Nevada | F19: =VLOOKUP(B19,Intersections!A:E,5,FALSE) -> Unique | G19: 2015-06-28 | H19: 1341 | I19: Sunday | J19: Sunday | K19: WB in EB | L19: Yes | M19: Yes | N19: 0-No | R19: 1
A20: AMES-23 | B20: I 35 S & I 35 S TO US 30 W | C20: =VLOOKUP(B20,Intersections!A:G,6,FALSE) -> 44300 | D20: =VLOOKUP(B20,Intersections!A:G,7,FALSE) -> 30900 | E20: Nevada | F20: =VLOOKUP(B20,Intersections!A:E,5,FALSE) -> System | G20: 2015-08-09 | H20: 415 | I20: Sunday | J20: Saturday | K20: WB in EB | L20: Yes | M20: Yes | N20: 0-No | R20: 1
A21: AMES-26 | B21: US-30 & T Ave | C21: =VLOOKUP(B21,Intersections!A:G,6,FALSE) -> 16300 | D21: =VLOOKUP(B21,Intersections!A:G,7,FALSE) -> 35 | E21: Boone | F21: =VLOOKUP(B21,Intersections!A:E,5,FALSE) -> At Grade | G21: 2015-10-08 | H21: 447 | I21: Thursday | J21: Wednesday | K21: WB in EB | L21: Yes | M21: Yes | N21: 0-No | R21: 1
A22: AMES-28 | B22: U-Turn | C22: =VLOOKUP(B22,Intersections!A:G,6,FALSE) -> 0 | D22: =VLOOKUP(B22,Intersections!A:G,7,FALSE) -> 0 | E22: Ames | F22: =VLOOKUP(B22,Intersections!A:E,5,FALSE) -> n/a | G22: 2015-10-23 | H22: 314 | I22: Friday | J22: Thursday | K22: EB in WB | L22: Yes | M22: Yes | N22: 0-No | R22: 1
A23: AMES-30 | B23: US-30 & S Linn St | C23: =VLOOKUP(B23,Intersections!A:G,6,FALSE) -> 14100 | D23: =VLOOKUP(B23,Intersections!A:G,7,FALSE) -> 5100 | E23: Boone | F23: =VLOOKUP(B23,Intersections!A:E,5,FALSE) -> At Grade | G23: 2015-12-08 | H23: 447 | I23: Tuesday | J23: Monday | K23: EB in WB | L23: Yes | M23: Yes | N23: 1-Yes | R23: 1
A24: AMES-31 | B24: US-30 & 18th St/610th Ave | C24: =VLOOKUP(B24,Intersections!A:G,6,FALSE) -> 15300 | D24: =VLOOKUP(B24,Intersections!A:G,7,FALSE) -> 2240 | E24: Nevada | F24: =VLOOKUP(B24,Intersections!A:E,5,FALSE) -> At Grade | G24: 2015-12-09 | H24: 1220 | I24: Wednesday | J24: Wednesday | K24: EB in WB | L24: Yes | M24: Yes | N24: 0-No | R24: 1
A25: AMES-32 | B25: US-30 & 580th Ave | C25: =VLOOKUP(B25,Intersections!A:G,6,FALSE) -> 17300 | D25: =VLOOKUP(B25,Intersections!A:G,7,FALSE) -> 1790 | E25: Ames | F25: =VLOOKUP(B25,Intersections!A:E,5,FALSE) -> At Grade | G25: 2015-12-19 | H25: 447 | I25: Saturday | J25: Friday | K25: EB in WB | L25: Yes | M25: Yes | N25: 1-Yes | R25: 1
A26: AMES-34 | B26: US-30 & S Linn St | C26: =VLOOKUP(B26,Intersections!A:G,6,FALSE) -> 14100 | D26: =VLOOKUP(B26,Intersections!A:G,7,FALSE) -> 5100 | E26: Boone | F26: =VLOOKUP(B26,Intersections!A:E,5,FALSE) -> At Grade | G26: 2016-01-10 | H26: 530 | I26: Sunday | J26: Saturday | K26: EB in WB | L26: Yes | M26: Yes | N26: 0-No | R26: 1
A27: AMES-35 | B27: US-30 & Duff Ave/US-69 | C27: =VLOOKUP(B27,Intersections!A:G,6,FALSE) -> 32400 | D27: =VLOOKUP(B27,Intersections!A:G,7,FALSE) -> 25900 | E27: Ames | F27: =VLOOKUP(B27,Intersections!A:E,5,FALSE) -> Excluded Unique | G27: 2016-01-25 | H27: 1106 | I27: Monday | J27: Monday | K27: EB in WB | L27: Yes | M27: Yes | N27: 0-No | R27: 1
A28: AMES-36 | B28: US-30 & Corporal Roger Snedden Dr | C28: =VLOOKUP(B28,Intersections!A:G,6,FALSE) -> 14400 | D28: =VLOOKUP(B28,Intersections!A:G,7,FALSE) -> 2440 | E28: Boone | F28: =VLOOKUP(B28,Intersections!A:E,5,FALSE) -> At Grade | G28: 2016-03-08 | H28: 2243 | I28: Tuesday | J28: Tuesday | K28: EB in WB | L28: Yes | M28: Yes | N28: 0-No | R28: 1
A29: AMES-37 | B29: US-30 & T Ave | C29: =VLOOKUP(B29,Intersections!A:G,6,FALSE) -> 16300 | D29: =VLOOKUP(B29,Intersections!A:G,7,FALSE) -> 35 | E29: Boone | F29: =VLOOKUP(B29,Intersections!A:E,5,FALSE) -> At Grade | G29: 2016-03-12 | H29: 354 | I29: Saturday | J29: Friday | K29: EB in WB | L29: Yes | M29: Yes | N29: 1-Yes | R29: 1
A30: AMES-41 | B30: US-30 & Corporal Roger Snedden Dr | C30: =VLOOKUP(B30,Intersections!A:G,6,FALSE) -> 14400 | D30: =VLOOKUP(B30,Intersections!A:G,7,FALSE) -> 2440 | E30: Boone | F30: =VLOOKUP(B30,Intersections!A:E,5,FALSE) -> At Grade | G30: 2016-04-06 | H30: 34 | I30: Wednesday | J30: Tuesday | K30: EB in WB | L30: Yes | M30: Yes | N30: 0-No | R30: 1
A31: AMES-43 | B31: US-30 & S Linn St | C31: =VLOOKUP(B31,Intersections!A:G,6,FALSE) -> 14100 | D31: =VLOOKUP(B31,Intersections!A:G,7,FALSE) -> 5100 | E31: Boone | F31: =VLOOKUP(B31,Intersections!A:E,5,FALSE) -> At Grade | G31: 2016-04-17 | H31: 112 | I31: Sunday | J31: Saturday | K31: EB in WB | L31: Yes | M31: Yes | N31: 0-No | R31: 1
A32: AMES-42 | B32: US-30 & Story St | C32: =VLOOKUP(B32,Intersections!A:G,6,FALSE) -> 11700 | D32: =VLOOKUP(B32,Intersections!A:G,7,FALSE) -> 6700 | E32: Boone | F32: =VLOOKUP(B32,Intersections!A:E,5,FALSE) -> At Grade | G32: 2016-06-10 | H32: 206 | I32: Sunday | J32: Saturday | K32: EB in WB | L32: Yes | M32: Yes | N32: 0-No | R32: 1
A33: AMES-44 | B33: US-30 & T Ave | C33: =VLOOKUP(B33,Intersections!A:G,6,FALSE) -> 16300 | D33: =VLOOKUP(B33,Intersections!A:G,7,FALSE) -> 35 | E33: Boone | F33: =VLOOKUP(B33,Intersections!A:E,5,FALSE) -> At Grade | G33: 2016-06-22 | H33: 127 | I33: Wednesday | J33: Wednesday | K33: EB in WB | L33: Yes | M33: Yes | N33: 1-Yes | R33: 1
A34: AMES-46 | B34: US-30 & T Ave | C34: =VLOOKUP(B34,Intersections!A:G,6,FALSE) -> 16300 | D34: =VLOOKUP(B34,Intersections!A:G,7,FALSE) -> 35 | E34: Boone | F34: =VLOOKUP(B34,Intersections!A:E,5,FALSE) -> At Grade | G34: 2016-07-03 | H34: 401 | I34: Sunday | J34: Saturday | K34: EB in WB | L34: Yes | M34: Yes | N34: 0-No | R34: 1
A35: 22 | B35: I-380 & Wilson Ave | C35: 81100 | D35: 15000 | E35: Cedar Rapids | F35: =VLOOKUP(B35,Intersections!A:E,5,FALSE) -> Diamond | G35: 2016-07-05 | H35: 332 | I35: Tuesday | J35: Monday | K35: 2-SB in NB | L35: Yes | M35: Yes | N35: 1-Yes | P35: 20160935074 | Q35: 1 - Fatal
A36: AMES-47 | B36: US-30 & IA-930/Lincoln Way | C36: =VLOOKUP(B36,Intersections!A:G,6,FALSE) -> 17100 | D36: =VLOOKUP(B36,Intersections!A:G,7,FALSE) -> 5600 | E36: Ames | F36: =VLOOKUP(B36,Intersections!A:E,5,FALSE) -> Split | G36: 2016-07-28 | H36: 150 | I36: Friday | J36: Thursday | K36: EB in WB | L36: Yes | M36: Yes | N36: 0-No | R36: 1
A37: AMES-49 | B37: US-30 & SW 4th St/CR-S14 | C37: =VLOOKUP(B37,Intersections!A:G,6,FALSE) -> 15000 | D37: =VLOOKUP(B37,Intersections!A:G,7,FALSE) -> 2830 | E37: Nevada | F37: =VLOOKUP(B37,Intersections!A:E,5,FALSE) -> At Grade | G37: 2016-08-06 | H37: 2301 | I37: Saturday | J37: Saturday | K37: WB in EB | L37: Yes | M37: Yes | N37: 0-No | R37: 1
A38: 25 | B38: I-35 & Oralabor Rd | C38: 80700 | D38: 30200 | E38: Ankeny | F38: =VLOOKUP(B38,Intersections!A:E,5,FALSE) -> Diamond | G38: 2016-08-20 | H38: 130 | I38: Saturday | J38: Friday | K38: 1-NB in SB | L38: Yes | M38: Yes | N38: 0-No | R38: 1
A39: 173 | B39: I- 35 E Ramp & E 13TH ST | C39: =VLOOKUP(B39,Intersections!A:G,6,FALSE) -> 34500 | D39: =VLOOKUP(B39,Intersections!A:G,7,FALSE) -> 13600 | E39: Ames | F39: =VLOOKUP(B39,Intersections!A:E,5,FALSE) -> Diamond | G39: 2016-08-20 | H39: 130 | I39: =IF(G39="","",CHOOSE(WEEKDAY(G39,2),"Monday","Tuesday","Wednesday","Thursday","Friday","Saturday","Sunday")) -> Saturday | J39: =IF(G39="","",IF(H39<500,CHOOSE(WEEKDAY(G39,2)-1,"Monday","Tuesday","Wednesday","Thursday","Friday","Saturday","Sunday"),I39)) -> Friday | K39: NB in SB | L39: Yes | M39: Yes | N39: 0-No | R39: 1
A40: AMES-51 | B40: US-30 & T Ave | C40: =VLOOKUP(B40,Intersections!A:G,6,FALSE) -> 16300 | D40: =VLOOKUP(B40,Intersections!A:G,7,FALSE) -> 35 | E40: Boone | F40: =VLOOKUP(B40,Intersections!A:E,5,FALSE) -> At Grade | G40: 2016-08-23 | H40: 850 | I40: Friday | J40: Friday | K40: EB in WB | L40: Yes | M40: Yes | N40: 0-No | R40: 1
A41: AMES-53 | B41: US-30 & Duff Ave/US-69 | C41: =VLOOKUP(B41,Intersections!A:G,6,FALSE) -> 32400 | D41: =VLOOKUP(B41,Intersections!A:G,7,FALSE) -> 25900 | E41: Ames | F41: =VLOOKUP(B41,Intersections!A:E,5,FALSE) -> Excluded Unique | G41: 2016-10-07 | H41: 953 | I41: Friday | J41: Friday | K41: EB in WB | L41: Yes | M41: Yes | N41: 0-No | R41: 1
A42: AMES-54 | B42: I 35 S & I 35 S TO US 30 W | C42: =VLOOKUP(B42,Intersections!A:G,6,FALSE) -> 44300 | D42: =VLOOKUP(B42,Intersections!A:G,7,FALSE) -> 30900 | E42: Ames | F42: =VLOOKUP(B42,Intersections!A:E,5,FALSE) -> System | G42: 2016-10-08 | H42: 2232 | I42: Saturday | J42: Saturday | K42: WB in EB | L42: Yes | M42: Yes | N42: 1-Yes | R42: 1
A43: Ames-55.1 | B43: US-30 & University Blvd | C43: =VLOOKUP(B43,Intersections!A:G,6,FALSE) -> 18300 | D43: =VLOOKUP(B43,Intersections!A:G,7,FALSE) -> 15400 | E43: Ames | F43: =VLOOKUP(B43,Intersections!A:E,5,FALSE) -> Diamond | G43: 2016-11-01 | H43: 945 | I43: Tuesday | J43: Tuesday | K43: WB in EB | L43: Yes | M43: No | N43: 0-No | R43: 0.99
A44: AMES-56 | B44: US-30 & Corporal Roger Snedden Dr | C44: =VLOOKUP(B44,Intersections!A:G,6,FALSE) -> 14400 | D44: =VLOOKUP(B44,Intersections!A:G,7,FALSE) -> 2440 | E44: Boone | F44: =VLOOKUP(B44,Intersections!A:E,5,FALSE) -> At Grade | G44: 2016-11-11 | H44: 341 | I44: Friday | J44: Thursday | K44: EB in WB | L44: Yes | M44: Yes | N44: 1-Yes | R44: 1
A45: AMES-57 | B45: US-30 & W Ave | C45: =VLOOKUP(B45,Intersections!A:G,6,FALSE) -> 16400 | D45: =VLOOKUP(B45,Intersections!A:G,7,FALSE) -> 820 | E45: Boone | F45: =VLOOKUP(B45,Intersections!A:E,5,FALSE) -> At Grade | G45: 2016-11-12 | H45: 312 | I45: Saturday | J45: Friday | K45: EB in WB | L45: Yes | M45: Yes | N45: 1-Yes | R45: 1
A46: AMES-58 | B46: US-30 & SW 4th St/CR-S14 | C46: =VLOOKUP(B46,Intersections!A:G,6,FALSE) -> 15000 | D46: =VLOOKUP(B46,Intersections!A:G,7,FALSE) -> 2830 | E46: Nevada | F46: =VLOOKUP(B46,Intersections!A:E,5,FALSE) -> At Grade | G46: 2017-01-18 | H46: 2307 | I46: Wednesday | J46: Wednesday | K46: EB in WB | L46: Yes | M46: Yes | N46: 1-Yes | R46: 1
A47: AMES-59 | B47: US-30 & W Ave | C47: =VLOOKUP(B47,Intersections!A:G,6,FALSE) -> 16400 | D47: =VLOOKUP(B47,Intersections!A:G,7,FALSE) -> 820 | E47: Boone | F47: =VLOOKUP(B47,Intersections!A:E,5,FALSE) -> At Grade | G47: 2017-02-07 | H47: 2007 | I47: Tuesday | J47: Tuesday | K47: EB in WB | L47: Yes | M47: Yes | N47: 1-Yes | R47: 1
A48: 104 | B48: IA-163 & Fareway Access | C48: 21400 | D48: 0 | E48: Pleasant Hill | F48: =VLOOKUP(B48,Intersections!A:E,5,FALSE) -> At Grade | G48: 2017-03-06 | H48: 1913 | I48: Monday | J48: Monday | K48: 4-EB in WB | L48: No | M48: No | N48: 0-No | R48: 0.25
A49: AMES-60 | B49: U-Turn | C49: =VLOOKUP(B49,Intersections!A:G,6,FALSE) -> 0 | D49: =VLOOKUP(B49,Intersections!A:G,7,FALSE) -> 0 | E49: Ames | F49: =VLOOKUP(B49,Intersections!A:E,5,FALSE) -> n/a | G49: 2017-04-05 | H49: 41 | I49: Sunday | J49: Saturday | K49: WB in EB | L49: Yes | M49: Yes | N49: 0-No | R49: 1
A50: AMES-62 | B50: US-30 & Sand Hill Trail | C50: =VLOOKUP(B50,Intersections!A:G,6,FALSE) -> 17300 | D50: =VLOOKUP(B50,Intersections!A:G,7,FALSE) -> 700 | E50: Ames | F50: =VLOOKUP(B50,Intersections!A:E,5,FALSE) -> At Grade | G50: 2017-04-21 | H50: 526 | I50: Sunday | J50: Saturday | K50: WB in EB | L50: Yes | M50: Yes | N50: 0-No | R50: 1
A51: AMES-66 | B51: I 35 S & I 35 S TO US 30 W | C51: =VLOOKUP(B51,Intersections!A:G,6,FALSE) -> 44300 | D51: =VLOOKUP(B51,Intersections!A:G,7,FALSE) -> 30900 | E51: Ames | F51: =VLOOKUP(B51,Intersections!A:E,5,FALSE) -> System | G51: 2017-05-16 | H51: 312 | I51: Tuesday | J51: Monday | K51: WB in EB | L51: Yes | M51: Yes | N51: 0-No | R51: 1
A52: AMES-67 | B52: US-30 & University Blvd | C52: =VLOOKUP(B52,Intersections!A:G,6,FALSE) -> 18300 | D52: =VLOOKUP(B52,Intersections!A:G,7,FALSE) -> 15400 | E52: Ames | F52: =VLOOKUP(B52,Intersections!A:E,5,FALSE) -> Diamond | G52: 2017-05-16 | H52: 2117 | I52: Tuesday | J52: Tuesday | K52: WB in EB | L52: Yes | M52: Yes | N52: 0-No | R52: 1
A53: AMES-69 | B53: I 35 S & I 35 S TO US 30 W | C53: =VLOOKUP(B53,Intersections!A:G,6,FALSE) -> 44300 | D53: =VLOOKUP(B53,Intersections!A:G,7,FALSE) -> 30900 | E53: Ames | F53: =VLOOKUP(B53,Intersections!A:E,5,FALSE) -> System | G53: 2017-06-19 | H53: 19 | I53: Monday | J53: Sunday | K53: WB in EB | L53: Yes | M53: Yes | N53: 0-No | R53: 1
A54: Ames-201 | B54: US-30 & Story St | C54: =VLOOKUP(B54,Intersections!A:G,6,FALSE) -> 11700 | D54: =VLOOKUP(B54,Intersections!A:G,7,FALSE) -> 6700 | E54: Ames | F54: =VLOOKUP(B54,Intersections!A:E,5,FALSE) -> At Grade | G54: 2017-06-28 | H54: 1210 | I54: =IF(G54="","",CHOOSE(WEEKDAY(G54,2),"Monday","Tuesday","Wednesday","Thursday","Friday","Saturday","Sunday")) -> Wednesday | J54: =IF(G54="","",IF(H54<500,CHOOSE(WEEKDAY(G54,2)-1,"Monday","Tuesday","Wednesday","Thursday","Friday","Saturday","Sunday"),I54)) -> Wednesday | L54: No | M54: No | N54: 0-No
A55: AMES-70 | B55: US-30 & T Ave | C55: =VLOOKUP(B55,Intersections!A:G,6,FALSE) -> 16300 | D55: =VLOOKUP(B55,Intersections!A:G,7,FALSE) -> 35 | E55: Boone | F55: =VLOOKUP(B55,Intersections!A:E,5,FALSE) -> At Grade | G55: 2017-07-01 | H55: 2143 | I55: Saturday | J55: Saturday | K55: EB in WB | L55: Yes | M55: Yes | N55: 0-No | R55: 1
A56: 105 | B56: IA-163 & IA-316 | C56: 15000 | D56: 1850 | E56: Pleasant Hill | F56: =VLOOKUP(B56,Intersections!A:E,5,FALSE) -> At Grade | G56: 2017-07-26 | H56: 104 | I56: Wednesday | J56: Tuesday | K56: 3-WB in EB | L56: No | M56: No | N56: 1-Yes | R56: 0.25
A57: AMES-71 | B57: US-30 & University Blvd | C57: =VLOOKUP(B57,Intersections!A:G,6,FALSE) -> 18300 | D57: =VLOOKUP(B57,Intersections!A:G,7,FALSE) -> 15400 | E57: Ames | F57: =VLOOKUP(B57,Intersections!A:E,5,FALSE) -> Diamond | G57: 2017-08-18 | H57: 2124 | I57: Friday | J57: Friday | K57: WB in EB | L57: Yes | M57: Yes | N57: 0-No | R57: 1
A58: 102 | B58: IA-163 & 12th Ave | C58: 18000 | D58: 140 | E58: Pleasant Hill | F58: =VLOOKUP(B58,Intersections!A:E,5,FALSE) -> At Grade | G58: 2017-08-19 | H58: 2223 | I58: Saturday | J58: Saturday | K58: 4-EB in WB | L58: No | M58: No | N58: 0-No | R58: 0.25
A59: AMES-72 | B59: US-30 & University Blvd | C59: =VLOOKUP(B59,Intersections!A:G,6,FALSE) -> 18300 | D59: =VLOOKUP(B59,Intersections!A:G,7,FALSE) -> 15400 | E59: Ames | F59: =VLOOKUP(B59,Intersections!A:E,5,FALSE) -> Diamond | G59: 2017-08-23 | H59: 1310 | I59: Wednesday | J59: Wednesday | K59: WB in EB | L59: Yes | M59: Yes | N59: 0-No | R59: 1
A60: AMES-73 | B60: US-30 & IA-930/Lincoln Way | C60: =VLOOKUP(B60,Intersections!A:G,6,FALSE) -> 17100 | D60: =VLOOKUP(B60,Intersections!A:G,7,FALSE) -> 5600 | E60: Ames | F60: =VLOOKUP(B60,Intersections!A:E,5,FALSE) -> Split | G60: 2017-08-24 | H60: 1912 | I60: Thursday | J60: Thursday | K60: EB in WB | L60: Yes | M60: Yes | N60: 0-No | R60: 1
A61: AMES-74 | B61: US-30 & Duff Ave/US-69 | C61: =VLOOKUP(B61,Intersections!A:G,6,FALSE) -> 32400 | D61: =VLOOKUP(B61,Intersections!A:G,7,FALSE) -> 25900 | E61: Ames | F61: =VLOOKUP(B61,Intersections!A:E,5,FALSE) -> Excluded Unique | G61: 2017-09-02 | H61: 2117 | I61: Saturday | J61: Saturday | K61: EB in WB | L61: Yes | M61: Yes | N61: 0-No | R61: 1
A62: AMES-75 | B62: US-30 & Sand Hill Trail | C62: =VLOOKUP(B62,Intersections!A:G,6,FALSE) -> 17300 | D62: =VLOOKUP(B62,Intersections!A:G,7,FALSE) -> 700 | E62: Ames | F62: =VLOOKUP(B62,Intersections!A:E,5,FALSE) -> At Grade | G62: 2017-09-03 | H62: 2053 | I62: Sunday | J62: Sunday | K62: WB in EB | L62: Yes | M62: Yes | N62: 1-Yes | R62: 1
A63: AMES-76 | B63: US-30 & S Linn St | C63: =VLOOKUP(B63,Intersections!A:G,6,FALSE) -> 14100 | D63: =VLOOKUP(B63,Intersections!A:G,7,FALSE) -> 5100 | E63: Boone | F63: =VLOOKUP(B63,Intersections!A:E,5,FALSE) -> At Grade | G63: 2017-09-04 | H63: 2322 | I63: Monday | J63: Monday | K63: EB in WB | L63: Yes | M63: Yes | N63: 1-Yes | R63: 1
A64: AMES-77 | B64: US-30 & T Ave | C64: =VLOOKUP(B64,Intersections!A:G,6,FALSE) -> 16300 | D64: =VLOOKUP(B64,Intersections!A:G,7,FALSE) -> 35 | E64: Boone | F64: =VLOOKUP(B64,Intersections!A:E,5,FALSE) -> At Grade | G64: 2017-09-10 | H64: 1455 | I64: Sunday | J64: Sunday | K64: EB in WB | L64: Yes | M64: Yes | N64: 0-No | R64: 1
A65: AMES-80 | B65: I- 35 E Ramp & E 13TH ST | C65: =VLOOKUP(B65,Intersections!A:G,6,FALSE) -> 34500 | D65: =VLOOKUP(B65,Intersections!A:G,7,FALSE) -> 13600 | E65: Ames | F65: =VLOOKUP(B65,Intersections!A:E,5,FALSE) -> Diamond | G65: 2017-09-24 | H65: 2206 | I65: Sunday | J65: Sunday | K65: SB in NB | L65: Yes | M65: No | N65: 0-No | R65: 1
A66: AMES-81 | B66: US-30 & University Blvd | C66: =VLOOKUP(B66,Intersections!A:G,6,FALSE) -> 18300 | D66: =VLOOKUP(B66,Intersections!A:G,7,FALSE) -> 15400 | E66: Ames | F66: =VLOOKUP(B66,Intersections!A:E,5,FALSE) -> Diamond | G66: 2017-09-29 | H66: 223 | I66: Friday | J66: Thursday | K66: WB in EB | L66: Yes | M66: Yes | N66: 0-No | R66: 1
A67: AMES-82 | B67: US-30 & Corporal Roger Snedden Dr | C67: =VLOOKUP(B67,Intersections!A:G,6,FALSE) -> 14400 | D67: =VLOOKUP(B67,Intersections!A:G,7,FALSE) -> 2440 | E67: Boone | F67: =VLOOKUP(B67,Intersections!A:E,5,FALSE) -> At Grade | G67: 2017-09-30 | H67: 2109 | I67: Saturday | J67: Saturday | K67: EB in WB | L67: Yes | M67: Yes | N67: 0-No | R67: 1
A68: AMES-85 | B68: US-30 & University Blvd | C68: =VLOOKUP(B68,Intersections!A:G,6,FALSE) -> 18300 | D68: =VLOOKUP(B68,Intersections!A:G,7,FALSE) -> 15400 | E68: Ames | F68: =VLOOKUP(B68,Intersections!A:E,5,FALSE) -> Diamond | G68: 2017-10-12 | H68: 1540 | I68: Thursday | J68: Thursday | K68: WB in EB | L68: Yes | M68: Yes | N68: 0-No | R68: 1
A69: 26 | B69: I-35 & US-6/Hickman Rd | C69: 121400 | D69: 37300 | E69: Clive | F69: =VLOOKUP(B69,Intersections!A:E,5,FALSE) -> Diamond | G69: 2017-10-15 | H69: 155 | I69: Saturday | J69: Friday | K69: 2-SB in NB | L69: Yes | M69: Yes | N69: 1-Yes | P69: 20171009984 | Q69: 1 - Fatal
A70: 3 | B70: I-380 & Blairs Ferry Rd | C70: 51900 | D70: 21100 | E70: Cedar Rapids | F70: =VLOOKUP(B70,Intersections!A:E,5,FALSE) -> Split | G70: 2017-10-18 | H70: 2353 | I70: Wednesday | J70: Wednesday | K70: 2-SB in NB | L70: Yes | M70: Yes | N70: 1-Yes | P70: 20171016153 | Q70: 4 - PDO
A71: AMES-86 | B71: US-30 & University Blvd | C71: =VLOOKUP(B71,Intersections!A:G,6,FALSE) -> 18300 | D71: =VLOOKUP(B71,Intersections!A:G,7,FALSE) -> 15400 | E71: Ames | F71: =VLOOKUP(B71,Intersections!A:E,5,FALSE) -> Diamond | G71: 2017-10-21 | H71: 1322 | I71: Saturday | J71: Saturday | K71: WB in EB | L71: Yes | M71: Yes | N71: 0-No | R71: 1
A72: AMES-87 | B72: US-30 & S Linn St | C72: =VLOOKUP(B72,Intersections!A:G,6,FALSE) -> 14100 | D72: =VLOOKUP(B72,Intersections!A:G,7,FALSE) -> 5100 | E72: Boone | F72: =VLOOKUP(B72,Intersections!A:E,5,FALSE) -> At Grade | G72: 2017-11-02 | H72: 26 | I72: Thursday | J72: Wednesday | K72: EB in WB | L72: Yes | M72: Yes | N72: 1-Yes | R72: 1
A73: 174 | B73: US-20 N Ramp & US 65 | C73: =VLOOKUP(B73,Intersections!A:G,6,FALSE) -> 9400 | D73: =VLOOKUP(B73,Intersections!A:G,7,FALSE) -> 5300 | E73: Iowa Falls | F73: =VLOOKUP(B73,Intersections!A:E,5,FALSE) -> Diamond | G73: 2017-11-14 | H73: 1630 | I73: =IF(G73="","",CHOOSE(WEEKDAY(G73,2),"Monday","Tuesday","Wednesday","Thursday","Friday","Saturday","Sunday")) -> Tuesday | J73: =IF(G73="","",IF(H73<500,CHOOSE(WEEKDAY(G73,2)-1,"Monday","Tuesday","Wednesday","Thursday","Friday","Saturday","Sunday"),I73)) -> Tuesday | K73: EB in WB | L73: No | M73: No | N73: 0-No | R73: 0.9 | S73: Email from Tim Simodynes
A74: 174 | B74: US-20 & County Road S27 | C74: =VLOOKUP(B74,Intersections!A:G,6,FALSE) -> 8900 | D74: =VLOOKUP(B74,Intersections!A:G,7,FALSE) -> 1370 | E74: Buckeye | F74: =VLOOKUP(B74,Intersections!A:E,5,FALSE) -> Diamond | G74: 2017-11-14 | H74: 1630 | I74: =IF(G74="","",CHOOSE(WEEKDAY(G74,2),"Monday","Tuesday","Wednesday","Thursday","Friday","Saturday","Sunday")) -> Tuesday | J74: =IF(G74="","",IF(H74<500,CHOOSE(WEEKDAY(G74,2)-1,"Monday","Tuesday","Wednesday","Thursday","Friday","Saturday","Sunday"),I74)) -> Tuesday | K74: EB in WB | L74: No | M74: No | N74: 0-No | R74: 0.1 | S74: Email from Tim Simodynes
A75: 4 | B75: I-29 & IA-92 | C75: 33300 | D75: 20000 | E75: Council Bluffs | F75: =VLOOKUP(B75,Intersections!A:E,5,FALSE) -> Excluded Unique | G75: 2017-11-18 | H75: 128 | I75: Saturday | J75: Friday | K75: 1-NB in SB | L75: Yes | M75: Yes | N75: 1-Yes | R75: 1
A76: 101 | B76: IA-141 & IA-210 | C76: 9900 | D76: 3810 | E76: Woodward | F76: =VLOOKUP(B76,Intersections!A:E,5,FALSE) -> Diamond | G76: 2017-11-18 | H76: 1838 | I76: Saturday | J76: Saturday | K76: 4-EB in WB | L76: Yes | M76: No | N76: 1-Yes | O76: 27829 | P76: 20171018041 | Q76: 2 - Major
A77: AMES-88 | B77: US-30 & University Blvd | C77: =VLOOKUP(B77,Intersections!A:G,6,FALSE) -> 18300 | D77: =VLOOKUP(B77,Intersections!A:G,7,FALSE) -> 15400 | E77: Ames | F77: =VLOOKUP(B77,Intersections!A:E,5,FALSE) -> Diamond | G77: 2017-12-01 | H77: 1340 | I77: Friday | J77: Thursday | K77: WB in EB | L77: Yes | M77: Yes | N77: 0-No | R77: 1
A78: AMES-89 | B78: US-30 & IA-17 | C78: =VLOOKUP(B78,Intersections!A:G,6,FALSE) -> 15200 | D78: =VLOOKUP(B78,Intersections!A:G,7,FALSE) -> 4900 | E78: Boone | F78: =VLOOKUP(B78,Intersections!A:E,5,FALSE) -> Diamond | G78: 2017-12-06 | H78: 509 | I78: Wednesday | J78: Tuesday | K78: EB in WB | L78: Yes | M78: Yes | N78: 0-No | R78: 1
A79: AMES-90 | B79: US-30 & 650th Ave/CR-S27 | C79: =VLOOKUP(B79,Intersections!A:G,6,FALSE) -> 10300 | D79: =VLOOKUP(B79,Intersections!A:G,7,FALSE) -> 1040 | E79: Nevada | F79: =VLOOKUP(B79,Intersections!A:E,5,FALSE) -> At Grade | G79: 2017-12-06 | H79: 1537 | I79: Wednesday | J79: Wednesday | K79: WB in EB | L79: Yes | M79: Yes | N79: 0-No | R79: 1
A80: AMES-91 | B80: US-30 & Corporal Roger Snedden Dr | C80: =VLOOKUP(B80,Intersections!A:G,6,FALSE) -> 14400 | D80: =VLOOKUP(B80,Intersections!A:G,7,FALSE) -> 2440 | E80: Boone | F80: =VLOOKUP(B80,Intersections!A:E,5,FALSE) -> At Grade | G80: 2017-12-07 | H80: 2300 | I80: Thursday | J80: Thursday | K80: EB in WB | L80: Yes | M80: Yes | N80: 0-No | R80: 1
A81: AMES-93 | B81: US-30 & IA-17 | C81: =VLOOKUP(B81,Intersections!A:G,6,FALSE) -> 15200 | D81: =VLOOKUP(B81,Intersections!A:G,7,FALSE) -> 4900 | E81: Boone | F81: =VLOOKUP(B81,Intersections!A:E,5,FALSE) -> Diamond | G81: 2017-12-14 | H81: 1710 | I81: Thursday | J81: Thursday | K81: EB in WB | L81: Yes | M81: No | N81: 0-No | R81: 1
A82: AMES-95 | B82: US-30 & University Blvd | C82: =VLOOKUP(B82,Intersections!A:G,6,FALSE) -> 18300 | D82: =VLOOKUP(B82,Intersections!A:G,7,FALSE) -> 15400 | E82: Ames | F82: =VLOOKUP(B82,Intersections!A:E,5,FALSE) -> Diamond | G82: 2017-12-20 | H82: 1143 | I82: Wednesday | J82: Wednesday | K82: WB in EB | L82: Yes | M82: Yes | N82: 0-No | R82: 1
A83: AMES-96 | B83: US-30 & 230th St | C83: =VLOOKUP(B83,Intersections!A:G,6,FALSE) -> 16400 | D83: =VLOOKUP(B83,Intersections!A:G,7,FALSE) -> 1160 | E83: Boone | F83: =VLOOKUP(B83,Intersections!A:E,5,FALSE) -> At Grade | G83: 2017-12-20 | H83: 2000 | I83: Wednesday | J83: Wednesday | K83: WB in EB | L83: Yes | M83: Yes | N83: 1-Yes | R83: 1
A84: AMES-98 | B84: US-30 & 650th Ave/CR-S27 | C84: =VLOOKUP(B84,Intersections!A:G,6,FALSE) -> 10300 | D84: =VLOOKUP(B84,Intersections!A:G,7,FALSE) -> 1040 | E84: Nevada | F84: =VLOOKUP(B84,Intersections!A:E,5,FALSE) -> At Grade | G84: 2018-01-12 | H84: 434 | I84: Friday | J84: Thursday | K84: WB in EB | L84: Yes | M84: Yes | N84: 0-No | R84: 1
A85: 99 | B85: US-218 & Riverside Dr | C85: 22100 | D85: 6900 | E85: Iowa City | F85: =VLOOKUP(B85,Intersections!A:E,5,FALSE) -> Unique | G85: 2018-01-14 | H85: 2255 | I85: Sunday | J85: Sunday | K85: 1-NB in SB | L85: No | M85: Yes | N85: 1-Yes | R85: 0.99
A86: 100 | B86: IA-163 & 70th St | C86: 21500 | D86: 5200 | E86: Pleasant Hill | F86: =VLOOKUP(B86,Intersections!A:E,5,FALSE) -> At Grade | G86: 2018-01-15 | H86: 505 | I86: Monday | J86: Sunday | K86: 3-WB in EB | L86: No | M86: No | N86: 0-No | R86: 0.25
A87: 98 | B87: US-30 & US-65 | C87: 8500 | D87: 2240 | E87: Colo | F87: =VLOOKUP(B87,Intersections!A:E,5,FALSE) -> Excluded Unique | G87: 2018-01-19 | H87: 2015 | I87: Friday | J87: Friday | K87: 3-WB in EB | L87: No | M87: No | N87: 1-Yes | R87: 0.5
A88: AMES-99 | B88: US-30 & IA-930/Lincoln Way | C88: =VLOOKUP(B88,Intersections!A:G,6,FALSE) -> 17100 | D88: =VLOOKUP(B88,Intersections!A:G,7,FALSE) -> 5600 | E88: Ames | F88: =VLOOKUP(B88,Intersections!A:E,5,FALSE) -> Split | G88: 2018-01-25 | H88: 2116 | I88: Thursday | J88: Thursday | K88: EB in WB | L88: Yes | M88: Yes | N88: 0-No | R88: 1
A89: 97 | B89: I-380 & 33rd Ave | C89: 76100 | D89: 20400 | E89: Cedar Rapids | F89: =VLOOKUP(B89,Intersections!A:E,5,FALSE) -> Diamond | G89: 2018-01-29 | H89: 2124 | I89: Monday | J89: Monday | K89: 2-SB in NB | L89: Yes | M89: Yes | N89: 1-Yes | O89: 36103 | P89: 20181037534 | Q89: 1 - Fatal
A90: AMES-100 | B90: US-30 & 580th Ave | C90: =VLOOKUP(B90,Intersections!A:G,6,FALSE) -> 17300 | D90: =VLOOKUP(B90,Intersections!A:G,7,FALSE) -> 1790 | E90: Ames | F90: =VLOOKUP(B90,Intersections!A:E,5,FALSE) -> At Grade | G90: 2018-01-30 | H90: 2130 | I90: Tuesday | J90: Tuesday | K90: WB in EB | L90: Yes | M90: Yes | N90: 0-No | R90: 1
A91: AMES-101 | B91: US-30 & 18th St/610th Ave | C91: =VLOOKUP(B91,Intersections!A:G,6,FALSE) -> 15300 | D91: =VLOOKUP(B91,Intersections!A:G,7,FALSE) -> 2240 | E91: Nevada | F91: =VLOOKUP(B91,Intersections!A:E,5,FALSE) -> At Grade | G91: 2018-02-03 | H91: 308 | I91: Saturday | J91: Friday | K91: EB in WB | L91: Yes | M91: Yes | N91: 0-No | R91: 1
A92: AMES-102 | B92: US-30 & University Blvd | C92: =VLOOKUP(B92,Intersections!A:G,6,FALSE) -> 18300 | D92: =VLOOKUP(B92,Intersections!A:G,7,FALSE) -> 15400 | E92: Ames | F92: =VLOOKUP(B92,Intersections!A:E,5,FALSE) -> Diamond | G92: 2018-02-08 | H92: 632 | I92: Thursday | J92: Thursday | K92: WB in EB | L92: Yes | M92: Yes | N92: 0-No | R92: 1
A93: AMES-103 | B93: US-30 & 19th St | C93: =VLOOKUP(B93,Intersections!A:G,6,FALSE) -> 12200 | D93: =VLOOKUP(B93,Intersections!A:G,7,FALSE) -> 4240 | E93: Nevada | F93: =VLOOKUP(B93,Intersections!A:E,5,FALSE) -> Unique | G93: 2018-02-12 | H93: 2100 | I93: Monday | J93: Monday | K93: EB in WB | L93: Yes | M93: Yes | N93: 0-No | R93: 1
A94: 1 | B94: I-380 & Glass Rd | C94: 83100 | D94: 13900 | E94: Cedar Rapids | F94: =VLOOKUP(B94,Intersections!A:E,5,FALSE) -> Split | G94: 2018-02-18 | H94: 1045 | I94: Monday | J94: Monday | K94: 1-NB in SB | L94: Yes | M94: Yes | N94: 0-No | O94: 78297 | R94: 1
A95: 96 | B95: I-35 & IA-92 | C95: 22500 | D95: 4970 | E95: Bevington | F95: =VLOOKUP(B95,Intersections!A:E,5,FALSE) -> Diamond | G95: 2018-02-21 | H95: 314 | I95: Wednesday | J95: Tuesday | K95: 1-NB in SB | L95: No | M95: No | N95: 1-Yes | O95: 38931 | P95: 20181034590 | Q95: 1 - Fatal
A96: 2 | B96: US-30 & Kirkwood Blvd | C96: 31700 | D96: 16200 | E96: Cedar Rapids | F96: =VLOOKUP(B96,Intersections!A:E,5,FALSE) -> Unique | G96: 2018-02-22 | H96: 1434 | I96: Friday | J96: Friday | K96: 3-WB in EB | L96: Yes | M96: Yes | N96: 0-No | R96: 1
A97: AMES-104 | B97: US-30 & University Blvd | C97: =VLOOKUP(B97,Intersections!A:G,6,FALSE) -> 18300 | D97: =VLOOKUP(B97,Intersections!A:G,7,FALSE) -> 15400 | E97: Ames | F97: =VLOOKUP(B97,Intersections!A:E,5,FALSE) -> Diamond | G97: 2018-02-24 | H97: 517 | I97: Saturday | J97: Friday | K97: WB in EB | L97: Yes | M97: Yes | N97: 0-No | R97: 1
A98: AMES-105 | B98: US-30 & T Ave | C98: =VLOOKUP(B98,Intersections!A:G,6,FALSE) -> 16300 | D98: =VLOOKUP(B98,Intersections!A:G,7,FALSE) -> 35 | E98: Boone | F98: =VLOOKUP(B98,Intersections!A:E,5,FALSE) -> At Grade | G98: 2018-03-05 | H98: 339 | I98: Monday | J98: Sunday | K98: EB in WB | L98: Yes | M98: Yes | N98: 0-No | R98: 1
A99: AMES-106 | B99: US-30 & Corporal Roger Snedden Dr | C99: =VLOOKUP(B99,Intersections!A:G,6,FALSE) -> 14400 | D99: =VLOOKUP(B99,Intersections!A:G,7,FALSE) -> 2440 | E99: Boone | F99: =VLOOKUP(B99,Intersections!A:E,5,FALSE) -> At Grade | G99: 2018-03-10 | H99: 238 | I99: Saturday | J99: Friday | K99: EB in WB | L99: Yes | M99: Yes | N99: 0-No | R99: 1
A100: Ames -216 | B100: I-35 & Ia-210 | C100: =VLOOKUP(B100,Intersections!A:G,6,FALSE) -> 45300 | D100: =VLOOKUP(B100,Intersections!A:G,7,FALSE) -> 6200 | E100: Huxley | F100: =VLOOKUP(B100,Intersections!A:E,5,FALSE) -> Diamond | G100: 2018-03-17 | H100: 2350 | I100: =IF(G100="","",CHOOSE(WEEKDAY(G100,2),"Monday","Tuesday","Wednesday","Thursday","Friday","Saturday","Sunday")) -> Saturday | J100: Tuesday | K100: NB in Sb and WB in EB | L100: No | M100: Yes | N100: 1-Yes | R100: 0.5
A101: AMES-109 | B101: US-30 & 19th St | C101: =VLOOKUP(B101,Intersections!A:G,6,FALSE) -> 12200 | D101: =VLOOKUP(B101,Intersections!A:G,7,FALSE) -> 4240 | E101: Nevada | F101: =VLOOKUP(B101,Intersections!A:E,5,FALSE) -> Unique | G101: 2018-04-03 | H101: 2126 | I101: Tuesday | J101: Tuesday | K101: WB in EB | L101: No | M101: Yes | N101: 0-No | R101: 0.5
A102: 95 | B102: I-35 & Mills Civic Pkwy | C102: 73200 | D102: 20500 | E102: West Des Moines | F102: =VLOOKUP(B102,Intersections!A:E,5,FALSE) -> Unique | G102: 2018-04-07 | H102: 116 | I102: Saturday | J102: Friday | K102: 1-NB in SB | L102: Yes | M102: Yes | N102: 1-Yes | O102: 44479 | R102: 1
A103: AMES-110 | B103: US-30 & University Blvd | C103: =VLOOKUP(B103,Intersections!A:G,6,FALSE) -> 18300 | D103: =VLOOKUP(B103,Intersections!A:G,7,FALSE) -> 15400 | E103: Ames | F103: =VLOOKUP(B103,Intersections!A:E,5,FALSE) -> Diamond | G103: 2018-04-07 | H103: 1402 | I103: Saturday | J103: Saturday | K103: WB in EB | L103: Yes | M103: Yes | N103: 0-No | R103: 1
A104: AMES-112 | B104: US-30 & University Blvd | C104: =VLOOKUP(B104,Intersections!A:G,6,FALSE) -> 18300 | D104: =VLOOKUP(B104,Intersections!A:G,7,FALSE) -> 15400 | E104: Ames | F104: =VLOOKUP(B104,Intersections!A:E,5,FALSE) -> Diamond | G104: 2018-04-15 | H104: 832 | I104: Sunday | J104: Sunday | K104: WB in EB | L104: Yes | M104: Yes | R104: 1
A105: 94 | B105: I-35 & Grand Ave | C105: 53700 | D105: 4660 | E105: West Des Moines | F105: =VLOOKUP(B105,Intersections!A:E,5,FALSE) -> Diamond | G105: 2018-04-16 | H105: 252 | I105: Monday | J105: Sunday | K105: 1-NB in SB | L105: Yes | M105: Yes | N105: 1-Yes | R105: 1
A106: 93 | B106: IA-141 & IA-210 | C106: 9900 | D106: 3810 | E106: Woodward | F106: =VLOOKUP(B106,Intersections!A:E,5,FALSE) -> Diamond | G106: 2018-04-17 | H106: 411 | I106: Tuesday | J106: Monday | K106: 4-EB in WB | L106: No | M106: No | N106: 0-No | R106: 0.99
A107: AMES-113 | B107: U-Turn | C107: =VLOOKUP(B107,Intersections!A:G,6,FALSE) -> 0 | D107: =VLOOKUP(B107,Intersections!A:G,7,FALSE) -> 0 | E107: Nevada | F107: =VLOOKUP(B107,Intersections!A:E,5,FALSE) -> n/a | G107: 2018-04-26 | H107: 231 | I107: Thursday | J107: Wednesday | K107: WB in EB | L107: Yes | M107: Yes | N107: 0-No | R107: 1
A108: AMES-114 | B108: US-30 & S Linn St | C108: =VLOOKUP(B108,Intersections!A:G,6,FALSE) -> 14100 | D108: =VLOOKUP(B108,Intersections!A:G,7,FALSE) -> 5100 | E108: Boone | F108: =VLOOKUP(B108,Intersections!A:E,5,FALSE) -> At Grade | G108: 2018-05-10 | H108: 2142 | I108: Thursday | J108: Thursday | K108: EB in WB | L108: No | M108: Yes | N108: 0-No | R108: 0.33
A109: AMES-115 | B109: US-30 & IA-17 | C109: =VLOOKUP(B109,Intersections!A:G,6,FALSE) -> 15200 | D109: =VLOOKUP(B109,Intersections!A:G,7,FALSE) -> 4900 | E109: Boone | F109: =VLOOKUP(B109,Intersections!A:E,5,FALSE) -> Diamond | G109: 2018-05-12 | H109: 2130 | I109: Saturday | J109: Saturday | K109: WB in EB | L109: Yes | M109: Yes | N109: 1-Yes | R109: 1
A110: 92 | B110: Crossover | C110: 40400 | D110: 0 | E110: West Branch | F110: =VLOOKUP(B110,Intersections!A:E,5,FALSE) -> n/a | G110: 2018-05-20 | H110: 358 | I110: Sunday | J110: Saturday | K110: 4-EB in WB | L110: No | M110: No | N110: 0-No
A111: 90 | B111: IA-5 & IA-92 | C111: 7700 | D111: 4890 | E111: Knoxville | F111: =VLOOKUP(B111,Intersections!A:E,5,FALSE) -> At Grade | G111: 2018-05-26 | H111: 803 | I111: Saturday | J111: Saturday | K111: 2-SB in NB | L111: No | M111: No | N111: 1-Yes | O111: 49784 | P111: 20181050959 | Q111: 1 - Fatal
A112: 91 | B112: I-380 & 7th St | C112: 90800 | D112: 6900 | E112: Cedar Rapids | F112: =VLOOKUP(B112,Intersections!A:E,5,FALSE) -> Unique | G112: 2018-05-29 | H112: 200 | I112: Tuesday | J112: Monday | K112: 2-SB in NB | L112: Yes | M112: Yes | N112: 0-No | R112: 1
A113: 27 | B113: I-80 & Coral Ridge Ave | C113: 62500 | D113: 33200 | E113: Coralville | F113: =VLOOKUP(B113,Intersections!A:E,5,FALSE) -> Excluded Unique | G113: 2018-05-31 | H113: 2135 | I113: Thursday | J113: Thursday | K113: 4-EB in WB | L113: Yes | M113: Yes | N113: 0-No | R113: 1
A114: 89 | B114: I-80 & Coral Ridge Ave | C114: 62500 | D114: 33200 | E114: Coralville | F114: =VLOOKUP(B114,Intersections!A:E,5,FALSE) -> Excluded Unique | G114: 2018-05-31 | H114: 2136 | I114: Thursday | J114: Thursday | K114: 4-EB in WB | L114: No | M114: No | N114: 0-No | O114: 50315 | R114: 0.5
A115: 88 | B115: US-30 & Kirkwood Blvd | C115: 31700 | D115: 16200 | E115: Cedar Rapids | F115: =VLOOKUP(B115,Intersections!A:E,5,FALSE) -> Unique | G115: 2018-06-01 | H115: 2112 | I115: Friday | J115: Friday | K115: 4-EB in WB | L115: Yes | M115: No | N115: 0-No | O115: 50445 | R115: 1
A116: 87 | B116: IA-100 & Twixt Town Rd | C116: 21500 | D116: 5301 | E116: Marion | F116: =VLOOKUP(B116,Intersections!A:E,5,FALSE) -> At Grade | G116: 2018-06-07 | H116: 1053 | I116: Thursday | J116: Thursday | K116: 4-EB in WB | L116: No | M116: No | N116: 0-No | O116: 50958 | R116: 0.25
A117: 86 | B117: I-80 & IA-146 | C117: 29500 | D117: 9000 | E117: Grinnell | F117: =VLOOKUP(B117,Intersections!A:E,5,FALSE) -> Diamond | G117: 2018-06-15 | H117: 35 | I117: Friday | J117: Thursday | K117: 4-EB in WB | L117: No | M117: No | N117: 1-Yes | O117: 51810 | R117: 0.5
A118: AMES-117 | B118: US-30 & IA-17 | C118: =VLOOKUP(B118,Intersections!A:G,6,FALSE) -> 15200 | D118: =VLOOKUP(B118,Intersections!A:G,7,FALSE) -> 4900 | E118: Boone | F118: =VLOOKUP(B118,Intersections!A:E,5,FALSE) -> Diamond | G118: 2018-06-23 | H118: 1035 | I118: Saturday | J118: Saturday | K118: EB in WB | L118: Yes | M118: Yes | R118: 1
A119: AMES-118 | B119: US-30 & T Ave | C119: =VLOOKUP(B119,Intersections!A:G,6,FALSE) -> 16300 | D119: =VLOOKUP(B119,Intersections!A:G,7,FALSE) -> 35 | E119: Boone | F119: =VLOOKUP(B119,Intersections!A:E,5,FALSE) -> At Grade | G119: 2018-06-30 | H119: 243 | I119: Saturday | J119: Saturday | K119: EB in WB | L119: Yes | M119: Yes | N119: 1-Yes | R119: 1
A120: 85 | B120: US-30 & Kirkwood Blvd | C120: 31700 | D120: 16200 | E120: Cedar Rapids | F120: =VLOOKUP(B120,Intersections!A:E,5,FALSE) -> Unique | G120: 2018-07-01 | H120: 131 | I120: Sunday | J120: Saturday | K120: 4-EB in WB | L120: No | M120: No | N120: 0-No | O120: 53634 | R120: 0.25
A121: AMES-119 | B121: US-30 & Corporal Roger Snedden Dr | C121: =VLOOKUP(B121,Intersections!A:G,6,FALSE) -> 14400 | D121: =VLOOKUP(B121,Intersections!A:G,7,FALSE) -> 2440 | E121: Boone | F121: =VLOOKUP(B121,Intersections!A:E,5,FALSE) -> At Grade | G121: 2018-07-02 | H121: 2314 | I121: Monday | J121: Monday | K121: EB in WB | L121: Yes | M121: Yes | R121: 1
A122: 83 | B122: I-80 & Tiffin WB Rest Area | C122: 34400 | D122: 0 | E122: Tiffin | F122: =VLOOKUP(B122,Intersections!A:E,5,FALSE) -> Rest Area | G122: 2018-07-07 | H122: 2314 | I122: Saturday | J122: Saturday | K122: 4-EB in WB | L122: No | M122: No | N122: 0-No | O122: 54295 | R122: 0.99
A123: 84 | B123: US-218 & Observatory Ave | C123: 22100 | D123: 3250 | E123: Hills | F123: =VLOOKUP(B123,Intersections!A:E,5,FALSE) -> Diamond | G123: 2018-07-07 | H123: 2152 | I123: Saturday | J123: Saturday | K123: 1-NB in SB | L123: No | M123: No | N123: 0-No | O123: 54292 | R123: 0.5
A124: 82 | B124: US-30 & Sisley Grove Rd | C124: 14100 | D124: 50 | E124: Cedar Rapids | F124: =VLOOKUP(B124,Intersections!A:E,5,FALSE) -> At Grade | G124: 2018-07-13 | H124: 2352 | I124: Friday | J124: Friday | K124: 4-EB in WB | L124: No | M124: No | N124: 0-No | O124: 54978 | R124: 0.25
A125: 81 | B125: I-380 & 33rd Ave | C125: 76100 | D125: 20400 | E125: Cedar Rapids | F125: =VLOOKUP(B125,Intersections!A:E,5,FALSE) -> Diamond | G125: 2018-07-17 | H125: 1534 | I125: Tuesday | J125: Tuesday | K125: 1-NB in SB | L125: Yes | M125: No | N125: 0-No | O125: 55285 | R125: 1
A126: 80 | B126: I-80 & Coral Ridge Ave | C126: 62500 | D126: 33200 | E126: Coralville | F126: =VLOOKUP(B126,Intersections!A:E,5,FALSE) -> Excluded Unique | G126: 2018-07-19 | H126: 431 | I126: Thursday | J126: Wednesday | K126: 4-EB in WB | L126: No | M126: No | N126: 0-No | O126: 55464 | R126: 0.99
A127: 78 | B127: I-280 & US-6 | C127: 22400 | D127: 6600 | E127: Davenport | F127: =VLOOKUP(B127,Intersections!A:E,5,FALSE) -> Unique | G127: 2018-07-25 | H127: 1606 | I127: Wednesday | J127: Wednesday | K127: 3-WB in EB | L127: No | M127: No | N127: 0-No | O127: 56137 | R127: 0.5
A128: 79 | B128: I-80 & Dubuque St | C128: 64300 | D128: 24100 | E128: Iowa City | F128: =VLOOKUP(B128,Intersections!A:E,5,FALSE) -> Diamond | G128: 2018-07-25 | H128: 1443 | I128: Wednesday | J128: Wednesday | K128: 3-WB in EB | L128: No | M128: No | N128: 1-Yes | O128: 56126 | R128: 0.99
A129: 76 | B129: US-30 & Kepler Dr | C129: 13500 | D129: 100 | E129: Mount Vernon | F129: =VLOOKUP(B129,Intersections!A:E,5,FALSE) -> At Grade | G129: 2018-08-04 | H129: 2212 | I129: Saturday | J129: Saturday | K129: 3-WB in EB | L129: Yes | M129: No | N129: 0-No | O129: 57097 | R129: 1
A130: 77 | B130: I-380 & Penn St | C130: 51100 | D130: 19700 | E130: North Liberty | F130: =VLOOKUP(B130,Intersections!A:E,5,FALSE) -> Diamond | G130: 2018-08-04 | H130: 110 | I130: Saturday | J130: Friday | K130: 2-SB in NB | L130: No | M130: Yes | N130: 1-Yes | O130: 57050 | R130: 0.5
A131: AMES-120 | B131: US-30 & 580th Ave | C131: =VLOOKUP(B131,Intersections!A:G,6,FALSE) -> 17300 | D131: =VLOOKUP(B131,Intersections!A:G,7,FALSE) -> 1790 | E131: Ames | F131: =VLOOKUP(B131,Intersections!A:E,5,FALSE) -> At Grade | G131: 2018-08-11 | H131: 2333 | I131: Saturday | J131: Saturday | K131: EB in WB | L131: Yes | M131: Yes | R131: 1
A132: 75 | B132: U-Turn | C132: 28800 | D132: 0 | E132: Newton | F132: =VLOOKUP(B132,Intersections!A:E,5,FALSE) -> n/a | G132: 2018-08-17 | H132: 2244 | I132: Friday | J132: Friday | K132: 3-WB in EB | L132: No | M132: Yes | N132: 1-Yes | O132: 58312
A133: 65 | B133: I-35 & 1st St | C133: 67200 | D133: 12400 | E133: Ankeny | F133: =VLOOKUP(B133,Intersections!A:E,5,FALSE) -> Diamond | G133: 2018-08-22 | H133: 1700 | I133: Wednesday | J133: Wednesday | K133: 1-NB in SB | L133: No | M133: No | N133: 0-No | R133: 0.99
A134: AMES-121 | B134: I 35 S & I 35 S TO US 30 W | C134: =VLOOKUP(B134,Intersections!A:G,6,FALSE) -> 44300 | D134: =VLOOKUP(B134,Intersections!A:G,7,FALSE) -> 30900 | E134: Ames | F134: =VLOOKUP(B134,Intersections!A:E,5,FALSE) -> System | G134: 2018-08-27 | H134: 140 | I134: Monday | J134: Monday | K134: WB in EB | L134: Yes | M134: Yes | R134: 1
A135: 66 | B135: I-380 & 1st St | C135: 79400 | D135: 4550 | E135: Cedar Rapids | F135: =VLOOKUP(B135,Intersections!A:E,5,FALSE) -> Unique | G135: 2018-08-30 | H135: 1904 | I135: Thursday | J135: Thursday | K135: 1-NB in SB | L135: No | M135: No | N135: 0-No | O135: 59515 | R135: 0.5
A136: 67 | B136: I-380 & 7th St | C136: 90800 | D136: 6900 | E136: Cedar Rapids | F136: =VLOOKUP(B136,Intersections!A:E,5,FALSE) -> Unique | G136: 2018-08-30 | H136: 1904 | I136: Thursday | J136: Thursday | K136: 1-NB in SB | L136: No | M136: No | N136: 0-No | O136: 59515 | R136: 0.5
A137: 64 | B137: I-380 & 7th St | C137: 90800 | D137: 6900 | E137: Cedar Rapids | F137: =VLOOKUP(B137,Intersections!A:E,5,FALSE) -> Unique | G137: 2018-09-02 | H137: 152 | I137: Saturday | J137: Friday | K137: 1-NB in SB | L137: Yes | M137: Yes | N137: 1-Yes | O137: 59732 | R137: 1
A138: AMES-122 | B138: US-30 & University Blvd | C138: =VLOOKUP(B138,Intersections!A:G,6,FALSE) -> 18300 | D138: =VLOOKUP(B138,Intersections!A:G,7,FALSE) -> 15400 | E138: Ames | F138: =VLOOKUP(B138,Intersections!A:E,5,FALSE) -> Diamond | G138: 2018-09-03 | H138: 2120 | I138: Wednesday | J138: Wednesday | K138: WB in EB | L138: Yes | M138: Yes | R138: 1
A139: 12 | B139: US-18 & Thrush Ave | C139: 11600 | D139: 2230 | E139: Mason City | F139: =VLOOKUP(B139,Intersections!A:E,5,FALSE) -> Diamond | G139: 2018-09-10 | H139: 1134 | I139: Monday | J139: Monday | K139: 4-EB in WB | L139: Yes | M139: No | N139: 1-Yes | P139: 20181067026 | Q139: 1 - Fatal
A140: AMES-123 | B140: US-30 & T Ave | C140: =VLOOKUP(B140,Intersections!A:G,6,FALSE) -> 16300 | D140: =VLOOKUP(B140,Intersections!A:G,7,FALSE) -> 35 | E140: Boone | F140: =VLOOKUP(B140,Intersections!A:E,5,FALSE) -> At Grade | G140: 2018-09-10 | H140: 123 | I140: Monday | J140: Monday | K140: EB in WB | L140: Yes | M140: Yes | R140: 1
A141: 55 | B141: US-30 & 16th Ave - No Longer Exists | C141: 0 | D141: 0 | E141: Cedar Rapids | F141: =VLOOKUP(B141,Intersections!A:E,5,FALSE) -> Unique | G141: 2018-09-11 | H141: 2328 | I141: Tuesday | J141: Tuesday | K141: 4-EB in WB | L141: No | M141: Yes | N141: 0-No
A142: AMES-124 | B142: US-30 & T Ave | C142: =VLOOKUP(B142,Intersections!A:G,6,FALSE) -> 16300 | D142: =VLOOKUP(B142,Intersections!A:G,7,FALSE) -> 35 | E142: Boone | F142: =VLOOKUP(B142,Intersections!A:E,5,FALSE) -> At Grade | G142: 2018-09-11 | H142: 2034 | I142: Tuesday | J142: Tuesday | K142: EB in WB | L142: Yes | M142: Yes | R142: 1
A143: AMES-125 | B143: US-30 & IA-17 | C143: =VLOOKUP(B143,Intersections!A:G,6,FALSE) -> 15200 | D143: =VLOOKUP(B143,Intersections!A:G,7,FALSE) -> 4900 | E143: Boone | F143: =VLOOKUP(B143,Intersections!A:E,5,FALSE) -> Diamond | G143: 2018-09-16 | H143: 1155 | I143: Sunday | J143: Sunday | K143: WB in EB | M143: Yes | R143: 1
A144: 62 | B144: I-80 & Atalissa Rd | C144: 35300 | D144: 1660 | E144: Rochester | F144: =VLOOKUP(B144,Intersections!A:E,5,FALSE) -> Diamond | G144: 2018-09-20 | H144: 2137 | I144: Sunday | J144: Sunday | K144: 4-EB in WB | L144: No | M144: No | N144: 0-No | O144: 62373 | R144: 0.5
A145: 63 | B145: I-380 & Boyson Rd | C145: 48300 | D145: 19800 | E145: Hiawatha | F145: =VLOOKUP(B145,Intersections!A:E,5,FALSE) -> Diamond | G145: 2018-09-25 | H145: 1453 | I145: Tuesday | J145: Tuesday | K145: 2-SB in NB | L145: No | M145: No | N145: 0-No | O145: 61909 | R145: 0.99
A146: 60 | B146: I-380 & IA-297 | C146: 31000 | D146: 4090 | E146: Raymond | F146: =VLOOKUP(B146,Intersections!A:E,5,FALSE) -> Diamond | G146: 2018-10-06 | H146: 215 | I146: Saturday | J146: Friday | K146: 4-EB in WB | L146: No | M146: Yes | N146: 0-No | R146: 0.5
A147: 61 | B147: I-380 & Poyner Rd | C147: 16700 | D147: 710 | E147: Gilbertville | F147: =VLOOKUP(B147,Intersections!A:E,5,FALSE) -> Diamond | G147: 2018-10-06 | H147: 215 | I147: Saturday | J147: Friday | K147: 4-EB in WB | L147: No | M147: Yes | N147: 0-No | R147: 0.5
A148: 56 | B148: IA-141 & Willis Ave | C148: 10100 | D148: 1980 | E148: Perry | F148: =VLOOKUP(B148,Intersections!A:E,5,FALSE) -> At Grade | G148: 2018-10-10 | I148: Wednesday | J148: Wednesday | K148: 4-EB in WB | L148: No | M148: No | N148: 0-No | R148: 0.5
A149: 52 | B149: IA-5 & 35th St | C149: 33200 | D149: 2360 | E149: West Des Moines | F149: =VLOOKUP(B149,Intersections!A:E,5,FALSE) -> Diamond | G149: 2018-10-13 | H149: 2210 | I149: Saturday | J149: Saturday | K149: 1-NB in SB | L149: No | M149: Yes | N149: 1-Yes | O149: 63604 | R149: 0.5
A150: 53 | B150: I-35 & CR-G14 | C150: 26700 | D150: 3290 | E150: Cumming | F150: =VLOOKUP(B150,Intersections!A:E,5,FALSE) -> Diamond | G150: 2018-10-13 | H150: 2210 | I150: Saturday | J150: Saturday | L150: No | M150: Yes | N150: 1-Yes | O150: 63604 | R150: 0.5
A151: 50 | B151: I-380 & Wright Brothers Blvd | C151: 59800 | D151: 6800 | E151: Cedar Rapids | F151: =VLOOKUP(B151,Intersections!A:E,5,FALSE) -> See Intersections Tab | G151: 2018-10-14 | H151: 309 | I151: Sunday | J151: Saturday | K151: 1-NB in SB | L151: Yes | M151: Yes | N151: 0-No | O151: 63611 | R151: 1
A152: 57 | B152: US-30 & 16th Ave - No Longer Exists | C152: 0 | D152: 0 | E152: Cedar Rapids | F152: =VLOOKUP(B152,Intersections!A:E,5,FALSE) -> Unique | G152: 2018-10-14 | H152: 2333 | I152: Sunday | J152: Sunday | K152: 4-EB in WB | L152: No | M152: Yes | N152: 0-No | O152: 63649
A153: AMES-128 | B153: US-30 & 19th St | C153: =VLOOKUP(B153,Intersections!A:G,6,FALSE) -> 12200 | D153: =VLOOKUP(B153,Intersections!A:G,7,FALSE) -> 4240 | E153: Nevada | F153: =VLOOKUP(B153,Intersections!A:E,5,FALSE) -> Unique | G153: 2018-10-17 | H153: 1153 | I153: Wednesday | J153: Wednesday | K153: WB in EB | L153: Yes | M153: No | R153: 1
A154: 48 | B154: US-30 & 16th Ave - No Longer Exists | C154: 0 | D154: 0 | E154: Cedar Rapids | F154: =VLOOKUP(B154,Intersections!A:E,5,FALSE) -> Unique | G154: 2018-10-18 | H154: 2314 | I154: Thursday | J154: Thursday | K154: 4-EB in WB | L154: No | M154: No | N154: 0-No | O154: 64098
A155: AMES-129 | B155: US-30 & Corporal Roger Snedden Dr | C155: =VLOOKUP(B155,Intersections!A:G,6,FALSE) -> 14400 | D155: =VLOOKUP(B155,Intersections!A:G,7,FALSE) -> 2440 | E155: Boone | F155: =VLOOKUP(B155,Intersections!A:E,5,FALSE) -> At Grade | G155: 2018-11-01 | H155: 121 | I155: Thursday | J155: Thursday | K155: WB in EB | L155: Yes | M155: Yes | R155: 1
A156: 47 | B156: I-80 & IA-1 | C156: 55900 | D156: 20400 | E156: Iowa City | F156: =VLOOKUP(B156,Intersections!A:E,5,FALSE) -> Diamond | G156: 2018-11-04 | H156: 242 | I156: Sunday | J156: Saturday | K156: 4-EB in WB | L156: No | M156: Yes | N156: 1-Yes | O156: 65541 | R156: 0.99
A157: 58 | B157: US-30 & Edgewood Rd | C157: 31500 | D157: 10900 | E157: Cedar Rapids | F157: =VLOOKUP(B157,Intersections!A:E,5,FALSE) -> Excluded Unique | G157: 2018-11-04 | H157: 102 | I157: Saturday | J157: Friday | K157: 4-EB in WB | L157: No | M157: No | N157: 0-No | R157: 0.25
A158: 21 | B158: I-80 & US-69 | C158: 87400 | D158: 19600 | E158: Des Moines | F158: =VLOOKUP(B158,Intersections!A:E,5,FALSE) -> Excluded Unique | G158: 2018-11-10 | H158: 300 | I158: Saturday | J158: Friday | K158: 4-EB in WB | L158: Yes | M158: Yes | N158: 1-Yes | P158: 20181087417 | Q158: 1 - Fatal
A159: 46 | B159: I-380 & Diagonal Dr | C159: 81100 | D159: 14700 | E159: Cedar Rapids | F159: =VLOOKUP(B159,Intersections!A:E,5,FALSE) -> Split | G159: 2018-11-11 | H159: 1108 | I159: Sunday | J159: Sunday | K159: 2-SB in NB | L159: No | M159: No | N159: 0-No | O159: 66341 | R159: 0.5
A160: 45 | B160: US-30 & Edgewood Rd | C160: 31500 | D160: 10900 | E160: Cedar Rapids | F160: =VLOOKUP(B160,Intersections!A:E,5,FALSE) -> Excluded Unique | G160: 2018-11-15 | H160: 1109 | I160: Thursday | J160: Thursday | K160: 4-EB in WB | L160: No | M160: No | N160: 0-No | O160: 67258 | R160: 0.5
A161: AMES-130 | B161: US-30 & IA-17 | C161: =VLOOKUP(B161,Intersections!A:G,6,FALSE) -> 15200 | D161: =VLOOKUP(B161,Intersections!A:G,7,FALSE) -> 4900 | E161: Boone | F161: =VLOOKUP(B161,Intersections!A:E,5,FALSE) -> Diamond | G161: 2018-11-17 | H161: 554 | I161: Saturday | J161: Saturday | K161: EB in WB | L161: Yes | M161: Yes | N161: 1-Yes | R161: 1
A162: 37 | B162: US-65 & IA-163 | C162: 29000 | D162: 26800 | E162: Pleasant Hill | F162: =VLOOKUP(B162,Intersections!A:E,5,FALSE) -> Diamond | G162: 2018-11-20 | H162: 1940 | I162: Tuesday | J162: Tuesday | K162: 1-NB in SB | L162: No | M162: No | N162: 0-No | O162: 68291 | R162: 0.99
A163: 43 | B163: I-35 & Broad St | C163: 28800 | D163: 9300 | E163: Story City | F163: =VLOOKUP(B163,Intersections!A:E,5,FALSE) -> Diamond | G163: 2018-11-20 | H163: 1754 | I163: Tuesday | J163: Tuesday | K163: 2-SB in NB | L163: No | M163: No | N163: 0-No | O163: 68279 | R163: 0.5
A164: 44 | B164: I-35 & 130th St | C164: 29700 | D164: 4000 | E164: Story City | F164: =VLOOKUP(B164,Intersections!A:E,5,FALSE) -> Diamond | G164: 2018-11-20 | H164: 1754 | I164: Tuesday | J164: Tuesday | K164: 2-SB in NB | L164: No | M164: No | N164: 0-No | O164: 68279 | R164: 0.5
A165: AMES-131 | B165: US-30 & Corporal Roger Snedden Dr | C165: =VLOOKUP(B165,Intersections!A:G,6,FALSE) -> 14400 | D165: =VLOOKUP(B165,Intersections!A:G,7,FALSE) -> 2440 | E165: Boone | F165: =VLOOKUP(B165,Intersections!A:E,5,FALSE) -> At Grade | G165: 2018-11-20 | H165: 1156 | I165: Tuesday | J165: Tuesday | K165: EB in WB | L165: Yes | M165: Yes | R165: 1
A166: 36 | B166: I-29 & CR-E60 | C166: 14700 | D166: 410 | E166: Blencoe | F166: =VLOOKUP(B166,Intersections!A:E,5,FALSE) -> Diamond | G166: 2018-11-21 | H166: 2310 | I166: Wednesday | J166: Wednesday | K166: 2-SB in NB | L166: No | M166: No | N166: 1-Yes | O166: 68415 | P166: 20181081965 | Q166: 1 - Fatal
A167: 42 | B167: I-380 & 33rd Ave | C167: 76100 | D167: 20400 | E167: Cedar Rapids | F167: =VLOOKUP(B167,Intersections!A:E,5,FALSE) -> Diamond | G167: 2018-11-23 | H167: 1931 | I167: Friday | J167: Friday | K167: 2-SB in NB | L167: No | M167: No | N167: 0-No | O167: 68522 | R167: 0.99
A168: 39 | B168: I-380 & 1st Ave | C168: 79400 | D168: 22500 | E168: Cedar Rapids | F168: =VLOOKUP(B168,Intersections!A:E,5,FALSE) -> Split | G168: 2018-11-28 | H168: 1627 | I168: Wednesday | J168: Wednesday | K168: 1-NB in SB | L168: No | M168: No | N168: 0-No | O168: 69016 | R168: 0.25
A169: 40 | B169: I-380 & 1st St | C169: 79400 | D169: 4550 | E169: Cedar Rapids | F169: =VLOOKUP(B169,Intersections!A:E,5,FALSE) -> Unique | G169: 2018-11-28 | H169: 1627 | I169: Wednesday | J169: Wednesday | K169: 1-NB in SB | L169: No | M169: No | N169: 0-No | O169: 69016 | R169: 0.25
A170: 41 | B170: I-380 & 7th St | C170: 90800 | D170: 6900 | E170: Cedar Rapids | F170: =VLOOKUP(B170,Intersections!A:E,5,FALSE) -> Unique | G170: 2018-11-28 | H170: 1627 | I170: Wednesday | J170: Wednesday | K170: 1-NB in SB | L170: No | M170: No | N170: 0-No | O170: 69016 | R170: 0.25
A171: AMES-132 | B171: US-30 & Corporal Roger Snedden Dr | C171: =VLOOKUP(B171,Intersections!A:G,6,FALSE) -> 14400 | D171: =VLOOKUP(B171,Intersections!A:G,7,FALSE) -> 2440 | E171: Boone | F171: =VLOOKUP(B171,Intersections!A:E,5,FALSE) -> At Grade | G171: 2018-11-30 | H171: 654 | I171: Sunday | J171: Sunday | K171: EB in WB | M171: Yes | R171: 1
A172: AMES-133 | B172: US-30 & Story St | C172: =VLOOKUP(B172,Intersections!A:G,6,FALSE) -> 11700 | D172: =VLOOKUP(B172,Intersections!A:G,7,FALSE) -> 6700 | E172: Boone | F172: =VLOOKUP(B172,Intersections!A:E,5,FALSE) -> At Grade | G172: 2018-12-02 | H172: 258 | I172: Wednesday | J172: Wednesday | K172: EB in WB | L172: Yes | M172: Yes | R172: 1
A173: 59 | B173: US-30 & C St | C173: 31700 | D173: 16200 | E173: Cedar Rapids | F173: =VLOOKUP(B173,Intersections!A:E,5,FALSE) -> Unique | G173: 2018-12-07 | H173: 203 | I173: Friday | J173: Thursday | K173: 4-EB in WB | L173: No | M173: No | N173: 0-No | O173: 69853 | R173: 0.99
A174: AMES-134 | B174: US-30 & Story St | C174: =VLOOKUP(B174,Intersections!A:G,6,FALSE) -> 11700 | D174: =VLOOKUP(B174,Intersections!A:G,7,FALSE) -> 6700 | E174: Boone | F174: =VLOOKUP(B174,Intersections!A:E,5,FALSE) -> At Grade | G174: 2018-12-07 | H174: 953 | I174: Friday | J174: Friday | K174: EB in WB | L174: Yes | M174: Yes | R174: 1
A175: AMES-135 | B175: US-30 & Marshall St | C175: =VLOOKUP(B175,Intersections!A:G,6,FALSE) -> 14100 | D175: =VLOOKUP(B175,Intersections!A:G,7,FALSE) -> 1910 | E175: Boone | F175: =VLOOKUP(B175,Intersections!A:E,5,FALSE) -> At Grade | G175: 2018-12-09 | H175: 622 | I175: Sunday | J175: Sunday | K175: EB in WB | L175: Yes | M175: Yes | R175: 1
A176: 34 | B176: US-30 & Kirkwood Blvd | C176: 59800 | D176: 6800 | E176: Cedar Rapids | F176: =VLOOKUP(B176,Intersections!A:E,5,FALSE) -> Unique | G176: 2018-12-14 | H176: 350 | I176: Friday | J176: Thursday | K176: 2-SB in NB | L176: No | M176: No | N176: 0-No | O176: 70409 | R176: 0.5
A177: 35 | B177: I-380 & 33rd Ave | C177: 76100 | D177: 20400 | E177: Cedar Rapids | F177: =VLOOKUP(B177,Intersections!A:E,5,FALSE) -> Diamond | G177: 2018-12-14 | H177: 350 | I177: Friday | J177: Thursday | K177: 2-SB in NB | L177: No | M177: No | N177: 0-No | O177: 70409 | R177: 0.5
A178: AMES-136 | B178: US-30 & Corporal Roger Snedden Dr | C178: =VLOOKUP(B178,Intersections!A:G,6,FALSE) -> 14400 | D178: =VLOOKUP(B178,Intersections!A:G,7,FALSE) -> 2440 | E178: Boone | F178: =VLOOKUP(B178,Intersections!A:E,5,FALSE) -> At Grade | G178: 2018-12-15 | H178: 941 | I178: Saturday | J178: Saturday | K178: EB in WB | L178: Yes | M178: Yes | R178: 1
A179: 32 | B179: I-80 & 1st Ave | C179: 64300 | D179: 24200 | E179: Coralville | F179: =VLOOKUP(B179,Intersections!A:E,5,FALSE) -> Diamond | G179: 2018-12-16 | H179: 207 | I179: Saturday | J179: Friday | K179: 3-WB in EB | L179: Yes | M179: Yes | N179: 1-Yes | O179: 70571 | R179: 1
A180: AMES-137 | B180: US-30 & T Ave | C180: =VLOOKUP(B180,Intersections!A:G,6,FALSE) -> 16300 | D180: =VLOOKUP(B180,Intersections!A:G,7,FALSE) -> 35 | E180: Boone | F180: =VLOOKUP(B180,Intersections!A:E,5,FALSE) -> At Grade | G180: 2018-12-17 | H180: 1107 | I180: Monday | J180: Monday | K180: EB in WB | L180: Yes | M180: Yes | R180: 1
A181: 31 | B181: I-35 & 126th Ave | C181: 45400 | D181: 4630 | E181: Elkhart | F181: =VLOOKUP(B181,Intersections!A:E,5,FALSE) -> Diamond | G181: 2018-12-18 | H181: 755 | I181: Tuesday | J181: Tuesday | K181: 2-SB in NB | L181: Yes | M181: Yes | N181: 0-No | R181: 1
A182: 6 | B182: I-80 & Magnolia Rd | C182: 23800 | D182: 3130 | E182: Council Bluffs | F182: =VLOOKUP(B182,Intersections!A:E,5,FALSE) -> Diamond | G182: 2018-12-19 | H182: 1923 | I182: Wednesday | J182: Wednesday | K182: 4-EB in WB | L182: Yes | M182: No | N182: 1-Yes | O182: 70877 | P182: 20181086824 | Q182: 3 - Minor
A183: 5 | B183: I-80 & US-6 | C183: 29500 | D183: 7900 | E183: Council Bluffs | F183: =VLOOKUP(B183,Intersections!A:E,5,FALSE) -> Diamond | G183: 2018-12-24 | H183: 30 | I183: Monday | J183: Sunday | K183: 4-EB in WB | L183: No | M183: No | N183: 1-Yes | O183: 71178 | P183: 20181087854 | Q183: 2 - Major
A184: 30 | B184: I-80 & US-65 | C184: 65400 | D184: 15900 | E184: Altoona | F184: =VLOOKUP(B184,Intersections!A:E,5,FALSE) -> System | G184: 2018-12-30 | H184: 1215 | I184: Sunday | J184: Saturday | K184: 4-EB in WB | L184: Yes | M184: No | N184: 0-No | R184: 1
A185: 29 | B185: I-380 & US-30 | C185: 59800 | D185: 24400 | E185: Cedar Rapids | F185: =VLOOKUP(B185,Intersections!A:E,5,FALSE) -> System | G185: 2019-01-06 | H185: 1603 | I185: Sunday | J185: Sunday | K185: 4-EB in WB | L185: Yes | M185: Yes | N185: 0-No | R185: 1
A186: 38 | B186: US-30 & 6th St | C186: 27400 | D186: 11415 | E186: Cedar Rapids | F186: =VLOOKUP(B186,Intersections!A:E,5,FALSE) -> At Grade | G186: 2019-01-20 | H186: 2 | I186: Sunday | J186: Saturday | K186: 4-EB in WB | L186: No | M186: Yes | N186: 0-No | O186: 74005 | R186: 0.99
A187: AMES-140 | B187: US-30 & 600th Ave | C187: =VLOOKUP(B187,Intersections!A:G,6,FALSE) -> 15300 | D187: =VLOOKUP(B187,Intersections!A:G,7,FALSE) -> 260 | E187: Nevada | F187: =VLOOKUP(B187,Intersections!A:E,5,FALSE) -> At Grade | G187: 2019-02-01 | H187: 2359 | I187: Friday | J187: Friday | K187: EB | L187: Yes | M187: Yes | N187: 1-Yes | R187: 1
A188: 33 | B188: I-380 & 120th St | C188: 57700 | D188: 7000 | E188: Shueyville | F188: =VLOOKUP(B188,Intersections!A:E,5,FALSE) -> Diamond | G188: 2019-02-05 | H188: 1832 | I188: Tuesday | J188: Tuesday | K188: 1-NB in SB | L188: No | M188: No | N188: 0-No | O188: 76507 | R188: 0.99
A189: AMES-141 | B189: US-30 & Marshall St | C189: =VLOOKUP(B189,Intersections!A:G,6,FALSE) -> 14100 | D189: =VLOOKUP(B189,Intersections!A:G,7,FALSE) -> 1910 | E189: Boone | F189: =VLOOKUP(B189,Intersections!A:E,5,FALSE) -> At Grade | G189: 2019-02-05 | H189: 1907 | I189: Saturday | J189: Saturday | K189: EB in WB | L189: Yes | M189: Yes | N189: 1-Yes | R189: 1
A190: 28 | B190: I-80 & Magnolia Rd | C190: 23800 | D190: 3130 | E190: Council Bluffs | F190: =VLOOKUP(B190,Intersections!A:E,5,FALSE) -> Diamond | G190: 2019-02-09 | H190: 225 | I190: Saturday | J190: Friday | K190: 2-SB in NB | L190: No | M190: No | N190: 1-Yes | O190: 77013 | P190: 20191097231 | Q190: 4 - PDO
A191: AMES-142 | B191: US-30 & Story St | C191: =VLOOKUP(B191,Intersections!A:G,6,FALSE) -> 11700 | D191: =VLOOKUP(B191,Intersections!A:G,7,FALSE) -> 6700 | E191: Boone | F191: =VLOOKUP(B191,Intersections!A:E,5,FALSE) -> At Grade | G191: 2019-02-11 | H191: 2230 | I191: Friday | J191: Friday | K191: EB in WB | L191: Yes | M191: Yes | N191: 0-No | R191: 1
A192: AMES-143 | B192: US-30 & US-169 | C192: =VLOOKUP(B192,Intersections!A:G,6,FALSE) -> 7500 | D192: =VLOOKUP(B192,Intersections!A:G,7,FALSE) -> 3550 | E192: Ogden | F192: =VLOOKUP(B192,Intersections!A:E,5,FALSE) -> Excluded Unique | G192: 2019-02-16 | H192: 137 | I192: Saturday | J192: Saturday | L192: Yes | M192: No | N192: 1-Yes | R192: 1
A193: 23 | B193: US-65 & US-6 | C193: 30800 | D193: 10100 | E193: Altoona | F193: =VLOOKUP(B193,Intersections!A:E,5,FALSE) -> Split | G193: 2019-02-17 | H193: 338 | I193: Sunday | J193: Saturday | K193: 1-NB in SB | L193: Yes | M193: Yes | N193: 0-No | O193: 78117 | R193: 1
A194: 20 | B194: US-63 & Dahlonega Rd | C194: 6800 | D194: 2810 | E194: Ottumwa | F194: =VLOOKUP(B194,Intersections!A:E,5,FALSE) -> Diamond | G194: 2019-02-18 | H194: 105 | I194: Monday | J194: Sunday | K194: 1-NB in SB | L194: No | M194: No | N194: 1-Yes | O194: 78248 | P194: 20191099275 | Q194: 4 - PDO
B195: I 80 W & I 80 W TO IRELAND AVE N | C195: 6800 | D195: 2810 | E195: Tiffin | F195: =VLOOKUP(B195,Intersections!A:E,5,FALSE) -> Diamond | G195: 2019-02-18 | H195: 404 | I195: Monday | J195: Sunday | K195: EB in WB | L195: No | M195: No | N195: N | O195: 78251 | R195: 0.8
A196: 17 | B196: I-380 & 7th St | C196: 90800 | D196: 6900 | E196: Cedar Rapids | F196: =VLOOKUP(B196,Intersections!A:E,5,FALSE) -> Unique | G196: 2019-02-19 | H196: 256 | I196: Tuesday | J196: Monday | K196: 1-NB in SB | L196: No | M196: No | N196: 0-No | O196: 78369 | R196: 0.25
A197: 18 | B197: I-380 & 1st St | C197: 79400 | D197: 4550 | E197: Cedar Rapids | F197: =VLOOKUP(B197,Intersections!A:E,5,FALSE) -> Unique | G197: 2019-02-19 | H197: 256 | I197: Tuesday | J197: Monday | K197: 1-NB in SB | L197: No | M197: No | N197: 0-No | O197: 78369 | R197: 0.25
A198: 19 | B198: I-380 & 1st Ave | C198: 79400 | D198: 22500 | E198: Cedar Rapids | F198: =VLOOKUP(B198,Intersections!A:E,5,FALSE) -> Split | G198: 2019-02-19 | H198: 256 | I198: Tuesday | J198: Monday | K198: 1-NB in SB | L198: No | M198: No | N198: 0-No | O198: 78369 | R198: 0.25
A199: 24 | B199: US-65 & Vandalia Rd | C199: 25000 | D199: 6300 | E199: Pleasant Hill | F199: =VLOOKUP(B199,Intersections!A:E,5,FALSE) -> Unique | G199: 2019-02-19 | H199: 1544 | I199: Tuesday | J199: Tuesday | K199: 2-SB in NB | L199: No | M199: Yes | N199: 0-No | R199: 0.99
A200: 16 | B200: I-80 & IA-146 | C200: 29500 | D200: 9000 | E200: Grinnell | F200: =VLOOKUP(B200,Intersections!A:E,5,FALSE) -> Diamond | G200: 2019-02-22 | H200: 457 | I200: Friday | J200: Friday | K200: 4-EB in WB | L200: No | M200: No | N200: 0-No | O200: 78822 | R200: 0.5
... 229 more rows

Sheet Intersections
A1: Interchange | B1: Interchange ID | C1: County | D1: Area | E1: Type | F1: Major AADT | G1: Minor AADT | H1: Liquor Store Distance | I1: Rank (Calculated) | J1: Crash Count | K1: Crash Score
A2: I-380 & Wilson Ave | B2: 203 | C2: Linn | D2: Urban | E2: Diamond | F2: 81100 | G2: 15000 | H2: 0.3 | I2: =_xlfn.IFNA(MATCH(A2,'Weight Based'!F:F,0)-1,"Not Included in Ranking") -> 1 | J2: =COUNTIF('WWD Crashes'!C:C,A2) -> 3 | K2: =_xlfn.IFNA(VLOOKUP(A2,'Weight Based'!F:AA,22,FALSE),"Not Ranked") -> 1.5
A3: I-80 & Grand Prairie Pkwy | B3: Interchange without ID | C3: Dallas | D3: Urban | E3: Unique | F3: 47200 | G3: 5100 | H3: 0.3 | I3: =_xlfn.IFNA(MATCH(A3,'Weight Based'!F:F,0)-1,"Not Included in Ranking") -> 4 | J3: =COUNTIF('WWD Crashes'!C:C,A3) -> 1 | K3: =_xlfn.IFNA(VLOOKUP(A3,'Weight Based'!F:AA,22,FALSE),"Not Ranked") -> 1
A4: IA-163 & CR-G28 | B4: 305 | C4: Marion | D4: Urban | E4: Unique | F4: 10200 | G4: 9800 | H4: 0.5 | I4: =_xlfn.IFNA(MATCH(A4,'Weight Based'!F:F,0)-1,"Not Included in Ranking") -> 5 | J4: =COUNTIF('WWD Crashes'!C:C,A4) -> 2 | K4: =_xlfn.IFNA(VLOOKUP(A4,'Weight Based'!F:AA,22,FALSE),"Not Ranked") -> 1.49
A5: I-35 & US-6/Hickman Rd | B5: 78 | C5: Polk | D5: Urban | E5: Diamond | F5: 121400 | G5: 37300 | H5: 0.4 | I5: =_xlfn.IFNA(MATCH(A5,'Weight Based'!F:F,0)-1,"Not Included in Ranking") -> 14 | J5: =COUNTIF('WWD Crashes'!C:C,A5) -> 1 | K5: =_xlfn.IFNA(VLOOKUP(A5,'Weight Based'!F:AA,22,FALSE),"Not Ranked") -> 1
A6: I-380 & 1st St | B6: 466 | C6: Linn | D6: Urban | E6: Unique | F6: 79400 | G6: 4550 | H6: 0.2 | I6: =_xlfn.IFNA(MATCH(A6,'Weight Based'!F:F,0)-1,"Not Included in Ranking") -> 2 | J6: =COUNTIF('WWD Crashes'!C:C,A6) -> 1 | K6: =_xlfn.IFNA(VLOOKUP(A6,'Weight Based'!F:AA,22,FALSE),"Not Ranked") -> 0.75
A7: I-80 & 1st Ave | B7: 419 | C7: Johnson | D7: Urban | E7: Diamond | F7: 64300 | G7: 24200 | H7: 0.5 | I7: =_xlfn.IFNA(MATCH(A7,'Weight Based'!F:F,0)-1,"Not Included in Ranking") -> 6 | J7: =COUNTIF('WWD Crashes'!C:C,A7) -> 2 | K7: =_xlfn.IFNA(VLOOKUP(A7,'Weight Based'!F:AA,22,FALSE),"Not Ranked") -> 2
A8: US-30 & University Blvd | B8: 337 | C8: Story | D8: Urban | E8: Diamond | F8: 18300 | G8: 15400 | H8: 0.2 | I8: =_xlfn.IFNA(MATCH(A8,'Weight Based'!F:F,0)-1,"Not Included in Ranking") -> 433 | J8: =COUNTIF('WWD Crashes'!C:C,A8) -> 1 | K8: =_xlfn.IFNA(VLOOKUP(A8,'Weight Based'!F:AA,22,FALSE),"Not Ranked") -> 1
A9: I-35 & Grand Ave | B9: 54 | C9: Polk | D9: Urban | E9: Diamond | F9: 53700 | G9: 4660 | H9: 1.2 | I9: =_xlfn.IFNA(MATCH(A9,'Weight Based'!F:F,0)-1,"Not Included in Ranking") -> 11 | J9: =COUNTIF('WWD Crashes'!C:C,A9) -> 2 | K9: =_xlfn.IFNA(VLOOKUP(A9,'Weight Based'!F:AA,22,FALSE),"Not Ranked") -> 1.24
A10: I-29 & IA-192/16th St | B10: 488 | C10: Pottawattamie | D10: Urban | E10: Unique | F10: 18200 | G10: 8700 | H10: 0.7 | I10: =_xlfn.IFNA(MATCH(A10,'Weight Based'!F:F,0)-1,"Not Included in Ranking") -> 7 | J10: =COUNTIF('WWD Crashes'!C:C,A10) -> 1 | K10: =_xlfn.IFNA(VLOOKUP(A10,'Weight Based'!F:AA,22,FALSE),"Not Ranked") -> 0.79
A11: I-380 & 33rd Ave | B11: 199 | C11: Linn | D11: Urban | E11: Diamond | F11: 76100 | G11: 20400 | H11: 0 | I11: =_xlfn.IFNA(MATCH(A11,'Weight Based'!F:F,0)-1,"Not Included in Ranking") -> 9 | J11: =COUNTIF('WWD Crashes'!C:C,A11) -> 2 | K11: =_xlfn.IFNA(VLOOKUP(A11,'Weight Based'!F:AA,22,FALSE),"Not Ranked") -> 0.75
A12: US-30 & Kirkwood Blvd | B12: 407 | C12: Linn | D12: Urban | E12: Unique | F12: 31700 | G12: 16200 | H12: 0.4 | I12: =_xlfn.IFNA(MATCH(A12,'Weight Based'!F:F,0)-1,"Not Included in Ranking") -> 3 | J12: =COUNTIF('WWD Crashes'!C:C,A12) -> 3 | K12: =_xlfn.IFNA(VLOOKUP(A12,'Weight Based'!F:AA,22,FALSE),"Not Ranked") -> 1.5
A13: US-218 & IA-2 | B13: 202 | C13: Lee | D13: Rural | E13: Diamond | F13: 6500 | G13: 3380 | H13: 0.4 | I13: =_xlfn.IFNA(MATCH(A13,'Weight Based'!F:F,0)-1,"Not Included in Ranking") -> 15 | J13: =COUNTIF('WWD Crashes'!C:C,A13) -> 2 | K13: =_xlfn.IFNA(VLOOKUP(A13,'Weight Based'!F:AA,22,FALSE),"Not Ranked") -> 1.25
A14: I-35 & Merle Hay Rd | B14: 120 | C14: Polk | D14: Urban | E14: Diamond | F14: 101100 | G14: 30600 | H14: 0.1 | I14: =_xlfn.IFNA(MATCH(A14,'Weight Based'!F:F,0)-1,"Not Included in Ranking") -> 28 | J14: =COUNTIF('WWD Crashes'!C:C,A14) -> 2 | K14: =_xlfn.IFNA(VLOOKUP(A14,'Weight Based'!F:AA,22,FALSE),"Not Ranked") -> 1.5
A15: I-80 & Black Hawk Ave | B15: 410 | C15: Johnson | D15: Rural | E15: Unique | F15: 34400 | G15: 1190 | H15: 2.6 | I15: =_xlfn.IFNA(MATCH(A15,'Weight Based'!F:F,0)-1,"Not Included in Ranking") -> 21 | J15: =COUNTIF('WWD Crashes'!C:C,A15) -> 1 | K15: =_xlfn.IFNA(VLOOKUP(A15,'Weight Based'!F:AA,22,FALSE),"Not Ranked") -> 1
A16: I-280 & US-6 | B16: 444 | C16: Scott | D16: Rural | E16: Unique | F16: 22400 | G16: 6600 | H16: 3 | I16: =_xlfn.IFNA(MATCH(A16,'Weight Based'!F:F,0)-1,"Not Included in Ranking") -> 8 | J16: =COUNTIF('WWD Crashes'!C:C,A16) -> 1 | K16: =_xlfn.IFNA(VLOOKUP(A16,'Weight Based'!F:AA,22,FALSE),"Not Ranked") -> 0.75
A17: US-218 & Barrick Rd | B17: 210 | C17: Bremer | D17: Rural | E17: Unique | F17: 19000 | G17: 2900 | H17: 3.7 | I17: =_xlfn.IFNA(MATCH(A17,'Weight Based'!F:F,0)-1,"Not Included in Ranking") -> 13 | J17: =COUNTIF('WWD Crashes'!C:C,A17) -> 1 | K17: =_xlfn.IFNA(VLOOKUP(A17,'Weight Based'!F:AA,22,FALSE),"Not Ranked") -> 0.75
A18: I-35 & IA-92 | B18: 40 | C18: Warren | D18: Rural | E18: Diamond | F18: 22500 | G18: 4970 | H18: 0.7 | I18: =_xlfn.IFNA(MATCH(A18,'Weight Based'!F:F,0)-1,"Not Included in Ranking") -> 215 | J18: =COUNTIF('WWD Crashes'!C:C,A18) -> 0 | K18: =_xlfn.IFNA(VLOOKUP(A18,'Weight Based'!F:AA,22,FALSE),"Not Ranked") -> 0
A19: I-29 & 275th St | B19: 74 | C19: Woodbury | D19: Rural | E19: Diamond | F19: 19300 | G19: 1050 | H19: 6.4 | I19: =_xlfn.IFNA(MATCH(A19,'Weight Based'!F:F,0)-1,"Not Included in Ranking") -> 27 | J19: =COUNTIF('WWD Crashes'!C:C,A19) -> 1 | K19: =_xlfn.IFNA(VLOOKUP(A19,'Weight Based'!F:AA,22,FALSE),"Not Ranked") -> 0.99
A20: I-35 & Oralabor Rd | B20: 141 | C20: Polk | D20: Urban | E20: Diamond | F20: 80700 | G20: 30200 | H20: 0.2 | I20: =_xlfn.IFNA(MATCH(A20,'Weight Based'!F:F,0)-1,"Not Included in Ranking") -> 22 | J20: =COUNTIF('WWD Crashes'!C:C,A20) -> 3 | K20: =_xlfn.IFNA(VLOOKUP(A20,'Weight Based'!F:AA,22,FALSE),"Not Ranked") -> 2
A21: I-35 & Corporate Woods Dr | B21: 137 | C21: Polk | D21: Urban | E21: Diamond | F21: 89800 | G21: 18700 | H21: 0.8 | I21: =_xlfn.IFNA(MATCH(A21,'Weight Based'!F:F,0)-1,"Not Included in Ranking") -> 42 | J21: =COUNTIF('WWD Crashes'!C:C,A21) -> 1 | K21: =_xlfn.IFNA(VLOOKUP(A21,'Weight Based'!F:AA,22,FALSE),"Not Ranked") -> 0.5
A22: US-18 & US-65 | B22: 159 | C22: Cerro Gordo | D22: Rural | E22: Diamond | F22: 11100 | G22: 6900 | H22: 1.9 | I22: =_xlfn.IFNA(MATCH(A22,'Weight Based'!F:F,0)-1,"Not Included in Ranking") -> 160 | J22: =COUNTIF('WWD Crashes'!C:C,A22) -> 2 | K22: =_xlfn.IFNA(VLOOKUP(A22,'Weight Based'!F:AA,22,FALSE),"Not Ranked") -> 1.99
A23: I-80 & 86th St | B23: 100 | C23: Polk | D23: Urban | E23: Diamond | F23: 96500 | G23: 17500 | H23: 0.1 | I23: =_xlfn.IFNA(MATCH(A23,'Weight Based'!F:F,0)-1,"Not Included in Ranking") -> 29 | J23: =COUNTIF('WWD Crashes'!C:C,A23) -> 3 | K23: =_xlfn.IFNA(VLOOKUP(A23,'Weight Based'!F:AA,22,FALSE),"Not Ranked") -> 2.25
A24: I-80 & US-69 | B24: 125 | C24: Polk | D24: Urban | E24: Excluded Unique | F24: 87400 | G24: 19600 | H24: 0.1 | I24: =_xlfn.IFNA(MATCH(A24,'Weight Based'!F:F,0)-1,"Not Included in Ranking") -> 10 | J24: =COUNTIF('WWD Crashes'!C:C,A24) -> 2 | K24: =_xlfn.IFNA(VLOOKUP(A24,'Weight Based'!F:AA,22,FALSE),"Not Ranked") -> 2
A25: I-380 & 7th St | B25: 463 | C25: Linn | D25: Urban | E25: Unique | F25: 90800 | G25: 6900 | H25: 0.4 | I25: =_xlfn.IFNA(MATCH(A25,'Weight Based'!F:F,0)-1,"Not Included in Ranking") -> 12 | J25: =COUNTIF('WWD Crashes'!C:C,A25) -> 1 | K25: =_xlfn.IFNA(VLOOKUP(A25,'Weight Based'!F:AA,22,FALSE),"Not Ranked") -> 1
A26: I-380 & 1st Ave | B26: 465 | C26: Linn | D26: Urban | E26: Split | F26: 79400 | G26: 22500 | H26: 0.3 | I26: =_xlfn.IFNA(MATCH(A26,'Weight Based'!F:F,0)-1,"Not Included in Ranking") -> 25 | J26: =COUNTIF('WWD Crashes'!C:C,A26) -> 1 | K26: =_xlfn.IFNA(VLOOKUP(A26,'Weight Based'!F:AA,22,FALSE),"Not Ranked") -> 0.25
A27: US-30 & 19th St | B27: 347 | C27: Story | D27: Rural | E27: Unique | F27: 12200 | G27: 4240 | H27: 0.1 | I27: =_xlfn.IFNA(MATCH(A27,'Weight Based'!F:F,0)-1,"Not Included in Ranking") -> 19 | J27: =COUNTIF('WWD Crashes'!C:C,A27) -> 0 | K27: =_xlfn.IFNA(VLOOKUP(A27,'Weight Based'!F:AA,22,FALSE),"Not Ranked") -> 0
A28: I-29 & IA-175 | B28: 64 | C28: Monona | D28: Rural | E28: Diamond | F28: 15300 | G28: 5500 | H28: 0.1 | I28: =_xlfn.IFNA(MATCH(A28,'Weight Based'!F:F,0)-1,"Not Included in Ranking") -> 33 | J28: =COUNTIF('WWD Crashes'!C:C,A28) -> 1 | K28: =_xlfn.IFNA(VLOOKUP(A28,'Weight Based'!F:AA,22,FALSE),"Not Ranked") -> 0.75
A29: I-80 & Expressway St | B29: 177 | C29: Pottawattamie | D29: Urban | E29: n/a | F29: 73700 | G29: 27000 | H29: 0.2 | I29: =_xlfn.IFNA(MATCH(A29,'Weight Based'!F:F,0)-1,"Not Included in Ranking") -> Not Included in Ranking | J29: =COUNTIF('WWD Crashes'!C:C,A29) -> 3 | K29: =_xlfn.IFNA(VLOOKUP(A29,'Weight Based'!F:AA,22,FALSE),"Not Ranked") -> Not Ranked
A30: I-235 & 73rd St | B30: 206 | C30: Polk | D30: Urban | E30: Unique | F30: 128100 | G30: 22600 | H30: 0.1 | I30: =_xlfn.IFNA(MATCH(A30,'Weight Based'!F:F,0)-1,"Not Included in Ranking") -> 23 | J30: =COUNTIF('WWD Crashes'!C:C,A30) -> 1 | K30: =_xlfn.IFNA(VLOOKUP(A30,'Weight Based'!F:AA,22,FALSE),"Not Ranked") -> 1
A31: US-20 & 330th Ave/CR-X49 | B31: Interchange without ID | C31: Delaware | D31: Rural | E31: Diamond | F31: 12000 | G31: 3960 | H31: 1.8 | I31: =_xlfn.IFNA(MATCH(A31,'Weight Based'!F:F,0)-1,"Not Included in Ranking") -> 45 | J31: =COUNTIF('WWD Crashes'!C:C,A31) -> 2 | K31: =_xlfn.IFNA(VLOOKUP(A31,'Weight Based'!F:AA,22,FALSE),"Not Ranked") -> 0.75
A32: I-235 & 19th St/MLK Pkwy | B32: 467 | C32: Polk | D32: Urban | E32: Excluded Unique | F32: 136000 | G32: 23800 | H32: 0.4 | I32: =_xlfn.IFNA(MATCH(A32,'Weight Based'!F:F,0)-1,"Not Included in Ranking") -> 187 | J32: =COUNTIF('WWD Crashes'!C:C,A32) -> 0 | K32: =_xlfn.IFNA(VLOOKUP(A32,'Weight Based'!F:AA,22,FALSE),"Not Ranked") -> 0
A33: I-35 & Mills Civic Pkwy | B33: 57 | C33: Polk | D33: Urban | E33: Unique | F33: 73200 | G33: 20500 | H33: 0.2 | I33: =_xlfn.IFNA(MATCH(A33,'Weight Based'!F:F,0)-1,"Not Included in Ranking") -> 17 | J33: =COUNTIF('WWD Crashes'!C:C,A33) -> 3 | K33: =_xlfn.IFNA(VLOOKUP(A33,'Weight Based'!F:AA,22,FALSE),"Not Ranked") -> 2.99
A34: I-80 & IA-415/2nd St | B34: 122 | C34: Polk | D34: Urban | E34: Diamond | F34: 101100 | G34: 35800 | H34: 0.3 | I34: =_xlfn.IFNA(MATCH(A34,'Weight Based'!F:F,0)-1,"Not Included in Ranking") -> 90 | J34: =COUNTIF('WWD Crashes'!C:C,A34) -> 2 | K34: =_xlfn.IFNA(VLOOKUP(A34,'Weight Based'!F:AA,22,FALSE),"Not Ranked") -> 2
A35: IA-5 & McKimber St | B35: 504 | C35: Marion | D35: Rural | E35: Split | F35: 7700 | G35: 3090 | H35: 1.8 | I35: =_xlfn.IFNA(MATCH(A35,'Weight Based'!F:F,0)-1,"Not Included in Ranking") -> 37 | J35: =COUNTIF('WWD Crashes'!C:C,A35) -> 1 | K35: =_xlfn.IFNA(VLOOKUP(A35,'Weight Based'!F:AA,22,FALSE),"Not Ranked") -> 0.5
A36: I-29 & IA-92 | B36: 186 | C36: Pottawattamie | D36: Urban | E36: Excluded Unique | F36: 33300 | G36: 20000 | H36: 0.2 | I36: =_xlfn.IFNA(MATCH(A36,'Weight Based'!F:F,0)-1,"Not Included in Ranking") -> 170 | J36: =COUNTIF('WWD Crashes'!C:C,A36) -> 0 | K36: =_xlfn.IFNA(VLOOKUP(A36,'Weight Based'!F:AA,22,FALSE),"Not Ranked") -> 0
A37: I-235 & Keosauqua Way | B37: 501 | C37: Polk | D37: Urban | E37: Unique | F37: 91300 | G37: 13800 | H37: 0.2 | I37: =_xlfn.IFNA(MATCH(A37,'Weight Based'!F:F,0)-1,"Not Included in Ranking") -> 18 | J37: =COUNTIF('WWD Crashes'!C:C,A37) -> 3 | K37: =_xlfn.IFNA(VLOOKUP(A37,'Weight Based'!F:AA,22,FALSE),"Not Ranked") -> 2.5
A38: IA-5 & 110th Pl | B38: 312 | C38: Marion | D38: Rural | E38: Split | F38: 4600 | G38: 460 | H38: 1.1 | I38: =_xlfn.IFNA(MATCH(A38,'Weight Based'!F:F,0)-1,"Not Included in Ranking") -> 46 | J38: =COUNTIF('WWD Crashes'!C:C,A38) -> 1 | K38: =_xlfn.IFNA(VLOOKUP(A38,'Weight Based'!F:AA,22,FALSE),"Not Ranked") -> 0.5
A39: US-30 & C St | B39: 386 | C39: Linn | D39: Urban | E39: Unique | F39: 31700 | G39: 16300 | H39: 0.2 | I39: =_xlfn.IFNA(MATCH(A39,'Weight Based'!F:F,0)-1,"Not Included in Ranking") -> 41 | J39: =COUNTIF('WWD Crashes'!C:C,A39) -> 0 | K39: =_xlfn.IFNA(VLOOKUP(A39,'Weight Based'!F:AA,22,FALSE),"Not Ranked") -> 0
A40: US-30 & Duff Ave/US-69 | B40: 342 | C40: Story | D40: Urban | E40: Excluded Unique | F40: 32400 | G40: 25900 | H40: 0.1 | I40: =_xlfn.IFNA(MATCH(A40,'Weight Based'!F:F,0)-1,"Not Included in Ranking") -> 56 | J40: =COUNTIF('WWD Crashes'!C:C,A40) -> 0 | K40: =_xlfn.IFNA(VLOOKUP(A40,'Weight Based'!F:AA,22,FALSE),"Not Ranked") -> 0
A41: US-218 & Riverside Dr | B41: 299 | C41: Johnson | D41: Urban | E41: Unique | F41: 22100 | G41: 6900 | H41: 1.7 | I41: =_xlfn.IFNA(MATCH(A41,'Weight Based'!F:F,0)-1,"Not Included in Ranking") -> 57 | J41: =COUNTIF('WWD Crashes'!C:C,A41) -> 0 | K41: =_xlfn.IFNA(VLOOKUP(A41,'Weight Based'!F:AA,22,FALSE),"Not Ranked") -> 0
A42: I-80 & US-67 | B42: 439 | C42: Scott | D42: Urban | E42: Excluded Unique | F42: 38600 | G42: 13100 | H42: 0.6 | I42: =_xlfn.IFNA(MATCH(A42,'Weight Based'!F:F,0)-1,"Not Included in Ranking") -> 209 | J42: =COUNTIF('WWD Crashes'!C:C,A42) -> 0 | K42: =_xlfn.IFNA(VLOOKUP(A42,'Weight Based'!F:AA,22,FALSE),"Not Ranked") -> 0
A43: US-30 & WACONIA AVE/6TH ST SW | B43: 385 | C43: Linn | D43: Urban | E43: Unique | F43: 34000 | G43: 12600 | H43: 1.1 | I43: =_xlfn.IFNA(MATCH(A43,'Weight Based'!F:F,0)-1,"Not Included in Ranking") -> 38 | J43: =COUNTIF('WWD Crashes'!C:C,A43) -> 1 | K43: =_xlfn.IFNA(VLOOKUP(A43,'Weight Based'!F:AA,22,FALSE),"Not Ranked") -> 0.5
A44: US-20 & Bryant St | B44: 338 | C44: Dubuque | D44: Urban | E44: Unique | F44: 35500 | G44: 9300 | H44: 0.4 | I44: =_xlfn.IFNA(MATCH(A44,'Weight Based'!F:F,0)-1,"Not Included in Ranking") -> 26 | J44: =COUNTIF('WWD Crashes'!C:C,A44) -> 3 | K44: =_xlfn.IFNA(VLOOKUP(A44,'Weight Based'!F:AA,22,FALSE),"Not Ranked") -> 2.25
A45: I 380 N & I 380 N TO RIVER FOREST RD | B45: 271 | C45: Black Hawk | D45: Urban | E45: Excluded Unique | F45: 42100 | G45: 8700 | H45: 0.4 | I45: =_xlfn.IFNA(MATCH(A45,'Weight Based'!F:F,0)-1,"Not Included in Ranking") -> 210 | J45: =COUNTIF('WWD Crashes'!C:C,A45) -> 0 | K45: =_xlfn.IFNA(VLOOKUP(A45,'Weight Based'!F:AA,22,FALSE),"Not Ranked") -> 0
A46: I-29 & Nebraska St & Gordon Dr | B46: 481 | C46: Woodbury | D46: Urban | E46: Excluded Unique | F46: 34300 | G46: 10700 | H46: 0.2 | I46: =_xlfn.IFNA(MATCH(A46,'Weight Based'!F:F,0)-1,"Not Included in Ranking") -> 243 | J46: =COUNTIF('WWD Crashes'!C:C,A46) -> 0 | K46: =_xlfn.IFNA(VLOOKUP(A46,'Weight Based'!F:AA,22,FALSE),"Not Ranked") -> 0
A47: I-29 & Nebraska St | B47: 151 | C47: Pottawattamie | D47: Urban | E47: n/a | F47: 37700 | G47: 8300 | H47: 0.2 | I47: =_xlfn.IFNA(MATCH(A47,'Weight Based'!F:F,0)-1,"Not Included in Ranking") -> Not Included in Ranking | J47: =COUNTIF('WWD Crashes'!C:C,A47) -> 1 | K47: =_xlfn.IFNA(VLOOKUP(A47,'Weight Based'!F:AA,22,FALSE),"Not Ranked") -> Not Ranked
A48: I-80 & IA-14 | B48: 295 | C48: Jasper | D48: Urban | E48: Unique | F48: 32600 | G48: 7100 | H48: 0.4 | I48: =_xlfn.IFNA(MATCH(A48,'Weight Based'!F:F,0)-1,"Not Included in Ranking") -> 61 | J48: =COUNTIF('WWD Crashes'!C:C,A48) -> 0 | K48: =_xlfn.IFNA(VLOOKUP(A48,'Weight Based'!F:AA,22,FALSE),"Not Ranked") -> 0
A49: US-34 & Gear Ave | B49: 231 | C49: Des Moines | D49: Urban | E49: Unique | F49: 13200 | G49: 11900 | H49: 0.5 | I49: =_xlfn.IFNA(MATCH(A49,'Weight Based'!F:F,0)-1,"Not Included in Ranking") -> 64 | J49: =COUNTIF('WWD Crashes'!C:C,A49) -> 0 | K49: =_xlfn.IFNA(VLOOKUP(A49,'Weight Based'!F:AA,22,FALSE),"Not Ranked") -> 0
A50: I-235 & University Ave/IA-163 | B50: 498 | C50: Polk | D50: Urban | E50: Diamond | F50: 80300 | G50: 28900 | H50: 0.3 | I50: =_xlfn.IFNA(MATCH(A50,'Weight Based'!F:F,0)-1,"Not Included in Ranking") -> 193 | J50: =COUNTIF('WWD Crashes'!C:C,A50) -> 0 | K50: =_xlfn.IFNA(VLOOKUP(A50,'Weight Based'!F:AA,22,FALSE),"Not Ranked") -> 0
A51: US-30 & IA-930/Lincoln Way | B51: 510 | C51: Boone | D51: Rural | E51: Split | F51: 17100 | G51: 5600 | H51: 2.7 | I51: =_xlfn.IFNA(MATCH(A51,'Weight Based'!F:F,0)-1,"Not Included in Ranking") -> 43 | J51: =COUNTIF('WWD Crashes'!C:C,A51) -> 0 | K51: =_xlfn.IFNA(VLOOKUP(A51,'Weight Based'!F:AA,22,FALSE),"Not Ranked") -> 0
A52: US-20 & IA-136 | B52: 332 | C52: Dubuque | D52: Rural | E52: Excluded Unique | F52: 12000 | G52: 8500 | H52: 0.2 | I52: =_xlfn.IFNA(MATCH(A52,'Weight Based'!F:F,0)-1,"Not Included in Ranking") -> 51 | J52: =COUNTIF('WWD Crashes'!C:C,A52) -> 2 | K52: =_xlfn.IFNA(VLOOKUP(A52,'Weight Based'!F:AA,22,FALSE),"Not Ranked") -> 1.49
A53: US-218 & Sergeant Rd | B53: 339 | C53: Black Hawk | D53: Urban | E53: Unique | F53: 25500 | G53: 7000 | H53: 0.5 | I53: =_xlfn.IFNA(MATCH(A53,'Weight Based'!F:F,0)-1,"Not Included in Ranking") -> 31 | J53: =COUNTIF('WWD Crashes'!C:C,A53) -> 1 | K53: =_xlfn.IFNA(VLOOKUP(A53,'Weight Based'!F:AA,22,FALSE),"Not Ranked") -> 0.99
A54: IA-934 & Greenhill Rd | B54: 461 | C54: Black Hawk | D54: Urban | E54: Excluded Unique | F54: 17000 | G54: 9000 | H54: 0.5 | I54: =_xlfn.IFNA(MATCH(A54,'Weight Based'!F:F,0)-1,"Not Included in Ranking") -> 162 | J54: =COUNTIF('WWD Crashes'!C:C,A54) -> 1 | K54: =_xlfn.IFNA(VLOOKUP(A54,'Weight Based'!F:AA,22,FALSE),"Not Ranked") -> 0.5
A55: I-380 & Glass Rd | B55: 460 | C55: Linn | D55: Urban | E55: Split | F55: 83100 | G55: 13900 | H55: 0.1 | I55: =_xlfn.IFNA(MATCH(A55,'Weight Based'!F:F,0)-1,"Not Included in Ranking") -> 24 | J55: =COUNTIF('WWD Crashes'!C:C,A55) -> 2 | K55: =_xlfn.IFNA(VLOOKUP(A55,'Weight Based'!F:AA,22,FALSE),"Not Ranked") -> 1.74
A56: US 34 W & US 63 S | B56: 294 | C56: Wapello | D56: Urban | E56: Excluded Unique | F56: 11800 | G56: 9800 | H56: 0.3 | I56: =_xlfn.IFNA(MATCH(A56,'Weight Based'!F:F,0)-1,"Not Included in Ranking") -> 278 | J56: =COUNTIF('WWD Crashes'!C:C,A56) -> 0 | K56: =_xlfn.IFNA(VLOOKUP(A56,'Weight Based'!F:AA,22,FALSE),"Not Ranked") -> 0
A57: US-59 & US-30 (North Junction) | B57: 525 | C57: Crawford | D57: Urban | E57: Excluded Unique | F57: 9500 | G57: 9700 | H57: 0.3 | I57: =_xlfn.IFNA(MATCH(A57,'Weight Based'!F:F,0)-1,"Not Included in Ranking") -> 288 | J57: =COUNTIF('WWD Crashes'!C:C,A57) -> 0 | K57: =_xlfn.IFNA(VLOOKUP(A57,'Weight Based'!F:AA,22,FALSE),"Not Ranked") -> 0
A58: I-80 & CR-F60/ELDORADO AVE | B58: 139 | C58: Dallas | D58: Rural | E58: Diamond | F58: 28900 | G58: 3170 | H58: 1.6 | I58: =_xlfn.IFNA(MATCH(A58,'Weight Based'!F:F,0)-1,"Not Included in Ranking") -> 71 | J58: =COUNTIF('WWD Crashes'!C:C,A58) -> 1 | K58: =_xlfn.IFNA(VLOOKUP(A58,'Weight Based'!F:AA,22,FALSE),"Not Ranked") -> 0.5
A59: IA 376 N & TRANSIT AVE, W TO S LEWIS BLVD, N | B59: 124 | C59: Woodbury | D59: Urban | E59: Excluded Unique | F59: 18500 | G59: 6500 | H59: 0.4 | I59: =_xlfn.IFNA(MATCH(A59,'Weight Based'!F:F,0)-1,"Not Included in Ranking") -> 286 | J59: =COUNTIF('WWD Crashes'!C:C,A59) -> 0 | K59: =_xlfn.IFNA(VLOOKUP(A59,'Weight Based'!F:AA,22,FALSE),"Not Ranked") -> 0
A60: US-218 & LaPorte Rd | B60: Interchange without ID | C60: Black Hawk | D60: Urban | E60: n/a | F60: 31600 | G60: 3070 | H60: 0.2 | I60: =_xlfn.IFNA(MATCH(A60,'Weight Based'!F:F,0)-1,"Not Included in Ranking") -> Not Included in Ranking | J60: =COUNTIF('WWD Crashes'!C:C,A60) -> 0 | K60: =_xlfn.IFNA(VLOOKUP(A60,'Weight Based'!F:AA,22,FALSE),"Not Ranked") -> Not Ranked
A61: I-235 & E 14th St | B61: 499 | C61: Polk | D61: Urban | E61: Split | F61: 94000 | G61: 21300 | H61: 0.1 | I61: =_xlfn.IFNA(MATCH(A61,'Weight Based'!F:F,0)-1,"Not Included in Ranking") -> 52 | J61: =COUNTIF('WWD Crashes'!C:C,A61) -> 2 | K61: =_xlfn.IFNA(VLOOKUP(A61,'Weight Based'!F:AA,22,FALSE),"Not Ranked") -> 1.95
A62: IA-22/ROCKINGHAM RD & BUS-61/RIVER DR | B62: 436 | C62: Scott | D62: Urban | E62: Excluded Unique | F62: 10800 | G62: 7800 | H62: 1.1 | I62: =_xlfn.IFNA(MATCH(A62,'Weight Based'!F:F,0)-1,"Not Included in Ranking") -> 334 | J62: =COUNTIF('WWD Crashes'!C:C,A62) -> 0 | K62: =_xlfn.IFNA(VLOOKUP(A62,'Weight Based'!F:AA,22,FALSE),"Not Ranked") -> 0
A63: I-80 & Coral Ridge Ave | B63: 415 | C63: Johnson | D63: Urban | E63: Excluded Unique | F63: 62500 | G63: 33200 | H63: 0.1 | I63: =_xlfn.IFNA(MATCH(A63,'Weight Based'!F:F,0)-1,"Not Included in Ranking") -> 55 | J63: =COUNTIF('WWD Crashes'!C:C,A63) -> 1 | K63: =_xlfn.IFNA(VLOOKUP(A63,'Weight Based'!F:AA,22,FALSE),"Not Ranked") -> 1
A64: I-80 & IA-173 | B64: 62 | C64: Cass | D64: Rural | E64: Excluded Unique | F64: 22800 | G64: 1510 | H64: 6.6 | I64: =_xlfn.IFNA(MATCH(A64,'Weight Based'!F:F,0)-1,"Not Included in Ranking") -> 89 | J64: =COUNTIF('WWD Crashes'!C:C,A64) -> 1 | K64: =_xlfn.IFNA(VLOOKUP(A64,'Weight Based'!F:AA,22,FALSE),"Not Ranked") -> 0.5
A65: US-20 & 270th Ave | B65: 331 | C65: Delaware | D65: Rural | E65: Excluded Unique | F65: 8800 | G65: 1710 | H65: 3.7 | I65: =_xlfn.IFNA(MATCH(A65,'Weight Based'!F:F,0)-1,"Not Included in Ranking") -> 76 | J65: =COUNTIF('WWD Crashes'!C:C,A65) -> 2 | K65: =_xlfn.IFNA(VLOOKUP(A65,'Weight Based'!F:AA,22,FALSE),"Not Ranked") -> 1.5
A66: US-34 & Main St | B66: 217 | C66: Des Moines | D66: Urban | E66: Unique | F66: 14800 | G66: 3740 | H66: 0.2 | I66: =_xlfn.IFNA(MATCH(A66,'Weight Based'!F:F,0)-1,"Not Included in Ranking") -> 34 | J66: =COUNTIF('WWD Crashes'!C:C,A66) -> 1 | K66: =_xlfn.IFNA(VLOOKUP(A66,'Weight Based'!F:AA,22,FALSE),"Not Ranked") -> 1
A67: I-380 & 330th St | B67: 248 | C67: Buchanan | D67: Rural | E67: Diamond | F67: 17700 | G67: 1560 | H67: 6.3 | I67: =_xlfn.IFNA(MATCH(A67,'Weight Based'!F:F,0)-1,"Not Included in Ranking") -> 92 | J67: =COUNTIF('WWD Crashes'!C:C,A67) -> 1 | K67: =_xlfn.IFNA(VLOOKUP(A67,'Weight Based'!F:AA,22,FALSE),"Not Ranked") -> 0.5
A68: US-65 & US-6 | B68: 409 | C68: Polk | D68: Urban | E68: Split | F68: 30800 | G68: 10100 | H68: 0.3 | I68: =_xlfn.IFNA(MATCH(A68,'Weight Based'!F:F,0)-1,"Not Included in Ranking") -> 66 | J68: =COUNTIF('WWD Crashes'!C:C,A68) -> 0 | K68: =_xlfn.IFNA(VLOOKUP(A68,'Weight Based'!F:AA,22,FALSE),"Not Ranked") -> 0
A69: IA-376 & Floyd Blvd & 46th St | B69: 486 | C69: Woodbury | D69: Urban | E69: Split | F69: 8200 | G69: 4730 | H69: 0.6 | I69: =_xlfn.IFNA(MATCH(A69,'Weight Based'!F:F,0)-1,"Not Included in Ranking") -> 146 | J69: =COUNTIF('WWD Crashes'!C:C,A69) -> 0 | K69: =_xlfn.IFNA(VLOOKUP(A69,'Weight Based'!F:AA,22,FALSE),"Not Ranked") -> 0
A70: I-380 & Diagonal Dr | B70: 464 | C70: Linn | D70: Urban | E70: Split | F70: 81100 | G70: 14700 | H70: 0.3 | I70: =_xlfn.IFNA(MATCH(A70,'Weight Based'!F:F,0)-1,"Not Included in Ranking") -> 70 | J70: =COUNTIF('WWD Crashes'!C:C,A70) -> 0 | K70: =_xlfn.IFNA(VLOOKUP(A70,'Weight Based'!F:AA,22,FALSE),"Not Ranked") -> 0
A71: US-169 & 2nd Ave | B71: 462 | C71: Webster | D71: Rural | E71: Unique | F71: 8200 | G71: 4390 | H71: 0.9 | I71: =_xlfn.IFNA(MATCH(A71,'Weight Based'!F:F,0)-1,"Not Included in Ranking") -> 86 | J71: =COUNTIF('WWD Crashes'!C:C,A71) -> 0 | K71: =_xlfn.IFNA(VLOOKUP(A71,'Weight Based'!F:AA,22,FALSE),"Not Ranked") -> 0
A72: US-61 & HERSHEY AVE | B72: 535 | C72: Muscatine | D72: Urban | E72: Excluded Unique | F72: 11100 | G72: 2680 | H72: 1.1 | I72: =_xlfn.IFNA(MATCH(A72,'Weight Based'!F:F,0)-1,"Not Included in Ranking") -> 347 | J72: =COUNTIF('WWD Crashes'!C:C,A72) -> 0 | K72: =_xlfn.IFNA(VLOOKUP(A72,'Weight Based'!F:AA,22,FALSE),"Not Ranked") -> 0
A73: IA-27 & US-218 | B73: 522 | C73: Lee | D73: Rural | E73: Excluded Unique | F73: 6300 | G73: 2710 | H73: 1.7 | I73: =_xlfn.IFNA(MATCH(A73,'Weight Based'!F:F,0)-1,"Not Included in Ranking") -> 83 | J73: =COUNTIF('WWD Crashes'!C:C,A73) -> 1 | K73: =_xlfn.IFNA(VLOOKUP(A73,'Weight Based'!F:AA,22,FALSE),"Not Ranked") -> 0.5
A74: I-380 & 29th St | B74: 527 | C74: Linn | D74: Urban | E74: Split | F74: 96900 | G74: 8600 | H74: 0.1 | I74: =_xlfn.IFNA(MATCH(A74,'Weight Based'!F:F,0)-1,"Not Included in Ranking") -> 79 | J74: =COUNTIF('WWD Crashes'!C:C,A74) -> 0 | K74: =_xlfn.IFNA(VLOOKUP(A74,'Weight Based'!F:AA,22,FALSE),"Not Ranked") -> 0
A75: I-380 & 42nd St | B75: 452 | C75: Linn | D75: Urban | E75: Split | F75: 83100 | G75: 12000 | H75: 0.2 | I75: =_xlfn.IFNA(MATCH(A75,'Weight Based'!F:F,0)-1,"Not Included in Ranking") -> 80 | J75: =COUNTIF('WWD Crashes'!C:C,A75) -> 0 | K75: =_xlfn.IFNA(VLOOKUP(A75,'Weight Based'!F:AA,22,FALSE),"Not Ranked") -> 0
A76: US-75 & 46TH ST | B76: 414 | C76: Woodbury | D76: Urban | E76: Split | F76: 11400 | G76: 1500 | H76: 1 | I76: =_xlfn.IFNA(MATCH(A76,'Weight Based'!F:F,0)-1,"Not Included in Ranking") -> 197 | J76: =COUNTIF('WWD Crashes'!C:C,A76) -> 0 | K76: =_xlfn.IFNA(VLOOKUP(A76,'Weight Based'!F:AA,22,FALSE),"Not Ranked") -> 0
A77: US-34 & Vine St | B77: 285 | C77: Wapello | D77: Urban | E77: Excluded Unique | F77: 11200 | G77: 1170 | H77: 0.5 | I77: =_xlfn.IFNA(MATCH(A77,'Weight Based'!F:F,0)-1,"Not Included in Ranking") -> 157 | J77: =COUNTIF('WWD Crashes'!C:C,A77) -> 2 | K77: =_xlfn.IFNA(VLOOKUP(A77,'Weight Based'!F:AA,22,FALSE),"Not Ranked") -> 1.5
A78: I-380 & IA-100 | B78: 452 | C78: Linn | D78: Urban | E78: Diamond | F78: 82000 | G78: 15400 | H78: 0.5 | I78: =_xlfn.IFNA(MATCH(A78,'Weight Based'!F:F,0)-1,"Not Included in Ranking") -> 110 | J78: =COUNTIF('WWD Crashes'!C:C,A78) -> 0 | K78: =_xlfn.IFNA(VLOOKUP(A78,'Weight Based'!F:AA,22,FALSE),"Not Ranked") -> 0
A79: I-29 & Ave G | B79: 417 | C79: Pottawattamie | D79: Urban | E79: Excluded Unique | F79: 22700 | G79: 3450 | H79: 0.2 | I79: =_xlfn.IFNA(MATCH(A79,'Weight Based'!F:F,0)-1,"Not Included in Ranking") -> 285 | J79: =COUNTIF('WWD Crashes'!C:C,A79) -> 2 | K79: =_xlfn.IFNA(VLOOKUP(A79,'Weight Based'!F:AA,22,FALSE),"Not Ranked") -> 0.02
A80: I-235 & 7th St/5th Ave | B80: 470 | C80: Polk | D80: Urban | E80: Split | F80: 91800 | G80: 9100 | H80: 0.3 | I80: =_xlfn.IFNA(MATCH(A80,'Weight Based'!F:F,0)-1,"Not Included in Ranking") -> 48 | J80: =COUNTIF('WWD Crashes'!C:C,A80) -> 2 | K80: =_xlfn.IFNA(VLOOKUP(A80,'Weight Based'!F:AA,22,FALSE),"Not Ranked") -> 1.5
A81: I-380 & Blairs Ferry Rd | B81: 526 | C81: Linn | D81: Urban | E81: Split | F81: 51900 | G81: 21100 | H81: 0.1 | I81: =_xlfn.IFNA(MATCH(A81,'Weight Based'!F:F,0)-1,"Not Included in Ranking") -> 53 | J81: =COUNTIF('WWD Crashes'!C:C,A81) -> 1 | K81: =_xlfn.IFNA(VLOOKUP(A81,'Weight Based'!F:AA,22,FALSE),"Not Ranked") -> 1
A82: US-30 & 16th Ave - No Longer Exists | B82: 528 | C82: Linn | D82: Urban | E82: Unique | F82: 0 | G82: 0 | H82: 2.4 | I82: =_xlfn.IFNA(MATCH(A82,'Weight Based'!F:F,0)-1,"Not Included in Ranking") -> Not Included in Ranking | J82: =COUNTIF('WWD Crashes'!C:C,A82) -> 0 | K82: =_xlfn.IFNA(VLOOKUP(A82,'Weight Based'!F:AA,22,FALSE),"Not Ranked") -> Not Ranked
A83: IA-141 & IA-415 | B83: 397 | C83: Polk | D83: Rural | E83: Unique | F83: 20000 | G83: 8900 | H83: 2.9 | I83: =_xlfn.IFNA(MATCH(A83,'Weight Based'!F:F,0)-1,"Not Included in Ranking") -> 49 | J83: =COUNTIF('WWD Crashes'!C:C,A83) -> 1 | K83: =_xlfn.IFNA(VLOOKUP(A83,'Weight Based'!F:AA,22,FALSE),"Not Ranked") -> 1
A84: I-380 & Wright Brothers Blvd | B84: 183 | C84: Linn | D84: Rural | E84: See Intersections Tab | F84: 59800 | G84: 6800 | H84: 0.2 | I84: =_xlfn.IFNA(MATCH(A84,'Weight Based'!F:F,0)-1,"Not Included in Ranking") -> Not Included in Ranking | J84: =COUNTIF('WWD Crashes'!C:C,A84) -> 1 | K84: =_xlfn.IFNA(VLOOKUP(A84,'Weight Based'!F:AA,22,FALSE),"Not Ranked") -> Not Ranked
A85: I-35 & University Ave | B85: 75 | C85: Polk | D85: Urban | E85: Excluded Unique | F85: 121400 | G85: 33100 | H85: 0 | I85: =_xlfn.IFNA(MATCH(A85,'Weight Based'!F:F,0)-1,"Not Included in Ranking") -> 133 | J85: =COUNTIF('WWD Crashes'!C:C,A85) -> 0 | K85: =_xlfn.IFNA(VLOOKUP(A85,'Weight Based'!F:AA,22,FALSE),"Not Ranked") -> 0
A86: US-65 & Vandalia Rd | B86: 456 | C86: Polk | D86: Rural | E86: Unique | F86: 25000 | G86: 6300 | H86: 1.8 | I86: =_xlfn.IFNA(MATCH(A86,'Weight Based'!F:F,0)-1,"Not Included in Ranking") -> 58 | J86: =COUNTIF('WWD Crashes'!C:C,A86) -> 0 | K86: =_xlfn.IFNA(VLOOKUP(A86,'Weight Based'!F:AA,22,FALSE),"Not Ranked") -> 0
A87: I-235 & 63rd St | B87: 223 | C87: Polk | D87: Urban | E87: Diamond | F87: 131500 | G87: 27400 | H87: 0.8 | I87: =_xlfn.IFNA(MATCH(A87,'Weight Based'!F:F,0)-1,"Not Included in Ranking") -> 226 | J87: =COUNTIF('WWD Crashes'!C:C,A87) -> 0 | K87: =_xlfn.IFNA(VLOOKUP(A87,'Weight Based'!F:AA,22,FALSE),"Not Ranked") -> 0
A88: I-235 & 50th St | B88: 502 | C88: Polk | D88: Urban | E88: Half Diamond | F88: 104900 | G88: 21000 | H88: 0.1 | I88: =_xlfn.IFNA(MATCH(A88,'Weight Based'!F:F,0)-1,"Not Included in Ranking") -> 134 | J88: =COUNTIF('WWD Crashes'!C:C,A88) -> 0 | K88: =_xlfn.IFNA(VLOOKUP(A88,'Weight Based'!F:AA,22,FALSE),"Not Ranked") -> 0
A89: US-30 & IA-17 | B89: 326 | C89: Boone | D89: Rural | E89: Diamond | F89: 15200 | G89: 4900 | H89: 2.7 | I89: =_xlfn.IFNA(MATCH(A89,'Weight Based'!F:F,0)-1,"Not Included in Ranking") -> 91 | J89: =COUNTIF('WWD Crashes'!C:C,A89) -> 0 | K89: =_xlfn.IFNA(VLOOKUP(A89,'Weight Based'!F:AA,22,FALSE),"Not Ranked") -> 0
A90: I-80 & Jordan Creek Pkwy | B90: 174 | C90: Dallas | D90: Urban | E90: Excluded Unique | F90: 84200 | G90: 37300 | H90: 0.1 | I90: =_xlfn.IFNA(MATCH(A90,'Weight Based'!F:F,0)-1,"Not Included in Ranking") -> 192 | J90: =COUNTIF('WWD Crashes'!C:C,A90) -> 0 | K90: =_xlfn.IFNA(VLOOKUP(A90,'Weight Based'!F:AA,22,FALSE),"Not Ranked") -> 0
A91: I-235 & 22nd St | B91: 200 | C91: Polk | D91: Urban | E91: Diamond | F91: 125600 | G91: 26200 | H91: 0.3 | I91: =_xlfn.IFNA(MATCH(A91,'Weight Based'!F:F,0)-1,"Not Included in Ranking") -> 188 | J91: =COUNTIF('WWD Crashes'!C:C,A91) -> 0 | K91: =_xlfn.IFNA(VLOOKUP(A91,'Weight Based'!F:AA,22,FALSE),"Not Ranked") -> 0
A92: I-74 & KIMBERLY RD/13TH ST/MISSISSIPPI BLVD | B92: 513 | C92: Scott | D92: Urban | E92: Half Diamond | F92: 59700 | G92: 6800 | H92: 0.4 | I92: =_xlfn.IFNA(MATCH(A92,'Weight Based'!F:F,0)-1,"Not Included in Ranking") -> 219 | J92: =COUNTIF('WWD Crashes'!C:C,A92) -> 1 | K92: =_xlfn.IFNA(VLOOKUP(A92,'Weight Based'!F:AA,22,FALSE),"Not Ranked") -> 0.01
A93: I-80 & IA-21 | B93: 352 | C93: Poweshiek | D93: Rural | E93: Unique | F93: 28700 | G93: 3430 | H93: 3.5 | I93: =_xlfn.IFNA(MATCH(A93,'Weight Based'!F:F,0)-1,"Not Included in Ranking") -> 16 | J93: =COUNTIF('WWD Crashes'!C:C,A93) -> 4 | K93: =_xlfn.IFNA(VLOOKUP(A93,'Weight Based'!F:AA,22,FALSE),"Not Ranked") -> 3.25
A94: US-30 & Dayton Ave | B94: 344 | C94: Story | D94: Urban | E94: Diamond | F94: 32100 | G94: 12000 | H94: 0.2 | I94: =_xlfn.IFNA(MATCH(A94,'Weight Based'!F:F,0)-1,"Not Included in Ranking") -> 59 | J94: =COUNTIF('WWD Crashes'!C:C,A94) -> 0 | K94: =_xlfn.IFNA(VLOOKUP(A94,'Weight Based'!F:AA,22,FALSE),"Not Ranked") -> 0
A95: US 218 N & IA 116 N/4th St SW | B95: 208 | C95: Bremer | D95: Rural | E95: System | F95: 20900 | G95: 13100 | H95: 1 | I95: =_xlfn.IFNA(MATCH(A95,'Weight Based'!F:F,0)-1,"Not Included in Ranking") -> Not Included in Ranking | J95: =COUNTIF('WWD Crashes'!C:C,A95) -> 0 | K95: =_xlfn.IFNA(VLOOKUP(A95,'Weight Based'!F:AA,22,FALSE),"Not Ranked") -> Not Ranked
A96: I-74 & 53rd St | B96: 523 | C96: Scott | D96: Urban | E96: Excluded Unique | F96: 36600 | G96: 44900 | H96: 0.3 | I96: =_xlfn.IFNA(MATCH(A96,'Weight Based'!F:F,0)-1,"Not Included in Ranking") -> 119 | J96: =COUNTIF('WWD Crashes'!C:C,A96) -> 2 | K96: =_xlfn.IFNA(VLOOKUP(A96,'Weight Based'!F:AA,22,FALSE),"Not Ranked") -> 0.75
A97: I-35 & IA-141 | B97: 88 | C97: Polk | D97: Urban | E97: Excluded Unique | F97: 92300 | G97: 31100 | H97: 0.1 | I97: =_xlfn.IFNA(MATCH(A97,'Weight Based'!F:F,0)-1,"Not Included in Ranking") -> 191 | J97: =COUNTIF('WWD Crashes'!C:C,A97) -> 0 | K97: =_xlfn.IFNA(VLOOKUP(A97,'Weight Based'!F:AA,22,FALSE),"Not Ranked") -> 0
A98: US-61/US-151 & White St/Central Ave | B98: 361 | C98: Dubuque | D98: Urban | E98: Half Diamond | F98: 35700 | G98: 10200 | H98: 0.2 | I98: =_xlfn.IFNA(MATCH(A98,'Weight Based'!F:F,0)-1,"Not Included in Ranking") -> 242 | J98: =COUNTIF('WWD Crashes'!C:C,A98) -> 0 | K98: =_xlfn.IFNA(VLOOKUP(A98,'Weight Based'!F:AA,22,FALSE),"Not Ranked") -> 0
A99: US-218 & Broadway St/Airport Blvd | B99: 277 | C99: Black Hawk | D99: Urban | E99: Excluded Unique | F99: 30800 | G99: 10500 | H99: 2.4 | I99: =_xlfn.IFNA(MATCH(A99,'Weight Based'!F:F,0)-1,"Not Included in Ranking") -> 322 | J99: =COUNTIF('WWD Crashes'!C:C,A99) -> 0 | K99: =_xlfn.IFNA(VLOOKUP(A99,'Weight Based'!F:AA,22,FALSE),"Not Ranked") -> 0
A100: US-61/US-151 & Kerper Blvd | B100: 358 | C100: Dubuque | D100: Urban | E100: Half Diamond | F100: 24600 | G100: 11700 | H100: 0.1 | I100: =_xlfn.IFNA(MATCH(A100,'Weight Based'!F:F,0)-1,"Not Included in Ranking") -> 258 | J100: =COUNTIF('WWD Crashes'!C:C,A100) -> 0 | K100: =_xlfn.IFNA(VLOOKUP(A100,'Weight Based'!F:AA,22,FALSE),"Not Ranked") -> 0
A101: I-235 & 2nd Ave/3rd St | B101: 500 | C101: Polk | D101: Urban | E101: Excluded Unique | F101: 106400 | G101: 25200 | H101: 0.4 | I101: =_xlfn.IFNA(MATCH(A101,'Weight Based'!F:F,0)-1,"Not Included in Ranking") -> 189 | J101: =COUNTIF('WWD Crashes'!C:C,A101) -> 0 | K101: =_xlfn.IFNA(VLOOKUP(A101,'Weight Based'!F:AA,22,FALSE),"Not Ranked") -> 0
A102: I-80 & Dubuque St | B102: 428 | C102: Johnson | D102: Urban | E102: Diamond | F102: 64300 | G102: 24100 | H102: 1.1 | I102: =_xlfn.IFNA(MATCH(A102,'Weight Based'!F:F,0)-1,"Not Included in Ranking") -> 121 | J102: =COUNTIF('WWD Crashes'!C:C,A102) -> 0 | K102: =_xlfn.IFNA(VLOOKUP(A102,'Weight Based'!F:AA,22,FALSE),"Not Ranked") -> 0
A103: I-35 & US-34 | B103: 25 | C103: Clarke | D103: Rural | E103: Unique | F103: 16900 | G103: 9700 | H103: 0.2 | I103: =_xlfn.IFNA(MATCH(A103,'Weight Based'!F:F,0)-1,"Not Included in Ranking") -> 35 | J103: =COUNTIF('WWD Crashes'!C:C,A103) -> 1 | K103: =_xlfn.IFNA(VLOOKUP(A103,'Weight Based'!F:AA,22,FALSE),"Not Ranked") -> 0.5
A104: I-80 & IA-38 | B104: 440 | C104: Cedar | D104: Rural | E104: Unique | F104: 36200 | G104: 3540 | H104: 0.1 | I104: =_xlfn.IFNA(MATCH(A104,'Weight Based'!F:F,0)-1,"Not Included in Ranking") -> 20 | J104: =COUNTIF('WWD Crashes'!C:C,A104) -> 2 | K104: =_xlfn.IFNA(VLOOKUP(A104,'Weight Based'!F:AA,22,FALSE),"Not Ranked") -> 0.83
A105: I 235 W & I 235 W TO 31ST ST S | B105: 245 | C105: Polk | D105: Urban | E105: Diamond | F105: 134700 | G105: 15800 | H105: 0.5 | I105: =_xlfn.IFNA(MATCH(A105,'Weight Based'!F:F,0)-1,"Not Included in Ranking") -> 106 | J105: =COUNTIF('WWD Crashes'!C:C,A105) -> 1 | K105: =_xlfn.IFNA(VLOOKUP(A105,'Weight Based'!F:AA,22,FALSE),"Not Ranked") -> 1
A106: I- 35 E Ramp & DOUGLAS AVE | B106: 82 | C106: Polk | D106: Urban | E106: Excluded Unique | F106: 101100 | G106: 23700 | H106: 0.4 | I106: =_xlfn.IFNA(MATCH(A106,'Weight Based'!F:F,0)-1,"Not Included in Ranking") -> 190 | J106: =COUNTIF('WWD Crashes'!C:C,A106) -> 0 | K106: =_xlfn.IFNA(VLOOKUP(A106,'Weight Based'!F:AA,22,FALSE),"Not Ranked") -> 0
A107: I-235 & 42nd St | B107: 234 | C107: Polk | D107: Urban | E107: Excluded Unique | F107: 134700 | G107: 14000 | H107: 0.2 | I107: =_xlfn.IFNA(MATCH(A107,'Weight Based'!F:F,0)-1,"Not Included in Ranking") -> 201 | J107: =COUNTIF('WWD Crashes'!C:C,A107) -> 0 | K107: =_xlfn.IFNA(VLOOKUP(A107,'Weight Based'!F:AA,22,FALSE),"Not Ranked") -> 0
A108: I-74 & US-6/Spruce Hills Dr | B108: 434 | C108: Scott | D108: Urban | E108: Excluded Unique | F108: 49800 | G108: 33700 | H108: 0.1 | I108: =_xlfn.IFNA(MATCH(A108,'Weight Based'!F:F,0)-1,"Not Included in Ranking") -> 108 | J108: =COUNTIF('WWD Crashes'!C:C,A108) -> 3 | K108: =_xlfn.IFNA(VLOOKUP(A108,'Weight Based'!F:AA,22,FALSE),"Not Ranked") -> 1.45
A109: US-61 & 9th St/11th St | B109: 359 | C109: Dubuque | D109: Urban | E109: Split | F109: 24700 | G109: 3850 | H109: 0.4 | I109: =_xlfn.IFNA(MATCH(A109,'Weight Based'!F:F,0)-1,"Not Included in Ranking") -> 68 | J109: =COUNTIF('WWD Crashes'!C:C,A109) -> 2 | K109: =_xlfn.IFNA(VLOOKUP(A109,'Weight Based'!F:AA,22,FALSE),"Not Ranked") -> 2
A110: IA 141 E & IA 17 N | B110: 396 | C110: Polk | D110: Rural | E110: Excluded Unique | F110: 18000 | G110: 6500 | H110: 1.3 | I110: =_xlfn.IFNA(MATCH(A110,'Weight Based'!F:F,0)-1,"Not Included in Ranking") -> 329 | J110: =COUNTIF('WWD Crashes'!C:C,A110) -> 0 | K110: =_xlfn.IFNA(VLOOKUP(A110,'Weight Based'!F:AA,22,FALSE),"Not Ranked") -> 0
A111: US-151 & IA-1 | B111: 398 | C111: Jones | D111: Rural | E111: Unique | F111: 13800 | G111: 4280 | H111: 3.6 | I111: =_xlfn.IFNA(MATCH(A111,'Weight Based'!F:F,0)-1,"Not Included in Ranking") -> 54 | J111: =COUNTIF('WWD Crashes'!C:C,A111) -> 1 | K111: =_xlfn.IFNA(VLOOKUP(A111,'Weight Based'!F:AA,22,FALSE),"Not Ranked") -> 1
A112: I- 235 E Ramp & E EUCLID AVE / US 6 | B112: 432 | C112: Polk | D112: Urban | E112: Excluded Unique | F112: 77300 | G112: 23900 | H112: 0.2 | I112: =_xlfn.IFNA(MATCH(A112,'Weight Based'!F:F,0)-1,"Not Included in Ranking") -> 131 | J112: =COUNTIF('WWD Crashes'!C:C,A112) -> 0 | K112: =_xlfn.IFNA(VLOOKUP(A112,'Weight Based'!F:AA,22,FALSE),"Not Ranked") -> 0
A113: I-380 & Boyson Rd | B113: 233 | C113: Linn | D113: Urban | E113: Diamond | F113: 48300 | G113: 19800 | H113: 0.1 | I113: =_xlfn.IFNA(MATCH(A113,'Weight Based'!F:F,0)-1,"Not Included in Ranking") -> 81 | J113: =COUNTIF('WWD Crashes'!C:C,A113) -> 1 | K113: =_xlfn.IFNA(VLOOKUP(A113,'Weight Based'!F:AA,22,FALSE),"Not Ranked") -> 1
A114: US 63 N & IA 163 W | B114: 297 | C114: Mahaska | D114: Rural | E114: Split | F114: 12500 | G114: 6700 | H114: 2.2 | I114: =_xlfn.IFNA(MATCH(A114,'Weight Based'!F:F,0)-1,"Not Included in Ranking") -> 183 | J114: =COUNTIF('WWD Crashes'!C:C,A114) -> 0 | K114: =_xlfn.IFNA(VLOOKUP(A114,'Weight Based'!F:AA,22,FALSE),"Not Ranked") -> 0
A115: US-30 & US-63 | B115: 375 | C115: Tama | D115: Rural | E115: Unique | F115: 9100 | G115: 7300 | H115: 0.2 | I115: =_xlfn.IFNA(MATCH(A115,'Weight Based'!F:F,0)-1,"Not Included in Ranking") -> 36 | J115: =COUNTIF('WWD Crashes'!C:C,A115) -> 1 | K115: =_xlfn.IFNA(VLOOKUP(A115,'Weight Based'!F:AA,22,FALSE),"Not Ranked") -> 1
A116: I-35 & IA-175/330th St | B116: 126 | C116: Hamilton | D116: Rural | E116: Diamond | F116: 26000 | G116: 2940 | H116: 0.5 | I116: =_xlfn.IFNA(MATCH(A116,'Weight Based'!F:F,0)-1,"Not Included in Ranking") -> 247 | J116: =COUNTIF('WWD Crashes'!C:C,A116) -> 0 | K116: =_xlfn.IFNA(VLOOKUP(A116,'Weight Based'!F:AA,22,FALSE),"Not Ranked") -> 0
A117: US-34 & Mount Pleasant St | B117: 235 | C117: Des Moines | D117: Rural | E117: Unique | F117: 9600 | G117: 3760 | H117: 1.2 | I117: =_xlfn.IFNA(MATCH(A117,'Weight Based'!F:F,0)-1,"Not Included in Ranking") -> 40 | J117: =COUNTIF('WWD Crashes'!C:C,A117) -> 2 | K117: =_xlfn.IFNA(VLOOKUP(A117,'Weight Based'!F:AA,22,FALSE),"Not Ranked") -> 1.75
A118: I-80 & IA-1 | B118: 438 | C118: Johnson | D118: Urban | E118: Diamond | F118: 55900 | G118: 20400 | H118: 1.4 | I118: =_xlfn.IFNA(MATCH(A118,'Weight Based'!F:F,0)-1,"Not Included in Ranking") -> 122 | J118: =COUNTIF('WWD Crashes'!C:C,A118) -> 0 | K118: =_xlfn.IFNA(VLOOKUP(A118,'Weight Based'!F:AA,22,FALSE),"Not Ranked") -> 0
A119: US-61 & Main St | B119: 365 | C119: Jackson | D119: Rural | E119: Unique | F119: 8200 | G119: 4900 | H119: 0.2 | I119: =_xlfn.IFNA(MATCH(A119,'Weight Based'!F:F,0)-1,"Not Included in Ranking") -> 32 | J119: =COUNTIF('WWD Crashes'!C:C,A119) -> 3 | K119: =_xlfn.IFNA(VLOOKUP(A119,'Weight Based'!F:AA,22,FALSE),"Not Ranked") -> 2.5
A120: US-20 & Quail Ave/Nelson Ave | B120: 226 | C120: Webster | D120: Rural | E120: Unique | F120: 9000 | G120: 7000 | H120: 2.5 | I120: =_xlfn.IFNA(MATCH(A120,'Weight Based'!F:F,0)-1,"Not Included in Ranking") -> 96 | J120: =COUNTIF('WWD Crashes'!C:C,A120) -> 0 | K120: =_xlfn.IFNA(VLOOKUP(A120,'Weight Based'!F:AA,22,FALSE),"Not Ranked") -> 0
A121: US-65 & IA-163 | B121: 404 | C121: Polk | D121: Urban | E121: Diamond | F121: 29000 | G121: 26800 | H121: 0.3 | I121: =_xlfn.IFNA(MATCH(A121,'Weight Based'!F:F,0)-1,"Not Included in Ranking") -> 177 | J121: =COUNTIF('WWD Crashes'!C:C,A121) -> 0 | K121: =_xlfn.IFNA(VLOOKUP(A121,'Weight Based'!F:AA,22,FALSE),"Not Ranked") -> 0
A122: US-34 & Grand Ave/Jewel Ave | B122: 251 | C122: Henry | D122: Rural | E122: Unique | F122: 10400 | G122: 6100 | H122: 0.9 | I122: =_xlfn.IFNA(MATCH(A122,'Weight Based'!F:F,0)-1,"Not Included in Ranking") -> 78 | J122: =COUNTIF('WWD Crashes'!C:C,A122) -> 0 | K122: =_xlfn.IFNA(VLOOKUP(A122,'Weight Based'!F:AA,22,FALSE),"Not Ranked") -> 0
A123: I-235 & Valley West Drive | B123: 194 | C123: Polk | D123: Urban | E123: Excluded Unique | F123: 116100 | G123: 15600 | H123: 0.5 | I123: =_xlfn.IFNA(MATCH(A123,'Weight Based'!F:F,0)-1,"Not Included in Ranking") -> 202 | J123: =COUNTIF('WWD Crashes'!C:C,A123) -> 0 | K123: =_xlfn.IFNA(VLOOKUP(A123,'Weight Based'!F:AA,22,FALSE),"Not Ranked") -> 0
A124: US 63 NW RAMP A & IOWA 137 | B124: 289 | C124: Wapello | D124: Rural | E124: Excluded Unique | F124: 10800 | G124: 5600 | H124: 0.5 | I124: =_xlfn.IFNA(MATCH(A124,'Weight Based'!F:F,0)-1,"Not Included in Ranking") -> 300 | J124: =COUNTIF('WWD Crashes'!C:C,A124) -> 0 | K124: =_xlfn.IFNA(VLOOKUP(A124,'Weight Based'!F:AA,22,FALSE),"Not Ranked") -> 0
A125: US-59 & US-30 (South Junction) | B125: 524 | C125: Crawford | D125: Rural | E125: Excluded Unique | F125: 9000 | G125: 5400 | H125: 0.7 | I125: =_xlfn.IFNA(MATCH(A125,'Weight Based'!F:F,0)-1,"Not Included in Ranking") -> 309 | J125: =COUNTIF('WWD Crashes'!C:C,A125) -> 0 | K125: =_xlfn.IFNA(VLOOKUP(A125,'Weight Based'!F:AA,22,FALSE),"Not Ranked") -> 0
A126: US-218 & IA-92 | B126: 316 | C126: Washington | D126: Rural | E126: Unique | F126: 11800 | G126: 4480 | H126: 6.7 | I126: =_xlfn.IFNA(MATCH(A126,'Weight Based'!F:F,0)-1,"Not Included in Ranking") -> 44 | J126: =COUNTIF('WWD Crashes'!C:C,A126) -> 1 | K126: =_xlfn.IFNA(VLOOKUP(A126,'Weight Based'!F:AA,22,FALSE),"Not Ranked") -> 0.99
A127: I-80 & CR-G30/White Pole Rd/Cedar Ave | B127: 90 | C127: Adair | D127: Rural | E127: Unique | F127: 22600 | G127: 1630 | H127: 0.7 | I127: =_xlfn.IFNA(MATCH(A127,'Weight Based'!F:F,0)-1,"Not Included in Ranking") -> 72 | J127: =COUNTIF('WWD Crashes'!C:C,A127) -> 0 | K127: =_xlfn.IFNA(VLOOKUP(A127,'Weight Based'!F:AA,22,FALSE),"Not Ranked") -> 0
A128: I-29 & Desoto Ave | B128: 149 | C128: Pottawattamie | D128: Rural | E128: Unique | F128: 22800 | G128: 1130 | H128: 3.9 | I128: =_xlfn.IFNA(MATCH(A128,'Weight Based'!F:F,0)-1,"Not Included in Ranking") -> 100 | J128: =COUNTIF('WWD Crashes'!C:C,A128) -> 0 | K128: =_xlfn.IFNA(VLOOKUP(A128,'Weight Based'!F:AA,22,FALSE),"Not Ranked") -> 0
A129: I 235 W & I 235 W TO 56TH ST | B129: 227 | C129: Polk | D129: Urban | E129: Half Diamond | F129: 139000 | G129: 8200 | H129: 0.8 | I129: =_xlfn.IFNA(MATCH(A129,'Weight Based'!F:F,0)-1,"Not Included in Ranking") -> 244 | J129: =COUNTIF('WWD Crashes'!C:C,A129) -> 0 | K129: =_xlfn.IFNA(VLOOKUP(A129,'Weight Based'!F:AA,22,FALSE),"Not Ranked") -> 0
A130: US-34 & Locust St | B130: 164 | C130: Mills | D130: Rural | E130: Unique | F130: 9000 | G130: 4080 | H130: 0.6 | I130: =_xlfn.IFNA(MATCH(A130,'Weight Based'!F:F,0)-1,"Not Included in Ranking") -> 39 | J130: =COUNTIF('WWD Crashes'!C:C,A130) -> 1 | K130: =_xlfn.IFNA(VLOOKUP(A130,'Weight Based'!F:AA,22,FALSE),"Not Ranked") -> 0.99
A131: I-80 & CR-P20/Pinewood Ave | B131: 117 | C131: Adair | D131: Rural | E131: Unique | F131: 24700 | G131: 200 | H131: 4.5 | I131: =_xlfn.IFNA(MATCH(A131,'Weight Based'!F:F,0)-1,"Not Included in Ranking") -> 65 | J131: =COUNTIF('WWD Crashes'!C:C,A131) -> 1 | K131: =_xlfn.IFNA(VLOOKUP(A131,'Weight Based'!F:AA,22,FALSE),"Not Ranked") -> 0.5
A132: US-20 & Jefferson Rd | B132: 328 | C132: Delaware | D132: Rural | E132: Unique | F132: 9100 | G132: 4060 | H132: 1 | I132: =_xlfn.IFNA(MATCH(A132,'Weight Based'!F:F,0)-1,"Not Included in Ranking") -> 85 | J132: =COUNTIF('WWD Crashes'!C:C,A132) -> 0 | K132: =_xlfn.IFNA(VLOOKUP(A132,'Weight Based'!F:AA,22,FALSE),"Not Ranked") -> 0
A133: IA-163 & IA-117 | B133: 320 | C133: Jasper | D133: Rural | E133: Unique | F133: 13600 | G133: 2790 | H133: 0.3 | I133: =_xlfn.IFNA(MATCH(A133,'Weight Based'!F:F,0)-1,"Not Included in Ranking") -> 73 | J133: =COUNTIF('WWD Crashes'!C:C,A133) -> 0 | K133: =_xlfn.IFNA(VLOOKUP(A133,'Weight Based'!F:AA,22,FALSE),"Not Ranked") -> 0
A134: US-34 & BUS-34 / Middletown | B134: 237 | C134: Des Moines | D134: Rural | E134: Unique | F134: 7700 | G134: 2720 | H134: 3.5 | I134: =_xlfn.IFNA(MATCH(A134,'Weight Based'!F:F,0)-1,"Not Included in Ranking") -> 69 | J134: =COUNTIF('WWD Crashes'!C:C,A134) -> 1 | K134: =_xlfn.IFNA(VLOOKUP(A134,'Weight Based'!F:AA,22,FALSE),"Not Ranked") -> 0.5
A135: US-30 & BUS-30/Lincoln Hwy | B135: 540 | C135: Tama | D135: Rural | E135: Unique | F135: 11800 | G135: 3160 | H135: 1.7 | I135: =_xlfn.IFNA(MATCH(A135,'Weight Based'!F:F,0)-1,"Not Included in Ranking") -> 84 | J135: =COUNTIF('WWD Crashes'!C:C,A135) -> 0 | K135: =_xlfn.IFNA(VLOOKUP(A135,'Weight Based'!F:AA,22,FALSE),"Not Ranked") -> 0
A136: I-35 & Clay St | B136: 30 | C136: Clarke | D136: Rural | E136: Unique | F136: 16900 | G136: 800 | H136: 0.3 | I136: =_xlfn.IFNA(MATCH(A136,'Weight Based'!F:F,0)-1,"Not Included in Ranking") -> 50 | J136: =COUNTIF('WWD Crashes'!C:C,A136) -> 1 | K136: =_xlfn.IFNA(VLOOKUP(A136,'Weight Based'!F:AA,22,FALSE),"Not Ranked") -> 0.5
A137: US- 20 N Ramp, Loop & 1ST ST/U AVENUE | B137: 250 | C137: Grundy | D137: Rural | E137: Excluded Unique | F137: 14000 | G137: 2370 | H137: 7.1 | I137: =_xlfn.IFNA(MATCH(A137,'Weight Based'!F:F,0)-1,"Not Included in Ranking") -> 395 | J137: =COUNTIF('WWD Crashes'!C:C,A137) -> 1 | K137: =_xlfn.IFNA(VLOOKUP(A137,'Weight Based'!F:AA,22,FALSE),"Not Ranked") -> 0.33
A138: I-29 & 35th St | B138: 417 | C138: Pottawattamie | D138: Urban | E138: Split | F138: 22700 | G138: 2180 | H138: 0.3 | I138: =_xlfn.IFNA(MATCH(A138,'Weight Based'!F:F,0)-1,"Not Included in Ranking") -> 137 | J138: =COUNTIF('WWD Crashes'!C:C,A138) -> 0 | K138: =_xlfn.IFNA(VLOOKUP(A138,'Weight Based'!F:AA,22,FALSE),"Not Ranked") -> 0
A139: I-35 & 1st St | B139: 148 | C139: Polk | D139: Urban | E139: Diamond | F139: 67200 | G139: 12400 | H139: 0.3 | I139: =_xlfn.IFNA(MATCH(A139,'Weight Based'!F:F,0)-1,"Not Included in Ranking") -> 98 | J139: =COUNTIF('WWD Crashes'!C:C,A139) -> 1 | K139: =_xlfn.IFNA(VLOOKUP(A139,'Weight Based'!F:AA,22,FALSE),"Not Ranked") -> 0.5
A140: US-151 SW RAMP/LOOP & IA-136 | B140: 355 | C140: Dubuque | D140: Rural | E140: Excluded Unique | F140: 9400 | G140: 2780 | H140: 1.4 | I140: =_xlfn.IFNA(MATCH(A140,'Weight Based'!F:F,0)-1,"Not Included in Ranking") -> 354 | J140: =COUNTIF('WWD Crashes'!C:C,A140) -> 0 | K140: =_xlfn.IFNA(VLOOKUP(A140,'Weight Based'!F:AA,22,FALSE),"Not Ranked") -> 0
A141: US-218 & IA-14 | B141: 173 | C141: Floyd | D141: Rural | E141: Unique | F141: 8300 | G141: 2630 | H141: 1.9 | I141: =_xlfn.IFNA(MATCH(A141,'Weight Based'!F:F,0)-1,"Not Included in Ranking") -> 88 | J141: =COUNTIF('WWD Crashes'!C:C,A141) -> 0 | K141: =_xlfn.IFNA(VLOOKUP(A141,'Weight Based'!F:AA,22,FALSE),"Not Ranked") -> 0
A142: US-20 & IA-38 | B142: 329 | C142: Delaware | D142: Rural | E142: Unique | F142: 9000 | G142: 2320 | H142: 0.2 | I142: =_xlfn.IFNA(MATCH(A142,'Weight Based'!F:F,0)-1,"Not Included in Ranking") -> 77 | J142: =COUNTIF('WWD Crashes'!C:C,A142) -> 0 | K142: =_xlfn.IFNA(VLOOKUP(A142,'Weight Based'!F:AA,22,FALSE),"Not Ranked") -> 0
A143: I 80 E & I 80 E TO 60TH ST, N | B143: 179 | C143: Dallas | D143: Urban | E143: Half Diamond | F143: 84200 | G143: 19900 | H143: 0.6 | I143: =_xlfn.IFNA(MATCH(A143,'Weight Based'!F:F,0)-1,"Not Included in Ranking") -> 194 | J143: =COUNTIF('WWD Crashes'!C:C,A143) -> 0 | K143: =_xlfn.IFNA(VLOOKUP(A143,'Weight Based'!F:AA,22,FALSE),"Not Ranked") -> 0
A144: I-74 SE RAMP & MIDDLE RD | B144: 427 | C144: Scott | D144: Urban | E144: Diamond | F144: 59700 | G144: 24000 | H144: 0.1 | I144: =_xlfn.IFNA(MATCH(A144,'Weight Based'!F:F,0)-1,"Not Included in Ranking") -> 118 | J144: =COUNTIF('WWD Crashes'!C:C,A144) -> 2 | K144: =_xlfn.IFNA(VLOOKUP(A144,'Weight Based'!F:AA,22,FALSE),"Not Ranked") -> 0.54
A145: US-63 & 145th Ave | B145: 283 | C145: Wapello | D145: Rural | E145: Unique | F145: 8200 | G145: 1400 | H145: 3.2 | I145: =_xlfn.IFNA(MATCH(A145,'Weight Based'!F:F,0)-1,"Not Included in Ranking") -> 109 | J145: =COUNTIF('WWD Crashes'!C:C,A145) -> 0 | K145: =_xlfn.IFNA(VLOOKUP(A145,'Weight Based'!F:AA,22,FALSE),"Not Ranked") -> 0
A146: US-63 & US-18/IA-346 | B146: 236 | C146: Chickasaw | D146: Rural | E146: Unique | F146: 5300 | G146: 2110 | H146: 5.7 | I146: =_xlfn.IFNA(MATCH(A146,'Weight Based'!F:F,0)-1,"Not Included in Ranking") -> 63 | J146: =COUNTIF('WWD Crashes'!C:C,A146) -> 1 | K146: =_xlfn.IFNA(VLOOKUP(A146,'Weight Based'!F:AA,22,FALSE),"Not Ranked") -> 1
A147: US-151 & IA-38 | B147: 356 | C147: Jones | D147: Rural | E147: Diamond | F147: 8400 | G147: 2690 | H147: 0.7 | I147: =_xlfn.IFNA(MATCH(A147,'Weight Based'!F:F,0)-1,"Not Included in Ranking") -> 115 | J147: =COUNTIF('WWD Crashes'!C:C,A147) -> 1 | K147: =_xlfn.IFNA(VLOOKUP(A147,'Weight Based'!F:AA,22,FALSE),"Not Ranked") -> 0.33
A148: I-80 & Hubbell Ave | B148: 272 | C148: Polk | D148: Urban | E148: Excluded Unique | F148: 42800 | G148: 13700 | H148: 0.2 | I148: =_xlfn.IFNA(MATCH(A148,'Weight Based'!F:F,0)-1,"Not Included in Ranking") -> 82 | J148: =COUNTIF('WWD Crashes'!C:C,A148) -> 3 | K148: =_xlfn.IFNA(VLOOKUP(A148,'Weight Based'!F:AA,22,FALSE),"Not Ranked") -> 1.25
A149: US-34 & US-71 | B149: 170 | C149: Montgomery | D149: Rural | E149: Unique | F149: 2680 | G149: 2610 | H149: 3.2 | I149: =_xlfn.IFNA(MATCH(A149,'Weight Based'!F:F,0)-1,"Not Included in Ranking") -> 104 | J149: =COUNTIF('WWD Crashes'!C:C,A149) -> 0 | K149: =_xlfn.IFNA(VLOOKUP(A149,'Weight Based'!F:AA,22,FALSE),"Not Ranked") -> 0
A150: IA-60 & 170th St/A22 | B150: 115 | C150: Osceola | D150: Rural | E150: Unique | F150: 3440 | G150: 2280 | H150: 1.6 | I150: =_xlfn.IFNA(MATCH(A150,'Weight Based'!F:F,0)-1,"Not Included in Ranking") -> 95 | J150: =COUNTIF('WWD Crashes'!C:C,A150) -> 0 | K150: =_xlfn.IFNA(VLOOKUP(A150,'Weight Based'!F:AA,22,FALSE),"Not Ranked") -> 0
A151: US-30 & Edgewood Rd | B151: 384 | C151: Linn | D151: Urban | E151: Excluded Unique | F151: 31500 | G151: 10900 | H151: 0.1 | I151: =_xlfn.IFNA(MATCH(A151,'Weight Based'!F:F,0)-1,"Not Included in Ranking") -> 47 | J151: =COUNTIF('WWD Crashes'!C:C,A151) -> 2 | K151: =_xlfn.IFNA(VLOOKUP(A151,'Weight Based'!F:AA,22,FALSE),"Not Ranked") -> 0.75
A152: I-680 & CR-L34 | B152: 15 | C152: Pottawattamie | D152: Rural | E152: Unique | F152: 6600 | G152: 800 | H152: 8.1 | I152: =_xlfn.IFNA(MATCH(A152,'Weight Based'!F:F,0)-1,"Not Included in Ranking") -> 87 | J152: =COUNTIF('WWD Crashes'!C:C,A152) -> 1 | K152: =_xlfn.IFNA(VLOOKUP(A152,'Weight Based'!F:AA,22,FALSE),"Not Ranked") -> 0.25
A153: IA-100 & Edgewood Rd | B153: 529 | C153: Linn | D153: Urban | E153: Excluded Unique | F153: 23900 | G153: 33500 | H153: 0 | I153: =_xlfn.IFNA(MATCH(A153,'Weight Based'!F:F,0)-1,"Not Included in Ranking") -> 60 | J153: =COUNTIF('WWD Crashes'!C:C,A153) -> 0 | K153: =_xlfn.IFNA(VLOOKUP(A153,'Weight Based'!F:AA,22,FALSE),"Not Ranked") -> 0
A154: IA-60 & 2nd Ave | B154: 118 | C154: Osceola | D154: Rural | E154: Unique | F154: 4480 | G154: 1180 | H154: 1.1 | I154: =_xlfn.IFNA(MATCH(A154,'Weight Based'!F:F,0)-1,"Not Included in Ranking") -> 99 | J154: =COUNTIF('WWD Crashes'!C:C,A154) -> 0 | K154: =_xlfn.IFNA(VLOOKUP(A154,'Weight Based'!F:AA,22,FALSE),"Not Ranked") -> 0
A155: IA-60 & 470th St | B155: 121 | C155: Sioux | D155: Rural | E155: Unique | F155: 4660 | G155: 480 | H155: 2 | I155: =_xlfn.IFNA(MATCH(A155,'Weight Based'!F:F,0)-1,"Not Included in Ranking") -> 102 | J155: =COUNTIF('WWD Crashes'!C:C,A155) -> 0 | K155: =_xlfn.IFNA(VLOOKUP(A155,'Weight Based'!F:AA,22,FALSE),"Not Ranked") -> 0
A156: I-29 & 25th St | B156: 167 | C156: Pottawattamie | D156: Urban | E156: Diamond | F156: 19700 | G156: 8000 | H156: 0.1 | I156: =_xlfn.IFNA(MATCH(A156,'Weight Based'!F:F,0)-1,"Not Included in Ranking") -> 148 | J156: =COUNTIF('WWD Crashes'!C:C,A156) -> 1 | K156: =_xlfn.IFNA(VLOOKUP(A156,'Weight Based'!F:AA,22,FALSE),"Not Ranked") -> 0.2
A157: I-235 & E 6th St/Pennsylvania Ave | B157: 472 | C157: Polk | D157: Urban | E157: Excluded Unique | F157: 106400 | G157: 10600 | H157: 0.3 | I157: =_xlfn.IFNA(MATCH(A157,'Weight Based'!F:F,0)-1,"Not Included in Ranking") -> 203 | J157: =COUNTIF('WWD Crashes'!C:C,A157) -> 0 | K157: =_xlfn.IFNA(VLOOKUP(A157,'Weight Based'!F:AA,22,FALSE),"Not Ranked") -> 0
A158: I-29 & Wesley Pkwy & US-77 | B158: 479 | C158: Woodbury | D158: Urban | E158: Excluded Unique | F158: 36800 | G158: 28400 | H158: 0.2 | I158: =_xlfn.IFNA(MATCH(A158,'Weight Based'!F:F,0)-1,"Not Included in Ranking") -> 94 | J158: =COUNTIF('WWD Crashes'!C:C,A158) -> 3 | K158: =_xlfn.IFNA(VLOOKUP(A158,'Weight Based'!F:AA,22,FALSE),"Not Ranked") -> 3
A159: US-218 & IA-1 | B159: 291 | C159: Johnson | D159: Urban | E159: Diamond | F159: 30400 | G159: 23700 | H159: 0.3 | I159: =_xlfn.IFNA(MATCH(A159,'Weight Based'!F:F,0)-1,"Not Included in Ranking") -> 212 | J159: =COUNTIF('WWD Crashes'!C:C,A159) -> 0 | K159: =_xlfn.IFNA(VLOOKUP(A159,'Weight Based'!F:AA,22,FALSE),"Not Ranked") -> 0
A160: I-29 & 9th Ave | B160: 418 | C160: Pottawattamie | D160: Urban | E160: Diamond | F160: 39100 | G160: 8100 | H160: 0.4 | I160: =_xlfn.IFNA(MATCH(A160,'Weight Based'!F:F,0)-1,"Not Included in Ranking") -> 103 | J160: =COUNTIF('WWD Crashes'!C:C,A160) -> 2 | K160: =_xlfn.IFNA(VLOOKUP(A160,'Weight Based'!F:AA,22,FALSE),"Not Ranked") -> 1.79
A161: I- 35 E Ramp & E 13TH ST | B161: 131 | C161: Story | D161: Urban | E161: Diamond | F161: 34500 | G161: 13600 | H161: 0.4 | I161: =_xlfn.IFNA(MATCH(A161,'Weight Based'!F:F,0)-1,"Not Included in Ranking") -> 125 | J161: =COUNTIF('WWD Crashes'!C:C,A161) -> 0 | K161: =_xlfn.IFNA(VLOOKUP(A161,'Weight Based'!F:AA,22,FALSE),"Not Ranked") -> 0
A162: I-380 NW RAMP & H AVE NE | B162: 225 | C162: Linn | D162: Urban | E162: Diamond | F162: 97700 | G162: 9000 | H162: 0.8 | I162: =_xlfn.IFNA(MATCH(A162,'Weight Based'!F:F,0)-1,"Not Included in Ranking") -> 165 | J162: =COUNTIF('WWD Crashes'!C:C,A162) -> 1 | K162: =_xlfn.IFNA(VLOOKUP(A162,'Weight Based'!F:AA,22,FALSE),"Not Ranked") -> 0.25
A163: I-280 & Locust St | B163: 433 | C163: Scott | D163: Rural | E163: Diamond | F163: 24400 | G163: 8800 | H163: 0.1 | I163: =_xlfn.IFNA(MATCH(A163,'Weight Based'!F:F,0)-1,"Not Included in Ranking") -> 111 | J163: =COUNTIF('WWD Crashes'!C:C,A163) -> 1 | K163: =_xlfn.IFNA(VLOOKUP(A163,'Weight Based'!F:AA,22,FALSE),"Not Ranked") -> 0.25
A164: I-80 & 24th St | B164: 51 | C164: Pottawattamie | D164: Urban | E164: Diamond | F164: 87000 | G164: 8600 | H164: 0.1 | I164: =_xlfn.IFNA(MATCH(A164,'Weight Based'!F:F,0)-1,"Not Included in Ranking") -> 107 | J164: =COUNTIF('WWD Crashes'!C:C,A164) -> 1 | K164: =_xlfn.IFNA(VLOOKUP(A164,'Weight Based'!F:AA,22,FALSE),"Not Ranked") -> 1
A165: US-218 & Cedar Wapsi Rd | B165: Interchange without ID | C165: Black Hawk | D165: Rural | E165: Diamond | F165: 23900 | G165: 3370 | H165: 3.7 | I165: =_xlfn.IFNA(MATCH(A165,'Weight Based'!F:F,0)-1,"Not Included in Ranking") -> 229 | J165: =COUNTIF('WWD Crashes'!C:C,A165) -> 3 | K165: =_xlfn.IFNA(VLOOKUP(A165,'Weight Based'!F:AA,22,FALSE),"Not Ranked") -> 1.24
A166: I-74 & Grant St | B166: 442 | C166: Scott | D166: Urban | E166: Excluded Unique | F166: 67000 | G166: 15000 | H166: 0.3 | I166: =_xlfn.IFNA(MATCH(A166,'Weight Based'!F:F,0)-1,"Not Included in Ranking") -> 208 | J166: =COUNTIF('WWD Crashes'!C:C,A166) -> 0 | K166: =_xlfn.IFNA(VLOOKUP(A166,'Weight Based'!F:AA,22,FALSE),"Not Ranked") -> 0
A167: I-80 & Madison Ave | B167: 56 | C167: Pottawattamie | D167: Urban | E167: Diamond | F167: 43000 | G167: 9300 | H167: 0.1 | I167: =_xlfn.IFNA(MATCH(A167,'Weight Based'!F:F,0)-1,"Not Included in Ranking") -> 75 | J167: =COUNTIF('WWD Crashes'!C:C,A167) -> 2 | K167: =_xlfn.IFNA(VLOOKUP(A167,'Weight Based'!F:AA,22,FALSE),"Not Ranked") -> 1.5
A168: US-20 & Lakeport St | B168: 86 | C168: Woodbury | D168: Urban | E168: Diamond | F168: 33200 | G168: 20000 | H168: 0.2 | I168: =_xlfn.IFNA(MATCH(A168,'Weight Based'!F:F,0)-1,"Not Included in Ranking") -> 112 | J168: =COUNTIF('WWD Crashes'!C:C,A168) -> 3 | K168: =_xlfn.IFNA(VLOOKUP(A168,'Weight Based'!F:AA,22,FALSE),"Not Ranked") -> 2.25
A169: I- 235 E Ramp & GUTHRIE AVE | B169: 423 | C169: Polk | D169: Urban | E169: Diamond | F169: 79300 | G169: 11200 | H169: 0.1 | I169: =_xlfn.IFNA(MATCH(A169,'Weight Based'!F:F,0)-1,"Not Included in Ranking") -> 204 | J169: =COUNTIF('WWD Crashes'!C:C,A169) -> 0 | K169: =_xlfn.IFNA(VLOOKUP(A169,'Weight Based'!F:AA,22,FALSE),"Not Ranked") -> 0
A170: I 80 W & I 80 W TO US 151 S | B170: 382 | C170: Iowa | D170: Rural | E170: Diamond | F170: 33500 | G170: 2260 | H170: 5.4 | I170: =_xlfn.IFNA(MATCH(A170,'Weight Based'!F:F,0)-1,"Not Included in Ranking") -> 357 | J170: =COUNTIF('WWD Crashes'!C:C,A170) -> 0 | K170: =_xlfn.IFNA(VLOOKUP(A170,'Weight Based'!F:AA,22,FALSE),"Not Ranked") -> 0
A171: I-80 & CR-P57 | B171: 142 | C171: Dallas | D171: Rural | E171: Diamond | F171: 31500 | G171: 3110 | H171: 1.3 | I171: =_xlfn.IFNA(MATCH(A171,'Weight Based'!F:F,0)-1,"Not Included in Ranking") -> 129 | J171: =COUNTIF('WWD Crashes'!C:C,A171) -> 1 | K171: =_xlfn.IFNA(VLOOKUP(A171,'Weight Based'!F:AA,22,FALSE),"Not Ranked") -> 0.25
A172: I-380 SE RAMP & 54 ST TRL | B172: 244 | C172: Benton | D172: Rural | E172: Diamond | F172: 24100 | G172: 4490 | H172: 1.8 | I172: =_xlfn.IFNA(MATCH(A172,'Weight Based'!F:F,0)-1,"Not Included in Ranking") -> 136 | J172: =COUNTIF('WWD Crashes'!C:C,A172) -> 1 | K172: =_xlfn.IFNA(VLOOKUP(A172,'Weight Based'!F:AA,22,FALSE),"Not Ranked") -> 0.25
A173: US-218 & Greenhill Rd | B173: 298 | C173: Black Hawk | D173: Urban | E173: Diamond | F173: 27500 | G173: 6900 | H173: 1.1 | I173: =_xlfn.IFNA(MATCH(A173,'Weight Based'!F:F,0)-1,"Not Included in Ranking") -> 138 | J173: =COUNTIF('WWD Crashes'!C:C,A173) -> 2 | K173: =_xlfn.IFNA(VLOOKUP(A173,'Weight Based'!F:AA,22,FALSE),"Not Ranked") -> 2
A174: I-380 SE RAMP & IA-150 | B174: 247 | C174: Benton | D174: Rural | E174: Diamond | F174: 21000 | G174: 4820 | H174: 0 | I174: =_xlfn.IFNA(MATCH(A174,'Weight Based'!F:F,0)-1,"Not Included in Ranking") -> 116 | J174: =COUNTIF('WWD Crashes'!C:C,A174) -> 1 | K174: =_xlfn.IFNA(VLOOKUP(A174,'Weight Based'!F:AA,22,FALSE),"Not Ranked") -> 0.25
A175: US-30 & 6th Ave | B175: 373 | C175: Clinton | D175: Rural | E175: Diamond | F175: 11100 | G175: 6300 | H175: 0.9 | I175: =_xlfn.IFNA(MATCH(A175,'Weight Based'!F:F,0)-1,"Not Included in Ranking") -> 113 | J175: =COUNTIF('WWD Crashes'!C:C,A175) -> 2 | K175: =_xlfn.IFNA(VLOOKUP(A175,'Weight Based'!F:AA,22,FALSE),"Not Ranked") -> 1.25
A176: I 80 & US 71 | B176: 72 | C176: Cass | D176: Rural | E176: Diamond | F176: 22700 | G176: 2870 | H176: 6.9 | I176: =_xlfn.IFNA(MATCH(A176,'Weight Based'!F:F,0)-1,"Not Included in Ranking") -> 168 | J176: =COUNTIF('WWD Crashes'!C:C,A176) -> 1 | K176: =_xlfn.IFNA(VLOOKUP(A176,'Weight Based'!F:AA,22,FALSE),"Not Ranked") -> 0.25
A177: IA 5 N & IA 5 N TO IA 28 N | B177: 353 | C177: Polk | D177: Urban | E177: Excluded Unique | F177: 30600 | G177: 19400 | H177: 1.3 | I177: =_xlfn.IFNA(MATCH(A177,'Weight Based'!F:F,0)-1,"Not Included in Ranking") -> 217 | J177: =COUNTIF('WWD Crashes'!C:C,A177) -> 0 | K177: =_xlfn.IFNA(VLOOKUP(A177,'Weight Based'!F:AA,22,FALSE),"Not Ranked") -> 0
A178: I 35 N & US 18 W | B178: 48 | C178: Cerro Gordo | D178: Urban | E178: Diamond | F178: 16000 | G178: 22100 | H178: 0.3 | I178: =_xlfn.IFNA(MATCH(A178,'Weight Based'!F:F,0)-1,"Not Included in Ranking") -> 195 | J178: =COUNTIF('WWD Crashes'!C:C,A178) -> 1 | K178: =_xlfn.IFNA(VLOOKUP(A178,'Weight Based'!F:AA,22,FALSE),"Not Ranked") -> 0.25
A179: I 80W & I 80 W TO ADAIR-MADISON AVE, S | B179: 119 | C179: Adair | D179: Rural | E179: Diamond | F179: 27100 | G179: 320 | H179: 1.8 | I179: =_xlfn.IFNA(MATCH(A179,'Weight Based'!F:F,0)-1,"Not Included in Ranking") -> 152 | J179: =COUNTIF('WWD Crashes'!C:C,A179) -> 1 | K179: =_xlfn.IFNA(VLOOKUP(A179,'Weight Based'!F:AA,22,FALSE),"Not Ranked") -> 0.25
A180: I-380 NE RAMP & E SAN MARNAN DR | B180: 282 | C180: Black Hawk | D180: Urban | E180: Diamond | F180: 26600 | G180: 19500 | H180: 0.3 | I180: =_xlfn.IFNA(MATCH(A180,'Weight Based'!F:F,0)-1,"Not Included in Ranking") -> 241 | J180: =COUNTIF('WWD Crashes'!C:C,A180) -> 0 | K180: =_xlfn.IFNA(VLOOKUP(A180,'Weight Based'!F:AA,22,FALSE),"Not Ranked") -> 0
A181: I 80 W & I 80 W TO OLIVE ST, S | B181: 65 | C181: Cass | D181: Rural | E181: Diamond | F181: 22400 | G181: 1310 | H181: 6.2 | I181: =_xlfn.IFNA(MATCH(A181,'Weight Based'!F:F,0)-1,"Not Included in Ranking") -> 178 | J181: =COUNTIF('WWD Crashes'!C:C,A181) -> 1 | K181: =_xlfn.IFNA(VLOOKUP(A181,'Weight Based'!F:AA,22,FALSE),"Not Ranked") -> 0.25
A182: I-280 & US-61/RIVER DR | B182: 431 | C182: Scott | D182: Urban | E182: Diamond | F182: 24400 | G182: 19600 | H182: 0.9 | I182: =_xlfn.IFNA(MATCH(A182,'Weight Based'!F:F,0)-1,"Not Included in Ranking") -> 289 | J182: =COUNTIF('WWD Crashes'!C:C,A182) -> 0 | K182: =_xlfn.IFNA(VLOOKUP(A182,'Weight Based'!F:AA,22,FALSE),"Not Ranked") -> 0
A183: US-18 & IA-60 | B183: 112 | C183: O'Brien | D183: Rural | E183: Diamond | F183: 6300 | G183: 4520 | H183: 0.3 | I183: =_xlfn.IFNA(MATCH(A183,'Weight Based'!F:F,0)-1,"Not Included in Ranking") -> 117 | J183: =COUNTIF('WWD Crashes'!C:C,A183) -> 2 | K183: =_xlfn.IFNA(VLOOKUP(A183,'Weight Based'!F:AA,22,FALSE),"Not Ranked") -> 0.75
A184: I-29 & Singing Hills Blvd | B184: 133 | C184: Woodbury | D184: Urban | E184: Diamond | F184: 42000 | G184: 13600 | H184: 0.1 | I184: =_xlfn.IFNA(MATCH(A184,'Weight Based'!F:F,0)-1,"Not Included in Ranking") -> 74 | J184: =COUNTIF('WWD Crashes'!C:C,A184) -> 2 | K184: =_xlfn.IFNA(VLOOKUP(A184,'Weight Based'!F:AA,22,FALSE),"Not Ranked") -> 1.5
A185: IA- 27 E RAMP & UNIVERSITY AVE | B185: 296 | C185: Black Hawk | D185: Urban | E185: Diamond | F185: 22200 | G185: 19400 | H185: 0.3 | I185: =_xlfn.IFNA(MATCH(A185,'Weight Based'!F:F,0)-1,"Not Included in Ranking") -> 255 | J185: =COUNTIF('WWD Crashes'!C:C,A185) -> 0 | K185: =_xlfn.IFNA(VLOOKUP(A185,'Weight Based'!F:AA,22,FALSE),"Not Ranked") -> 0
A186: I 80 W & I 80 W TO IA 149 N | B186: 381 | C186: Iowa | D186: Urban | E186: Diamond | F186: 32400 | G186: 7600 | H186: 0.4 | I186: =_xlfn.IFNA(MATCH(A186,'Weight Based'!F:F,0)-1,"Not Included in Ranking") -> 214 | J186: =COUNTIF('WWD Crashes'!C:C,A186) -> 0 | K186: =_xlfn.IFNA(VLOOKUP(A186,'Weight Based'!F:AA,22,FALSE),"Not Ranked") -> 0
A187: I-80 & NORTHWEST BLVD/IA-130 | B187: 402 | C187: Scott | D187: Urban | E187: Diamond | F187: 44700 | G187: 13200 | H187: 0.8 | I187: =_xlfn.IFNA(MATCH(A187,'Weight Based'!F:F,0)-1,"Not Included in Ranking") -> 234 | J187: =COUNTIF('WWD Crashes'!C:C,A187) -> 0 | K187: =_xlfn.IFNA(VLOOKUP(A187,'Weight Based'!F:AA,22,FALSE),"Not Ranked") -> 0
A188: IA-12/GORDON DR & LEWIS BLVD | B188: 416 | C188: Woodbury | D188: Urban | E188: Excluded Unique | F188: 22900 | G188: 18800 | H188: 0.2 | I188: =_xlfn.IFNA(MATCH(A188,'Weight Based'!F:F,0)-1,"Not Included in Ranking") -> 254 | J188: =COUNTIF('WWD Crashes'!C:C,A188) -> 0 | K188: =_xlfn.IFNA(VLOOKUP(A188,'Weight Based'!F:AA,22,FALSE),"Not Ranked") -> 0
A189: US- 18 HWY/ N RAMP & MALLARD AVE | B189: 157 | C189: Cerro Gordo | D189: Rural | E189: Diamond | F189: 9600 | G189: 3020 | H189: 2.9 | I189: =_xlfn.IFNA(MATCH(A189,'Weight Based'!F:F,0)-1,"Not Included in Ranking") -> 405 | J189: =COUNTIF('WWD Crashes'!C:C,A189) -> 0 | K189: =_xlfn.IFNA(VLOOKUP(A189,'Weight Based'!F:AA,22,FALSE),"Not Ranked") -> 0
A190: US 34 N Ramps & US 61 | B190: 229 | C190: Des Moines | D190: Urban | E190: Excluded Unique | F190: 16500 | G190: 19700 | H190: 0.3 | I190: =_xlfn.IFNA(MATCH(A190,'Weight Based'!F:F,0)-1,"Not Included in Ranking") -> 259 | J190: =COUNTIF('WWD Crashes'!C:C,A190) -> 0 | K190: =_xlfn.IFNA(VLOOKUP(A190,'Weight Based'!F:AA,22,FALSE),"Not Ranked") -> 0
A191: IA 141 E & IA 141 E TO 1ST ST W | B191: 400 | C191: Polk | D191: Urban | E191: Diamond | F191: 30600 | G191: 16000 | H191: 0.2 | I191: =_xlfn.IFNA(MATCH(A191,'Weight Based'!F:F,0)-1,"Not Included in Ranking") -> 240 | J191: =COUNTIF('WWD Crashes'!C:C,A191) -> 0 | K191: =_xlfn.IFNA(VLOOKUP(A191,'Weight Based'!F:AA,22,FALSE),"Not Ranked") -> 0
A192: IA-60 & McKinley Ave | B192: 106 | C192: O'Brien | D192: Rural | E192: Diamond | F192: 6400 | G192: 2830 | H192: 1.6 | I192: =_xlfn.IFNA(MATCH(A192,'Weight Based'!F:F,0)-1,"Not Included in Ranking") -> 144 | J192: =COUNTIF('WWD Crashes'!C:C,A192) -> 2 | K192: =_xlfn.IFNA(VLOOKUP(A192,'Weight Based'!F:AA,22,FALSE),"Not Ranked") -> 0.5
A193: I 80 E & NE 72ND ST/1ST AVE N | B193: 278 | C193: Polk | D193: Urban | E193: Excluded Unique | F193: 45100 | G193: 11000 | H193: 0.4 | I193: =_xlfn.IFNA(MATCH(A193,'Weight Based'!F:F,0)-1,"Not Included in Ranking") -> 147 | J193: =COUNTIF('WWD Crashes'!C:C,A193) -> 1 | K193: =_xlfn.IFNA(VLOOKUP(A193,'Weight Based'!F:AA,22,FALSE),"Not Ranked") -> 0.25
A194: US-218 SE RAMP CURV & MELROSE AVE | B194: 286 | C194: Johnson | D194: Urban | E194: Diamond | F194: 34000 | G194: 14600 | H194: 1.1 | I194: =_xlfn.IFNA(MATCH(A194,'Weight Based'!F:F,0)-1,"Not Included in Ranking") -> 281 | J194: =COUNTIF('WWD Crashes'!C:C,A194) -> 0 | K194: =_xlfn.IFNA(VLOOKUP(A194,'Weight Based'!F:AA,22,FALSE),"Not Ranked") -> 0
A195: US-61 NW RAMP & LECLAIRE RD | B195: 389 | C195: Scott | D195: Urban | E195: Diamond | F195: 33200 | G195: 14800 | H195: 0.2 | I195: =_xlfn.IFNA(MATCH(A195,'Weight Based'!F:F,0)-1,"Not Included in Ranking") -> 239 | J195: =COUNTIF('WWD Crashes'!C:C,A195) -> 0 | K195: =_xlfn.IFNA(VLOOKUP(A195,'Weight Based'!F:AA,22,FALSE),"Not Ranked") -> 0
A196: I-29 & CR-E60 | B196: 61 | C196: Monona | D196: Rural | E196: Diamond | F196: 14700 | G196: 410 | H196: 6.6 | I196: =_xlfn.IFNA(MATCH(A196,'Weight Based'!F:F,0)-1,"Not Included in Ranking") -> 207 | J196: =COUNTIF('WWD Crashes'!C:C,A196) -> 1 | K196: =_xlfn.IFNA(VLOOKUP(A196,'Weight Based'!F:AA,22,FALSE),"Not Ranked") -> 0.25
A197: US 20 E & IA 58 N | B197: 188 | C197: Black Hawk | D197: Urban | E197: Diamond | F197: 26900 | G197: 15600 | H197: 1.2 | I197: =_xlfn.IFNA(MATCH(A197,'Weight Based'!F:F,0)-1,"Not Included in Ranking") -> 290 | J197: =COUNTIF('WWD Crashes'!C:C,A197) -> 0 | K197: =_xlfn.IFNA(VLOOKUP(A197,'Weight Based'!F:AA,22,FALSE),"Not Ranked") -> 0
A198: US-20 RAMP & GRANDVIEW AVE N | B198: 335 | C198: Dubuque | D198: Urban | E198: Excluded Unique | F198: 37400 | G198: 11900 | H198: 0.5 | I198: =_xlfn.IFNA(MATCH(A198,'Weight Based'!F:F,0)-1,"Not Included in Ranking") -> 211 | J198: =COUNTIF('WWD Crashes'!C:C,A198) -> 0 | K198: =_xlfn.IFNA(VLOOKUP(A198,'Weight Based'!F:AA,22,FALSE),"Not Ranked") -> 0
A199: US-34 & 235th St | B199: 313 | C199: Henry | D199: Rural | E199: Split | F199: 7400 | G199: 2010 | H199: 4.3 | I199: =_xlfn.IFNA(MATCH(A199,'Weight Based'!F:F,0)-1,"Not Included in Ranking") -> 120 | J199: =COUNTIF('WWD Crashes'!C:C,A199) -> 2 | K199: =_xlfn.IFNA(VLOOKUP(A199,'Weight Based'!F:AA,22,FALSE),"Not Ranked") -> 1.25
A200: US-30 NE RAMP & WILLIAMS BLVD/US-151 | B200: 383 | C200: Linn | D200: Urban | E200: Diamond | F200: 20400 | G200: 16200 | H200: 0.5 | I200: =_xlfn.IFNA(MATCH(A200,'Weight Based'!F:F,0)-1,"Not Included in Ranking") -> 143 | J200: =COUNTIF('WWD Crashes'!C:C,A200) -> 1 | K200: =_xlfn.IFNA(VLOOKUP(A200,'Weight Based'!F:AA,22,FALSE),"Not Ranked") -> 0.25
... 375 more rows

Sheet Weight Based
A1: Crashes | F1: Interchange | G1: # of Crashes | H1: # of Non-Crash Events | I1: Total Points | AA1: Crashes | AB1: Crash Points | AC1: Non-Crash Event Points | AD1: Unique Int | AE1: ML Traffic | AF1: ML Traffic Points | AG1: SR Traffic | AH1: SR Traffic Points | AI1: Bonus Traffic Points | AJ1: Urban Location | AK1: Old Urban/Rural
A2: Criteria | B2: Points | F2: I-380 & Wilson Ave | G2: =COUNTIF('WWD Crashes'!C:C,F2) -> 3 | H2: =COUNTIFS('Non-Crash Events'!B:B,F2,'Non-Crash Events'!R:R,">0") -> 3 | I2: =SUM(AB2,AC2,AD2,AF2,AH2,AI2,AJ2) -> 201.5 | AA2: =SUMIFS('WWD Crashes'!G:G,'WWD Crashes'!C:C,F2) -> 1.5 | AB2: =_xlfn.IFS(AA2<0.125,$B$3,AA2<0.25,$B$4,AA2<0.5,$B$5,AA2<0.99,$B$6,AA2<1.5,$B$7,TRUE,$B$8)+$B$9*SUMIFS('WWD Crashes'!G:G,'WWD Crashes'!C:C,F2,'WWD Crashes'!L:L,">0")++$B$10*SUMIFS('WWD Crashes'!G:G,'WWD Crashes'!C:C,F2,'WWD Crashes'!M:M,">0") -> 137.5 | AC2: =MIN($B$16*SUMIF('Non-Crash Events'!B:B,F2,'Non-Crash Events'!R:R),50) -> 30 | AD2: =IF(VLOOKUP(F2,Intersections!A:E,5,FALSE)="Unique",$B$22,IF(VLOOKUP(F2,Intersections!A:E,5,FALSE)="Split",$B$23,0)) -> 0 | AE2: =VLOOKUP(F2,Intersections!A:F,6,FALSE) -> 81100 | AF2: =_xlfn.IFS(AE2<7821,1,AE2<9601,2,AE2<11931,3,AE2<15801,4,AE2<20401,5,AE2<24821,6,AE2<29771,7,AE2<36181,8,AE2<67181,9,TRUE,10) -> 10 | AG2: =VLOOKUP(F2,Intersections!A:G,7,FALSE) -> 15000 | AH2: =_xlfn.IFS(AG2<827,1,AG2<1663,2,AG2<2590,3,AG2<3401,4,AG2<4671,5,AG2<6501,6,AG2<8401,7,AG2<1161,8,AG2<19401,9,TRUE,10) -> 9 | AI2: =IF(AND(AF2>8,AG2>8),5,0) -> 5 | AJ2: =_xlfn.IFS(VLOOKUP(F2,Intersections!A:H,8,FALSE)<=0.7,$B$30,VLOOKUP(F2,Intersections!A:H,8,FALSE)<=2,$B$31,TRUE,0) -> 10 | AK2: =_xlfn.IFS(VLOOKUP(F2,Intersections!A:D,4,FALSE)="Urban",$B$30,TRUE,0) -> 10
A3: Zero Crashes | B3: 0 | F3: I-380 & 1st St | G3: =COUNTIF('WWD Crashes'!C:C,F3) -> 1 | H3: =COUNTIFS('Non-Crash Events'!B:B,F3,'Non-Crash Events'!R:R,">0") -> 6 | I3: 191.15 | W3: Total Points: | AA3: =SUMIFS('WWD Crashes'!G:G,'WWD Crashes'!C:C,F3) -> 0.75 | AB3: =_xlfn.IFS(AA3<0.125,$B$3,AA3<0.25,$B$4,AA3<0.5,$B$5,AA3<0.99,$B$6,AA3<1.5,$B$7,TRUE,$B$8)+$B$9*SUMIFS('WWD Crashes'!G:G,'WWD Crashes'!C:C,F3,'WWD Crashes'!L:L,">0")++$B$10*SUMIFS('WWD Crashes'!G:G,'WWD Crashes'!C:C,F3,'WWD Crashes'!M:M,">0") -> 71.25 | AC3: =MIN($B$16*SUMIF('Non-Crash Events'!B:B,F3,'Non-Crash Events'!R:R),50) -> 39.9 | AD3: =IF(VLOOKUP(F3,Intersections!A:E,5,FALSE)="Unique",$B$22,IF(VLOOKUP(F3,Intersections!A:E,5,FALSE)="Split",$B$23,0)) -> 50 | AE3: =VLOOKUP(F3,Intersections!A:F,6,FALSE) -> 79400 | AF3: =_xlfn.IFS(AE3<7821,1,AE3<9601,2,AE3<11931,3,AE3<15801,4,AE3<20401,5,AE3<24821,6,AE3<29771,7,AE3<36181,8,AE3<67181,9,TRUE,10) -> 10 | AG3: =VLOOKUP(F3,Intersections!A:G,7,FALSE) -> 4550 | AH3: =_xlfn.IFS(AG3<827,1,AG3<1663,2,AG3<2590,3,AG3<3401,4,AG3<4671,5,AG3<6501,6,AG3<8401,7,AG3<1161,8,AG3<19401,9,TRUE,10) -> 5 | AI3: =IF(AND(AF3>8,AG3>8),5,0) -> 5 | AJ3: =_xlfn.IFS(VLOOKUP(F3,Intersections!A:H,8,FALSE)<=0.7,$B$30,VLOOKUP(F3,Intersections!A:H,8,FALSE)<=2,$B$31,TRUE,0) -> 10 | AK3: =_xlfn.IFS(VLOOKUP(F3,Intersections!A:D,4,FALSE)="Urban",$B$30,TRUE,0) -> 10
A4: [0 .125 - 0.25] Crashes | B4: 5 | F4: US-30 & Kirkwood Blvd | G4: =COUNTIF('WWD Crashes'!C:C,F4) -> 3 | H4: =COUNTIFS('Non-Crash Events'!B:B,F4,'Non-Crash Events'!R:R,">0") -> 6 | I4: 186.9 | K4: INFORMATION | V4: 0.25 | W4: Crashes | X4: =SUM(AB:AB) -> 5106.7575 | Y4: =X4/X$11 -> 0.2923215581 | AA4: =SUMIFS('WWD Crashes'!G:G,'WWD Crashes'!C:C,F4) -> 1.5 | AB4: =_xlfn.IFS(AA4<0.125,$B$3,AA4<0.25,$B$4,AA4<0.5,$B$5,AA4<0.99,$B$6,AA4<1.5,$B$7,TRUE,$B$8)+$B$9*SUMIFS('WWD Crashes'!G:G,'WWD Crashes'!C:C,F4,'WWD Crashes'!L:L,">0")++$B$10*SUMIFS('WWD Crashes'!G:G,'WWD Crashes'!C:C,F4,'WWD Crashes'!M:M,">0") -> 62.5 | AC4: =MIN($B$16*SUMIF('Non-Crash Events'!B:B,F4,'Non-Crash Events'!R:R),50) -> 47.4 | AD4: =IF(VLOOKUP(F4,Intersections!A:E,5,FALSE)="Unique",$B$22,IF(VLOOKUP(F4,Intersections!A:E,5,FALSE)="Split",$B$23,0)) -> 50 | AE4: =VLOOKUP(F4,Intersections!A:F,6,FALSE) -> 31700 | AF4: 8 | AG4: =VLOOKUP(F4,Intersections!A:G,7,FALSE) -> 16200 | AH4: 9 | AI4: 0 | AJ4: =_xlfn.IFS(VLOOKUP(F4,Intersections!A:H,8,FALSE)<=0.7,$B$30,VLOOKUP(F4,Intersections!A:H,8,FALSE)<=2,$B$31,TRUE,0) -> 10 | AK4: =_xlfn.IFS(VLOOKUP(F4,Intersections!A:D,4,FALSE)="Urban",$B$30,TRUE,0) -> 10
A5: [0.25 - 0.5] Crashes | B5: 10 | F5: I-80 & Grand Prairie Pkwy | G5: =COUNTIF('WWD Crashes'!C:C,F5) -> 1 | H5: =COUNTIFS('Non-Crash Events'!B:B,F5,'Non-Crash Events'!R:R,">0") -> 1 | I5: 185 | K5: Intersection Facts: | V5: 0.05 | W5: Non-Crash Events | X5: =SUM(AC:AC) -> 1491.9 | Y5: =X5/X$11 -> 0.0853994991 | AA5: =SUMIFS('WWD Crashes'!G:G,'WWD Crashes'!C:C,F5) -> 1 | AB5: =_xlfn.IFS(AA5<0.125,$B$3,AA5<0.25,$B$4,AA5<0.5,$B$5,AA5<0.99,$B$6,AA5<1.5,$B$7,TRUE,$B$8)+$B$9*SUMIFS('WWD Crashes'!G:G,'WWD Crashes'!C:C,F5,'WWD Crashes'!L:L,">0")++$B$10*SUMIFS('WWD Crashes'!G:G,'WWD Crashes'!C:C,F5,'WWD Crashes'!M:M,">0") -> 95 | AC5: =MIN($B$16*SUMIF('Non-Crash Events'!B:B,F5,'Non-Crash Events'!R:R),50) -> 10 | AD5: =IF(VLOOKUP(F5,Intersections!A:E,5,FALSE)="Unique",$B$22,IF(VLOOKUP(F5,Intersections!A:E,5,FALSE)="Split",$B$23,0)) -> 50 | AE5: =VLOOKUP(F5,Intersections!A:F,6,FALSE) -> 47200 | AF5: 9 | AG5: =VLOOKUP(F5,Intersections!A:G,7,FALSE) -> 5100 | AH5: 6 | AI5: 5 | AJ5: =_xlfn.IFS(VLOOKUP(F5,Intersections!A:H,8,FALSE)<=0.7,$B$30,VLOOKUP(F5,Intersections!A:H,8,FALSE)<=2,$B$31,TRUE,0) -> 10 | AK5: =_xlfn.IFS(VLOOKUP(F5,Intersections!A:D,4,FALSE)="Urban",$B$30,TRUE,0) -> 10
A6: [0.5 - .99] Crashes | B6: 15 | F6: IA-163 & CR-G28 | G6: =COUNTIF('WWD Crashes'!C:C,F6) -> 2 | H6: =COUNTIFS('Non-Crash Events'!B:B,F6,'Non-Crash Events'!R:R,">0") -> 0 | I6: 166.25 | L6: Interchange: | M6: I-235 & 73rd St | V6: 0.25 | W6: Uniqueness | X6: =SUM(AD:AD) -> 3250 | Y6: 0.186036847 | AA6: =SUMIFS('WWD Crashes'!G:G,'WWD Crashes'!C:C,F6) -> 1.49 | AB6: =_xlfn.IFS(AA6<0.125,$B$3,AA6<0.25,$B$4,AA6<0.5,$B$5,AA6<0.99,$B$6,AA6<1.5,$B$7,TRUE,$B$8)+$B$9*SUMIFS('WWD Crashes'!G:G,'WWD Crashes'!C:C,F6,'WWD Crashes'!L:L,">0")++$B$10*SUMIFS('WWD Crashes'!G:G,'WWD Crashes'!C:C,F6,'WWD Crashes'!M:M,">0") -> 94.25 | AC6: =MIN($B$16*SUMIF('Non-Crash Events'!B:B,F6,'Non-Crash Events'!R:R),50) -> 0 | AD6: =IF(VLOOKUP(F6,Intersections!A:E,5,FALSE)="Unique",$B$22,IF(VLOOKUP(F6,Intersections!A:E,5,FALSE)="Split",$B$23,0)) -> 50 | AE6: =VLOOKUP(F6,Intersections!A:F,6,FALSE) -> 10200 | AF6: 3 | AG6: =VLOOKUP(F6,Intersections!A:G,7,FALSE) -> 9800 | AH6: 9 | AI6: 0 | AJ6: =_xlfn.IFS(VLOOKUP(F6,Intersections!A:H,8,FALSE)<=0.7,$B$30,VLOOKUP(F6,Intersections!A:H,8,FALSE)<=2,$B$31,TRUE,0) -> 10 | AK6: =_xlfn.IFS(VLOOKUP(F6,Intersections!A:D,4,FALSE)="Urban",$B$30,TRUE,0) -> 10
A7: [.99 - 1.5] Crashes | B7: 20 | F7: I-80 & 1st Ave | G7: =COUNTIF('WWD Crashes'!C:C,F7) -> 2 | H7: =COUNTIFS('Non-Crash Events'!B:B,F7,'Non-Crash Events'!R:R,">0") -> 2 | I7: 154 | L7: County: | M7: =VLOOKUP(M6,Intersections!A:C,3,FALSE) -> Polk | W7: ML Traffic | X7: =SUM(AF:AF) -> 2385 | Y7: 0.1365224247 | AA7: =SUMIFS('WWD Crashes'!G:G,'WWD Crashes'!C:C,F7) -> 2 | AB7: =_xlfn.IFS(AA7<0.125,$B$3,AA7<0.25,$B$4,AA7<0.5,$B$5,AA7<0.99,$B$6,AA7<1.5,$B$7,TRUE,$B$8)+$B$9*SUMIFS('WWD Crashes'!G:G,'WWD Crashes'!C:C,F7,'WWD Crashes'!L:L,">0")++$B$10*SUMIFS('WWD Crashes'!G:G,'WWD Crashes'!C:C,F7,'WWD Crashes'!M:M,">0") -> 100 | AC7: =MIN($B$16*SUMIF('Non-Crash Events'!B:B,F7,'Non-Crash Events'!R:R),50) -> 20 | AD7: =IF(VLOOKUP(F7,Intersections!A:E,5,FALSE)="Unique",$B$22,IF(VLOOKUP(F7,Intersections!A:E,5,FALSE)="Split",$B$23,0)) -> 0 | AE7: =VLOOKUP(F7,Intersections!A:F,6,FALSE) -> 64300 | AF7: 9 | AG7: =VLOOKUP(F7,Intersections!A:G,7,FALSE) -> 24200 | AH7: 10 | AI7: 5 | AJ7: =_xlfn.IFS(VLOOKUP(F7,Intersections!A:H,8,FALSE)<=0.7,$B$30,VLOOKUP(F7,Intersections!A:H,8,FALSE)<=2,$B$31,TRUE,0) -> 10 | AK7: =_xlfn.IFS(VLOOKUP(F7,Intersections!A:D,4,FALSE)="Urban",$B$30,TRUE,0) -> 10
A8: > = 1.5 Crashes | B8: 25 | F8: I-29 & IA-192/16th St | G8: =COUNTIF('WWD Crashes'!C:C,F8) -> 1 | H8: =COUNTIFS('Non-Crash Events'!B:B,F8,'Non-Crash Events'!R:R,">0") -> 0 | I8: 148.25 | L8: Dist. To Liquor License: | M8: =_xlfn.TEXTJOIN("",TRUE,_xlfn.IFS(VLOOKUP(M6,Intersections!A:H,8,FALSE)<=0.7,A30,VLOOKUP(M6,Intersections!A:H,8,FALSE)<=2,A31,TRUE,A32)," (",X17," points)") -> Within 0.7 miles (10 points) | W8: SR Traffic | X8: =SUM(AH:AH) -> 2431 | Y8: 0.1391555616 | AA8: =SUMIFS('WWD Crashes'!G:G,'WWD Crashes'!C:C,F8) -> 0.79 | AB8: =_xlfn.IFS(AA8<0.125,$B$3,AA8<0.25,$B$4,AA8<0.5,$B$5,AA8<0.99,$B$6,AA8<1.5,$B$7,TRUE,$B$8)+$B$9*SUMIFS('WWD Crashes'!G:G,'WWD Crashes'!C:C,F8,'WWD Crashes'!L:L,">0")++$B$10*SUMIFS('WWD Crashes'!G:G,'WWD Crashes'!C:C,F8,'WWD Crashes'!M:M,">0") -> 74.25 | AC8: =MIN($B$16*SUMIF('Non-Crash Events'!B:B,F8,'Non-Crash Events'!R:R),50) -> 0 | AD8: =IF(VLOOKUP(F8,Intersections!A:E,5,FALSE)="Unique",$B$22,IF(VLOOKUP(F8,Intersections!A:E,5,FALSE)="Split",$B$23,0)) -> 50 | AE8: =VLOOKUP(F8,Intersections!A:F,6,FALSE) -> 18200 | AF8: 5 | AG8: =VLOOKUP(F8,Intersections!A:G,7,FALSE) -> 8700 | AH8: 9 | AI8: 0 | AJ8: =_xlfn.IFS(VLOOKUP(F8,Intersections!A:H,8,FALSE)<=0.7,$B$30,VLOOKUP(F8,Intersections!A:H,8,FALSE)<=2,$B$31,TRUE,0) -> 10 | AK8: =_xlfn.IFS(VLOOKUP(F8,Intersections!A:D,4,FALSE)="Urban",$B$30,TRUE,0) -> 10
A9: Major Injury Crash | B9: 0 | F9: I-280 & US-6 | G9: =COUNTIF('WWD Crashes'!C:C,F9) -> 1 | H9: =COUNTIFS('Non-Crash Events'!B:B,F9,'Non-Crash Events'!R:R,">0") -> 2 | I9: 144.25 | L9: Type: | M9: =_xlfn.TEXTJOIN("",TRUE,VLOOKUP(M6,Intersections!A:E,5,FALSE)," (",X16," points)") -> Unique (50 points) | V9: 0.25 | W9: Bonus | X9: =SUM(AI:AI) -> 430 | Y9: 0.02461410591 | AA9: =SUMIFS('WWD Crashes'!G:G,'WWD Crashes'!C:C,F9) -> 0.75 | AB9: =_xlfn.IFS(AA9<0.125,$B$3,AA9<0.25,$B$4,AA9<0.5,$B$5,AA9<0.99,$B$6,AA9<1.5,$B$7,TRUE,$B$8)+$B$9*SUMIFS('WWD Crashes'!G:G,'WWD Crashes'!C:C,F9,'WWD Crashes'!L:L,">0")++$B$10*SUMIFS('WWD Crashes'!G:G,'WWD Crashes'!C:C,F9,'WWD Crashes'!M:M,">0") -> 71.25 | AC9: =MIN($B$16*SUMIF('Non-Crash Events'!B:B,F9,'Non-Crash Events'!R:R),50) -> 10 | AD9: =IF(VLOOKUP(F9,Intersections!A:E,5,FALSE)="Unique",$B$22,IF(VLOOKUP(F9,Intersections!A:E,5,FALSE)="Split",$B$23,0)) -> 50 | AE9: =VLOOKUP(F9,Intersections!A:F,6,FALSE) -> 22400 | AF9: 6 | AG9: =VLOOKUP(F9,Intersections!A:G,7,FALSE) -> 6600 | AH9: 7 | AI9: 0 | AJ9: =_xlfn.IFS(VLOOKUP(F9,Intersections!A:H,8,FALSE)<=0.7,$B$30,VLOOKUP(F9,Intersections!A:H,8,FALSE)<=2,$B$31,TRUE,0) -> 0 | AK9: =_xlfn.IFS(VLOOKUP(F9,Intersections!A:D,4,FALSE)="Urban",$B$30,TRUE,0) -> 0
A10: Fatal Crash | B10: 75 | F10: I-380 & 33rd Ave | G10: =COUNTIF('WWD Crashes'!C:C,F10) -> 2 | H10: =COUNTIFS('Non-Crash Events'!B:B,F10,'Non-Crash Events'!R:R,">0") -> 4 | I10: 141.15 | L10: Major AADT: | M10: =_xlfn.TEXTJOIN("",TRUE,VLOOKUP(M6,Intersections!A:F,6,FALSE)," (",VLOOKUP(M6,F:AF,27,FALSE)," points)") -> 128100 (10 points) | V10: 0.2 | W10: Urban | X10: =SUM(AJ:AJ) -> 2375 | Y10: 0.1359500036 | AA10: =SUMIFS('WWD Crashes'!G:G,'WWD Crashes'!C:C,F10) -> 0.75 | AB10: =_xlfn.IFS(AA10<0.125,$B$3,AA10<0.25,$B$4,AA10<0.5,$B$5,AA10<0.99,$B$6,AA10<1.5,$B$7,TRUE,$B$8)+$B$9*SUMIFS('WWD Crashes'!G:G,'WWD Crashes'!C:C,F10,'WWD Crashes'!L:L,">0")++$B$10*SUMIFS('WWD Crashes'!G:G,'WWD Crashes'!C:C,F10,'WWD Crashes'!M:M,">0") -> 71.25 | AC10: =MIN($B$16*SUMIF('Non-Crash Events'!B:B,F10,'Non-Crash Events'!R:R),50) -> 34.9 | AD10: =IF(VLOOKUP(F10,Intersections!A:E,5,FALSE)="Unique",$B$22,IF(VLOOKUP(F10,Intersections!A:E,5,FALSE)="Split",$B$23,0)) -> 0 | AE10: =VLOOKUP(F10,Intersections!A:F,6,FALSE) -> 76100 | AF10: 10 | AG10: =VLOOKUP(F10,Intersections!A:G,7,FALSE) -> 20400 | AH10: 10 | AI10: 5 | AJ10: =_xlfn.IFS(VLOOKUP(F10,Intersections!A:H,8,FALSE)<=0.7,$B$30,VLOOKUP(F10,Intersections!A:H,8,FALSE)<=2,$B$31,TRUE,0) -> 10 | AK10: =_xlfn.IFS(VLOOKUP(F10,Intersections!A:D,4,FALSE)="Urban",$B$30,TRUE,0) -> 10
F11: I-80 & US-69 | G11: =COUNTIF('WWD Crashes'!C:C,F11) -> 2 | H11: =COUNTIFS('Non-Crash Events'!B:B,F11,'Non-Crash Events'!R:R,">0") -> 0 | I11: 135 | L11: Minor AADT: | M11: =_xlfn.TEXTJOIN("",TRUE,VLOOKUP(M6,Intersections!A:G,7,FALSE)," (",VLOOKUP(M6,F:AH,29,FALSE)," points)") -> 22600 (10 points) | W11: Total | X11: =SUM(X4:X10) -> 17469.6575 | AA11: =SUMIFS('WWD Crashes'!G:G,'WWD Crashes'!C:C,F11) -> 2 | AB11: =_xlfn.IFS(AA11<0.125,$B$3,AA11<0.25,$B$4,AA11<0.5,$B$5,AA11<0.99,$B$6,AA11<1.5,$B$7,TRUE,$B$8)+$B$9*SUMIFS('WWD Crashes'!G:G,'WWD Crashes'!C:C,F11,'WWD Crashes'!L:L,">0")++$B$10*SUMIFS('WWD Crashes'!G:G,'WWD Crashes'!C:C,F11,'WWD Crashes'!M:M,">0") -> 100 | AC11: =MIN($B$16*SUMIF('Non-Crash Events'!B:B,F11,'Non-Crash Events'!R:R),50) -> 0 | AD11: =IF(VLOOKUP(F11,Intersections!A:E,5,FALSE)="Unique",$B$22,IF(VLOOKUP(F11,Intersections!A:E,5,FALSE)="Split",$B$23,0)) -> 0 | AE11: =VLOOKUP(F11,Intersections!A:F,6,FALSE) -> 87400 | AF11: 10 | AG11: =VLOOKUP(F11,Intersections!A:G,7,FALSE) -> 19600 | AH11: 10 | AI11: 5 | AJ11: =_xlfn.IFS(VLOOKUP(F11,Intersections!A:H,8,FALSE)<=0.7,$B$30,VLOOKUP(F11,Intersections!A:H,8,FALSE)<=2,$B$31,TRUE,0) -> 10 | AK11: =_xlfn.IFS(VLOOKUP(F11,Intersections!A:D,4,FALSE)="Urban",$B$30,TRUE,0) -> 10
F12: I-35 & Grand Ave | G12: =COUNTIF('WWD Crashes'!C:C,F12) -> 2 | H12: =COUNTIFS('Non-Crash Events'!B:B,F12,'Non-Crash Events'!R:R,">0") -> 1 | I12: 128.25 | L12: # of Non-Crash Events: | M12: =_xlfn.TEXTJOIN("",TRUE,COUNTIFS('Non-Crash Events'!B:B,M6,'Non-Crash Events'!R:R,">0")," (",X14," points)") -> 0 (0 points) | W12: Selected Interchange Points | AA12: =SUMIFS('WWD Crashes'!G:G,'WWD Crashes'!C:C,F12) -> 1.24 | AB12: =_xlfn.IFS(AA12<0.125,$B$3,AA12<0.25,$B$4,AA12<0.5,$B$5,AA12<0.99,$B$6,AA12<1.5,$B$7,TRUE,$B$8)+$B$9*SUMIFS('WWD Crashes'!G:G,'WWD Crashes'!C:C,F12,'WWD Crashes'!L:L,">0")++$B$10*SUMIFS('WWD Crashes'!G:G,'WWD Crashes'!C:C,F12,'WWD Crashes'!M:M,">0") -> 94.25 | AC12: =MIN($B$16*SUMIF('Non-Crash Events'!B:B,F12,'Non-Crash Events'!R:R),50) -> 10 | AD12: =IF(VLOOKUP(F12,Intersections!A:E,5,FALSE)="Unique",$B$22,IF(VLOOKUP(F12,Intersections!A:E,5,FALSE)="Split",$B$23,0)) -> 0 | AE12: =VLOOKUP(F12,Intersections!A:F,6,FALSE) -> 53700 | AF12: 9 | AG12: =VLOOKUP(F12,Intersections!A:G,7,FALSE) -> 4660 | AH12: 5 | AI12: 5 | AJ12: =_xlfn.IFS(VLOOKUP(F12,Intersections!A:H,8,FALSE)<=0.7,$B$30,VLOOKUP(F12,Intersections!A:H,8,FALSE)<=2,$B$31,TRUE,0) -> 5 | AK12: =_xlfn.IFS(VLOOKUP(F12,Intersections!A:D,4,FALSE)="Urban",$B$30,TRUE,0) -> 10
F13: I-380 & 7th St | G13: =COUNTIF('WWD Crashes'!C:C,F13) -> 1 | H13: =COUNTIFS('Non-Crash Events'!B:B,F13,'Non-Crash Events'!R:R,">0") -> 5 | I13: 132 | L13: # of Crashes: | M13: =_xlfn.TEXTJOIN("",TRUE,COUNTIF('WWD Crashes'!C:C,M6)," (",X13," points)") -> 1 (20 points) | W13: Crashes | X13: =VLOOKUP(M6,F:AB,23,FALSE) -> 20 | AA13: =SUMIFS('WWD Crashes'!G:G,'WWD Crashes'!C:C,F13) -> 1 | AB13: =_xlfn.IFS(AA13<0.125,$B$3,AA13<0.25,$B$4,AA13<0.5,$B$5,AA13<0.99,$B$6,AA13<1.5,$B$7,TRUE,$B$8)+$B$9*SUMIFS('WWD Crashes'!G:G,'WWD Crashes'!C:C,F13,'WWD Crashes'!L:L,">0")++$B$10*SUMIFS('WWD Crashes'!G:G,'WWD Crashes'!C:C,F13,'WWD Crashes'!M:M,">0") -> 20 | AC13: =MIN($B$16*SUMIF('Non-Crash Events'!B:B,F13,'Non-Crash Events'!R:R),50) -> 30 | AD13: =IF(VLOOKUP(F13,Intersections!A:E,5,FALSE)="Unique",$B$22,IF(VLOOKUP(F13,Intersections!A:E,5,FALSE)="Split",$B$23,0)) -> 50 | AE13: =VLOOKUP(F13,Intersections!A:F,6,FALSE) -> 90800 | AF13: 10 | AG13: =VLOOKUP(F13,Intersections!A:G,7,FALSE) -> 6900 | AH13: 7 | AI13: 5 | AJ13: =_xlfn.IFS(VLOOKUP(F13,Intersections!A:H,8,FALSE)<=0.7,$B$30,VLOOKUP(F13,Intersections!A:H,8,FALSE)<=2,$B$31,TRUE,0) -> 10 | AK13: =_xlfn.IFS(VLOOKUP(F13,Intersections!A:D,4,FALSE)="Urban",$B$30,TRUE,0) -> 10
A14: Non-Crash Events | F14: US-218 & Barrick Rd | G14: =COUNTIF('WWD Crashes'!C:C,F14) -> 1 | H14: =COUNTIFS('Non-Crash Events'!B:B,F14,'Non-Crash Events'!R:R,">0") -> 0 | I14: 130.25 | L14: # of Major Injuries: | M14: =SUMIF('WWD Crashes'!C:C,M6,'WWD Crashes'!L:L) -> 0 | W14: Non-Crash Events | X14: =VLOOKUP(M6,F:AC,24,FALSE) -> 0 | AA14: =SUMIFS('WWD Crashes'!G:G,'WWD Crashes'!C:C,F14) -> 0.75 | AB14: =_xlfn.IFS(AA14<0.125,$B$3,AA14<0.25,$B$4,AA14<0.5,$B$5,AA14<0.99,$B$6,AA14<1.5,$B$7,TRUE,$B$8)+$B$9*SUMIFS('WWD Crashes'!G:G,'WWD Crashes'!C:C,F14,'WWD Crashes'!L:L,">0")++$B$10*SUMIFS('WWD Crashes'!G:G,'WWD Crashes'!C:C,F14,'WWD Crashes'!M:M,">0") -> 71.25 | AC14: =MIN($B$16*SUMIF('Non-Crash Events'!B:B,F14,'Non-Crash Events'!R:R),50) -> 0 | AD14: =IF(VLOOKUP(F14,Intersections!A:E,5,FALSE)="Unique",$B$22,IF(VLOOKUP(F14,Intersections!A:E,5,FALSE)="Split",$B$23,0)) -> 50 | AE14: =VLOOKUP(F14,Intersections!A:F,6,FALSE) -> 19000 | AF14: 5 | AG14: =VLOOKUP(F14,Intersections!A:G,7,FALSE) -> 2900 | AH14: 4 | AI14: 0 | AJ14: =_xlfn.IFS(VLOOKUP(F14,Intersections!A:H,8,FALSE)<=0.7,$B$30,VLOOKUP(F14,Intersections!A:H,8,FALSE)<=2,$B$31,TRUE,0) -> 0 | AK14: =_xlfn.IFS(VLOOKUP(F14,Intersections!A:D,4,FALSE)="Urban",$B$30,TRUE,0) -> 0
A15: Criteria | B15: Points | F15: I-35 & US-6/Hickman Rd | G15: =COUNTIF('WWD Crashes'!C:C,F15) -> 1 | H15: =COUNTIFS('Non-Crash Events'!B:B,F15,'Non-Crash Events'!R:R,">0") -> 0 | I15: 130 | L15: # of Fatalities: | M15: =SUMIF('WWD Crashes'!C:C,M6,'WWD Crashes'!M:M) -> 0 | W15: Traffic | X15: =VLOOKUP(M6,F:AF,27,FALSE)+VLOOKUP(M6,F:AH,29,FALSE)+VLOOKUP(M6,F:AI,30,FALSE) -> 25 | AA15: =SUMIFS('WWD Crashes'!G:G,'WWD Crashes'!C:C,F15) -> 1 | AB15: =_xlfn.IFS(AA15<0.125,$B$3,AA15<0.25,$B$4,AA15<0.5,$B$5,AA15<0.99,$B$6,AA15<1.5,$B$7,TRUE,$B$8)+$B$9*SUMIFS('WWD Crashes'!G:G,'WWD Crashes'!C:C,F15,'WWD Crashes'!L:L,">0")++$B$10*SUMIFS('WWD Crashes'!G:G,'WWD Crashes'!C:C,F15,'WWD Crashes'!M:M,">0") -> 95 | AC15: =MIN($B$16*SUMIF('Non-Crash Events'!B:B,F15,'Non-Crash Events'!R:R),50) -> 0 | AD15: =IF(VLOOKUP(F15,Intersections!A:E,5,FALSE)="Unique",$B$22,IF(VLOOKUP(F15,Intersections!A:E,5,FALSE)="Split",$B$23,0)) -> 0 | AE15: =VLOOKUP(F15,Intersections!A:F,6,FALSE) -> 121400 | AF15: 10 | AG15: =VLOOKUP(F15,Intersections!A:G,7,FALSE) -> 37300 | AH15: 10 | AI15: 5 | AJ15: =_xlfn.IFS(VLOOKUP(F15,Intersections!A:H,8,FALSE)<=0.7,$B$30,VLOOKUP(F15,Intersections!A:H,8,FALSE)<=2,$B$31,TRUE,0) -> 10 | AK15: =_xlfn.IFS(VLOOKUP(F15,Intersections!A:D,4,FALSE)="Urban",$B$30,TRUE,0) -> 10
A16: Per event (up to 50) | B16: 10 | F16: US-218 & IA-2 | G16: =COUNTIF('WWD Crashes'!C:C,F16) -> 2 | H16: =COUNTIFS('Non-Crash Events'!B:B,F16,'Non-Crash Events'!R:R,">0") -> 0 | I16: 128.75 | L16: Total Points: | M16: =VLOOKUP(M6,F:I,4,FALSE) -> 105 | W16: Unique Interchange | X16: =VLOOKUP(M6,F:AD,25,FALSE) -> 50 | AA16: =SUMIFS('WWD Crashes'!G:G,'WWD Crashes'!C:C,F16) -> 1.25 | AB16: =_xlfn.IFS(AA16<0.125,$B$3,AA16<0.25,$B$4,AA16<0.5,$B$5,AA16<0.99,$B$6,AA16<1.5,$B$7,TRUE,$B$8)+$B$9*SUMIFS('WWD Crashes'!G:G,'WWD Crashes'!C:C,F16,'WWD Crashes'!L:L,">0")++$B$10*SUMIFS('WWD Crashes'!G:G,'WWD Crashes'!C:C,F16,'WWD Crashes'!M:M,">0") -> 113.75 | AC16: =MIN($B$16*SUMIF('Non-Crash Events'!B:B,F16,'Non-Crash Events'!R:R),50) -> 0 | AD16: =IF(VLOOKUP(F16,Intersections!A:E,5,FALSE)="Unique",$B$22,IF(VLOOKUP(F16,Intersections!A:E,5,FALSE)="Split",$B$23,0)) -> 0 | AE16: =VLOOKUP(F16,Intersections!A:F,6,FALSE) -> 6500 | AF16: 1 | AG16: =VLOOKUP(F16,Intersections!A:G,7,FALSE) -> 3380 | AH16: 4 | AI16: 0 | AJ16: =_xlfn.IFS(VLOOKUP(F16,Intersections!A:H,8,FALSE)<=0.7,$B$30,VLOOKUP(F16,Intersections!A:H,8,FALSE)<=2,$B$31,TRUE,0) -> 10 | AK16: =_xlfn.IFS(VLOOKUP(F16,Intersections!A:D,4,FALSE)="Urban",$B$30,TRUE,0) -> 0
F17: I-80 & IA-21 | G17: =COUNTIF('WWD Crashes'!C:C,F17) -> 4 | H17: =COUNTIFS('Non-Crash Events'!B:B,F17,'Non-Crash Events'!R:R,">0") -> 4 | I17: 124.4 | L17: Rank: | M17: =MATCH(M6,F:F,0)-1 -> 23 | W17: Urban Location | X17: =VLOOKUP(M6,F:AJ,31,FALSE) -> 10 | AA17: =SUMIFS('WWD Crashes'!G:G,'WWD Crashes'!C:C,F17) -> 3.25 | AB17: =_xlfn.IFS(AA17<0.125,$B$3,AA17<0.25,$B$4,AA17<0.5,$B$5,AA17<0.99,$B$6,AA17<1.5,$B$7,TRUE,$B$8)+$B$9*SUMIFS('WWD Crashes'!G:G,'WWD Crashes'!C:C,F17,'WWD Crashes'!L:L,">0")++$B$10*SUMIFS('WWD Crashes'!G:G,'WWD Crashes'!C:C,F17,'WWD Crashes'!M:M,">0") -> 25 | AC17: =MIN($B$16*SUMIF('Non-Crash Events'!B:B,F17,'Non-Crash Events'!R:R),50) -> 37.4 | AD17: =IF(VLOOKUP(F17,Intersections!A:E,5,FALSE)="Unique",$B$22,IF(VLOOKUP(F17,Intersections!A:E,5,FALSE)="Split",$B$23,0)) -> 50 | AE17: =VLOOKUP(F17,Intersections!A:F,6,FALSE) -> 28700 | AF17: 7 | AG17: =VLOOKUP(F17,Intersections!A:G,7,FALSE) -> 3430 | AH17: 5 | AI17: 0 | AJ17: =_xlfn.IFS(VLOOKUP(F17,Intersections!A:H,8,FALSE)<=0.7,$B$30,VLOOKUP(F17,Intersections!A:H,8,FALSE)<=2,$B$31,TRUE,0) -> 0 | AK17: =_xlfn.IFS(VLOOKUP(F17,Intersections!A:D,4,FALSE)="Urban",$B$30,TRUE,0) -> 0
F18: I-35 & Mills Civic Pkwy | G18: =COUNTIF('WWD Crashes'!C:C,F18) -> 3 | H18: =COUNTIFS('Non-Crash Events'!B:B,F18,'Non-Crash Events'!R:R,">0") -> 1 | I18: 120 | AA18: =SUMIFS('WWD Crashes'!G:G,'WWD Crashes'!C:C,F18) -> 2.99 | AB18: =_xlfn.IFS(AA18<0.125,$B$3,AA18<0.25,$B$4,AA18<0.5,$B$5,AA18<0.99,$B$6,AA18<1.5,$B$7,TRUE,$B$8)+$B$9*SUMIFS('WWD Crashes'!G:G,'WWD Crashes'!C:C,F18,'WWD Crashes'!L:L,">0")++$B$10*SUMIFS('WWD Crashes'!G:G,'WWD Crashes'!C:C,F18,'WWD Crashes'!M:M,">0") -> 25 | AC18: =MIN($B$16*SUMIF('Non-Crash Events'!B:B,F18,'Non-Crash Events'!R:R),50) -> 10 | AD18: =IF(VLOOKUP(F18,Intersections!A:E,5,FALSE)="Unique",$B$22,IF(VLOOKUP(F18,Intersections!A:E,5,FALSE)="Split",$B$23,0)) -> 50 | AE18: =VLOOKUP(F18,Intersections!A:F,6,FALSE) -> 73200 | AF18: 10 | AG18: =VLOOKUP(F18,Intersections!A:G,7,FALSE) -> 20500 | AH18: 10 | AI18: 5 | AJ18: =_xlfn.IFS(VLOOKUP(F18,Intersections!A:H,8,FALSE)<=0.7,$B$30,VLOOKUP(F18,Intersections!A:H,8,FALSE)<=2,$B$31,TRUE,0) -> 10 | AK18: =_xlfn.IFS(VLOOKUP(F18,Intersections!A:D,4,FALSE)="Urban",$B$30,TRUE,0) -> 10
F19: I-235 & Keosauqua Way | G19: =COUNTIF('WWD Crashes'!C:C,F19) -> 3 | H19: =COUNTIFS('Non-Crash Events'!B:B,F19,'Non-Crash Events'!R:R,">0") -> 1 | I19: 119 | L19: =HYPERLINK("#'Weight Based'!"&ADDRESS(MATCH(M6,F:F,0),6),"Back to List") -> Back to List | M19: Update Ranking | AA19: =SUMIFS('WWD Crashes'!G:G,'WWD Crashes'!C:C,F19) -> 2.5 | AB19: =_xlfn.IFS(AA19<0.125,$B$3,AA19<0.25,$B$4,AA19<0.5,$B$5,AA19<0.99,$B$6,AA19<1.5,$B$7,TRUE,$B$8)+$B$9*SUMIFS('WWD Crashes'!G:G,'WWD Crashes'!C:C,F19,'WWD Crashes'!L:L,">0")++$B$10*SUMIFS('WWD Crashes'!G:G,'WWD Crashes'!C:C,F19,'WWD Crashes'!M:M,">0") -> 25 | AC19: =MIN($B$16*SUMIF('Non-Crash Events'!B:B,F19,'Non-Crash Events'!R:R),50) -> 10 | AD19: =IF(VLOOKUP(F19,Intersections!A:E,5,FALSE)="Unique",$B$22,IF(VLOOKUP(F19,Intersections!A:E,5,FALSE)="Split",$B$23,0)) -> 50 | AE19: =VLOOKUP(F19,Intersections!A:F,6,FALSE) -> 91300 | AF19: 10 | AG19: =VLOOKUP(F19,Intersections!A:G,7,FALSE) -> 13800 | AH19: 9 | AI19: 5 | AJ19: =_xlfn.IFS(VLOOKUP(F19,Intersections!A:H,8,FALSE)<=0.7,$B$30,VLOOKUP(F19,Intersections!A:H,8,FALSE)<=2,$B$31,TRUE,0) -> 10 | AK19: =_xlfn.IFS(VLOOKUP(F19,Intersections!A:D,4,FALSE)="Urban",$B$30,TRUE,0) -> 10
A20: Interchange Style | F20: US-30 & 19th St | G20: =COUNTIF('WWD Crashes'!C:C,F20) -> 0 | H20: =COUNTIFS('Non-Crash Events'!B:B,F20,'Non-Crash Events'!R:R,">0") -> 10 | I20: 119 | AA20: =SUMIFS('WWD Crashes'!G:G,'WWD Crashes'!C:C,F20) -> 0 | AB20: =_xlfn.IFS(AA20<0.125,$B$3,AA20<0.25,$B$4,AA20<0.5,$B$5,AA20<0.99,$B$6,AA20<1.5,$B$7,TRUE,$B$8)+$B$9*SUMIFS('WWD Crashes'!G:G,'WWD Crashes'!C:C,F20,'WWD Crashes'!L:L,">0")++$B$10*SUMIFS('WWD Crashes'!G:G,'WWD Crashes'!C:C,F20,'WWD Crashes'!M:M,">0") -> 0 | AC20: =MIN($B$16*SUMIF('Non-Crash Events'!B:B,F20,'Non-Crash Events'!R:R),50) -> 50 | AD20: =IF(VLOOKUP(F20,Intersections!A:E,5,FALSE)="Unique",$B$22,IF(VLOOKUP(F20,Intersections!A:E,5,FALSE)="Split",$B$23,0)) -> 50 | AE20: =VLOOKUP(F20,Intersections!A:F,6,FALSE) -> 12200 | AF20: 4 | AG20: =VLOOKUP(F20,Intersections!A:G,7,FALSE) -> 4240 | AH20: 5 | AI20: 0 | AJ20: =_xlfn.IFS(VLOOKUP(F20,Intersections!A:H,8,FALSE)<=0.7,$B$30,VLOOKUP(F20,Intersections!A:H,8,FALSE)<=2,$B$31,TRUE,0) -> 10 | AK20: =_xlfn.IFS(VLOOKUP(F20,Intersections!A:D,4,FALSE)="Urban",$B$30,TRUE,0) -> 0
A21: Criteria | B21: Points | F21: I-80 & IA-38 | G21: =COUNTIF('WWD Crashes'!C:C,F21) -> 2 | H21: =COUNTIFS('Non-Crash Events'!B:B,F21,'Non-Crash Events'!R:R,">0") -> 0 | I21: 118.75 | AA21: =SUMIFS('WWD Crashes'!G:G,'WWD Crashes'!C:C,F21) -> 0.83 | AB21: =_xlfn.IFS(AA21<0.125,$B$3,AA21<0.25,$B$4,AA21<0.5,$B$5,AA21<0.99,$B$6,AA21<1.5,$B$7,TRUE,$B$8)+$B$9*SUMIFS('WWD Crashes'!G:G,'WWD Crashes'!C:C,F21,'WWD Crashes'!L:L,">0")++$B$10*SUMIFS('WWD Crashes'!G:G,'WWD Crashes'!C:C,F21,'WWD Crashes'!M:M,">0") -> 39.75 | AC21: =MIN($B$16*SUMIF('Non-Crash Events'!B:B,F21,'Non-Crash Events'!R:R),50) -> 0 | AD21: =IF(VLOOKUP(F21,Intersections!A:E,5,FALSE)="Unique",$B$22,IF(VLOOKUP(F21,Intersections!A:E,5,FALSE)="Split",$B$23,0)) -> 50 | AE21: =VLOOKUP(F21,Intersections!A:F,6,FALSE) -> 36200 | AF21: 9 | AG21: =VLOOKUP(F21,Intersections!A:G,7,FALSE) -> 3540 | AH21: 5 | AI21: 5 | AJ21: =_xlfn.IFS(VLOOKUP(F21,Intersections!A:H,8,FALSE)<=0.7,$B$30,VLOOKUP(F21,Intersections!A:H,8,FALSE)<=2,$B$31,TRUE,0) -> 10 | AK21: =_xlfn.IFS(VLOOKUP(F21,Intersections!A:D,4,FALSE)="Urban",$B$30,TRUE,0) -> 0
A22: Unique | B22: 50 | F22: I-80 & Black Hawk Ave | G22: =COUNTIF('WWD Crashes'!C:C,F22) -> 1 | H22: =COUNTIFS('Non-Crash Events'!B:B,F22,'Non-Crash Events'!R:R,">0") -> 3 | I22: 109.9 | AA22: =SUMIFS('WWD Crashes'!G:G,'WWD Crashes'!C:C,F22) -> 1 | AB22: =_xlfn.IFS(AA22<0.125,$B$3,AA22<0.25,$B$4,AA22<0.5,$B$5,AA22<0.99,$B$6,AA22<1.5,$B$7,TRUE,$B$8)+$B$9*SUMIFS('WWD Crashes'!G:G,'WWD Crashes'!C:C,F22,'WWD Crashes'!L:L,">0")++$B$10*SUMIFS('WWD Crashes'!G:G,'WWD Crashes'!C:C,F22,'WWD Crashes'!M:M,">0") -> 20 | AC22: =MIN($B$16*SUMIF('Non-Crash Events'!B:B,F22,'Non-Crash Events'!R:R),50) -> 29.9 | AD22: =IF(VLOOKUP(F22,Intersections!A:E,5,FALSE)="Unique",$B$22,IF(VLOOKUP(F22,Intersections!A:E,5,FALSE)="Split",$B$23,0)) -> 50 | AE22: =VLOOKUP(F22,Intersections!A:F,6,FALSE) -> 34400 | AF22: 8 | AG22: =VLOOKUP(F22,Intersections!A:G,7,FALSE) -> 1190 | AH22: 2 | AI22: 0 | AJ22: =_xlfn.IFS(VLOOKUP(F22,Intersections!A:H,8,FALSE)<=0.7,$B$30,VLOOKUP(F22,Intersections!A:H,8,FALSE)<=2,$B$31,TRUE,0) -> 0 | AK22: =_xlfn.IFS(VLOOKUP(F22,Intersections!A:D,4,FALSE)="Urban",$B$30,TRUE,0) -> 0
A23: Split | B23: 25 | F23: I-35 & Oralabor Rd | G23: =COUNTIF('WWD Crashes'!C:C,F23) -> 3 | H23: =COUNTIFS('Non-Crash Events'!B:B,F23,'Non-Crash Events'!R:R,">0") -> 1 | I23: 107.5 | AA23: =SUMIFS('WWD Crashes'!G:G,'WWD Crashes'!C:C,F23) -> 2 | AB23: =_xlfn.IFS(AA23<0.125,$B$3,AA23<0.25,$B$4,AA23<0.5,$B$5,AA23<0.99,$B$6,AA23<1.5,$B$7,TRUE,$B$8)+$B$9*SUMIFS('WWD Crashes'!G:G,'WWD Crashes'!C:C,F23,'WWD Crashes'!L:L,">0")++$B$10*SUMIFS('WWD Crashes'!G:G,'WWD Crashes'!C:C,F23,'WWD Crashes'!M:M,">0") -> 62.5 | AC23: =MIN($B$16*SUMIF('Non-Crash Events'!B:B,F23,'Non-Crash Events'!R:R),50) -> 10 | AD23: =IF(VLOOKUP(F23,Intersections!A:E,5,FALSE)="Unique",$B$22,IF(VLOOKUP(F23,Intersections!A:E,5,FALSE)="Split",$B$23,0)) -> 0 | AE23: =VLOOKUP(F23,Intersections!A:F,6,FALSE) -> 80700 | AF23: 10 | AG23: =VLOOKUP(F23,Intersections!A:G,7,FALSE) -> 30200 | AH23: 10 | AI23: 5 | AJ23: =_xlfn.IFS(VLOOKUP(F23,Intersections!A:H,8,FALSE)<=0.7,$B$30,VLOOKUP(F23,Intersections!A:H,8,FALSE)<=2,$B$31,TRUE,0) -> 10 | AK23: =_xlfn.IFS(VLOOKUP(F23,Intersections!A:D,4,FALSE)="Urban",$B$30,TRUE,0) -> 10
A24: Other | B24: 0 | F24: I-235 & 73rd St | G24: =COUNTIF('WWD Crashes'!C:C,F24) -> 1 | H24: =COUNTIFS('Non-Crash Events'!B:B,F24,'Non-Crash Events'!R:R,">0") -> 0 | I24: 105 | AA24: =SUMIFS('WWD Crashes'!G:G,'WWD Crashes'!C:C,F24) -> 1 | AB24: =_xlfn.IFS(AA24<0.125,$B$3,AA24<0.25,$B$4,AA24<0.5,$B$5,AA24<0.99,$B$6,AA24<1.5,$B$7,TRUE,$B$8)+$B$9*SUMIFS('WWD Crashes'!G:G,'WWD Crashes'!C:C,F24,'WWD Crashes'!L:L,">0")++$B$10*SUMIFS('WWD Crashes'!G:G,'WWD Crashes'!C:C,F24,'WWD Crashes'!M:M,">0") -> 20 | AC24: =MIN($B$16*SUMIF('Non-Crash Events'!B:B,F24,'Non-Crash Events'!R:R),50) -> 0 | AD24: =IF(VLOOKUP(F24,Intersections!A:E,5,FALSE)="Unique",$B$22,IF(VLOOKUP(F24,Intersections!A:E,5,FALSE)="Split",$B$23,0)) -> 50 | AE24: =VLOOKUP(F24,Intersections!A:F,6,FALSE) -> 128100 | AF24: 10 | AG24: =VLOOKUP(F24,Intersections!A:G,7,FALSE) -> 22600 | AH24: 10 | AI24: 5 | AJ24: =_xlfn.IFS(VLOOKUP(F24,Intersections!A:H,8,FALSE)<=0.7,$B$30,VLOOKUP(F24,Intersections!A:H,8,FALSE)<=2,$B$31,TRUE,0) -> 10 | AK24: =_xlfn.IFS(VLOOKUP(F24,Intersections!A:D,4,FALSE)="Urban",$B$30,TRUE,0) -> 10
F25: I-380 & Glass Rd | G25: =COUNTIF('WWD Crashes'!C:C,F25) -> 2 | H25: =COUNTIFS('Non-Crash Events'!B:B,F25,'Non-Crash Events'!R:R,">0") -> 2 | I25: 103.9 | AA25: =SUMIFS('WWD Crashes'!G:G,'WWD Crashes'!C:C,F25) -> 1.74 | AB25: =_xlfn.IFS(AA25<0.125,$B$3,AA25<0.25,$B$4,AA25<0.5,$B$5,AA25<0.99,$B$6,AA25<1.5,$B$7,TRUE,$B$8)+$B$9*SUMIFS('WWD Crashes'!G:G,'WWD Crashes'!C:C,F25,'WWD Crashes'!L:L,">0")++$B$10*SUMIFS('WWD Crashes'!G:G,'WWD Crashes'!C:C,F25,'WWD Crashes'!M:M,">0") -> 25 | AC25: =MIN($B$16*SUMIF('Non-Crash Events'!B:B,F25,'Non-Crash Events'!R:R),50) -> 19.9 | AD25: =IF(VLOOKUP(F25,Intersections!A:E,5,FALSE)="Unique",$B$22,IF(VLOOKUP(F25,Intersections!A:E,5,FALSE)="Split",$B$23,0)) -> 25 | AE25: =VLOOKUP(F25,Intersections!A:F,6,FALSE) -> 83100 | AF25: 10 | AG25: =VLOOKUP(F25,Intersections!A:G,7,FALSE) -> 13900 | AH25: 9 | AI25: 5 | AJ25: =_xlfn.IFS(VLOOKUP(F25,Intersections!A:H,8,FALSE)<=0.7,$B$30,VLOOKUP(F25,Intersections!A:H,8,FALSE)<=2,$B$31,TRUE,0) -> 10 | AK25: =_xlfn.IFS(VLOOKUP(F25,Intersections!A:D,4,FALSE)="Urban",$B$30,TRUE,0) -> 10
F26: I-380 & 1st Ave | G26: =COUNTIF('WWD Crashes'!C:C,F26) -> 1 | H26: =COUNTIFS('Non-Crash Events'!B:B,F26,'Non-Crash Events'!R:R,">0") -> 3 | I26: 103.65 | AA26: =SUMIFS('WWD Crashes'!G:G,'WWD Crashes'!C:C,F26) -> 0.25 | AB26: =_xlfn.IFS(AA26<0.125,$B$3,AA26<0.25,$B$4,AA26<0.5,$B$5,AA26<0.99,$B$6,AA26<1.5,$B$7,TRUE,$B$8)+$B$9*SUMIFS('WWD Crashes'!G:G,'WWD Crashes'!C:C,F26,'WWD Crashes'!L:L,">0")++$B$10*SUMIFS('WWD Crashes'!G:G,'WWD Crashes'!C:C,F26,'WWD Crashes'!M:M,">0") -> 28.75 | AC26: =MIN($B$16*SUMIF('Non-Crash Events'!B:B,F26,'Non-Crash Events'!R:R),50) -> 14.9 | AD26: =IF(VLOOKUP(F26,Intersections!A:E,5,FALSE)="Unique",$B$22,IF(VLOOKUP(F26,Intersections!A:E,5,FALSE)="Split",$B$23,0)) -> 25 | AE26: =VLOOKUP(F26,Intersections!A:F,6,FALSE) -> 79400 | AF26: 10 | AG26: =VLOOKUP(F26,Intersections!A:G,7,FALSE) -> 22500 | AH26: 10 | AI26: 5 | AJ26: =_xlfn.IFS(VLOOKUP(F26,Intersections!A:H,8,FALSE)<=0.7,$B$30,VLOOKUP(F26,Intersections!A:H,8,FALSE)<=2,$B$31,TRUE,0) -> 10 | AK26: =_xlfn.IFS(VLOOKUP(F26,Intersections!A:D,4,FALSE)="Urban",$B$30,TRUE,0) -> 10
F27: US-20 & Bryant St | G27: =COUNTIF('WWD Crashes'!C:C,F27) -> 3 | H27: =COUNTIFS('Non-Crash Events'!B:B,F27,'Non-Crash Events'!R:R,">0") -> 0 | I27: 102 | AA27: =SUMIFS('WWD Crashes'!G:G,'WWD Crashes'!C:C,F27) -> 2.25 | AB27: =_xlfn.IFS(AA27<0.125,$B$3,AA27<0.25,$B$4,AA27<0.5,$B$5,AA27<0.99,$B$6,AA27<1.5,$B$7,TRUE,$B$8)+$B$9*SUMIFS('WWD Crashes'!G:G,'WWD Crashes'!C:C,F27,'WWD Crashes'!L:L,">0")++$B$10*SUMIFS('WWD Crashes'!G:G,'WWD Crashes'!C:C,F27,'WWD Crashes'!M:M,">0") -> 25 | AC27: =MIN($B$16*SUMIF('Non-Crash Events'!B:B,F27,'Non-Crash Events'!R:R),50) -> 0 | AD27: =IF(VLOOKUP(F27,Intersections!A:E,5,FALSE)="Unique",$B$22,IF(VLOOKUP(F27,Intersections!A:E,5,FALSE)="Split",$B$23,0)) -> 50 | AE27: =VLOOKUP(F27,Intersections!A:F,6,FALSE) -> 35500 | AF27: 8 | AG27: =VLOOKUP(F27,Intersections!A:G,7,FALSE) -> 9300 | AH27: 9 | AI27: 0 | AJ27: =_xlfn.IFS(VLOOKUP(F27,Intersections!A:H,8,FALSE)<=0.7,$B$30,VLOOKUP(F27,Intersections!A:H,8,FALSE)<=2,$B$31,TRUE,0) -> 10 | AK27: =_xlfn.IFS(VLOOKUP(F27,Intersections!A:D,4,FALSE)="Urban",$B$30,TRUE,0) -> 10
A28: Proximity to Liquor License | F28: I-29 & 275th St | G28: =COUNTIF('WWD Crashes'!C:C,F28) -> 1 | H28: =COUNTIFS('Non-Crash Events'!B:B,F28,'Non-Crash Events'!R:R,">0") -> 0 | I28: 101.25 | AA28: =SUMIFS('WWD Crashes'!G:G,'WWD Crashes'!C:C,F28) -> 0.99 | AB28: =_xlfn.IFS(AA28<0.125,$B$3,AA28<0.25,$B$4,AA28<0.5,$B$5,AA28<0.99,$B$6,AA28<1.5,$B$7,TRUE,$B$8)+$B$9*SUMIFS('WWD Crashes'!G:G,'WWD Crashes'!C:C,F28,'WWD Crashes'!L:L,">0")++$B$10*SUMIFS('WWD Crashes'!G:G,'WWD Crashes'!C:C,F28,'WWD Crashes'!M:M,">0") -> 94.25 | AC28: =MIN($B$16*SUMIF('Non-Crash Events'!B:B,F28,'Non-Crash Events'!R:R),50) -> 0 | AD28: =IF(VLOOKUP(F28,Intersections!A:E,5,FALSE)="Unique",$B$22,IF(VLOOKUP(F28,Intersections!A:E,5,FALSE)="Split",$B$23,0)) -> 0 | AE28: =VLOOKUP(F28,Intersections!A:F,6,FALSE) -> 19300 | AF28: 5 | AG28: =VLOOKUP(F28,Intersections!A:G,7,FALSE) -> 1050 | AH28: 2 | AI28: 0 | AJ28: =_xlfn.IFS(VLOOKUP(F28,Intersections!A:H,8,FALSE)<=0.7,$B$30,VLOOKUP(F28,Intersections!A:H,8,FALSE)<=2,$B$31,TRUE,0) -> 0 | AK28: =_xlfn.IFS(VLOOKUP(F28,Intersections!A:D,4,FALSE)="Urban",$B$30,TRUE,0) -> 0
A29: Criteria | B29: Points | F29: I-35 & Merle Hay Rd | G29: =COUNTIF('WWD Crashes'!C:C,F29) -> 2 | H29: =COUNTIFS('Non-Crash Events'!B:B,F29,'Non-Crash Events'!R:R,">0") -> 0 | I29: 97.5 | AA29: =SUMIFS('WWD Crashes'!G:G,'WWD Crashes'!C:C,F29) -> 1.5 | AB29: =_xlfn.IFS(AA29<0.125,$B$3,AA29<0.25,$B$4,AA29<0.5,$B$5,AA29<0.99,$B$6,AA29<1.5,$B$7,TRUE,$B$8)+$B$9*SUMIFS('WWD Crashes'!G:G,'WWD Crashes'!C:C,F29,'WWD Crashes'!L:L,">0")++$B$10*SUMIFS('WWD Crashes'!G:G,'WWD Crashes'!C:C,F29,'WWD Crashes'!M:M,">0") -> 62.5 | AC29: =MIN($B$16*SUMIF('Non-Crash Events'!B:B,F29,'Non-Crash Events'!R:R),50) -> 0 | AD29: =IF(VLOOKUP(F29,Intersections!A:E,5,FALSE)="Unique",$B$22,IF(VLOOKUP(F29,Intersections!A:E,5,FALSE)="Split",$B$23,0)) -> 0 | AE29: =VLOOKUP(F29,Intersections!A:F,6,FALSE) -> 101100 | AF29: 10 | AG29: =VLOOKUP(F29,Intersections!A:G,7,FALSE) -> 30600 | AH29: 10 | AI29: 5 | AJ29: =_xlfn.IFS(VLOOKUP(F29,Intersections!A:H,8,FALSE)<=0.7,$B$30,VLOOKUP(F29,Intersections!A:H,8,FALSE)<=2,$B$31,TRUE,0) -> 10 | AK29: =_xlfn.IFS(VLOOKUP(F29,Intersections!A:D,4,FALSE)="Urban",$B$30,TRUE,0) -> 10
A30: Within 0.7 miles | B30: 10 | D30: =HYPERLINK("#'Weight Based'!"&ADDRESS(5,11),"Jump to Details") -> Jump to Details | F30: I-80 & 86th St | G30: =COUNTIF('WWD Crashes'!C:C,F30) -> 3 | H30: =COUNTIFS('Non-Crash Events'!B:B,F30,'Non-Crash Events'!R:R,">0") -> 0 | I30: 96.5 | AA30: =SUMIFS('WWD Crashes'!G:G,'WWD Crashes'!C:C,F30) -> 2.25 | AB30: =_xlfn.IFS(AA30<0.125,$B$3,AA30<0.25,$B$4,AA30<0.5,$B$5,AA30<0.99,$B$6,AA30<1.5,$B$7,TRUE,$B$8)+$B$9*SUMIFS('WWD Crashes'!G:G,'WWD Crashes'!C:C,F30,'WWD Crashes'!L:L,">0")++$B$10*SUMIFS('WWD Crashes'!G:G,'WWD Crashes'!C:C,F30,'WWD Crashes'!M:M,">0") -> 62.5 | AC30: =MIN($B$16*SUMIF('Non-Crash Events'!B:B,F30,'Non-Crash Events'!R:R),50) -> 0 | AD30: =IF(VLOOKUP(F30,Intersections!A:E,5,FALSE)="Unique",$B$22,IF(VLOOKUP(F30,Intersections!A:E,5,FALSE)="Split",$B$23,0)) -> 0 | AE30: =VLOOKUP(F30,Intersections!A:F,6,FALSE) -> 96500 | AF30: 10 | AG30: =VLOOKUP(F30,Intersections!A:G,7,FALSE) -> 17500 | AH30: 9 | AI30: 5 | AJ30: =_xlfn.IFS(VLOOKUP(F30,Intersections!A:H,8,FALSE)<=0.7,$B$30,VLOOKUP(F30,Intersections!A:H,8,FALSE)<=2,$B$31,TRUE,0) -> 10 | AK30: =_xlfn.IFS(VLOOKUP(F30,Intersections!A:D,4,FALSE)="Urban",$B$30,TRUE,0) -> 10
A31: Within 2 miles | B31: 5 | F31: US-30 & IA-330 | G31: =COUNTIF('WWD Crashes'!C:C,F31) -> 3 | H31: =COUNTIFS('Non-Crash Events'!B:B,F31,'Non-Crash Events'!R:R,">0") -> 5 | I31: 99.3 | AA31: =SUMIFS('WWD Crashes'!G:G,'WWD Crashes'!C:C,F31) -> 2.89 | AB31: =_xlfn.IFS(AA31<0.125,$B$3,AA31<0.25,$B$4,AA31<0.5,$B$5,AA31<0.99,$B$6,AA31<1.5,$B$7,TRUE,$B$8)+$B$9*SUMIFS('WWD Crashes'!G:G,'WWD Crashes'!C:C,F31,'WWD Crashes'!L:L,">0")++$B$10*SUMIFS('WWD Crashes'!G:G,'WWD Crashes'!C:C,F31,'WWD Crashes'!M:M,">0") -> 25 | AC31: =MIN($B$16*SUMIF('Non-Crash Events'!B:B,F31,'Non-Crash Events'!R:R),50) -> 38.3 | AD31: =IF(VLOOKUP(F31,Intersections!A:E,5,FALSE)="Unique",$B$22,IF(VLOOKUP(F31,Intersections!A:E,5,FALSE)="Split",$B$23,0)) -> 25 | AE31: =VLOOKUP(F31,Intersections!A:F,6,FALSE) -> 8900 | AF31: 2 | AG31: =VLOOKUP(F31,Intersections!A:G,7,FALSE) -> 11700 | AH31: 9 | AI31: 0 | AJ31: =_xlfn.IFS(VLOOKUP(F31,Intersections!A:H,8,FALSE)<=0.7,$B$30,VLOOKUP(F31,Intersections!A:H,8,FALSE)<=2,$B$31,TRUE,0) -> 0 | AK31: =_xlfn.IFS(VLOOKUP(F31,Intersections!A:D,4,FALSE)="Urban",$B$30,TRUE,0) -> 0
A32: Further than 2 miles | B32: 0 | F32: US-218 & Sergeant Rd | G32: =COUNTIF('WWD Crashes'!C:C,F32) -> 1 | H32: =COUNTIFS('Non-Crash Events'!B:B,F32,'Non-Crash Events'!R:R,">0") -> 0 | I32: 94 | AA32: =SUMIFS('WWD Crashes'!G:G,'WWD Crashes'!C:C,F32) -> 0.99 | AB32: =_xlfn.IFS(AA32<0.125,$B$3,AA32<0.25,$B$4,AA32<0.5,$B$5,AA32<0.99,$B$6,AA32<1.5,$B$7,TRUE,$B$8)+$B$9*SUMIFS('WWD Crashes'!G:G,'WWD Crashes'!C:C,F32,'WWD Crashes'!L:L,">0")++$B$10*SUMIFS('WWD Crashes'!G:G,'WWD Crashes'!C:C,F32,'WWD Crashes'!M:M,">0") -> 20 | AC32: =MIN($B$16*SUMIF('Non-Crash Events'!B:B,F32,'Non-Crash Events'!R:R),50) -> 0 | AD32: =IF(VLOOKUP(F32,Intersections!A:E,5,FALSE)="Unique",$B$22,IF(VLOOKUP(F32,Intersections!A:E,5,FALSE)="Split",$B$23,0)) -> 50 | AE32: =VLOOKUP(F32,Intersections!A:F,6,FALSE) -> 25500 | AF32: 7 | AG32: =VLOOKUP(F32,Intersections!A:G,7,FALSE) -> 7000 | AH32: 7 | AI32: 0 | AJ32: =_xlfn.IFS(VLOOKUP(F32,Intersections!A:H,8,FALSE)<=0.7,$B$30,VLOOKUP(F32,Intersections!A:H,8,FALSE)<=2,$B$31,TRUE,0) -> 10 | AK32: =_xlfn.IFS(VLOOKUP(F32,Intersections!A:D,4,FALSE)="Urban",$B$30,TRUE,0) -> 10
F33: US-61 & Main St | G33: =COUNTIF('WWD Crashes'!C:C,F33) -> 3 | H33: =COUNTIFS('Non-Crash Events'!B:B,F33,'Non-Crash Events'!R:R,">0") -> 0 | I33: 93 | AA33: =SUMIFS('WWD Crashes'!G:G,'WWD Crashes'!C:C,F33) -> 2.5 | AB33: =_xlfn.IFS(AA33<0.125,$B$3,AA33<0.25,$B$4,AA33<0.5,$B$5,AA33<0.99,$B$6,AA33<1.5,$B$7,TRUE,$B$8)+$B$9*SUMIFS('WWD Crashes'!G:G,'WWD Crashes'!C:C,F33,'WWD Crashes'!L:L,">0")++$B$10*SUMIFS('WWD Crashes'!G:G,'WWD Crashes'!C:C,F33,'WWD Crashes'!M:M,">0") -> 25 | AC33: =MIN($B$16*SUMIF('Non-Crash Events'!B:B,F33,'Non-Crash Events'!R:R),50) -> 0 | AD33: =IF(VLOOKUP(F33,Intersections!A:E,5,FALSE)="Unique",$B$22,IF(VLOOKUP(F33,Intersections!A:E,5,FALSE)="Split",$B$23,0)) -> 50 | AE33: =VLOOKUP(F33,Intersections!A:F,6,FALSE) -> 8200 | AF33: 2 | AG33: =VLOOKUP(F33,Intersections!A:G,7,FALSE) -> 4900 | AH33: 6 | AI33: 0 | AJ33: =_xlfn.IFS(VLOOKUP(F33,Intersections!A:H,8,FALSE)<=0.7,$B$30,VLOOKUP(F33,Intersections!A:H,8,FALSE)<=2,$B$31,TRUE,0) -> 10 | AK33: =_xlfn.IFS(VLOOKUP(F33,Intersections!A:D,4,FALSE)="Urban",$B$30,TRUE,0) -> 0
F34: I-29 & IA-175 | G34: =COUNTIF('WWD Crashes'!C:C,F34) -> 1 | H34: =COUNTIFS('Non-Crash Events'!B:B,F34,'Non-Crash Events'!R:R,">0") -> 0 | I34: 91.25 | AA34: =SUMIFS('WWD Crashes'!G:G,'WWD Crashes'!C:C,F34) -> 0.75 | AB34: =_xlfn.IFS(AA34<0.125,$B$3,AA34<0.25,$B$4,AA34<0.5,$B$5,AA34<0.99,$B$6,AA34<1.5,$B$7,TRUE,$B$8)+$B$9*SUMIFS('WWD Crashes'!G:G,'WWD Crashes'!C:C,F34,'WWD Crashes'!L:L,">0")++$B$10*SUMIFS('WWD Crashes'!G:G,'WWD Crashes'!C:C,F34,'WWD Crashes'!M:M,">0") -> 71.25 | AC34: =MIN($B$16*SUMIF('Non-Crash Events'!B:B,F34,'Non-Crash Events'!R:R),50) -> 0 | AD34: =IF(VLOOKUP(F34,Intersections!A:E,5,FALSE)="Unique",$B$22,IF(VLOOKUP(F34,Intersections!A:E,5,FALSE)="Split",$B$23,0)) -> 0 | AE34: =VLOOKUP(F34,Intersections!A:F,6,FALSE) -> 15300 | AF34: 4 | AG34: =VLOOKUP(F34,Intersections!A:G,7,FALSE) -> 5500 | AH34: 6 | AI34: 0 | AJ34: =_xlfn.IFS(VLOOKUP(F34,Intersections!A:H,8,FALSE)<=0.7,$B$30,VLOOKUP(F34,Intersections!A:H,8,FALSE)<=2,$B$31,TRUE,0) -> 10 | AK34: =_xlfn.IFS(VLOOKUP(F34,Intersections!A:D,4,FALSE)="Urban",$B$30,TRUE,0) -> 0
F35: US-34 & Main St | G35: =COUNTIF('WWD Crashes'!C:C,F35) -> 1 | H35: =COUNTIFS('Non-Crash Events'!B:B,F35,'Non-Crash Events'!R:R,">0") -> 0 | I35: 89 | AA35: =SUMIFS('WWD Crashes'!G:G,'WWD Crashes'!C:C,F35) -> 1 | AB35: =_xlfn.IFS(AA35<0.125,$B$3,AA35<0.25,$B$4,AA35<0.5,$B$5,AA35<0.99,$B$6,AA35<1.5,$B$7,TRUE,$B$8)+$B$9*SUMIFS('WWD Crashes'!G:G,'WWD Crashes'!C:C,F35,'WWD Crashes'!L:L,">0")++$B$10*SUMIFS('WWD Crashes'!G:G,'WWD Crashes'!C:C,F35,'WWD Crashes'!M:M,">0") -> 20 | AC35: =MIN($B$16*SUMIF('Non-Crash Events'!B:B,F35,'Non-Crash Events'!R:R),50) -> 0 | AD35: =IF(VLOOKUP(F35,Intersections!A:E,5,FALSE)="Unique",$B$22,IF(VLOOKUP(F35,Intersections!A:E,5,FALSE)="Split",$B$23,0)) -> 50 | AE35: =VLOOKUP(F35,Intersections!A:F,6,FALSE) -> 14800 | AF35: 4 | AG35: =VLOOKUP(F35,Intersections!A:G,7,FALSE) -> 3740 | AH35: 5 | AI35: 0 | AJ35: =_xlfn.IFS(VLOOKUP(F35,Intersections!A:H,8,FALSE)<=0.7,$B$30,VLOOKUP(F35,Intersections!A:H,8,FALSE)<=2,$B$31,TRUE,0) -> 10 | AK35: =_xlfn.IFS(VLOOKUP(F35,Intersections!A:D,4,FALSE)="Urban",$B$30,TRUE,0) -> 10
A36: Traffic | F36: I-35 & US-34 | G36: =COUNTIF('WWD Crashes'!C:C,F36) -> 1 | H36: =COUNTIFS('Non-Crash Events'!B:B,F36,'Non-Crash Events'!R:R,">0") -> 0 | I36: 89 | AA36: =SUMIFS('WWD Crashes'!G:G,'WWD Crashes'!C:C,F36) -> 0.5 | AB36: =_xlfn.IFS(AA36<0.125,$B$3,AA36<0.25,$B$4,AA36<0.5,$B$5,AA36<0.99,$B$6,AA36<1.5,$B$7,TRUE,$B$8)+$B$9*SUMIFS('WWD Crashes'!G:G,'WWD Crashes'!C:C,F36,'WWD Crashes'!L:L,">0")++$B$10*SUMIFS('WWD Crashes'!G:G,'WWD Crashes'!C:C,F36,'WWD Crashes'!M:M,">0") -> 15 | AC36: =MIN($B$16*SUMIF('Non-Crash Events'!B:B,F36,'Non-Crash Events'!R:R),50) -> 0 | AD36: =IF(VLOOKUP(F36,Intersections!A:E,5,FALSE)="Unique",$B$22,IF(VLOOKUP(F36,Intersections!A:E,5,FALSE)="Split",$B$23,0)) -> 50 | AE36: =VLOOKUP(F36,Intersections!A:F,6,FALSE) -> 16900 | AF36: 5 | AG36: =VLOOKUP(F36,Intersections!A:G,7,FALSE) -> 9700 | AH36: 9 | AI36: 0 | AJ36: =_xlfn.IFS(VLOOKUP(F36,Intersections!A:H,8,FALSE)<=0.7,$B$30,VLOOKUP(F36,Intersections!A:H,8,FALSE)<=2,$B$31,TRUE,0) -> 10 | AK36: =_xlfn.IFS(VLOOKUP(F36,Intersections!A:D,4,FALSE)="Urban",$B$30,TRUE,0) -> 0
A37: Mainline AADT | B37: Points | F37: US-30 & US-63 | G37: =COUNTIF('WWD Crashes'!C:C,F37) -> 1 | H37: =COUNTIFS('Non-Crash Events'!B:B,F37,'Non-Crash Events'!R:R,">0") -> 0 | I37: 89 | AA37: =SUMIFS('WWD Crashes'!G:G,'WWD Crashes'!C:C,F37) -> 1 | AB37: =_xlfn.IFS(AA37<0.125,$B$3,AA37<0.25,$B$4,AA37<0.5,$B$5,AA37<0.99,$B$6,AA37<1.5,$B$7,TRUE,$B$8)+$B$9*SUMIFS('WWD Crashes'!G:G,'WWD Crashes'!C:C,F37,'WWD Crashes'!L:L,">0")++$B$10*SUMIFS('WWD Crashes'!G:G,'WWD Crashes'!C:C,F37,'WWD Crashes'!M:M,">0") -> 20 | AC37: =MIN($B$16*SUMIF('Non-Crash Events'!B:B,F37,'Non-Crash Events'!R:R),50) -> 0 | AD37: =IF(VLOOKUP(F37,Intersections!A:E,5,FALSE)="Unique",$B$22,IF(VLOOKUP(F37,Intersections!A:E,5,FALSE)="Split",$B$23,0)) -> 50 | AE37: =VLOOKUP(F37,Intersections!A:F,6,FALSE) -> 9100 | AF37: 2 | AG37: =VLOOKUP(F37,Intersections!A:G,7,FALSE) -> 7300 | AH37: 7 | AI37: 0 | AJ37: =_xlfn.IFS(VLOOKUP(F37,Intersections!A:H,8,FALSE)<=0.7,$B$30,VLOOKUP(F37,Intersections!A:H,8,FALSE)<=2,$B$31,TRUE,0) -> 10 | AK37: =_xlfn.IFS(VLOOKUP(F37,Intersections!A:D,4,FALSE)="Urban",$B$30,TRUE,0) -> 0
A38: [1 to 7,820] | B38: 1 | F38: IA-5 & McKimber St | G38: =COUNTIF('WWD Crashes'!C:C,F38) -> 1 | H38: =COUNTIFS('Non-Crash Events'!B:B,F38,'Non-Crash Events'!R:R,">0") -> 0 | I38: 87.5 | AA38: =SUMIFS('WWD Crashes'!G:G,'WWD Crashes'!C:C,F38) -> 0.5 | AB38: =_xlfn.IFS(AA38<0.125,$B$3,AA38<0.25,$B$4,AA38<0.5,$B$5,AA38<0.99,$B$6,AA38<1.5,$B$7,TRUE,$B$8)+$B$9*SUMIFS('WWD Crashes'!G:G,'WWD Crashes'!C:C,F38,'WWD Crashes'!L:L,">0")++$B$10*SUMIFS('WWD Crashes'!G:G,'WWD Crashes'!C:C,F38,'WWD Crashes'!M:M,">0") -> 52.5 | AC38: =MIN($B$16*SUMIF('Non-Crash Events'!B:B,F38,'Non-Crash Events'!R:R),50) -> 0 | AD38: =IF(VLOOKUP(F38,Intersections!A:E,5,FALSE)="Unique",$B$22,IF(VLOOKUP(F38,Intersections!A:E,5,FALSE)="Split",$B$23,0)) -> 25 | AE38: =VLOOKUP(F38,Intersections!A:F,6,FALSE) -> 7700 | AF38: 1 | AG38: =VLOOKUP(F38,Intersections!A:G,7,FALSE) -> 3090 | AH38: 4 | AI38: 0 | AJ38: =_xlfn.IFS(VLOOKUP(F38,Intersections!A:H,8,FALSE)<=0.7,$B$30,VLOOKUP(F38,Intersections!A:H,8,FALSE)<=2,$B$31,TRUE,0) -> 5 | AK38: =_xlfn.IFS(VLOOKUP(F38,Intersections!A:D,4,FALSE)="Urban",$B$30,TRUE,0) -> 0
A39: [7,821 to 9,600] | B39: 2 | F39: US-30 & WACONIA AVE/6TH ST SW | G39: =COUNTIF('WWD Crashes'!C:C,F39) -> 1 | H39: =COUNTIFS('Non-Crash Events'!B:B,F39,'Non-Crash Events'!R:R,">0") -> 0 | I39: 87 | AA39: =SUMIFS('WWD Crashes'!G:G,'WWD Crashes'!C:C,F39) -> 0.5 | AB39: =_xlfn.IFS(AA39<0.125,$B$3,AA39<0.25,$B$4,AA39<0.5,$B$5,AA39<0.99,$B$6,AA39<1.5,$B$7,TRUE,$B$8)+$B$9*SUMIFS('WWD Crashes'!G:G,'WWD Crashes'!C:C,F39,'WWD Crashes'!L:L,">0")++$B$10*SUMIFS('WWD Crashes'!G:G,'WWD Crashes'!C:C,F39,'WWD Crashes'!M:M,">0") -> 15 | AC39: =MIN($B$16*SUMIF('Non-Crash Events'!B:B,F39,'Non-Crash Events'!R:R),50) -> 0 | AD39: =IF(VLOOKUP(F39,Intersections!A:E,5,FALSE)="Unique",$B$22,IF(VLOOKUP(F39,Intersections!A:E,5,FALSE)="Split",$B$23,0)) -> 50 | AE39: =VLOOKUP(F39,Intersections!A:F,6,FALSE) -> 34000 | AF39: 8 | AG39: =VLOOKUP(F39,Intersections!A:G,7,FALSE) -> 12600 | AH39: 9 | AI39: 0 | AJ39: =_xlfn.IFS(VLOOKUP(F39,Intersections!A:H,8,FALSE)<=0.7,$B$30,VLOOKUP(F39,Intersections!A:H,8,FALSE)<=2,$B$31,TRUE,0) -> 5 | AK39: =_xlfn.IFS(VLOOKUP(F39,Intersections!A:D,4,FALSE)="Urban",$B$30,TRUE,0) -> 10
A40: [9,601 to 11,930] | B40: 3 | F40: US-34 & Locust St | G40: =COUNTIF('WWD Crashes'!C:C,F40) -> 1 | H40: =COUNTIFS('Non-Crash Events'!B:B,F40,'Non-Crash Events'!R:R,">0") -> 0 | I40: 87 | AA40: =SUMIFS('WWD Crashes'!G:G,'WWD Crashes'!C:C,F40) -> 0.99 | AB40: =_xlfn.IFS(AA40<0.125,$B$3,AA40<0.25,$B$4,AA40<0.5,$B$5,AA40<0.99,$B$6,AA40<1.5,$B$7,TRUE,$B$8)+$B$9*SUMIFS('WWD Crashes'!G:G,'WWD Crashes'!C:C,F40,'WWD Crashes'!L:L,">0")++$B$10*SUMIFS('WWD Crashes'!G:G,'WWD Crashes'!C:C,F40,'WWD Crashes'!M:M,">0") -> 20 | AC40: =MIN($B$16*SUMIF('Non-Crash Events'!B:B,F40,'Non-Crash Events'!R:R),50) -> 0 | AD40: =IF(VLOOKUP(F40,Intersections!A:E,5,FALSE)="Unique",$B$22,IF(VLOOKUP(F40,Intersections!A:E,5,FALSE)="Split",$B$23,0)) -> 50 | AE40: =VLOOKUP(F40,Intersections!A:F,6,FALSE) -> 9000 | AF40: 2 | AG40: =VLOOKUP(F40,Intersections!A:G,7,FALSE) -> 4080 | AH40: 5 | AI40: 0 | AJ40: =_xlfn.IFS(VLOOKUP(F40,Intersections!A:H,8,FALSE)<=0.7,$B$30,VLOOKUP(F40,Intersections!A:H,8,FALSE)<=2,$B$31,TRUE,0) -> 10 | AK40: =_xlfn.IFS(VLOOKUP(F40,Intersections!A:D,4,FALSE)="Urban",$B$30,TRUE,0) -> 0
A41: [11,931 to 15,800] | B41: 4 | F41: US-34 & Mount Pleasant St | G41: =COUNTIF('WWD Crashes'!C:C,F41) -> 2 | H41: =COUNTIFS('Non-Crash Events'!B:B,F41,'Non-Crash Events'!R:R,">0") -> 0 | I41: 87 | AA41: =SUMIFS('WWD Crashes'!G:G,'WWD Crashes'!C:C,F41) -> 1.75 | AB41: =_xlfn.IFS(AA41<0.125,$B$3,AA41<0.25,$B$4,AA41<0.5,$B$5,AA41<0.99,$B$6,AA41<1.5,$B$7,TRUE,$B$8)+$B$9*SUMIFS('WWD Crashes'!G:G,'WWD Crashes'!C:C,F41,'WWD Crashes'!L:L,">0")++$B$10*SUMIFS('WWD Crashes'!G:G,'WWD Crashes'!C:C,F41,'WWD Crashes'!M:M,">0") -> 25 | AC41: =MIN($B$16*SUMIF('Non-Crash Events'!B:B,F41,'Non-Crash Events'!R:R),50) -> 0 | AD41: =IF(VLOOKUP(F41,Intersections!A:E,5,FALSE)="Unique",$B$22,IF(VLOOKUP(F41,Intersections!A:E,5,FALSE)="Split",$B$23,0)) -> 50 | AE41: =VLOOKUP(F41,Intersections!A:F,6,FALSE) -> 9600 | AF41: 2 | AG41: =VLOOKUP(F41,Intersections!A:G,7,FALSE) -> 3760 | AH41: 5 | AI41: 0 | AJ41: =_xlfn.IFS(VLOOKUP(F41,Intersections!A:H,8,FALSE)<=0.7,$B$30,VLOOKUP(F41,Intersections!A:H,8,FALSE)<=2,$B$31,TRUE,0) -> 5 | AK41: =_xlfn.IFS(VLOOKUP(F41,Intersections!A:D,4,FALSE)="Urban",$B$30,TRUE,0) -> 0
A42: [15,801 to 20,400] | B42: 5 | F42: US-30 & C St | G42: =COUNTIF('WWD Crashes'!C:C,F42) -> 0 | H42: =COUNTIFS('Non-Crash Events'!B:B,F42,'Non-Crash Events'!R:R,">0") -> 1 | I42: 86.9 | AA42: =SUMIFS('WWD Crashes'!G:G,'WWD Crashes'!C:C,F42) -> 0 | AB42: =_xlfn.IFS(AA42<0.125,$B$3,AA42<0.25,$B$4,AA42<0.5,$B$5,AA42<0.99,$B$6,AA42<1.5,$B$7,TRUE,$B$8)+$B$9*SUMIFS('WWD Crashes'!G:G,'WWD Crashes'!C:C,F42,'WWD Crashes'!L:L,">0")++$B$10*SUMIFS('WWD Crashes'!G:G,'WWD Crashes'!C:C,F42,'WWD Crashes'!M:M,">0") -> 0 | AC42: =MIN($B$16*SUMIF('Non-Crash Events'!B:B,F42,'Non-Crash Events'!R:R),50) -> 9.9 | AD42: =IF(VLOOKUP(F42,Intersections!A:E,5,FALSE)="Unique",$B$22,IF(VLOOKUP(F42,Intersections!A:E,5,FALSE)="Split",$B$23,0)) -> 50 | AE42: =VLOOKUP(F42,Intersections!A:F,6,FALSE) -> 31700 | AF42: 8 | AG42: =VLOOKUP(F42,Intersections!A:G,7,FALSE) -> 16300 | AH42: 9 | AI42: 0 | AJ42: =_xlfn.IFS(VLOOKUP(F42,Intersections!A:H,8,FALSE)<=0.7,$B$30,VLOOKUP(F42,Intersections!A:H,8,FALSE)<=2,$B$31,TRUE,0) -> 10 | AK42: =_xlfn.IFS(VLOOKUP(F42,Intersections!A:D,4,FALSE)="Urban",$B$30,TRUE,0) -> 10
A43: [20,401 to 24820] | B43: 6 | F43: I-35 & Corporate Woods Dr | G43: =COUNTIF('WWD Crashes'!C:C,F43) -> 1 | H43: =COUNTIFS('Non-Crash Events'!B:B,F43,'Non-Crash Events'!R:R,">0") -> 0 | I43: 81.5 | AA43: =SUMIFS('WWD Crashes'!G:G,'WWD Crashes'!C:C,F43) -> 0.5 | AB43: =_xlfn.IFS(AA43<0.125,$B$3,AA43<0.25,$B$4,AA43<0.5,$B$5,AA43<0.99,$B$6,AA43<1.5,$B$7,TRUE,$B$8)+$B$9*SUMIFS('WWD Crashes'!G:G,'WWD Crashes'!C:C,F43,'WWD Crashes'!L:L,">0")++$B$10*SUMIFS('WWD Crashes'!G:G,'WWD Crashes'!C:C,F43,'WWD Crashes'!M:M,">0") -> 52.5 | AC43: =MIN($B$16*SUMIF('Non-Crash Events'!B:B,F43,'Non-Crash Events'!R:R),50) -> 0 | AD43: =IF(VLOOKUP(F43,Intersections!A:E,5,FALSE)="Unique",$B$22,IF(VLOOKUP(F43,Intersections!A:E,5,FALSE)="Split",$B$23,0)) -> 0 | AE43: =VLOOKUP(F43,Intersections!A:F,6,FALSE) -> 89800 | AF43: 10 | AG43: =VLOOKUP(F43,Intersections!A:G,7,FALSE) -> 18700 | AH43: 9 | AI43: 5 | AJ43: =_xlfn.IFS(VLOOKUP(F43,Intersections!A:H,8,FALSE)<=0.7,$B$30,VLOOKUP(F43,Intersections!A:H,8,FALSE)<=2,$B$31,TRUE,0) -> 5 | AK43: =_xlfn.IFS(VLOOKUP(F43,Intersections!A:D,4,FALSE)="Urban",$B$30,TRUE,0) -> 10
A44: [24,821 to 29,770] | B44: 7 | F44: US-30 & IA-930/Lincoln Way | G44: =COUNTIF('WWD Crashes'!C:C,F44) -> 0 | H44: =COUNTIFS('Non-Crash Events'!B:B,F44,'Non-Crash Events'!R:R,">0") -> 7 | I44: 86 | AA44: =SUMIFS('WWD Crashes'!G:G,'WWD Crashes'!C:C,F44) -> 0 | AB44: =_xlfn.IFS(AA44<0.125,$B$3,AA44<0.25,$B$4,AA44<0.5,$B$5,AA44<0.99,$B$6,AA44<1.5,$B$7,TRUE,$B$8)+$B$9*SUMIFS('WWD Crashes'!G:G,'WWD Crashes'!C:C,F44,'WWD Crashes'!L:L,">0")++$B$10*SUMIFS('WWD Crashes'!G:G,'WWD Crashes'!C:C,F44,'WWD Crashes'!M:M,">0") -> 0 | AC44: =MIN($B$16*SUMIF('Non-Crash Events'!B:B,F44,'Non-Crash Events'!R:R),50) -> 50 | AD44: =IF(VLOOKUP(F44,Intersections!A:E,5,FALSE)="Unique",$B$22,IF(VLOOKUP(F44,Intersections!A:E,5,FALSE)="Split",$B$23,0)) -> 25 | AE44: =VLOOKUP(F44,Intersections!A:F,6,FALSE) -> 17100 | AF44: 5 | AG44: =VLOOKUP(F44,Intersections!A:G,7,FALSE) -> 5600 | AH44: 6 | AI44: 0 | AJ44: =_xlfn.IFS(VLOOKUP(F44,Intersections!A:H,8,FALSE)<=0.7,$B$30,VLOOKUP(F44,Intersections!A:H,8,FALSE)<=2,$B$31,TRUE,0) -> 0 | AK44: =_xlfn.IFS(VLOOKUP(F44,Intersections!A:D,4,FALSE)="Urban",$B$30,TRUE,0) -> 0
A45: [29,771 to 36,180] | B45: 8 | F45: US-218 & IA-92 | G45: =COUNTIF('WWD Crashes'!C:C,F45) -> 1 | H45: =COUNTIFS('Non-Crash Events'!B:B,F45,'Non-Crash Events'!R:R,">0") -> 1 | I45: 85.5 | AA45: =SUMIFS('WWD Crashes'!G:G,'WWD Crashes'!C:C,F45) -> 0.99 | AB45: =_xlfn.IFS(AA45<0.125,$B$3,AA45<0.25,$B$4,AA45<0.5,$B$5,AA45<0.99,$B$6,AA45<1.5,$B$7,TRUE,$B$8)+$B$9*SUMIFS('WWD Crashes'!G:G,'WWD Crashes'!C:C,F45,'WWD Crashes'!L:L,">0")++$B$10*SUMIFS('WWD Crashes'!G:G,'WWD Crashes'!C:C,F45,'WWD Crashes'!M:M,">0") -> 20 | AC45: =MIN($B$16*SUMIF('Non-Crash Events'!B:B,F45,'Non-Crash Events'!R:R),50) -> 7.5 | AD45: =IF(VLOOKUP(F45,Intersections!A:E,5,FALSE)="Unique",$B$22,IF(VLOOKUP(F45,Intersections!A:E,5,FALSE)="Split",$B$23,0)) -> 50 | AE45: =VLOOKUP(F45,Intersections!A:F,6,FALSE) -> 11800 | AF45: 3 | AG45: =VLOOKUP(F45,Intersections!A:G,7,FALSE) -> 4480 | AH45: 5 | AI45: 0 | AJ45: =_xlfn.IFS(VLOOKUP(F45,Intersections!A:H,8,FALSE)<=0.7,$B$30,VLOOKUP(F45,Intersections!A:H,8,FALSE)<=2,$B$31,TRUE,0) -> 0 | AK45: =_xlfn.IFS(VLOOKUP(F45,Intersections!A:D,4,FALSE)="Urban",$B$30,TRUE,0) -> 0
A46: [36,181 to 67,180] | B46: 9 | F46: US-20 & 330th Ave/CR-X49 | G46: =COUNTIF('WWD Crashes'!C:C,F46) -> 2 | H46: =COUNTIFS('Non-Crash Events'!B:B,F46,'Non-Crash Events'!R:R,">0") -> 0 | I46: 85.25 | AA46: =SUMIFS('WWD Crashes'!G:G,'WWD Crashes'!C:C,F46) -> 0.75 | AB46: =_xlfn.IFS(AA46<0.125,$B$3,AA46<0.25,$B$4,AA46<0.5,$B$5,AA46<0.99,$B$6,AA46<1.5,$B$7,TRUE,$B$8)+$B$9*SUMIFS('WWD Crashes'!G:G,'WWD Crashes'!C:C,F46,'WWD Crashes'!L:L,">0")++$B$10*SUMIFS('WWD Crashes'!G:G,'WWD Crashes'!C:C,F46,'WWD Crashes'!M:M,">0") -> 71.25 | AC46: =MIN($B$16*SUMIF('Non-Crash Events'!B:B,F46,'Non-Crash Events'!R:R),50) -> 0 | AD46: =IF(VLOOKUP(F46,Intersections!A:E,5,FALSE)="Unique",$B$22,IF(VLOOKUP(F46,Intersections!A:E,5,FALSE)="Split",$B$23,0)) -> 0 | AE46: =VLOOKUP(F46,Intersections!A:F,6,FALSE) -> 12000 | AF46: 4 | AG46: =VLOOKUP(F46,Intersections!A:G,7,FALSE) -> 3960 | AH46: 5 | AI46: 0 | AJ46: =_xlfn.IFS(VLOOKUP(F46,Intersections!A:H,8,FALSE)<=0.7,$B$30,VLOOKUP(F46,Intersections!A:H,8,FALSE)<=2,$B$31,TRUE,0) -> 5 | AK46: =_xlfn.IFS(VLOOKUP(F46,Intersections!A:D,4,FALSE)="Urban",$B$30,TRUE,0) -> 0
A47: >= 67,181 | B47: 10 | F47: IA-5 & 110th Pl | G47: =COUNTIF('WWD Crashes'!C:C,F47) -> 1 | H47: =COUNTIFS('Non-Crash Events'!B:B,F47,'Non-Crash Events'!R:R,">0") -> 0 | I47: 84.5 | AA47: =SUMIFS('WWD Crashes'!G:G,'WWD Crashes'!C:C,F47) -> 0.5 | AB47: =_xlfn.IFS(AA47<0.125,$B$3,AA47<0.25,$B$4,AA47<0.5,$B$5,AA47<0.99,$B$6,AA47<1.5,$B$7,TRUE,$B$8)+$B$9*SUMIFS('WWD Crashes'!G:G,'WWD Crashes'!C:C,F47,'WWD Crashes'!L:L,">0")++$B$10*SUMIFS('WWD Crashes'!G:G,'WWD Crashes'!C:C,F47,'WWD Crashes'!M:M,">0") -> 52.5 | AC47: =MIN($B$16*SUMIF('Non-Crash Events'!B:B,F47,'Non-Crash Events'!R:R),50) -> 0 | AD47: =IF(VLOOKUP(F47,Intersections!A:E,5,FALSE)="Unique",$B$22,IF(VLOOKUP(F47,Intersections!A:E,5,FALSE)="Split",$B$23,0)) -> 25 | AE47: =VLOOKUP(F47,Intersections!A:F,6,FALSE) -> 4600 | AF47: 1 | AG47: =VLOOKUP(F47,Intersections!A:G,7,FALSE) -> 460 | AH47: 1 | AI47: 0 | AJ47: =_xlfn.IFS(VLOOKUP(F47,Intersections!A:H,8,FALSE)<=0.7,$B$30,VLOOKUP(F47,Intersections!A:H,8,FALSE)<=2,$B$31,TRUE,0) -> 5 | AK47: =_xlfn.IFS(VLOOKUP(F47,Intersections!A:D,4,FALSE)="Urban",$B$30,TRUE,0) -> 0
A48: Side Road AADT | D48: =HYPERLINK("#'Weight Based'!"&ADDRESS(5,11),"Jump to Details") -> Jump to Details | F48: US-30 & Edgewood Rd | G48: =COUNTIF('WWD Crashes'!C:C,F48) -> 2 | H48: =COUNTIFS('Non-Crash Events'!B:B,F48,'Non-Crash Events'!R:R,">0") -> 6 | I48: 84.2 | AA48: =SUMIFS('WWD Crashes'!G:G,'WWD Crashes'!C:C,F48) -> 0.75 | AB48: =_xlfn.IFS(AA48<0.125,$B$3,AA48<0.25,$B$4,AA48<0.5,$B$5,AA48<0.99,$B$6,AA48<1.5,$B$7,TRUE,$B$8)+$B$9*SUMIFS('WWD Crashes'!G:G,'WWD Crashes'!C:C,F48,'WWD Crashes'!L:L,">0")++$B$10*SUMIFS('WWD Crashes'!G:G,'WWD Crashes'!C:C,F48,'WWD Crashes'!M:M,">0") -> 15 | AC48: =MIN($B$16*SUMIF('Non-Crash Events'!B:B,F48,'Non-Crash Events'!R:R),50) -> 42.2 | AD48: =IF(VLOOKUP(F48,Intersections!A:E,5,FALSE)="Unique",$B$22,IF(VLOOKUP(F48,Intersections!A:E,5,FALSE)="Split",$B$23,0)) -> 0 | AE48: =VLOOKUP(F48,Intersections!A:F,6,FALSE) -> 31500 | AF48: 8 | AG48: =VLOOKUP(F48,Intersections!A:G,7,FALSE) -> 10900 | AH48: 9 | AI48: 0 | AJ48: =_xlfn.IFS(VLOOKUP(F48,Intersections!A:H,8,FALSE)<=0.7,$B$30,VLOOKUP(F48,Intersections!A:H,8,FALSE)<=2,$B$31,TRUE,0) -> 10 | AK48: =_xlfn.IFS(VLOOKUP(F48,Intersections!A:D,4,FALSE)="Urban",$B$30,TRUE,0) -> 10
A49: [1 to 826] | B49: 1 | F49: I-235 & 7th St/5th Ave | G49: =COUNTIF('WWD Crashes'!C:C,F49) -> 2 | H49: =COUNTIFS('Non-Crash Events'!B:B,F49,'Non-Crash Events'!R:R,">0") -> 0 | I49: 84 | AA49: =SUMIFS('WWD Crashes'!G:G,'WWD Crashes'!C:C,F49) -> 1.5 | AB49: =_xlfn.IFS(AA49<0.125,$B$3,AA49<0.25,$B$4,AA49<0.5,$B$5,AA49<0.99,$B$6,AA49<1.5,$B$7,TRUE,$B$8)+$B$9*SUMIFS('WWD Crashes'!G:G,'WWD Crashes'!C:C,F49,'WWD Crashes'!L:L,">0")++$B$10*SUMIFS('WWD Crashes'!G:G,'WWD Crashes'!C:C,F49,'WWD Crashes'!M:M,">0") -> 25 | AC49: =MIN($B$16*SUMIF('Non-Crash Events'!B:B,F49,'Non-Crash Events'!R:R),50) -> 0 | AD49: =IF(VLOOKUP(F49,Intersections!A:E,5,FALSE)="Unique",$B$22,IF(VLOOKUP(F49,Intersections!A:E,5,FALSE)="Split",$B$23,0)) -> 25 | AE49: =VLOOKUP(F49,Intersections!A:F,6,FALSE) -> 91800 | AF49: 10 | AG49: =VLOOKUP(F49,Intersections!A:G,7,FALSE) -> 9100 | AH49: 9 | AI49: 5 | AJ49: =_xlfn.IFS(VLOOKUP(F49,Intersections!A:H,8,FALSE)<=0.7,$B$30,VLOOKUP(F49,Intersections!A:H,8,FALSE)<=2,$B$31,TRUE,0) -> 10 | AK49: =_xlfn.IFS(VLOOKUP(F49,Intersections!A:D,4,FALSE)="Urban",$B$30,TRUE,0) -> 10
A50: [827 to 1,662] | B50: 2 | F50: IA-141 & IA-415 | G50: =COUNTIF('WWD Crashes'!C:C,F50) -> 1 | H50: =COUNTIFS('Non-Crash Events'!B:B,F50,'Non-Crash Events'!R:R,">0") -> 0 | I50: 84 | AA50: =SUMIFS('WWD Crashes'!G:G,'WWD Crashes'!C:C,F50) -> 1 | AB50: =_xlfn.IFS(AA50<0.125,$B$3,AA50<0.25,$B$4,AA50<0.5,$B$5,AA50<0.99,$B$6,AA50<1.5,$B$7,TRUE,$B$8)+$B$9*SUMIFS('WWD Crashes'!G:G,'WWD Crashes'!C:C,F50,'WWD Crashes'!L:L,">0")++$B$10*SUMIFS('WWD Crashes'!G:G,'WWD Crashes'!C:C,F50,'WWD Crashes'!M:M,">0") -> 20 | AC50: =MIN($B$16*SUMIF('Non-Crash Events'!B:B,F50,'Non-Crash Events'!R:R),50) -> 0 | AD50: =IF(VLOOKUP(F50,Intersections!A:E,5,FALSE)="Unique",$B$22,IF(VLOOKUP(F50,Intersections!A:E,5,FALSE)="Split",$B$23,0)) -> 50 | AE50: =VLOOKUP(F50,Intersections!A:F,6,FALSE) -> 20000 | AF50: 5 | AG50: =VLOOKUP(F50,Intersections!A:G,7,FALSE) -> 8900 | AH50: 9 | AI50: 0 | AJ50: =_xlfn.IFS(VLOOKUP(F50,Intersections!A:H,8,FALSE)<=0.7,$B$30,VLOOKUP(F50,Intersections!A:H,8,FALSE)<=2,$B$31,TRUE,0) -> 0 | AK50: =_xlfn.IFS(VLOOKUP(F50,Intersections!A:D,4,FALSE)="Urban",$B$30,TRUE,0) -> 0
A51: [1,663 to 2,589] | B51: 3 | F51: I-35 & Clay St | G51: =COUNTIF('WWD Crashes'!C:C,F51) -> 1 | H51: =COUNTIFS('Non-Crash Events'!B:B,F51,'Non-Crash Events'!R:R,">0") -> 0 | I51: 81 | AA51: =SUMIFS('WWD Crashes'!G:G,'WWD Crashes'!C:C,F51) -> 0.5 | AB51: =_xlfn.IFS(AA51<0.125,$B$3,AA51<0.25,$B$4,AA51<0.5,$B$5,AA51<0.99,$B$6,AA51<1.5,$B$7,TRUE,$B$8)+$B$9*SUMIFS('WWD Crashes'!G:G,'WWD Crashes'!C:C,F51,'WWD Crashes'!L:L,">0")++$B$10*SUMIFS('WWD Crashes'!G:G,'WWD Crashes'!C:C,F51,'WWD Crashes'!M:M,">0") -> 15 | AC51: =MIN($B$16*SUMIF('Non-Crash Events'!B:B,F51,'Non-Crash Events'!R:R),50) -> 0 | AD51: =IF(VLOOKUP(F51,Intersections!A:E,5,FALSE)="Unique",$B$22,IF(VLOOKUP(F51,Intersections!A:E,5,FALSE)="Split",$B$23,0)) -> 50 | AE51: =VLOOKUP(F51,Intersections!A:F,6,FALSE) -> 16900 | AF51: 5 | AG51: =VLOOKUP(F51,Intersections!A:G,7,FALSE) -> 800 | AH51: 1 | AI51: 0 | AJ51: =_xlfn.IFS(VLOOKUP(F51,Intersections!A:H,8,FALSE)<=0.7,$B$30,VLOOKUP(F51,Intersections!A:H,8,FALSE)<=2,$B$31,TRUE,0) -> 10 | AK51: =_xlfn.IFS(VLOOKUP(F51,Intersections!A:D,4,FALSE)="Urban",$B$30,TRUE,0) -> 0
A52: [2,590 to 3,400] | B52: 4 | F52: US-20 & IA-136 | G52: =COUNTIF('WWD Crashes'!C:C,F52) -> 2 | H52: =COUNTIFS('Non-Crash Events'!B:B,F52,'Non-Crash Events'!R:R,">0") -> 0 | I52: 80.5 | AA52: =SUMIFS('WWD Crashes'!G:G,'WWD Crashes'!C:C,F52) -> 1.49 | AB52: =_xlfn.IFS(AA52<0.125,$B$3,AA52<0.25,$B$4,AA52<0.5,$B$5,AA52<0.99,$B$6,AA52<1.5,$B$7,TRUE,$B$8)+$B$9*SUMIFS('WWD Crashes'!G:G,'WWD Crashes'!C:C,F52,'WWD Crashes'!L:L,">0")++$B$10*SUMIFS('WWD Crashes'!G:G,'WWD Crashes'!C:C,F52,'WWD Crashes'!M:M,">0") -> 57.5 | AC52: =MIN($B$16*SUMIF('Non-Crash Events'!B:B,F52,'Non-Crash Events'!R:R),50) -> 0 | AD52: =IF(VLOOKUP(F52,Intersections!A:E,5,FALSE)="Unique",$B$22,IF(VLOOKUP(F52,Intersections!A:E,5,FALSE)="Split",$B$23,0)) -> 0 | AE52: =VLOOKUP(F52,Intersections!A:F,6,FALSE) -> 12000 | AF52: 4 | AG52: =VLOOKUP(F52,Intersections!A:G,7,FALSE) -> 8500 | AH52: 9 | AI52: 0 | AJ52: =_xlfn.IFS(VLOOKUP(F52,Intersections!A:H,8,FALSE)<=0.7,$B$30,VLOOKUP(F52,Intersections!A:H,8,FALSE)<=2,$B$31,TRUE,0) -> 10 | AK52: =_xlfn.IFS(VLOOKUP(F52,Intersections!A:D,4,FALSE)="Urban",$B$30,TRUE,0) -> 0
A53: [3,401 to 4,670] | B53: 5 | F53: I-235 & E 14th St | G53: =COUNTIF('WWD Crashes'!C:C,F53) -> 2 | H53: =COUNTIFS('Non-Crash Events'!B:B,F53,'Non-Crash Events'!R:R,">0") -> 0 | I53: 85 | AA53: =SUMIFS('WWD Crashes'!G:G,'WWD Crashes'!C:C,F53) -> 1.95 | AB53: =_xlfn.IFS(AA53<0.125,$B$3,AA53<0.25,$B$4,AA53<0.5,$B$5,AA53<0.99,$B$6,AA53<1.5,$B$7,TRUE,$B$8)+$B$9*SUMIFS('WWD Crashes'!G:G,'WWD Crashes'!C:C,F53,'WWD Crashes'!L:L,">0")++$B$10*SUMIFS('WWD Crashes'!G:G,'WWD Crashes'!C:C,F53,'WWD Crashes'!M:M,">0") -> 25 | AC53: =MIN($B$16*SUMIF('Non-Crash Events'!B:B,F53,'Non-Crash Events'!R:R),50) -> 0 | AD53: =IF(VLOOKUP(F53,Intersections!A:E,5,FALSE)="Unique",$B$22,IF(VLOOKUP(F53,Intersections!A:E,5,FALSE)="Split",$B$23,0)) -> 25 | AE53: =VLOOKUP(F53,Intersections!A:F,6,FALSE) -> 94000 | AF53: 10 | AG53: =VLOOKUP(F53,Intersections!A:G,7,FALSE) -> 21300 | AH53: 10 | AI53: 5 | AJ53: =_xlfn.IFS(VLOOKUP(F53,Intersections!A:H,8,FALSE)<=0.7,$B$30,VLOOKUP(F53,Intersections!A:H,8,FALSE)<=2,$B$31,TRUE,0) -> 10 | AK53: =_xlfn.IFS(VLOOKUP(F53,Intersections!A:D,4,FALSE)="Urban",$B$30,TRUE,0) -> 10
A54: [4,671 to 6,500] | B54: 6 | F54: I-380 & Blairs Ferry Rd | G54: =COUNTIF('WWD Crashes'!C:C,F54) -> 1 | H54: =COUNTIFS('Non-Crash Events'!B:B,F54,'Non-Crash Events'!R:R,">0") -> 0 | I54: 79 | AA54: =SUMIFS('WWD Crashes'!G:G,'WWD Crashes'!C:C,F54) -> 1 | AB54: =_xlfn.IFS(AA54<0.125,$B$3,AA54<0.25,$B$4,AA54<0.5,$B$5,AA54<0.99,$B$6,AA54<1.5,$B$7,TRUE,$B$8)+$B$9*SUMIFS('WWD Crashes'!G:G,'WWD Crashes'!C:C,F54,'WWD Crashes'!L:L,">0")++$B$10*SUMIFS('WWD Crashes'!G:G,'WWD Crashes'!C:C,F54,'WWD Crashes'!M:M,">0") -> 20 | AC54: =MIN($B$16*SUMIF('Non-Crash Events'!B:B,F54,'Non-Crash Events'!R:R),50) -> 0 | AD54: =IF(VLOOKUP(F54,Intersections!A:E,5,FALSE)="Unique",$B$22,IF(VLOOKUP(F54,Intersections!A:E,5,FALSE)="Split",$B$23,0)) -> 25 | AE54: =VLOOKUP(F54,Intersections!A:F,6,FALSE) -> 51900 | AF54: 9 | AG54: =VLOOKUP(F54,Intersections!A:G,7,FALSE) -> 21100 | AH54: 10 | AI54: 5 | AJ54: =_xlfn.IFS(VLOOKUP(F54,Intersections!A:H,8,FALSE)<=0.7,$B$30,VLOOKUP(F54,Intersections!A:H,8,FALSE)<=2,$B$31,TRUE,0) -> 10 | AK54: =_xlfn.IFS(VLOOKUP(F54,Intersections!A:D,4,FALSE)="Urban",$B$30,TRUE,0) -> 10
A55: [6,501 to 8,400] | B55: 7 | F55: US-151 & IA-1 | G55: =COUNTIF('WWD Crashes'!C:C,F55) -> 1 | H55: =COUNTIFS('Non-Crash Events'!B:B,F55,'Non-Crash Events'!R:R,">0") -> 0 | I55: 79 | AA55: =SUMIFS('WWD Crashes'!G:G,'WWD Crashes'!C:C,F55) -> 1 | AB55: =_xlfn.IFS(AA55<0.125,$B$3,AA55<0.25,$B$4,AA55<0.5,$B$5,AA55<0.99,$B$6,AA55<1.5,$B$7,TRUE,$B$8)+$B$9*SUMIFS('WWD Crashes'!G:G,'WWD Crashes'!C:C,F55,'WWD Crashes'!L:L,">0")++$B$10*SUMIFS('WWD Crashes'!G:G,'WWD Crashes'!C:C,F55,'WWD Crashes'!M:M,">0") -> 20 | AC55: =MIN($B$16*SUMIF('Non-Crash Events'!B:B,F55,'Non-Crash Events'!R:R),50) -> 0 | AD55: =IF(VLOOKUP(F55,Intersections!A:E,5,FALSE)="Unique",$B$22,IF(VLOOKUP(F55,Intersections!A:E,5,FALSE)="Split",$B$23,0)) -> 50 | AE55: =VLOOKUP(F55,Intersections!A:F,6,FALSE) -> 13800 | AF55: 4 | AG55: =VLOOKUP(F55,Intersections!A:G,7,FALSE) -> 4280 | AH55: 5 | AI55: 0 | AJ55: =_xlfn.IFS(VLOOKUP(F55,Intersections!A:H,8,FALSE)<=0.7,$B$30,VLOOKUP(F55,Intersections!A:H,8,FALSE)<=2,$B$31,TRUE,0) -> 0 | AK55: =_xlfn.IFS(VLOOKUP(F55,Intersections!A:D,4,FALSE)="Urban",$B$30,TRUE,0) -> 0
A56: [8,401 to 11,160] | B56: 8 | F56: I-80 & Coral Ridge Ave | G56: =COUNTIF('WWD Crashes'!C:C,F56) -> 1 | H56: =COUNTIFS('Non-Crash Events'!B:B,F56,'Non-Crash Events'!R:R,">0") -> 3 | I56: 78.9 | AA56: =SUMIFS('WWD Crashes'!G:G,'WWD Crashes'!C:C,F56) -> 1 | AB56: =_xlfn.IFS(AA56<0.125,$B$3,AA56<0.25,$B$4,AA56<0.5,$B$5,AA56<0.99,$B$6,AA56<1.5,$B$7,TRUE,$B$8)+$B$9*SUMIFS('WWD Crashes'!G:G,'WWD Crashes'!C:C,F56,'WWD Crashes'!L:L,">0")++$B$10*SUMIFS('WWD Crashes'!G:G,'WWD Crashes'!C:C,F56,'WWD Crashes'!M:M,">0") -> 20 | AC56: =MIN($B$16*SUMIF('Non-Crash Events'!B:B,F56,'Non-Crash Events'!R:R),50) -> 24.9 | AD56: =IF(VLOOKUP(F56,Intersections!A:E,5,FALSE)="Unique",$B$22,IF(VLOOKUP(F56,Intersections!A:E,5,FALSE)="Split",$B$23,0)) -> 0 | AE56: =VLOOKUP(F56,Intersections!A:F,6,FALSE) -> 62500 | AF56: 9 | AG56: =VLOOKUP(F56,Intersections!A:G,7,FALSE) -> 33200 | AH56: 10 | AI56: 5 | AJ56: =_xlfn.IFS(VLOOKUP(F56,Intersections!A:H,8,FALSE)<=0.7,$B$30,VLOOKUP(F56,Intersections!A:H,8,FALSE)<=2,$B$31,TRUE,0) -> 10 | AK56: =_xlfn.IFS(VLOOKUP(F56,Intersections!A:D,4,FALSE)="Urban",$B$30,TRUE,0) -> 10
A57: [11,161 to 19,400] | B57: 9 | F57: US-30 & Duff Ave/US-69 | G57: =COUNTIF('WWD Crashes'!C:C,F57) -> 0 | H57: =COUNTIFS('Non-Crash Events'!B:B,F57,'Non-Crash Events'!R:R,">0") -> 6 | I57: 78 | AA57: =SUMIFS('WWD Crashes'!G:G,'WWD Crashes'!C:C,F57) -> 0 | AB57: =_xlfn.IFS(AA57<0.125,$B$3,AA57<0.25,$B$4,AA57<0.5,$B$5,AA57<0.99,$B$6,AA57<1.5,$B$7,TRUE,$B$8)+$B$9*SUMIFS('WWD Crashes'!G:G,'WWD Crashes'!C:C,F57,'WWD Crashes'!L:L,">0")++$B$10*SUMIFS('WWD Crashes'!G:G,'WWD Crashes'!C:C,F57,'WWD Crashes'!M:M,">0") -> 0 | AC57: =MIN($B$16*SUMIF('Non-Crash Events'!B:B,F57,'Non-Crash Events'!R:R),50) -> 50 | AD57: =IF(VLOOKUP(F57,Intersections!A:E,5,FALSE)="Unique",$B$22,IF(VLOOKUP(F57,Intersections!A:E,5,FALSE)="Split",$B$23,0)) -> 0 | AE57: =VLOOKUP(F57,Intersections!A:F,6,FALSE) -> 32400 | AF57: 8 | AG57: =VLOOKUP(F57,Intersections!A:G,7,FALSE) -> 25900 | AH57: 10 | AI57: 0 | AJ57: =_xlfn.IFS(VLOOKUP(F57,Intersections!A:H,8,FALSE)<=0.7,$B$30,VLOOKUP(F57,Intersections!A:H,8,FALSE)<=2,$B$31,TRUE,0) -> 10 | AK57: =_xlfn.IFS(VLOOKUP(F57,Intersections!A:D,4,FALSE)="Urban",$B$30,TRUE,0) -> 10
A58: >= 19,401 | B58: 10 | F58: US-218 & Riverside Dr | G58: =COUNTIF('WWD Crashes'!C:C,F58) -> 0 | H58: =COUNTIFS('Non-Crash Events'!B:B,F58,'Non-Crash Events'!R:R,">0") -> 1 | I58: 77.9 | AA58: =SUMIFS('WWD Crashes'!G:G,'WWD Crashes'!C:C,F58) -> 0 | AB58: =_xlfn.IFS(AA58<0.125,$B$3,AA58<0.25,$B$4,AA58<0.5,$B$5,AA58<0.99,$B$6,AA58<1.5,$B$7,TRUE,$B$8)+$B$9*SUMIFS('WWD Crashes'!G:G,'WWD Crashes'!C:C,F58,'WWD Crashes'!L:L,">0")++$B$10*SUMIFS('WWD Crashes'!G:G,'WWD Crashes'!C:C,F58,'WWD Crashes'!M:M,">0") -> 0 | AC58: =MIN($B$16*SUMIF('Non-Crash Events'!B:B,F58,'Non-Crash Events'!R:R),50) -> 9.9 | AD58: =IF(VLOOKUP(F58,Intersections!A:E,5,FALSE)="Unique",$B$22,IF(VLOOKUP(F58,Intersections!A:E,5,FALSE)="Split",$B$23,0)) -> 50 | AE58: =VLOOKUP(F58,Intersections!A:F,6,FALSE) -> 22100 | AF58: 6 | AG58: =VLOOKUP(F58,Intersections!A:G,7,FALSE) -> 6900 | AH58: 7 | AI58: 0 | AJ58: =_xlfn.IFS(VLOOKUP(F58,Intersections!A:H,8,FALSE)<=0.7,$B$30,VLOOKUP(F58,Intersections!A:H,8,FALSE)<=2,$B$31,TRUE,0) -> 5 | AK58: =_xlfn.IFS(VLOOKUP(F58,Intersections!A:D,4,FALSE)="Urban",$B$30,TRUE,0) -> 10
F59: US-65 & Vandalia Rd | G59: =COUNTIF('WWD Crashes'!C:C,F59) -> 0 | H59: =COUNTIFS('Non-Crash Events'!B:B,F59,'Non-Crash Events'!R:R,">0") -> 1 | I59: 77.9 | AA59: =SUMIFS('WWD Crashes'!G:G,'WWD Crashes'!C:C,F59) -> 0 | AB59: =_xlfn.IFS(AA59<0.125,$B$3,AA59<0.25,$B$4,AA59<0.5,$B$5,AA59<0.99,$B$6,AA59<1.5,$B$7,TRUE,$B$8)+$B$9*SUMIFS('WWD Crashes'!G:G,'WWD Crashes'!C:C,F59,'WWD Crashes'!L:L,">0")++$B$10*SUMIFS('WWD Crashes'!G:G,'WWD Crashes'!C:C,F59,'WWD Crashes'!M:M,">0") -> 0 | AC59: =MIN($B$16*SUMIF('Non-Crash Events'!B:B,F59,'Non-Crash Events'!R:R),50) -> 9.9 | AD59: =IF(VLOOKUP(F59,Intersections!A:E,5,FALSE)="Unique",$B$22,IF(VLOOKUP(F59,Intersections!A:E,5,FALSE)="Split",$B$23,0)) -> 50 | AE59: =VLOOKUP(F59,Intersections!A:F,6,FALSE) -> 25000 | AF59: 7 | AG59: =VLOOKUP(F59,Intersections!A:G,7,FALSE) -> 6300 | AH59: 6 | AI59: 0 | AJ59: =_xlfn.IFS(VLOOKUP(F59,Intersections!A:H,8,FALSE)<=0.7,$B$30,VLOOKUP(F59,Intersections!A:H,8,FALSE)<=2,$B$31,TRUE,0) -> 5 | AK59: =_xlfn.IFS(VLOOKUP(F59,Intersections!A:D,4,FALSE)="Urban",$B$30,TRUE,0) -> 0
A60: Both ML and SR in Top 30% | B60: 5 | F60: US-30 & Dayton Ave | G60: =COUNTIF('WWD Crashes'!C:C,F60) -> 0 | H60: =COUNTIFS('Non-Crash Events'!B:B,F60,'Non-Crash Events'!R:R,">0") -> 5 | I60: 77 | AA60: =SUMIFS('WWD Crashes'!G:G,'WWD Crashes'!C:C,F60) -> 0 | AB60: =_xlfn.IFS(AA60<0.125,$B$3,AA60<0.25,$B$4,AA60<0.5,$B$5,AA60<0.99,$B$6,AA60<1.5,$B$7,TRUE,$B$8)+$B$9*SUMIFS('WWD Crashes'!G:G,'WWD Crashes'!C:C,F60,'WWD Crashes'!L:L,">0")++$B$10*SUMIFS('WWD Crashes'!G:G,'WWD Crashes'!C:C,F60,'WWD Crashes'!M:M,">0") -> 0 | AC60: =MIN($B$16*SUMIF('Non-Crash Events'!B:B,F60,'Non-Crash Events'!R:R),50) -> 50 | AD60: =IF(VLOOKUP(F60,Intersections!A:E,5,FALSE)="Unique",$B$22,IF(VLOOKUP(F60,Intersections!A:E,5,FALSE)="Split",$B$23,0)) -> 0 | AE60: =VLOOKUP(F60,Intersections!A:F,6,FALSE) -> 32100 | AF60: 8 | AG60: =VLOOKUP(F60,Intersections!A:G,7,FALSE) -> 12000 | AH60: 9 | AI60: 0 | AJ60: =_xlfn.IFS(VLOOKUP(F60,Intersections!A:H,8,FALSE)<=0.7,$B$30,VLOOKUP(F60,Intersections!A:H,8,FALSE)<=2,$B$31,TRUE,0) -> 10 | AK60: =_xlfn.IFS(VLOOKUP(F60,Intersections!A:D,4,FALSE)="Urban",$B$30,TRUE,0) -> 10
F61: IA-100 & Edgewood Rd | G61: =COUNTIF('WWD Crashes'!C:C,F61) -> 0 | H61: =COUNTIFS('Non-Crash Events'!B:B,F61,'Non-Crash Events'!R:R,">0") -> 5 | I61: 75.8 | AA61: =SUMIFS('WWD Crashes'!G:G,'WWD Crashes'!C:C,F61) -> 0 | AB61: =_xlfn.IFS(AA61<0.125,$B$3,AA61<0.25,$B$4,AA61<0.5,$B$5,AA61<0.99,$B$6,AA61<1.5,$B$7,TRUE,$B$8)+$B$9*SUMIFS('WWD Crashes'!G:G,'WWD Crashes'!C:C,F61,'WWD Crashes'!L:L,">0")++$B$10*SUMIFS('WWD Crashes'!G:G,'WWD Crashes'!C:C,F61,'WWD Crashes'!M:M,">0") -> 0 | AC61: =MIN($B$16*SUMIF('Non-Crash Events'!B:B,F61,'Non-Crash Events'!R:R),50) -> 49.8 | AD61: =IF(VLOOKUP(F61,Intersections!A:E,5,FALSE)="Unique",$B$22,IF(VLOOKUP(F61,Intersections!A:E,5,FALSE)="Split",$B$23,0)) -> 0 | AE61: =VLOOKUP(F61,Intersections!A:F,6,FALSE) -> 23900 | AF61: 6 | AG61: =VLOOKUP(F61,Intersections!A:G,7,FALSE) -> 33500 | AH61: 10 | AI61: 0 | AJ61: =_xlfn.IFS(VLOOKUP(F61,Intersections!A:H,8,FALSE)<=0.7,$B$30,VLOOKUP(F61,Intersections!A:H,8,FALSE)<=2,$B$31,TRUE,0) -> 10 | AK61: =_xlfn.IFS(VLOOKUP(F61,Intersections!A:D,4,FALSE)="Urban",$B$30,TRUE,0) -> 10
F62: I-80 & IA-14 | G62: =COUNTIF('WWD Crashes'!C:C,F62) -> 0 | H62: =COUNTIFS('Non-Crash Events'!B:B,F62,'Non-Crash Events'!R:R,">0") -> 0 | I62: 75 | AA62: =SUMIFS('WWD Crashes'!G:G,'WWD Crashes'!C:C,F62) -> 0 | AB62: =_xlfn.IFS(AA62<0.125,$B$3,AA62<0.25,$B$4,AA62<0.5,$B$5,AA62<0.99,$B$6,AA62<1.5,$B$7,TRUE,$B$8)+$B$9*SUMIFS('WWD Crashes'!G:G,'WWD Crashes'!C:C,F62,'WWD Crashes'!L:L,">0")++$B$10*SUMIFS('WWD Crashes'!G:G,'WWD Crashes'!C:C,F62,'WWD Crashes'!M:M,">0") -> 0 | AC62: =MIN($B$16*SUMIF('Non-Crash Events'!B:B,F62,'Non-Crash Events'!R:R),50) -> 0 | AD62: =IF(VLOOKUP(F62,Intersections!A:E,5,FALSE)="Unique",$B$22,IF(VLOOKUP(F62,Intersections!A:E,5,FALSE)="Split",$B$23,0)) -> 50 | AE62: =VLOOKUP(F62,Intersections!A:F,6,FALSE) -> 32600 | AF62: 8 | AG62: =VLOOKUP(F62,Intersections!A:G,7,FALSE) -> 7100 | AH62: 7 | AI62: 0 | AJ62: =_xlfn.IFS(VLOOKUP(F62,Intersections!A:H,8,FALSE)<=0.7,$B$30,VLOOKUP(F62,Intersections!A:H,8,FALSE)<=2,$B$31,TRUE,0) -> 10 | AK62: =_xlfn.IFS(VLOOKUP(F62,Intersections!A:D,4,FALSE)="Urban",$B$30,TRUE,0) -> 10
F63: US-20 N Ramp & XIRCUS AVE | G63: =COUNTIF('WWD Crashes'!C:C,F63) -> 1 | H63: =COUNTIFS('Non-Crash Events'!B:B,F63,'Non-Crash Events'!R:R,">0") -> 0 | I63: 74.25 | AA63: =SUMIFS('WWD Crashes'!G:G,'WWD Crashes'!C:C,F63) -> 0.75 | AB63: =_xlfn.IFS(AA63<0.125,$B$3,AA63<0.25,$B$4,AA63<0.5,$B$5,AA63<0.99,$B$6,AA63<1.5,$B$7,TRUE,$B$8)+$B$9*SUMIFS('WWD Crashes'!G:G,'WWD Crashes'!C:C,F63,'WWD Crashes'!L:L,">0")++$B$10*SUMIFS('WWD Crashes'!G:G,'WWD Crashes'!C:C,F63,'WWD Crashes'!M:M,">0") -> 71.25 | AC63: =MIN($B$16*SUMIF('Non-Crash Events'!B:B,F63,'Non-Crash Events'!R:R),50) -> 0 | AD63: =IF(VLOOKUP(F63,Intersections!A:E,5,FALSE)="Unique",$B$22,IF(VLOOKUP(F63,Intersections!A:E,5,FALSE)="Split",$B$23,0)) -> 0 | AE63: =VLOOKUP(F63,Intersections!A:F,6,FALSE) -> 8900 | AF63: 2 | AG63: =VLOOKUP(F63,Intersections!A:G,7,FALSE) -> 360 | AH63: 1 | AI63: 0 | AJ63: =_xlfn.IFS(VLOOKUP(F63,Intersections!A:H,8,FALSE)<=0.7,$B$30,VLOOKUP(F63,Intersections!A:H,8,FALSE)<=2,$B$31,TRUE,0) -> 0 | AK63: =_xlfn.IFS(VLOOKUP(F63,Intersections!A:D,4,FALSE)="Urban",$B$30,TRUE,0) -> 0
F64: US-63 & US-18/IA-346 | G64: =COUNTIF('WWD Crashes'!C:C,F64) -> 1 | H64: =COUNTIFS('Non-Crash Events'!B:B,F64,'Non-Crash Events'!R:R,">0") -> 0 | I64: 74 | AA64: =SUMIFS('WWD Crashes'!G:G,'WWD Crashes'!C:C,F64) -> 1 | AB64: =_xlfn.IFS(AA64<0.125,$B$3,AA64<0.25,$B$4,AA64<0.5,$B$5,AA64<0.99,$B$6,AA64<1.5,$B$7,TRUE,$B$8)+$B$9*SUMIFS('WWD Crashes'!G:G,'WWD Crashes'!C:C,F64,'WWD Crashes'!L:L,">0")++$B$10*SUMIFS('WWD Crashes'!G:G,'WWD Crashes'!C:C,F64,'WWD Crashes'!M:M,">0") -> 20 | AC64: =MIN($B$16*SUMIF('Non-Crash Events'!B:B,F64,'Non-Crash Events'!R:R),50) -> 0 | AD64: =IF(VLOOKUP(F64,Intersections!A:E,5,FALSE)="Unique",$B$22,IF(VLOOKUP(F64,Intersections!A:E,5,FALSE)="Split",$B$23,0)) -> 50 | AE64: =VLOOKUP(F64,Intersections!A:F,6,FALSE) -> 5300 | AF64: 1 | AG64: =VLOOKUP(F64,Intersections!A:G,7,FALSE) -> 2110 | AH64: 3 | AI64: 0 | AJ64: =_xlfn.IFS(VLOOKUP(F64,Intersections!A:H,8,FALSE)<=0.7,$B$30,VLOOKUP(F64,Intersections!A:H,8,FALSE)<=2,$B$31,TRUE,0) -> 0 | AK64: =_xlfn.IFS(VLOOKUP(F64,Intersections!A:D,4,FALSE)="Urban",$B$30,TRUE,0) -> 0
A65: Interchange w/ documented WWD events | F65: US-34 & Gear Ave | G65: =COUNTIF('WWD Crashes'!C:C,F65) -> 0 | H65: =COUNTIFS('Non-Crash Events'!B:B,F65,'Non-Crash Events'!R:R,">0") -> 0 | I65: 73 | AA65: =SUMIFS('WWD Crashes'!G:G,'WWD Crashes'!C:C,F65) -> 0 | AB65: =_xlfn.IFS(AA65<0.125,$B$3,AA65<0.25,$B$4,AA65<0.5,$B$5,AA65<0.99,$B$6,AA65<1.5,$B$7,TRUE,$B$8)+$B$9*SUMIFS('WWD Crashes'!G:G,'WWD Crashes'!C:C,F65,'WWD Crashes'!L:L,">0")++$B$10*SUMIFS('WWD Crashes'!G:G,'WWD Crashes'!C:C,F65,'WWD Crashes'!M:M,">0") -> 0 | AC65: =MIN($B$16*SUMIF('Non-Crash Events'!B:B,F65,'Non-Crash Events'!R:R),50) -> 0 | AD65: =IF(VLOOKUP(F65,Intersections!A:E,5,FALSE)="Unique",$B$22,IF(VLOOKUP(F65,Intersections!A:E,5,FALSE)="Split",$B$23,0)) -> 50 | AE65: =VLOOKUP(F65,Intersections!A:F,6,FALSE) -> 13200 | AF65: 4 | AG65: =VLOOKUP(F65,Intersections!A:G,7,FALSE) -> 11900 | AH65: 9 | AI65: 0 | AJ65: =_xlfn.IFS(VLOOKUP(F65,Intersections!A:H,8,FALSE)<=0.7,$B$30,VLOOKUP(F65,Intersections!A:H,8,FALSE)<=2,$B$31,TRUE,0) -> 10 | AK65: =_xlfn.IFS(VLOOKUP(F65,Intersections!A:D,4,FALSE)="Urban",$B$30,TRUE,0) -> 10
A66: Interchange w/o documented WWD events | D66: =HYPERLINK("#'Weight Based'!"&ADDRESS(5,11),"Jump to Details") -> Jump to Details | F66: I-80 & CR-P20/Pinewood Ave | G66: =COUNTIF('WWD Crashes'!C:C,F66) -> 1 | H66: =COUNTIFS('Non-Crash Events'!B:B,F66,'Non-Crash Events'!R:R,">0") -> 0 | I66: =SUM(AB66,AC66,AD66,AF66,AH66,AI66,AJ66) -> 72 | AA66: =SUMIFS('WWD Crashes'!G:G,'WWD Crashes'!C:C,F66) -> 0.5 | AB66: =_xlfn.IFS(AA66<0.125,$B$3,AA66<0.25,$B$4,AA66<0.5,$B$5,AA66<0.99,$B$6,AA66<1.5,$B$7,TRUE,$B$8)+$B$9*SUMIFS('WWD Crashes'!G:G,'WWD Crashes'!C:C,F66,'WWD Crashes'!L:L,">0")++$B$10*SUMIFS('WWD Crashes'!G:G,'WWD Crashes'!C:C,F66,'WWD Crashes'!M:M,">0") -> 15 | AC66: =MIN($B$16*SUMIF('Non-Crash Events'!B:B,F66,'Non-Crash Events'!R:R),50) -> 0 | AD66: =IF(VLOOKUP(F66,Intersections!A:E,5,FALSE)="Unique",$B$22,IF(VLOOKUP(F66,Intersections!A:E,5,FALSE)="Split",$B$23,0)) -> 50 | AE66: =VLOOKUP(F66,Intersections!A:F,6,FALSE) -> 24700 | AF66: 6 | AG66: =VLOOKUP(F66,Intersections!A:G,7,FALSE) -> 200 | AH66: 1 | AI66: 0 | AJ66: =_xlfn.IFS(VLOOKUP(F66,Intersections!A:H,8,FALSE)<=0.7,$B$30,VLOOKUP(F66,Intersections!A:H,8,FALSE)<=2,$B$31,TRUE,0) -> 0 | AK66: =_xlfn.IFS(VLOOKUP(F66,Intersections!A:D,4,FALSE)="Urban",$B$30,TRUE,0) -> 0
F67: US-65 & US-6 | G67: =COUNTIF('WWD Crashes'!C:C,F67) -> 0 | H67: =COUNTIFS('Non-Crash Events'!B:B,F67,'Non-Crash Events'!R:R,">0") -> 2 | I67: 72 | AA67: =SUMIFS('WWD Crashes'!G:G,'WWD Crashes'!C:C,F67) -> 0 | AB67: =_xlfn.IFS(AA67<0.125,$B$3,AA67<0.25,$B$4,AA67<0.5,$B$5,AA67<0.99,$B$6,AA67<1.5,$B$7,TRUE,$B$8)+$B$9*SUMIFS('WWD Crashes'!G:G,'WWD Crashes'!C:C,F67,'WWD Crashes'!L:L,">0")++$B$10*SUMIFS('WWD Crashes'!G:G,'WWD Crashes'!C:C,F67,'WWD Crashes'!M:M,">0") -> 0 | AC67: =MIN($B$16*SUMIF('Non-Crash Events'!B:B,F67,'Non-Crash Events'!R:R),50) -> 20 | AD67: =IF(VLOOKUP(F67,Intersections!A:E,5,FALSE)="Unique",$B$22,IF(VLOOKUP(F67,Intersections!A:E,5,FALSE)="Split",$B$23,0)) -> 25 | AE67: =VLOOKUP(F67,Intersections!A:F,6,FALSE) -> 30800 | AF67: =_xlfn.IFS(AE67<7821,1,AE67<9601,2,AE67<11931,3,AE67<15801,4,AE67<20401,5,AE67<24821,6,AE67<29771,7,AE67<36181,8,AE67<67181,9,TRUE,10) -> 8 | AG67: =VLOOKUP(F67,Intersections!A:G,7,FALSE) -> 10100 | AH67: =_xlfn.IFS(AG67<827,1,AG67<1663,2,AG67<2590,3,AG67<3401,4,AG67<4671,5,AG67<6501,6,AG67<8401,7,AG67<1161,8,AG67<19401,9,TRUE,10) -> 9 | AI67: =IF(AND(AF67>8,AG67>8),5,0) -> 0 | AJ67: =_xlfn.IFS(VLOOKUP(F67,Intersections!A:H,8,FALSE)<=0.7,$B$30,VLOOKUP(F67,Intersections!A:H,8,FALSE)<=2,$B$31,TRUE,0) -> 10 | AK67: =_xlfn.IFS(VLOOKUP(F67,Intersections!A:D,4,FALSE)="Urban",$B$30,TRUE,0) -> 10
F68: US-20 & US-63 | G68: =COUNTIF('WWD Crashes'!C:C,F68) -> 0 | H68: =COUNTIFS('Non-Crash Events'!B:B,F68,'Non-Crash Events'!R:R,">0") -> 0 | I68: 72 | AA68: =SUMIFS('WWD Crashes'!G:G,'WWD Crashes'!C:C,F68) -> 0 | AB68: =_xlfn.IFS(AA68<0.125,$B$3,AA68<0.25,$B$4,AA68<0.5,$B$5,AA68<0.99,$B$6,AA68<1.5,$B$7,TRUE,$B$8)+$B$9*SUMIFS('WWD Crashes'!G:G,'WWD Crashes'!C:C,F68,'WWD Crashes'!L:L,">0")++$B$10*SUMIFS('WWD Crashes'!G:G,'WWD Crashes'!C:C,F68,'WWD Crashes'!M:M,">0") -> 0 | AC68: =MIN($B$16*SUMIF('Non-Crash Events'!B:B,F68,'Non-Crash Events'!R:R),50) -> 0 | AD68: =IF(VLOOKUP(F68,Intersections!A:E,5,FALSE)="Unique",$B$22,IF(VLOOKUP(F68,Intersections!A:E,5,FALSE)="Split",$B$23,0)) -> 50 | AE68: =VLOOKUP(F68,Intersections!A:F,6,FALSE) -> 30900 | AF68: 8 | AG68: =VLOOKUP(F68,Intersections!A:G,7,FALSE) -> 9200 | AH68: 9 | AI68: 0 | AJ68: =_xlfn.IFS(VLOOKUP(F68,Intersections!A:H,8,FALSE)<=0.7,$B$30,VLOOKUP(F68,Intersections!A:H,8,FALSE)<=2,$B$31,TRUE,0) -> 5 | AK68: =_xlfn.IFS(VLOOKUP(F68,Intersections!A:D,4,FALSE)="Urban",$B$30,TRUE,0) -> 10
F69: US-61 & 9th St/11th St | G69: =COUNTIF('WWD Crashes'!C:C,F69) -> 2 | H69: =COUNTIFS('Non-Crash Events'!B:B,F69,'Non-Crash Events'!R:R,">0") -> 0 | I69: 71 | AA69: =SUMIFS('WWD Crashes'!G:G,'WWD Crashes'!C:C,F69) -> 2 | AB69: =_xlfn.IFS(AA69<0.125,$B$3,AA69<0.25,$B$4,AA69<0.5,$B$5,AA69<0.99,$B$6,AA69<1.5,$B$7,TRUE,$B$8)+$B$9*SUMIFS('WWD Crashes'!G:G,'WWD Crashes'!C:C,F69,'WWD Crashes'!L:L,">0")++$B$10*SUMIFS('WWD Crashes'!G:G,'WWD Crashes'!C:C,F69,'WWD Crashes'!M:M,">0") -> 25 | AC69: =MIN($B$16*SUMIF('Non-Crash Events'!B:B,F69,'Non-Crash Events'!R:R),50) -> 0 | AD69: =IF(VLOOKUP(F69,Intersections!A:E,5,FALSE)="Unique",$B$22,IF(VLOOKUP(F69,Intersections!A:E,5,FALSE)="Split",$B$23,0)) -> 25 | AE69: =VLOOKUP(F69,Intersections!A:F,6,FALSE) -> 24700 | AF69: 6 | AG69: =VLOOKUP(F69,Intersections!A:G,7,FALSE) -> 3850 | AH69: 5 | AI69: 0 | AJ69: =_xlfn.IFS(VLOOKUP(F69,Intersections!A:H,8,FALSE)<=0.7,$B$30,VLOOKUP(F69,Intersections!A:H,8,FALSE)<=2,$B$31,TRUE,0) -> 10 | AK69: =_xlfn.IFS(VLOOKUP(F69,Intersections!A:D,4,FALSE)="Urban",$B$30,TRUE,0) -> 10
F70: US-34 & BUS-34 / Middletown | G70: =COUNTIF('WWD Crashes'!C:C,F70) -> 1 | H70: =COUNTIFS('Non-Crash Events'!B:B,F70,'Non-Crash Events'!R:R,">0") -> 0 | I70: 70 | AA70: =SUMIFS('WWD Crashes'!G:G,'WWD Crashes'!C:C,F70) -> 0.5 | AB70: =_xlfn.IFS(AA70<0.125,$B$3,AA70<0.25,$B$4,AA70<0.5,$B$5,AA70<0.99,$B$6,AA70<1.5,$B$7,TRUE,$B$8)+$B$9*SUMIFS('WWD Crashes'!G:G,'WWD Crashes'!C:C,F70,'WWD Crashes'!L:L,">0")++$B$10*SUMIFS('WWD Crashes'!G:G,'WWD Crashes'!C:C,F70,'WWD Crashes'!M:M,">0") -> 15 | AC70: =MIN($B$16*SUMIF('Non-Crash Events'!B:B,F70,'Non-Crash Events'!R:R),50) -> 0 | AD70: =IF(VLOOKUP(F70,Intersections!A:E,5,FALSE)="Unique",$B$22,IF(VLOOKUP(F70,Intersections!A:E,5,FALSE)="Split",$B$23,0)) -> 50 | AE70: =VLOOKUP(F70,Intersections!A:F,6,FALSE) -> 7700 | AF70: 1 | AG70: =VLOOKUP(F70,Intersections!A:G,7,FALSE) -> 2720 | AH70: 4 | AI70: 0 | AJ70: =_xlfn.IFS(VLOOKUP(F70,Intersections!A:H,8,FALSE)<=0.7,$B$30,VLOOKUP(F70,Intersections!A:H,8,FALSE)<=2,$B$31,TRUE,0) -> 0 | AK70: =_xlfn.IFS(VLOOKUP(F70,Intersections!A:D,4,FALSE)="Urban",$B$30,TRUE,0) -> 0
F71: I-380 & Diagonal Dr | G71: =COUNTIF('WWD Crashes'!C:C,F71) -> 0 | H71: =COUNTIFS('Non-Crash Events'!B:B,F71,'Non-Crash Events'!R:R,">0") -> 2 | I71: 69 | AA71: =SUMIFS('WWD Crashes'!G:G,'WWD Crashes'!C:C,F71) -> 0 | AB71: =_xlfn.IFS(AA71<0.125,$B$3,AA71<0.25,$B$4,AA71<0.5,$B$5,AA71<0.99,$B$6,AA71<1.5,$B$7,TRUE,$B$8)+$B$9*SUMIFS('WWD Crashes'!G:G,'WWD Crashes'!C:C,F71,'WWD Crashes'!L:L,">0")++$B$10*SUMIFS('WWD Crashes'!G:G,'WWD Crashes'!C:C,F71,'WWD Crashes'!M:M,">0") -> 0 | AC71: =MIN($B$16*SUMIF('Non-Crash Events'!B:B,F71,'Non-Crash Events'!R:R),50) -> 10 | AD71: =IF(VLOOKUP(F71,Intersections!A:E,5,FALSE)="Unique",$B$22,IF(VLOOKUP(F71,Intersections!A:E,5,FALSE)="Split",$B$23,0)) -> 25 | AE71: =VLOOKUP(F71,Intersections!A:F,6,FALSE) -> 81100 | AF71: 10 | AG71: =VLOOKUP(F71,Intersections!A:G,7,FALSE) -> 14700 | AH71: 9 | AI71: 5 | AJ71: =_xlfn.IFS(VLOOKUP(F71,Intersections!A:H,8,FALSE)<=0.7,$B$30,VLOOKUP(F71,Intersections!A:H,8,FALSE)<=2,$B$31,TRUE,0) -> 10 | AK71: =_xlfn.IFS(VLOOKUP(F71,Intersections!A:D,4,FALSE)="Urban",$B$30,TRUE,0) -> 10
F72: I-80 & CR-F60/ELDORADO AVE | G72: =COUNTIF('WWD Crashes'!C:C,F72) -> 1 | H72: =COUNTIFS('Non-Crash Events'!B:B,F72,'Non-Crash Events'!R:R,">0") -> 0 | I72: 68.5 | AA72: =SUMIFS('WWD Crashes'!G:G,'WWD Crashes'!C:C,F72) -> 0.5 | AB72: =_xlfn.IFS(AA72<0.125,$B$3,AA72<0.25,$B$4,AA72<0.5,$B$5,AA72<0.99,$B$6,AA72<1.5,$B$7,TRUE,$B$8)+$B$9*SUMIFS('WWD Crashes'!G:G,'WWD Crashes'!C:C,F72,'WWD Crashes'!L:L,">0")++$B$10*SUMIFS('WWD Crashes'!G:G,'WWD Crashes'!C:C,F72,'WWD Crashes'!M:M,">0") -> 52.5 | AC72: =MIN($B$16*SUMIF('Non-Crash Events'!B:B,F72,'Non-Crash Events'!R:R),50) -> 0 | AD72: =IF(VLOOKUP(F72,Intersections!A:E,5,FALSE)="Unique",$B$22,IF(VLOOKUP(F72,Intersections!A:E,5,FALSE)="Split",$B$23,0)) -> 0 | AE72: =VLOOKUP(F72,Intersections!A:F,6,FALSE) -> 28900 | AF72: 7 | AG72: =VLOOKUP(F72,Intersections!A:G,7,FALSE) -> 3170 | AH72: 4 | AI72: 0 | AJ72: =_xlfn.IFS(VLOOKUP(F72,Intersections!A:H,8,FALSE)<=0.7,$B$30,VLOOKUP(F72,Intersections!A:H,8,FALSE)<=2,$B$31,TRUE,0) -> 5 | AK72: =_xlfn.IFS(VLOOKUP(F72,Intersections!A:D,4,FALSE)="Urban",$B$30,TRUE,0) -> 0
F73: I-80 & CR-G30/White Pole Rd/Cedar Ave | G73: =COUNTIF('WWD Crashes'!C:C,F73) -> 0 | H73: =COUNTIFS('Non-Crash Events'!B:B,F73,'Non-Crash Events'!R:R,">0") -> 0 | I73: 68 | AA73: =SUMIFS('WWD Crashes'!G:G,'WWD Crashes'!C:C,F73) -> 0 | AB73: =_xlfn.IFS(AA73<0.125,$B$3,AA73<0.25,$B$4,AA73<0.5,$B$5,AA73<0.99,$B$6,AA73<1.5,$B$7,TRUE,$B$8)+$B$9*SUMIFS('WWD Crashes'!G:G,'WWD Crashes'!C:C,F73,'WWD Crashes'!L:L,">0")++$B$10*SUMIFS('WWD Crashes'!G:G,'WWD Crashes'!C:C,F73,'WWD Crashes'!M:M,">0") -> 0 | AC73: =MIN($B$16*SUMIF('Non-Crash Events'!B:B,F73,'Non-Crash Events'!R:R),50) -> 0 | AD73: =IF(VLOOKUP(F73,Intersections!A:E,5,FALSE)="Unique",$B$22,IF(VLOOKUP(F73,Intersections!A:E,5,FALSE)="Split",$B$23,0)) -> 50 | AE73: =VLOOKUP(F73,Intersections!A:F,6,FALSE) -> 22600 | AF73: 6 | AG73: =VLOOKUP(F73,Intersections!A:G,7,FALSE) -> 1630 | AH73: 2 | AI73: 0 | AJ73: =_xlfn.IFS(VLOOKUP(F73,Intersections!A:H,8,FALSE)<=0.7,$B$30,VLOOKUP(F73,Intersections!A:H,8,FALSE)<=2,$B$31,TRUE,0) -> 10 | AK73: =_xlfn.IFS(VLOOKUP(F73,Intersections!A:D,4,FALSE)="Urban",$B$30,TRUE,0) -> 0
F74: IA-163 & IA-117 | G74: =COUNTIF('WWD Crashes'!C:C,F74) -> 0 | H74: =COUNTIFS('Non-Crash Events'!B:B,F74,'Non-Crash Events'!R:R,">0") -> 0 | I74: 68 | AA74: =SUMIFS('WWD Crashes'!G:G,'WWD Crashes'!C:C,F74) -> 0 | AB74: =_xlfn.IFS(AA74<0.125,$B$3,AA74<0.25,$B$4,AA74<0.5,$B$5,AA74<0.99,$B$6,AA74<1.5,$B$7,TRUE,$B$8)+$B$9*SUMIFS('WWD Crashes'!G:G,'WWD Crashes'!C:C,F74,'WWD Crashes'!L:L,">0")++$B$10*SUMIFS('WWD Crashes'!G:G,'WWD Crashes'!C:C,F74,'WWD Crashes'!M:M,">0") -> 0 | AC74: =MIN($B$16*SUMIF('Non-Crash Events'!B:B,F74,'Non-Crash Events'!R:R),50) -> 0 | AD74: =IF(VLOOKUP(F74,Intersections!A:E,5,FALSE)="Unique",$B$22,IF(VLOOKUP(F74,Intersections!A:E,5,FALSE)="Split",$B$23,0)) -> 50 | AE74: =VLOOKUP(F74,Intersections!A:F,6,FALSE) -> 13600 | AF74: 4 | AG74: =VLOOKUP(F74,Intersections!A:G,7,FALSE) -> 2790 | AH74: 4 | AI74: 0 | AJ74: =_xlfn.IFS(VLOOKUP(F74,Intersections!A:H,8,FALSE)<=0.7,$B$30,VLOOKUP(F74,Intersections!A:H,8,FALSE)<=2,$B$31,TRUE,0) -> 10 | AK74: =_xlfn.IFS(VLOOKUP(F74,Intersections!A:D,4,FALSE)="Urban",$B$30,TRUE,0) -> 0
F75: I-29 & Singing Hills Blvd | G75: =COUNTIF('WWD Crashes'!C:C,F75) -> 2 | H75: =COUNTIFS('Non-Crash Events'!B:B,F75,'Non-Crash Events'!R:R,">0") -> 1 | I75: 68 | AA75: =SUMIFS('WWD Crashes'!G:G,'WWD Crashes'!C:C,F75) -> 1.5 | AB75: =_xlfn.IFS(AA75<0.125,$B$3,AA75<0.25,$B$4,AA75<0.5,$B$5,AA75<0.99,$B$6,AA75<1.5,$B$7,TRUE,$B$8)+$B$9*SUMIFS('WWD Crashes'!G:G,'WWD Crashes'!C:C,F75,'WWD Crashes'!L:L,">0")++$B$10*SUMIFS('WWD Crashes'!G:G,'WWD Crashes'!C:C,F75,'WWD Crashes'!M:M,">0") -> 25 | AC75: =MIN($B$16*SUMIF('Non-Crash Events'!B:B,F75,'Non-Crash Events'!R:R),50) -> 10 | AD75: =IF(VLOOKUP(F75,Intersections!A:E,5,FALSE)="Unique",$B$22,IF(VLOOKUP(F75,Intersections!A:E,5,FALSE)="Split",$B$23,0)) -> 0 | AE75: =VLOOKUP(F75,Intersections!A:F,6,FALSE) -> 42000 | AF75: 9 | AG75: =VLOOKUP(F75,Intersections!A:G,7,FALSE) -> 13600 | AH75: 9 | AI75: 5 | AJ75: =_xlfn.IFS(VLOOKUP(F75,Intersections!A:H,8,FALSE)<=0.7,$B$30,VLOOKUP(F75,Intersections!A:H,8,FALSE)<=2,$B$31,TRUE,0) -> 10 | AK75: =_xlfn.IFS(VLOOKUP(F75,Intersections!A:D,4,FALSE)="Urban",$B$30,TRUE,0) -> 10
F76: I-80 & Madison Ave | G76: =COUNTIF('WWD Crashes'!C:C,F76) -> 2 | H76: =COUNTIFS('Non-Crash Events'!B:B,F76,'Non-Crash Events'!R:R,">0") -> 1 | I76: 68 | AA76: =SUMIFS('WWD Crashes'!G:G,'WWD Crashes'!C:C,F76) -> 1.5 | AB76: =_xlfn.IFS(AA76<0.125,$B$3,AA76<0.25,$B$4,AA76<0.5,$B$5,AA76<0.99,$B$6,AA76<1.5,$B$7,TRUE,$B$8)+$B$9*SUMIFS('WWD Crashes'!G:G,'WWD Crashes'!C:C,F76,'WWD Crashes'!L:L,">0")++$B$10*SUMIFS('WWD Crashes'!G:G,'WWD Crashes'!C:C,F76,'WWD Crashes'!M:M,">0") -> 25 | AC76: =MIN($B$16*SUMIF('Non-Crash Events'!B:B,F76,'Non-Crash Events'!R:R),50) -> 10 | AD76: =IF(VLOOKUP(F76,Intersections!A:E,5,FALSE)="Unique",$B$22,IF(VLOOKUP(F76,Intersections!A:E,5,FALSE)="Split",$B$23,0)) -> 0 | AE76: =VLOOKUP(F76,Intersections!A:F,6,FALSE) -> 43000 | AF76: 9 | AG76: =VLOOKUP(F76,Intersections!A:G,7,FALSE) -> 9300 | AH76: 9 | AI76: 5 | AJ76: =_xlfn.IFS(VLOOKUP(F76,Intersections!A:H,8,FALSE)<=0.7,$B$30,VLOOKUP(F76,Intersections!A:H,8,FALSE)<=2,$B$31,TRUE,0) -> 10 | AK76: =_xlfn.IFS(VLOOKUP(F76,Intersections!A:D,4,FALSE)="Urban",$B$30,TRUE,0) -> 10
F77: US-20 & 270th Ave | G77: =COUNTIF('WWD Crashes'!C:C,F77) -> 2 | H77: =COUNTIFS('Non-Crash Events'!B:B,F77,'Non-Crash Events'!R:R,">0") -> 0 | I77: 67.5 | AA77: =SUMIFS('WWD Crashes'!G:G,'WWD Crashes'!C:C,F77) -> 1.5 | AB77: =_xlfn.IFS(AA77<0.125,$B$3,AA77<0.25,$B$4,AA77<0.5,$B$5,AA77<0.99,$B$6,AA77<1.5,$B$7,TRUE,$B$8)+$B$9*SUMIFS('WWD Crashes'!G:G,'WWD Crashes'!C:C,F77,'WWD Crashes'!L:L,">0")++$B$10*SUMIFS('WWD Crashes'!G:G,'WWD Crashes'!C:C,F77,'WWD Crashes'!M:M,">0") -> 62.5 | AC77: =MIN($B$16*SUMIF('Non-Crash Events'!B:B,F77,'Non-Crash Events'!R:R),50) -> 0 | AD77: =IF(VLOOKUP(F77,Intersections!A:E,5,FALSE)="Unique",$B$22,IF(VLOOKUP(F77,Intersections!A:E,5,FALSE)="Split",$B$23,0)) -> 0 | AE77: =VLOOKUP(F77,Intersections!A:F,6,FALSE) -> 8800 | AF77: 2 | AG77: =VLOOKUP(F77,Intersections!A:G,7,FALSE) -> 1710 | AH77: 3 | AI77: 0 | AJ77: =_xlfn.IFS(VLOOKUP(F77,Intersections!A:H,8,FALSE)<=0.7,$B$30,VLOOKUP(F77,Intersections!A:H,8,FALSE)<=2,$B$31,TRUE,0) -> 0 | AK77: =_xlfn.IFS(VLOOKUP(F77,Intersections!A:D,4,FALSE)="Urban",$B$30,TRUE,0) -> 0
F78: US-20 & IA-38 | G78: =COUNTIF('WWD Crashes'!C:C,F78) -> 0 | H78: =COUNTIFS('Non-Crash Events'!B:B,F78,'Non-Crash Events'!R:R,">0") -> 0 | I78: 65 | AA78: =SUMIFS('WWD Crashes'!G:G,'WWD Crashes'!C:C,F78) -> 0 | AB78: =_xlfn.IFS(AA78<0.125,$B$3,AA78<0.25,$B$4,AA78<0.5,$B$5,AA78<0.99,$B$6,AA78<1.5,$B$7,TRUE,$B$8)+$B$9*SUMIFS('WWD Crashes'!G:G,'WWD Crashes'!C:C,F78,'WWD Crashes'!L:L,">0")++$B$10*SUMIFS('WWD Crashes'!G:G,'WWD Crashes'!C:C,F78,'WWD Crashes'!M:M,">0") -> 0 | AC78: =MIN($B$16*SUMIF('Non-Crash Events'!B:B,F78,'Non-Crash Events'!R:R),50) -> 0 | AD78: =IF(VLOOKUP(F78,Intersections!A:E,5,FALSE)="Unique",$B$22,IF(VLOOKUP(F78,Intersections!A:E,5,FALSE)="Split",$B$23,0)) -> 50 | AE78: =VLOOKUP(F78,Intersections!A:F,6,FALSE) -> 9000 | AF78: 2 | AG78: =VLOOKUP(F78,Intersections!A:G,7,FALSE) -> 2320 | AH78: 3 | AI78: 0 | AJ78: =_xlfn.IFS(VLOOKUP(F78,Intersections!A:H,8,FALSE)<=0.7,$B$30,VLOOKUP(F78,Intersections!A:H,8,FALSE)<=2,$B$31,TRUE,0) -> 10 | AK78: =_xlfn.IFS(VLOOKUP(F78,Intersections!A:D,4,FALSE)="Urban",$B$30,TRUE,0) -> 0
F79: US-34 & Grand Ave/Jewel Ave | G79: =COUNTIF('WWD Crashes'!C:C,F79) -> 0 | H79: =COUNTIFS('Non-Crash Events'!B:B,F79,'Non-Crash Events'!R:R,">0") -> 0 | I79: 64 | AA79: =SUMIFS('WWD Crashes'!G:G,'WWD Crashes'!C:C,F79) -> 0 | AB79: =_xlfn.IFS(AA79<0.125,$B$3,AA79<0.25,$B$4,AA79<0.5,$B$5,AA79<0.99,$B$6,AA79<1.5,$B$7,TRUE,$B$8)+$B$9*SUMIFS('WWD Crashes'!G:G,'WWD Crashes'!C:C,F79,'WWD Crashes'!L:L,">0")++$B$10*SUMIFS('WWD Crashes'!G:G,'WWD Crashes'!C:C,F79,'WWD Crashes'!M:M,">0") -> 0 | AC79: =MIN($B$16*SUMIF('Non-Crash Events'!B:B,F79,'Non-Crash Events'!R:R),50) -> 0 | AD79: =IF(VLOOKUP(F79,Intersections!A:E,5,FALSE)="Unique",$B$22,IF(VLOOKUP(F79,Intersections!A:E,5,FALSE)="Split",$B$23,0)) -> 50 | AE79: =VLOOKUP(F79,Intersections!A:F,6,FALSE) -> 10400 | AF79: 3 | AG79: =VLOOKUP(F79,Intersections!A:G,7,FALSE) -> 6100 | AH79: 6 | AI79: 0 | AJ79: =_xlfn.IFS(VLOOKUP(F79,Intersections!A:H,8,FALSE)<=0.7,$B$30,VLOOKUP(F79,Intersections!A:H,8,FALSE)<=2,$B$31,TRUE,0) -> 5 | AK79: =_xlfn.IFS(VLOOKUP(F79,Intersections!A:D,4,FALSE)="Urban",$B$30,TRUE,0) -> 0
F80: I-380 & 29th St | G80: =COUNTIF('WWD Crashes'!C:C,F80) -> 0 | H80: =COUNTIFS('Non-Crash Events'!B:B,F80,'Non-Crash Events'!R:R,">0") -> 1 | I80: 64 | AA80: =SUMIFS('WWD Crashes'!G:G,'WWD Crashes'!C:C,F80) -> 0 | AB80: =_xlfn.IFS(AA80<0.125,$B$3,AA80<0.25,$B$4,AA80<0.5,$B$5,AA80<0.99,$B$6,AA80<1.5,$B$7,TRUE,$B$8)+$B$9*SUMIFS('WWD Crashes'!G:G,'WWD Crashes'!C:C,F80,'WWD Crashes'!L:L,">0")++$B$10*SUMIFS('WWD Crashes'!G:G,'WWD Crashes'!C:C,F80,'WWD Crashes'!M:M,">0") -> 0 | AC80: =MIN($B$16*SUMIF('Non-Crash Events'!B:B,F80,'Non-Crash Events'!R:R),50) -> 5 | AD80: =IF(VLOOKUP(F80,Intersections!A:E,5,FALSE)="Unique",$B$22,IF(VLOOKUP(F80,Intersections!A:E,5,FALSE)="Split",$B$23,0)) -> 25 | AE80: =VLOOKUP(F80,Intersections!A:F,6,FALSE) -> 96900 | AF80: 10 | AG80: =VLOOKUP(F80,Intersections!A:G,7,FALSE) -> 8600 | AH80: 9 | AI80: 5 | AJ80: =_xlfn.IFS(VLOOKUP(F80,Intersections!A:H,8,FALSE)<=0.7,$B$30,VLOOKUP(F80,Intersections!A:H,8,FALSE)<=2,$B$31,TRUE,0) -> 10 | AK80: =_xlfn.IFS(VLOOKUP(F80,Intersections!A:D,4,FALSE)="Urban",$B$30,TRUE,0) -> 10
F81: I-380 & 42nd St | G81: =COUNTIF('WWD Crashes'!C:C,F81) -> 0 | H81: =COUNTIFS('Non-Crash Events'!B:B,F81,'Non-Crash Events'!R:R,">0") -> 1 | I81: 64 | AA81: =SUMIFS('WWD Crashes'!G:G,'WWD Crashes'!C:C,F81) -> 0 | AB81: =_xlfn.IFS(AA81<0.125,$B$3,AA81<0.25,$B$4,AA81<0.5,$B$5,AA81<0.99,$B$6,AA81<1.5,$B$7,TRUE,$B$8)+$B$9*SUMIFS('WWD Crashes'!G:G,'WWD Crashes'!C:C,F81,'WWD Crashes'!L:L,">0")++$B$10*SUMIFS('WWD Crashes'!G:G,'WWD Crashes'!C:C,F81,'WWD Crashes'!M:M,">0") -> 0 | AC81: =MIN($B$16*SUMIF('Non-Crash Events'!B:B,F81,'Non-Crash Events'!R:R),50) -> 5 | AD81: =IF(VLOOKUP(F81,Intersections!A:E,5,FALSE)="Unique",$B$22,IF(VLOOKUP(F81,Intersections!A:E,5,FALSE)="Split",$B$23,0)) -> 25 | AE81: =VLOOKUP(F81,Intersections!A:F,6,FALSE) -> 83100 | AF81: 10 | AG81: =VLOOKUP(F81,Intersections!A:G,7,FALSE) -> 12000 | AH81: 9 | AI81: 5 | AJ81: =_xlfn.IFS(VLOOKUP(F81,Intersections!A:H,8,FALSE)<=0.7,$B$30,VLOOKUP(F81,Intersections!A:H,8,FALSE)<=2,$B$31,TRUE,0) -> 10 | AK81: =_xlfn.IFS(VLOOKUP(F81,Intersections!A:D,4,FALSE)="Urban",$B$30,TRUE,0) -> 10
F82: I-380 & Boyson Rd | G82: =COUNTIF('WWD Crashes'!C:C,F82) -> 1 | H82: =COUNTIFS('Non-Crash Events'!B:B,F82,'Non-Crash Events'!R:R,">0") -> 1 | I82: 63.9 | AA82: =SUMIFS('WWD Crashes'!G:G,'WWD Crashes'!C:C,F82) -> 1 | AB82: =_xlfn.IFS(AA82<0.125,$B$3,AA82<0.25,$B$4,AA82<0.5,$B$5,AA82<0.99,$B$6,AA82<1.5,$B$7,TRUE,$B$8)+$B$9*SUMIFS('WWD Crashes'!G:G,'WWD Crashes'!C:C,F82,'WWD Crashes'!L:L,">0")++$B$10*SUMIFS('WWD Crashes'!G:G,'WWD Crashes'!C:C,F82,'WWD Crashes'!M:M,">0") -> 20 | AC82: =MIN($B$16*SUMIF('Non-Crash Events'!B:B,F82,'Non-Crash Events'!R:R),50) -> 9.9 | AD82: =IF(VLOOKUP(F82,Intersections!A:E,5,FALSE)="Unique",$B$22,IF(VLOOKUP(F82,Intersections!A:E,5,FALSE)="Split",$B$23,0)) -> 0 | AE82: =VLOOKUP(F82,Intersections!A:F,6,FALSE) -> 48300 | AF82: 9 | AG82: =VLOOKUP(F82,Intersections!A:G,7,FALSE) -> 19800 | AH82: 10 | AI82: 5 | AJ82: =_xlfn.IFS(VLOOKUP(F82,Intersections!A:H,8,FALSE)<=0.7,$B$30,VLOOKUP(F82,Intersections!A:H,8,FALSE)<=2,$B$31,TRUE,0) -> 10 | AK82: =_xlfn.IFS(VLOOKUP(F82,Intersections!A:D,4,FALSE)="Urban",$B$30,TRUE,0) -> 10
D83: =HYPERLINK("#'Weight Based'!"&ADDRESS(5,11),"Jump to Details") -> Jump to Details | F83: I-80 & Hubbell Ave | G83: =COUNTIF('WWD Crashes'!C:C,F83) -> 3 | H83: =COUNTIFS('Non-Crash Events'!B:B,F83,'Non-Crash Events'!R:R,">0") -> 1 | I83: 63 | AA83: =SUMIFS('WWD Crashes'!G:G,'WWD Crashes'!C:C,F83) -> 1.25 | AB83: =_xlfn.IFS(AA83<0.125,$B$3,AA83<0.25,$B$4,AA83<0.5,$B$5,AA83<0.99,$B$6,AA83<1.5,$B$7,TRUE,$B$8)+$B$9*SUMIFS('WWD Crashes'!G:G,'WWD Crashes'!C:C,F83,'WWD Crashes'!L:L,">0")++$B$10*SUMIFS('WWD Crashes'!G:G,'WWD Crashes'!C:C,F83,'WWD Crashes'!M:M,">0") -> 20 | AC83: =MIN($B$16*SUMIF('Non-Crash Events'!B:B,F83,'Non-Crash Events'!R:R),50) -> 10 | AD83: =IF(VLOOKUP(F83,Intersections!A:E,5,FALSE)="Unique",$B$22,IF(VLOOKUP(F83,Intersections!A:E,5,FALSE)="Split",$B$23,0)) -> 0 | AE83: =VLOOKUP(F83,Intersections!A:F,6,FALSE) -> 42800 | AF83: 9 | AG83: =VLOOKUP(F83,Intersections!A:G,7,FALSE) -> 13700 | AH83: 9 | AI83: 5 | AJ83: =_xlfn.IFS(VLOOKUP(F83,Intersections!A:H,8,FALSE)<=0.7,$B$30,VLOOKUP(F83,Intersections!A:H,8,FALSE)<=2,$B$31,TRUE,0) -> 10 | AK83: =_xlfn.IFS(VLOOKUP(F83,Intersections!A:D,4,FALSE)="Urban",$B$30,TRUE,0) -> 10
F84: IA-27 & US-218 | G84: =COUNTIF('WWD Crashes'!C:C,F84) -> 1 | H84: =COUNTIFS('Non-Crash Events'!B:B,F84,'Non-Crash Events'!R:R,">0") -> 0 | I84: 62.5 | AA84: =SUMIFS('WWD Crashes'!G:G,'WWD Crashes'!C:C,F84) -> 0.5 | AB84: =_xlfn.IFS(AA84<0.125,$B$3,AA84<0.25,$B$4,AA84<0.5,$B$5,AA84<0.99,$B$6,AA84<1.5,$B$7,TRUE,$B$8)+$B$9*SUMIFS('WWD Crashes'!G:G,'WWD Crashes'!C:C,F84,'WWD Crashes'!L:L,">0")++$B$10*SUMIFS('WWD Crashes'!G:G,'WWD Crashes'!C:C,F84,'WWD Crashes'!M:M,">0") -> 52.5 | AC84: =MIN($B$16*SUMIF('Non-Crash Events'!B:B,F84,'Non-Crash Events'!R:R),50) -> 0 | AD84: =IF(VLOOKUP(F84,Intersections!A:E,5,FALSE)="Unique",$B$22,IF(VLOOKUP(F84,Intersections!A:E,5,FALSE)="Split",$B$23,0)) -> 0 | AE84: =VLOOKUP(F84,Intersections!A:F,6,FALSE) -> 6300 | AF84: 1 | AG84: =VLOOKUP(F84,Intersections!A:G,7,FALSE) -> 2710 | AH84: 4 | AI84: 0 | AJ84: =_xlfn.IFS(VLOOKUP(F84,Intersections!A:H,8,FALSE)<=0.7,$B$30,VLOOKUP(F84,Intersections!A:H,8,FALSE)<=2,$B$31,TRUE,0) -> 5 | AK84: =_xlfn.IFS(VLOOKUP(F84,Intersections!A:D,4,FALSE)="Urban",$B$30,TRUE,0) -> 0
F85: US-30 & BUS-30/Lincoln Hwy | G85: =COUNTIF('WWD Crashes'!C:C,F85) -> 0 | H85: =COUNTIFS('Non-Crash Events'!B:B,F85,'Non-Crash Events'!R:R,">0") -> 0 | I85: 62 | AA85: =SUMIFS('WWD Crashes'!G:G,'WWD Crashes'!C:C,F85) -> 0 | AB85: =_xlfn.IFS(AA85<0.125,$B$3,AA85<0.25,$B$4,AA85<0.5,$B$5,AA85<0.99,$B$6,AA85<1.5,$B$7,TRUE,$B$8)+$B$9*SUMIFS('WWD Crashes'!G:G,'WWD Crashes'!C:C,F85,'WWD Crashes'!L:L,">0")++$B$10*SUMIFS('WWD Crashes'!G:G,'WWD Crashes'!C:C,F85,'WWD Crashes'!M:M,">0") -> 0 | AC85: =MIN($B$16*SUMIF('Non-Crash Events'!B:B,F85,'Non-Crash Events'!R:R),50) -> 0 | AD85: =IF(VLOOKUP(F85,Intersections!A:E,5,FALSE)="Unique",$B$22,IF(VLOOKUP(F85,Intersections!A:E,5,FALSE)="Split",$B$23,0)) -> 50 | AE85: =VLOOKUP(F85,Intersections!A:F,6,FALSE) -> 11800 | AF85: 3 | AG85: =VLOOKUP(F85,Intersections!A:G,7,FALSE) -> 3160 | AH85: 4 | AI85: 0 | AJ85: =_xlfn.IFS(VLOOKUP(F85,Intersections!A:H,8,FALSE)<=0.7,$B$30,VLOOKUP(F85,Intersections!A:H,8,FALSE)<=2,$B$31,TRUE,0) -> 5 | AK85: =_xlfn.IFS(VLOOKUP(F85,Intersections!A:D,4,FALSE)="Urban",$B$30,TRUE,0) -> 0
F86: US-20 & Jefferson Rd | G86: =COUNTIF('WWD Crashes'!C:C,F86) -> 0 | H86: =COUNTIFS('Non-Crash Events'!B:B,F86,'Non-Crash Events'!R:R,">0") -> 0 | I86: 62 | AA86: =SUMIFS('WWD Crashes'!G:G,'WWD Crashes'!C:C,F86) -> 0 | AB86: =_xlfn.IFS(AA86<0.125,$B$3,AA86<0.25,$B$4,AA86<0.5,$B$5,AA86<0.99,$B$6,AA86<1.5,$B$7,TRUE,$B$8)+$B$9*SUMIFS('WWD Crashes'!G:G,'WWD Crashes'!C:C,F86,'WWD Crashes'!L:L,">0")++$B$10*SUMIFS('WWD Crashes'!G:G,'WWD Crashes'!C:C,F86,'WWD Crashes'!M:M,">0") -> 0 | AC86: =MIN($B$16*SUMIF('Non-Crash Events'!B:B,F86,'Non-Crash Events'!R:R),50) -> 0 | AD86: =IF(VLOOKUP(F86,Intersections!A:E,5,FALSE)="Unique",$B$22,IF(VLOOKUP(F86,Intersections!A:E,5,FALSE)="Split",$B$23,0)) -> 50 | AE86: =VLOOKUP(F86,Intersections!A:F,6,FALSE) -> 9100 | AF86: 2 | AG86: =VLOOKUP(F86,Intersections!A:G,7,FALSE) -> 4060 | AH86: 5 | AI86: 0 | AJ86: =_xlfn.IFS(VLOOKUP(F86,Intersections!A:H,8,FALSE)<=0.7,$B$30,VLOOKUP(F86,Intersections!A:H,8,FALSE)<=2,$B$31,TRUE,0) -> 5 | AK86: =_xlfn.IFS(VLOOKUP(F86,Intersections!A:D,4,FALSE)="Urban",$B$30,TRUE,0) -> 0
F87: US-169 & 2nd Ave | G87: =COUNTIF('WWD Crashes'!C:C,F87) -> 0 | H87: =COUNTIFS('Non-Crash Events'!B:B,F87,'Non-Crash Events'!R:R,">0") -> 0 | I87: 62 | AA87: =SUMIFS('WWD Crashes'!G:G,'WWD Crashes'!C:C,F87) -> 0 | AB87: =_xlfn.IFS(AA87<0.125,$B$3,AA87<0.25,$B$4,AA87<0.5,$B$5,AA87<0.99,$B$6,AA87<1.5,$B$7,TRUE,$B$8)+$B$9*SUMIFS('WWD Crashes'!G:G,'WWD Crashes'!C:C,F87,'WWD Crashes'!L:L,">0")++$B$10*SUMIFS('WWD Crashes'!G:G,'WWD Crashes'!C:C,F87,'WWD Crashes'!M:M,">0") -> 0 | AC87: =MIN($B$16*SUMIF('Non-Crash Events'!B:B,F87,'Non-Crash Events'!R:R),50) -> 0 | AD87: =IF(VLOOKUP(F87,Intersections!A:E,5,FALSE)="Unique",$B$22,IF(VLOOKUP(F87,Intersections!A:E,5,FALSE)="Split",$B$23,0)) -> 50 | AE87: =VLOOKUP(F87,Intersections!A:F,6,FALSE) -> 8200 | AF87: 2 | AG87: =VLOOKUP(F87,Intersections!A:G,7,FALSE) -> 4390 | AH87: 5 | AI87: 0 | AJ87: =_xlfn.IFS(VLOOKUP(F87,Intersections!A:H,8,FALSE)<=0.7,$B$30,VLOOKUP(F87,Intersections!A:H,8,FALSE)<=2,$B$31,TRUE,0) -> 5 | AK87: =_xlfn.IFS(VLOOKUP(F87,Intersections!A:D,4,FALSE)="Urban",$B$30,TRUE,0) -> 0
F88: I-680 & CR-L34 | G88: =COUNTIF('WWD Crashes'!C:C,F88) -> 1 | H88: =COUNTIFS('Non-Crash Events'!B:B,F88,'Non-Crash Events'!R:R,">0") -> 0 | I88: 62 | AA88: =SUMIFS('WWD Crashes'!G:G,'WWD Crashes'!C:C,F88) -> 0.25 | AB88: =_xlfn.IFS(AA88<0.125,$B$3,AA88<0.25,$B$4,AA88<0.5,$B$5,AA88<0.99,$B$6,AA88<1.5,$B$7,TRUE,$B$8)+$B$9*SUMIFS('WWD Crashes'!G:G,'WWD Crashes'!C:C,F88,'WWD Crashes'!L:L,">0")++$B$10*SUMIFS('WWD Crashes'!G:G,'WWD Crashes'!C:C,F88,'WWD Crashes'!M:M,">0") -> 10 | AC88: =MIN($B$16*SUMIF('Non-Crash Events'!B:B,F88,'Non-Crash Events'!R:R),50) -> 0 | AD88: =IF(VLOOKUP(F88,Intersections!A:E,5,FALSE)="Unique",$B$22,IF(VLOOKUP(F88,Intersections!A:E,5,FALSE)="Split",$B$23,0)) -> 50 | AE88: =VLOOKUP(F88,Intersections!A:F,6,FALSE) -> 6600 | AF88: 1 | AG88: =VLOOKUP(F88,Intersections!A:G,7,FALSE) -> 800 | AH88: 1 | AI88: 0 | AJ88: =_xlfn.IFS(VLOOKUP(F88,Intersections!A:H,8,FALSE)<=0.7,$B$30,VLOOKUP(F88,Intersections!A:H,8,FALSE)<=2,$B$31,TRUE,0) -> 0 | AK88: =_xlfn.IFS(VLOOKUP(F88,Intersections!A:D,4,FALSE)="Urban",$B$30,TRUE,0) -> 0
F89: US-218 & IA-14 | G89: =COUNTIF('WWD Crashes'!C:C,F89) -> 0 | H89: =COUNTIFS('Non-Crash Events'!B:B,F89,'Non-Crash Events'!R:R,">0") -> 0 | I89: 61 | AA89: =SUMIFS('WWD Crashes'!G:G,'WWD Crashes'!C:C,F89) -> 0 | AB89: =_xlfn.IFS(AA89<0.125,$B$3,AA89<0.25,$B$4,AA89<0.5,$B$5,AA89<0.99,$B$6,AA89<1.5,$B$7,TRUE,$B$8)+$B$9*SUMIFS('WWD Crashes'!G:G,'WWD Crashes'!C:C,F89,'WWD Crashes'!L:L,">0")++$B$10*SUMIFS('WWD Crashes'!G:G,'WWD Crashes'!C:C,F89,'WWD Crashes'!M:M,">0") -> 0 | AC89: =MIN($B$16*SUMIF('Non-Crash Events'!B:B,F89,'Non-Crash Events'!R:R),50) -> 0 | AD89: =IF(VLOOKUP(F89,Intersections!A:E,5,FALSE)="Unique",$B$22,IF(VLOOKUP(F89,Intersections!A:E,5,FALSE)="Split",$B$23,0)) -> 50 | AE89: =VLOOKUP(F89,Intersections!A:F,6,FALSE) -> 8300 | AF89: 2 | AG89: =VLOOKUP(F89,Intersections!A:G,7,FALSE) -> 2630 | AH89: 4 | AI89: 0 | AJ89: =_xlfn.IFS(VLOOKUP(F89,Intersections!A:H,8,FALSE)<=0.7,$B$30,VLOOKUP(F89,Intersections!A:H,8,FALSE)<=2,$B$31,TRUE,0) -> 5 | AK89: =_xlfn.IFS(VLOOKUP(F89,Intersections!A:D,4,FALSE)="Urban",$B$30,TRUE,0) -> 0
F90: I-80 & IA-173 | G90: =COUNTIF('WWD Crashes'!C:C,F90) -> 1 | H90: =COUNTIFS('Non-Crash Events'!B:B,F90,'Non-Crash Events'!R:R,">0") -> 0 | I90: 60.5 | AA90: =SUMIFS('WWD Crashes'!G:G,'WWD Crashes'!C:C,F90) -> 0.5 | AB90: =_xlfn.IFS(AA90<0.125,$B$3,AA90<0.25,$B$4,AA90<0.5,$B$5,AA90<0.99,$B$6,AA90<1.5,$B$7,TRUE,$B$8)+$B$9*SUMIFS('WWD Crashes'!G:G,'WWD Crashes'!C:C,F90,'WWD Crashes'!L:L,">0")++$B$10*SUMIFS('WWD Crashes'!G:G,'WWD Crashes'!C:C,F90,'WWD Crashes'!M:M,">0") -> 52.5 | AC90: =MIN($B$16*SUMIF('Non-Crash Events'!B:B,F90,'Non-Crash Events'!R:R),50) -> 0 | AD90: =IF(VLOOKUP(F90,Intersections!A:E,5,FALSE)="Unique",$B$22,IF(VLOOKUP(F90,Intersections!A:E,5,FALSE)="Split",$B$23,0)) -> 0 | AE90: =VLOOKUP(F90,Intersections!A:F,6,FALSE) -> 22800 | AF90: 6 | AG90: =VLOOKUP(F90,Intersections!A:G,7,FALSE) -> 1510 | AH90: 2 | AI90: 0 | AJ90: =_xlfn.IFS(VLOOKUP(F90,Intersections!A:H,8,FALSE)<=0.7,$B$30,VLOOKUP(F90,Intersections!A:H,8,FALSE)<=2,$B$31,TRUE,0) -> 0 | AK90: =_xlfn.IFS(VLOOKUP(F90,Intersections!A:D,4,FALSE)="Urban",$B$30,TRUE,0) -> 0
F91: I-80 & IA-415/2nd St | G91: =COUNTIF('WWD Crashes'!C:C,F91) -> 2 | H91: =COUNTIFS('Non-Crash Events'!B:B,F91,'Non-Crash Events'!R:R,">0") -> 0 | I91: 60 | AA91: =SUMIFS('WWD Crashes'!G:G,'WWD Crashes'!C:C,F91) -> 2 | AB91: =_xlfn.IFS(AA91<0.125,$B$3,AA91<0.25,$B$4,AA91<0.5,$B$5,AA91<0.99,$B$6,AA91<1.5,$B$7,TRUE,$B$8)+$B$9*SUMIFS('WWD Crashes'!G:G,'WWD Crashes'!C:C,F91,'WWD Crashes'!L:L,">0")++$B$10*SUMIFS('WWD Crashes'!G:G,'WWD Crashes'!C:C,F91,'WWD Crashes'!M:M,">0") -> 25 | AC91: =MIN($B$16*SUMIF('Non-Crash Events'!B:B,F91,'Non-Crash Events'!R:R),50) -> 0 | AD91: =IF(VLOOKUP(F91,Intersections!A:E,5,FALSE)="Unique",$B$22,IF(VLOOKUP(F91,Intersections!A:E,5,FALSE)="Split",$B$23,0)) -> 0 | AE91: =VLOOKUP(F91,Intersections!A:F,6,FALSE) -> 101100 | AF91: 10 | AG91: =VLOOKUP(F91,Intersections!A:G,7,FALSE) -> 35800 | AH91: 10 | AI91: 5 | AJ91: =_xlfn.IFS(VLOOKUP(F91,Intersections!A:H,8,FALSE)<=0.7,$B$30,VLOOKUP(F91,Intersections!A:H,8,FALSE)<=2,$B$31,TRUE,0) -> 10 | AK91: =_xlfn.IFS(VLOOKUP(F91,Intersections!A:D,4,FALSE)="Urban",$B$30,TRUE,0) -> 10
F92: US-30 & IA-17 | G92: =COUNTIF('WWD Crashes'!C:C,F92) -> 0 | H92: =COUNTIFS('Non-Crash Events'!B:B,F92,'Non-Crash Events'!R:R,">0") -> 7 | I92: 60 | AA92: =SUMIFS('WWD Crashes'!G:G,'WWD Crashes'!C:C,F92) -> 0 | AB92: =_xlfn.IFS(AA92<0.125,$B$3,AA92<0.25,$B$4,AA92<0.5,$B$5,AA92<0.99,$B$6,AA92<1.5,$B$7,TRUE,$B$8)+$B$9*SUMIFS('WWD Crashes'!G:G,'WWD Crashes'!C:C,F92,'WWD Crashes'!L:L,">0")++$B$10*SUMIFS('WWD Crashes'!G:G,'WWD Crashes'!C:C,F92,'WWD Crashes'!M:M,">0") -> 0 | AC92: =MIN($B$16*SUMIF('Non-Crash Events'!B:B,F92,'Non-Crash Events'!R:R),50) -> 50 | AD92: =IF(VLOOKUP(F92,Intersections!A:E,5,FALSE)="Unique",$B$22,IF(VLOOKUP(F92,Intersections!A:E,5,FALSE)="Split",$B$23,0)) -> 0 | AE92: =VLOOKUP(F92,Intersections!A:F,6,FALSE) -> 15200 | AF92: 4 | AG92: =VLOOKUP(F92,Intersections!A:G,7,FALSE) -> 4900 | AH92: 6 | AI92: 0 | AJ92: =_xlfn.IFS(VLOOKUP(F92,Intersections!A:H,8,FALSE)<=0.7,$B$30,VLOOKUP(F92,Intersections!A:H,8,FALSE)<=2,$B$31,TRUE,0) -> 0 | AK92: =_xlfn.IFS(VLOOKUP(F92,Intersections!A:D,4,FALSE)="Urban",$B$30,TRUE,0) -> 0
F93: I-380 & 330th St | G93: =COUNTIF('WWD Crashes'!C:C,F93) -> 1 | H93: =COUNTIFS('Non-Crash Events'!B:B,F93,'Non-Crash Events'!R:R,">0") -> 0 | I93: 59.5 | AA93: =SUMIFS('WWD Crashes'!G:G,'WWD Crashes'!C:C,F93) -> 0.5 | AB93: =_xlfn.IFS(AA93<0.125,$B$3,AA93<0.25,$B$4,AA93<0.5,$B$5,AA93<0.99,$B$6,AA93<1.5,$B$7,TRUE,$B$8)+$B$9*SUMIFS('WWD Crashes'!G:G,'WWD Crashes'!C:C,F93,'WWD Crashes'!L:L,">0")++$B$10*SUMIFS('WWD Crashes'!G:G,'WWD Crashes'!C:C,F93,'WWD Crashes'!M:M,">0") -> 52.5 | AC93: =MIN($B$16*SUMIF('Non-Crash Events'!B:B,F93,'Non-Crash Events'!R:R),50) -> 0 | AD93: =IF(VLOOKUP(F93,Intersections!A:E,5,FALSE)="Unique",$B$22,IF(VLOOKUP(F93,Intersections!A:E,5,FALSE)="Split",$B$23,0)) -> 0 | AE93: =VLOOKUP(F93,Intersections!A:F,6,FALSE) -> 17700 | AF93: 5 | AG93: =VLOOKUP(F93,Intersections!A:G,7,FALSE) -> 1560 | AH93: 2 | AI93: 0 | AJ93: =_xlfn.IFS(VLOOKUP(F93,Intersections!A:H,8,FALSE)<=0.7,$B$30,VLOOKUP(F93,Intersections!A:H,8,FALSE)<=2,$B$31,TRUE,0) -> 0 | AK93: =_xlfn.IFS(VLOOKUP(F93,Intersections!A:D,4,FALSE)="Urban",$B$30,TRUE,0) -> 0
F94: I-380 & County Home Rd | G94: =COUNTIF('WWD Crashes'!C:C,F94) -> 2 | H94: =COUNTIFS('Non-Crash Events'!B:B,F94,'Non-Crash Events'!R:R,">0") -> 1 | I94: 59.5 | AA94: =SUMIFS('WWD Crashes'!G:G,'WWD Crashes'!C:C,F94) -> 2 | AB94: =_xlfn.IFS(AA94<0.125,$B$3,AA94<0.25,$B$4,AA94<0.5,$B$5,AA94<0.99,$B$6,AA94<1.5,$B$7,TRUE,$B$8)+$B$9*SUMIFS('WWD Crashes'!G:G,'WWD Crashes'!C:C,F94,'WWD Crashes'!L:L,">0")++$B$10*SUMIFS('WWD Crashes'!G:G,'WWD Crashes'!C:C,F94,'WWD Crashes'!M:M,">0") -> 25 | AC94: =MIN($B$16*SUMIF('Non-Crash Events'!B:B,F94,'Non-Crash Events'!R:R),50) -> 7.5 | AD94: =IF(VLOOKUP(F94,Intersections!A:E,5,FALSE)="Unique",$B$22,IF(VLOOKUP(F94,Intersections!A:E,5,FALSE)="Split",$B$23,0)) -> 0 | AE94: =VLOOKUP(F94,Intersections!A:F,6,FALSE) -> 34400 | AF94: 8 | AG94: =VLOOKUP(F94,Intersections!A:G,7,FALSE) -> 12800 | AH94: 9 | AI94: 0 | AJ94: =_xlfn.IFS(VLOOKUP(F94,Intersections!A:H,8,FALSE)<=0.7,$B$30,VLOOKUP(F94,Intersections!A:H,8,FALSE)<=2,$B$31,TRUE,0) -> 10 | AK94: =_xlfn.IFS(VLOOKUP(F94,Intersections!A:D,4,FALSE)="Urban",$B$30,TRUE,0) -> 0
F95: I-29 & Wesley Pkwy & US-77 | G95: =COUNTIF('WWD Crashes'!C:C,F95) -> 3 | H95: =COUNTIFS('Non-Crash Events'!B:B,F95,'Non-Crash Events'!R:R,">0") -> 0 | I95: 59 | AA95: =SUMIFS('WWD Crashes'!G:G,'WWD Crashes'!C:C,F95) -> 3 | AB95: =_xlfn.IFS(AA95<0.125,$B$3,AA95<0.25,$B$4,AA95<0.5,$B$5,AA95<0.99,$B$6,AA95<1.5,$B$7,TRUE,$B$8)+$B$9*SUMIFS('WWD Crashes'!G:G,'WWD Crashes'!C:C,F95,'WWD Crashes'!L:L,">0")++$B$10*SUMIFS('WWD Crashes'!G:G,'WWD Crashes'!C:C,F95,'WWD Crashes'!M:M,">0") -> 25 | AC95: =MIN($B$16*SUMIF('Non-Crash Events'!B:B,F95,'Non-Crash Events'!R:R),50) -> 0 | AD95: =IF(VLOOKUP(F95,Intersections!A:E,5,FALSE)="Unique",$B$22,IF(VLOOKUP(F95,Intersections!A:E,5,FALSE)="Split",$B$23,0)) -> 0 | AE95: =VLOOKUP(F95,Intersections!A:F,6,FALSE) -> 36800 | AF95: 9 | AG95: =VLOOKUP(F95,Intersections!A:G,7,FALSE) -> 28400 | AH95: 10 | AI95: 5 | AJ95: =_xlfn.IFS(VLOOKUP(F95,Intersections!A:H,8,FALSE)<=0.7,$B$30,VLOOKUP(F95,Intersections!A:H,8,FALSE)<=2,$B$31,TRUE,0) -> 10 | AK95: =_xlfn.IFS(VLOOKUP(F95,Intersections!A:D,4,FALSE)="Urban",$B$30,TRUE,0) -> 10
F96: IA-60 & 170th St/A22 | G96: =COUNTIF('WWD Crashes'!C:C,F96) -> 0 | H96: =COUNTIFS('Non-Crash Events'!B:B,F96,'Non-Crash Events'!R:R,">0") -> 0 | I96: 59 | AA96: =SUMIFS('WWD Crashes'!G:G,'WWD Crashes'!C:C,F96) -> 0 | AB96: =_xlfn.IFS(AA96<0.125,$B$3,AA96<0.25,$B$4,AA96<0.5,$B$5,AA96<0.99,$B$6,AA96<1.5,$B$7,TRUE,$B$8)+$B$9*SUMIFS('WWD Crashes'!G:G,'WWD Crashes'!C:C,F96,'WWD Crashes'!L:L,">0")++$B$10*SUMIFS('WWD Crashes'!G:G,'WWD Crashes'!C:C,F96,'WWD Crashes'!M:M,">0") -> 0 | AC96: =MIN($B$16*SUMIF('Non-Crash Events'!B:B,F96,'Non-Crash Events'!R:R),50) -> 0 | AD96: =IF(VLOOKUP(F96,Intersections!A:E,5,FALSE)="Unique",$B$22,IF(VLOOKUP(F96,Intersections!A:E,5,FALSE)="Split",$B$23,0)) -> 50 | AE96: =VLOOKUP(F96,Intersections!A:F,6,FALSE) -> 3440 | AF96: 1 | AG96: =VLOOKUP(F96,Intersections!A:G,7,FALSE) -> 2280 | AH96: 3 | AI96: 0 | AJ96: =_xlfn.IFS(VLOOKUP(F96,Intersections!A:H,8,FALSE)<=0.7,$B$30,VLOOKUP(F96,Intersections!A:H,8,FALSE)<=2,$B$31,TRUE,0) -> 5 | AK96: =_xlfn.IFS(VLOOKUP(F96,Intersections!A:D,4,FALSE)="Urban",$B$30,TRUE,0) -> 0
F97: US-20 & Quail Ave/Nelson Ave | G97: =COUNTIF('WWD Crashes'!C:C,F97) -> 0 | H97: =COUNTIFS('Non-Crash Events'!B:B,F97,'Non-Crash Events'!R:R,">0") -> 0 | I97: 59 | AA97: =SUMIFS('WWD Crashes'!G:G,'WWD Crashes'!C:C,F97) -> 0 | AB97: =_xlfn.IFS(AA97<0.125,$B$3,AA97<0.25,$B$4,AA97<0.5,$B$5,AA97<0.99,$B$6,AA97<1.5,$B$7,TRUE,$B$8)+$B$9*SUMIFS('WWD Crashes'!G:G,'WWD Crashes'!C:C,F97,'WWD Crashes'!L:L,">0")++$B$10*SUMIFS('WWD Crashes'!G:G,'WWD Crashes'!C:C,F97,'WWD Crashes'!M:M,">0") -> 0 | AC97: =MIN($B$16*SUMIF('Non-Crash Events'!B:B,F97,'Non-Crash Events'!R:R),50) -> 0 | AD97: =IF(VLOOKUP(F97,Intersections!A:E,5,FALSE)="Unique",$B$22,IF(VLOOKUP(F97,Intersections!A:E,5,FALSE)="Split",$B$23,0)) -> 50 | AE97: =VLOOKUP(F97,Intersections!A:F,6,FALSE) -> 9000 | AF97: 2 | AG97: =VLOOKUP(F97,Intersections!A:G,7,FALSE) -> 7000 | AH97: 7 | AI97: 0 | AJ97: =_xlfn.IFS(VLOOKUP(F97,Intersections!A:H,8,FALSE)<=0.7,$B$30,VLOOKUP(F97,Intersections!A:H,8,FALSE)<=2,$B$31,TRUE,0) -> 0 | AK97: =_xlfn.IFS(VLOOKUP(F97,Intersections!A:D,4,FALSE)="Urban",$B$30,TRUE,0) -> 0
F98: I-380 & Penn St | G98: =COUNTIF('WWD Crashes'!C:C,F98) -> 1 | H98: =COUNTIFS('Non-Crash Events'!B:B,F98,'Non-Crash Events'!R:R,">0") -> 2 | I98: 68.9 | AA98: =SUMIFS('WWD Crashes'!G:G,'WWD Crashes'!C:C,F98) -> 0.99 | AB98: =_xlfn.IFS(AA98<0.125,$B$3,AA98<0.25,$B$4,AA98<0.5,$B$5,AA98<0.99,$B$6,AA98<1.5,$B$7,TRUE,$B$8)+$B$9*SUMIFS('WWD Crashes'!G:G,'WWD Crashes'!C:C,F98,'WWD Crashes'!L:L,">0")++$B$10*SUMIFS('WWD Crashes'!G:G,'WWD Crashes'!C:C,F98,'WWD Crashes'!M:M,">0") -> 20 | AC98: =MIN($B$16*SUMIF('Non-Crash Events'!B:B,F98,'Non-Crash Events'!R:R),50) -> 14.9 | AD98: =IF(VLOOKUP(F98,Intersections!A:E,5,FALSE)="Unique",$B$22,IF(VLOOKUP(F98,Intersections!A:E,5,FALSE)="Split",$B$23,0)) -> 0 | AE98: =VLOOKUP(F98,Intersections!A:F,6,FALSE) -> 51100 | AF98: 9 | AG98: =VLOOKUP(F98,Intersections!A:G,7,FALSE) -> 19700 | AH98: 10 | AI98: 5 | AJ98: =_xlfn.IFS(VLOOKUP(F98,Intersections!A:H,8,FALSE)<=0.7,$B$30,VLOOKUP(F98,Intersections!A:H,8,FALSE)<=2,$B$31,TRUE,0) -> 10 | AK98: =_xlfn.IFS(VLOOKUP(F98,Intersections!A:D,4,FALSE)="Urban",$B$30,TRUE,0) -> 0
F99: I-35 & 1st St | G99: =COUNTIF('WWD Crashes'!C:C,F99) -> 1 | H99: =COUNTIFS('Non-Crash Events'!B:B,F99,'Non-Crash Events'!R:R,">0") -> 1 | I99: 58.9 | AA99: =SUMIFS('WWD Crashes'!G:G,'WWD Crashes'!C:C,F99) -> 0.5 | AB99: =_xlfn.IFS(AA99<0.125,$B$3,AA99<0.25,$B$4,AA99<0.5,$B$5,AA99<0.99,$B$6,AA99<1.5,$B$7,TRUE,$B$8)+$B$9*SUMIFS('WWD Crashes'!G:G,'WWD Crashes'!C:C,F99,'WWD Crashes'!L:L,">0")++$B$10*SUMIFS('WWD Crashes'!G:G,'WWD Crashes'!C:C,F99,'WWD Crashes'!M:M,">0") -> 15 | AC99: =MIN($B$16*SUMIF('Non-Crash Events'!B:B,F99,'Non-Crash Events'!R:R),50) -> 9.9 | AD99: =IF(VLOOKUP(F99,Intersections!A:E,5,FALSE)="Unique",$B$22,IF(VLOOKUP(F99,Intersections!A:E,5,FALSE)="Split",$B$23,0)) -> 0 | AE99: =VLOOKUP(F99,Intersections!A:F,6,FALSE) -> 67200 | AF99: 10 | AG99: =VLOOKUP(F99,Intersections!A:G,7,FALSE) -> 12400 | AH99: 9 | AI99: 5 | AJ99: =_xlfn.IFS(VLOOKUP(F99,Intersections!A:H,8,FALSE)<=0.7,$B$30,VLOOKUP(F99,Intersections!A:H,8,FALSE)<=2,$B$31,TRUE,0) -> 10 | AK99: =_xlfn.IFS(VLOOKUP(F99,Intersections!A:D,4,FALSE)="Urban",$B$30,TRUE,0) -> 10
F100: IA-60 & 2nd Ave | G100: =COUNTIF('WWD Crashes'!C:C,F100) -> 0 | H100: =COUNTIFS('Non-Crash Events'!B:B,F100,'Non-Crash Events'!R:R,">0") -> 0 | I100: 58 | AA100: =SUMIFS('WWD Crashes'!G:G,'WWD Crashes'!C:C,F100) -> 0 | AB100: =_xlfn.IFS(AA100<0.125,$B$3,AA100<0.25,$B$4,AA100<0.5,$B$5,AA100<0.99,$B$6,AA100<1.5,$B$7,TRUE,$B$8)+$B$9*SUMIFS('WWD Crashes'!G:G,'WWD Crashes'!C:C,F100,'WWD Crashes'!L:L,">0")++$B$10*SUMIFS('WWD Crashes'!G:G,'WWD Crashes'!C:C,F100,'WWD Crashes'!M:M,">0") -> 0 | AC100: =MIN($B$16*SUMIF('Non-Crash Events'!B:B,F100,'Non-Crash Events'!R:R),50) -> 0 | AD100: =IF(VLOOKUP(F100,Intersections!A:E,5,FALSE)="Unique",$B$22,IF(VLOOKUP(F100,Intersections!A:E,5,FALSE)="Split",$B$23,0)) -> 50 | AE100: =VLOOKUP(F100,Intersections!A:F,6,FALSE) -> 4480 | AF100: 1 | AG100: =VLOOKUP(F100,Intersections!A:G,7,FALSE) -> 1180 | AH100: 2 | AI100: 0 | AJ100: =_xlfn.IFS(VLOOKUP(F100,Intersections!A:H,8,FALSE)<=0.7,$B$30,VLOOKUP(F100,Intersections!A:H,8,FALSE)<=2,$B$31,TRUE,0) -> 5 | AK100: =_xlfn.IFS(VLOOKUP(F100,Intersections!A:D,4,FALSE)="Urban",$B$30,TRUE,0) -> 0
F101: I-29 & Desoto Ave | G101: =COUNTIF('WWD Crashes'!C:C,F101) -> 0 | H101: =COUNTIFS('Non-Crash Events'!B:B,F101,'Non-Crash Events'!R:R,">0") -> 0 | I101: 58 | AA101: =SUMIFS('WWD Crashes'!G:G,'WWD Crashes'!C:C,F101) -> 0 | AB101: =_xlfn.IFS(AA101<0.125,$B$3,AA101<0.25,$B$4,AA101<0.5,$B$5,AA101<0.99,$B$6,AA101<1.5,$B$7,TRUE,$B$8)+$B$9*SUMIFS('WWD Crashes'!G:G,'WWD Crashes'!C:C,F101,'WWD Crashes'!L:L,">0")++$B$10*SUMIFS('WWD Crashes'!G:G,'WWD Crashes'!C:C,F101,'WWD Crashes'!M:M,">0") -> 0 | AC101: =MIN($B$16*SUMIF('Non-Crash Events'!B:B,F101,'Non-Crash Events'!R:R),50) -> 0 | AD101: =IF(VLOOKUP(F101,Intersections!A:E,5,FALSE)="Unique",$B$22,IF(VLOOKUP(F101,Intersections!A:E,5,FALSE)="Split",$B$23,0)) -> 50 | AE101: =VLOOKUP(F101,Intersections!A:F,6,FALSE) -> 22800 | AF101: 6 | AG101: =VLOOKUP(F101,Intersections!A:G,7,FALSE) -> 1130 | AH101: 2 | AI101: 0 | AJ101: =_xlfn.IFS(VLOOKUP(F101,Intersections!A:H,8,FALSE)<=0.7,$B$30,VLOOKUP(F101,Intersections!A:H,8,FALSE)<=2,$B$31,TRUE,0) -> 0 | AK101: =_xlfn.IFS(VLOOKUP(F101,Intersections!A:D,4,FALSE)="Urban",$B$30,TRUE,0) -> 0
D102: =HYPERLINK("#'Weight Based'!"&ADDRESS(5,11),"Jump to Details") -> Jump to Details | F102: US 63 N RAMP & LA SALLE AVE | G102: =COUNTIF('WWD Crashes'!C:C,F102) -> 0 | H102: =COUNTIFS('Non-Crash Events'!B:B,F102,'Non-Crash Events'!R:R,">0") -> 1 | I102: 58 | AA102: =SUMIFS('WWD Crashes'!G:G,'WWD Crashes'!C:C,F102) -> 0 | AB102: =_xlfn.IFS(AA102<0.125,$B$3,AA102<0.25,$B$4,AA102<0.5,$B$5,AA102<0.99,$B$6,AA102<1.5,$B$7,TRUE,$B$8)+$B$9*SUMIFS('WWD Crashes'!G:G,'WWD Crashes'!C:C,F102,'WWD Crashes'!L:L,">0")++$B$10*SUMIFS('WWD Crashes'!G:G,'WWD Crashes'!C:C,F102,'WWD Crashes'!M:M,">0") -> 0 | AC102: =MIN($B$16*SUMIF('Non-Crash Events'!B:B,F102,'Non-Crash Events'!R:R),50) -> 50 | AD102: =IF(VLOOKUP(F102,Intersections!A:E,5,FALSE)="Unique",$B$22,IF(VLOOKUP(F102,Intersections!A:E,5,FALSE)="Split",$B$23,0)) -> 0 | AE102: =VLOOKUP(F102,Intersections!A:F,6,FALSE) -> 3810 | AF102: 1 | AG102: =VLOOKUP(F102,Intersections!A:G,7,FALSE) -> 1120 | AH102: 2 | AI102: 0 | AJ102: =_xlfn.IFS(VLOOKUP(F102,Intersections!A:H,8,FALSE)<=0.7,$B$30,VLOOKUP(F102,Intersections!A:H,8,FALSE)<=2,$B$31,TRUE,0) -> 5 | AK102: =_xlfn.IFS(VLOOKUP(F102,Intersections!A:D,4,FALSE)="Urban",$B$30,TRUE,0) -> 0
F103: IA-60 & 470th St | G103: =COUNTIF('WWD Crashes'!C:C,F103) -> 0 | H103: =COUNTIFS('Non-Crash Events'!B:B,F103,'Non-Crash Events'!R:R,">0") -> 0 | I103: 57 | AA103: =SUMIFS('WWD Crashes'!G:G,'WWD Crashes'!C:C,F103) -> 0 | AB103: =_xlfn.IFS(AA103<0.125,$B$3,AA103<0.25,$B$4,AA103<0.5,$B$5,AA103<0.99,$B$6,AA103<1.5,$B$7,TRUE,$B$8)+$B$9*SUMIFS('WWD Crashes'!G:G,'WWD Crashes'!C:C,F103,'WWD Crashes'!L:L,">0")++$B$10*SUMIFS('WWD Crashes'!G:G,'WWD Crashes'!C:C,F103,'WWD Crashes'!M:M,">0") -> 0 | AC103: =MIN($B$16*SUMIF('Non-Crash Events'!B:B,F103,'Non-Crash Events'!R:R),50) -> 0 | AD103: =IF(VLOOKUP(F103,Intersections!A:E,5,FALSE)="Unique",$B$22,IF(VLOOKUP(F103,Intersections!A:E,5,FALSE)="Split",$B$23,0)) -> 50 | AE103: =VLOOKUP(F103,Intersections!A:F,6,FALSE) -> 4660 | AF103: 1 | AG103: =VLOOKUP(F103,Intersections!A:G,7,FALSE) -> 480 | AH103: 1 | AI103: 0 | AJ103: =_xlfn.IFS(VLOOKUP(F103,Intersections!A:H,8,FALSE)<=0.7,$B$30,VLOOKUP(F103,Intersections!A:H,8,FALSE)<=2,$B$31,TRUE,0) -> 5 | AK103: =_xlfn.IFS(VLOOKUP(F103,Intersections!A:D,4,FALSE)="Urban",$B$30,TRUE,0) -> 0
F104: I-29 & 9th Ave | G104: =COUNTIF('WWD Crashes'!C:C,F104) -> 2 | H104: =COUNTIFS('Non-Crash Events'!B:B,F104,'Non-Crash Events'!R:R,">0") -> 0 | I104: 56 | AA104: =SUMIFS('WWD Crashes'!G:G,'WWD Crashes'!C:C,F104) -> 1.79 | AB104: =_xlfn.IFS(AA104<0.125,$B$3,AA104<0.25,$B$4,AA104<0.5,$B$5,AA104<0.99,$B$6,AA104<1.5,$B$7,TRUE,$B$8)+$B$9*SUMIFS('WWD Crashes'!G:G,'WWD Crashes'!C:C,F104,'WWD Crashes'!L:L,">0")++$B$10*SUMIFS('WWD Crashes'!G:G,'WWD Crashes'!C:C,F104,'WWD Crashes'!M:M,">0") -> 25 | AC104: =MIN($B$16*SUMIF('Non-Crash Events'!B:B,F104,'Non-Crash Events'!R:R),50) -> 0 | AD104: =IF(VLOOKUP(F104,Intersections!A:E,5,FALSE)="Unique",$B$22,IF(VLOOKUP(F104,Intersections!A:E,5,FALSE)="Split",$B$23,0)) -> 0 | AE104: =VLOOKUP(F104,Intersections!A:F,6,FALSE) -> 39100 | AF104: 9 | AG104: =VLOOKUP(F104,Intersections!A:G,7,FALSE) -> 8100 | AH104: 7 | AI104: 5 | AJ104: =_xlfn.IFS(VLOOKUP(F104,Intersections!A:H,8,FALSE)<=0.7,$B$30,VLOOKUP(F104,Intersections!A:H,8,FALSE)<=2,$B$31,TRUE,0) -> 10 | AK104: =_xlfn.IFS(VLOOKUP(F104,Intersections!A:D,4,FALSE)="Urban",$B$30,TRUE,0) -> 10
F105: US-34 & US-71 | G105: =COUNTIF('WWD Crashes'!C:C,F105) -> 0 | H105: =COUNTIFS('Non-Crash Events'!B:B,F105,'Non-Crash Events'!R:R,">0") -> 0 | I105: 55 | AA105: =SUMIFS('WWD Crashes'!G:G,'WWD Crashes'!C:C,F105) -> 0 | AB105: =_xlfn.IFS(AA105<0.125,$B$3,AA105<0.25,$B$4,AA105<0.5,$B$5,AA105<0.99,$B$6,AA105<1.5,$B$7,TRUE,$B$8)+$B$9*SUMIFS('WWD Crashes'!G:G,'WWD Crashes'!C:C,F105,'WWD Crashes'!L:L,">0")++$B$10*SUMIFS('WWD Crashes'!G:G,'WWD Crashes'!C:C,F105,'WWD Crashes'!M:M,">0") -> 0 | AC105: =MIN($B$16*SUMIF('Non-Crash Events'!B:B,F105,'Non-Crash Events'!R:R),50) -> 0 | AD105: =IF(VLOOKUP(F105,Intersections!A:E,5,FALSE)="Unique",$B$22,IF(VLOOKUP(F105,Intersections!A:E,5,FALSE)="Split",$B$23,0)) -> 50 | AE105: =VLOOKUP(F105,Intersections!A:F,6,FALSE) -> 2680 | AF105: 1 | AG105: =VLOOKUP(F105,Intersections!A:G,7,FALSE) -> 2610 | AH105: 4 | AI105: 0 | AJ105: =_xlfn.IFS(VLOOKUP(F105,Intersections!A:H,8,FALSE)<=0.7,$B$30,VLOOKUP(F105,Intersections!A:H,8,FALSE)<=2,$B$31,TRUE,0) -> 0 | AK105: =_xlfn.IFS(VLOOKUP(F105,Intersections!A:D,4,FALSE)="Urban",$B$30,TRUE,0) -> 0
F106: I-35 & IA-210 | G106: =COUNTIF('WWD Crashes'!C:C,F106) -> 1 | H106: =COUNTIFS('Non-Crash Events'!B:B,F106,'Non-Crash Events'!R:R,">0") -> 2 | I106: 55 | AA106: =SUMIFS('WWD Crashes'!G:G,'WWD Crashes'!C:C,F106) -> 0.5 | AB106: =_xlfn.IFS(AA106<0.125,$B$3,AA106<0.25,$B$4,AA106<0.5,$B$5,AA106<0.99,$B$6,AA106<1.5,$B$7,TRUE,$B$8)+$B$9*SUMIFS('WWD Crashes'!G:G,'WWD Crashes'!C:C,F106,'WWD Crashes'!L:L,">0")++$B$10*SUMIFS('WWD Crashes'!G:G,'WWD Crashes'!C:C,F106,'WWD Crashes'!M:M,">0") -> 15 | AC106: =MIN($B$16*SUMIF('Non-Crash Events'!B:B,F106,'Non-Crash Events'!R:R),50) -> 15 | AD106: =IF(VLOOKUP(F106,Intersections!A:E,5,FALSE)="Unique",$B$22,IF(VLOOKUP(F106,Intersections!A:E,5,FALSE)="Split",$B$23,0)) -> 0 | AE106: =VLOOKUP(F106,Intersections!A:F,6,FALSE) -> 45300 | AF106: 9 | AG106: =VLOOKUP(F106,Intersections!A:G,7,FALSE) -> 6200 | AH106: 6 | AI106: 5 | AJ106: =_xlfn.IFS(VLOOKUP(F106,Intersections!A:H,8,FALSE)<=0.7,$B$30,VLOOKUP(F106,Intersections!A:H,8,FALSE)<=2,$B$31,TRUE,0) -> 5 | AK106: =_xlfn.IFS(VLOOKUP(F106,Intersections!A:D,4,FALSE)="Urban",$B$30,TRUE,0) -> 0
F107: I 235 W & I 235 W TO 31ST ST S | G107: =COUNTIF('WWD Crashes'!C:C,F107) -> 1 | H107: =COUNTIFS('Non-Crash Events'!B:B,F107,'Non-Crash Events'!R:R,">0") -> 0 | I107: 54 | AA107: =SUMIFS('WWD Crashes'!G:G,'WWD Crashes'!C:C,F107) -> 1 | AB107: =_xlfn.IFS(AA107<0.125,$B$3,AA107<0.25,$B$4,AA107<0.5,$B$5,AA107<0.99,$B$6,AA107<1.5,$B$7,TRUE,$B$8)+$B$9*SUMIFS('WWD Crashes'!G:G,'WWD Crashes'!C:C,F107,'WWD Crashes'!L:L,">0")++$B$10*SUMIFS('WWD Crashes'!G:G,'WWD Crashes'!C:C,F107,'WWD Crashes'!M:M,">0") -> 20 | AC107: =MIN($B$16*SUMIF('Non-Crash Events'!B:B,F107,'Non-Crash Events'!R:R),50) -> 0 | AD107: =IF(VLOOKUP(F107,Intersections!A:E,5,FALSE)="Unique",$B$22,IF(VLOOKUP(F107,Intersections!A:E,5,FALSE)="Split",$B$23,0)) -> 0 | AE107: =VLOOKUP(F107,Intersections!A:F,6,FALSE) -> 134700 | AF107: 10 | AG107: =VLOOKUP(F107,Intersections!A:G,7,FALSE) -> 15800 | AH107: 9 | AI107: 5 | AJ107: =_xlfn.IFS(VLOOKUP(F107,Intersections!A:H,8,FALSE)<=0.7,$B$30,VLOOKUP(F107,Intersections!A:H,8,FALSE)<=2,$B$31,TRUE,0) -> 10 | AK107: =_xlfn.IFS(VLOOKUP(F107,Intersections!A:D,4,FALSE)="Urban",$B$30,TRUE,0) -> 10
F108: I-80 & 24th St | G108: =COUNTIF('WWD Crashes'!C:C,F108) -> 1 | H108: =COUNTIFS('Non-Crash Events'!B:B,F108,'Non-Crash Events'!R:R,">0") -> 0 | I108: 54 | AA108: =SUMIFS('WWD Crashes'!G:G,'WWD Crashes'!C:C,F108) -> 1 | AB108: =_xlfn.IFS(AA108<0.125,$B$3,AA108<0.25,$B$4,AA108<0.5,$B$5,AA108<0.99,$B$6,AA108<1.5,$B$7,TRUE,$B$8)+$B$9*SUMIFS('WWD Crashes'!G:G,'WWD Crashes'!C:C,F108,'WWD Crashes'!L:L,">0")++$B$10*SUMIFS('WWD Crashes'!G:G,'WWD Crashes'!C:C,F108,'WWD Crashes'!M:M,">0") -> 20 | AC108: =MIN($B$16*SUMIF('Non-Crash Events'!B:B,F108,'Non-Crash Events'!R:R),50) -> 0 | AD108: =IF(VLOOKUP(F108,Intersections!A:E,5,FALSE)="Unique",$B$22,IF(VLOOKUP(F108,Intersections!A:E,5,FALSE)="Split",$B$23,0)) -> 0 | AE108: =VLOOKUP(F108,Intersections!A:F,6,FALSE) -> 87000 | AF108: 10 | AG108: =VLOOKUP(F108,Intersections!A:G,7,FALSE) -> 8600 | AH108: 9 | AI108: 5 | AJ108: =_xlfn.IFS(VLOOKUP(F108,Intersections!A:H,8,FALSE)<=0.7,$B$30,VLOOKUP(F108,Intersections!A:H,8,FALSE)<=2,$B$31,TRUE,0) -> 10 | AK108: =_xlfn.IFS(VLOOKUP(F108,Intersections!A:D,4,FALSE)="Urban",$B$30,TRUE,0) -> 10
F109: I-74 & US-6/Spruce Hills Dr | G109: =COUNTIF('WWD Crashes'!C:C,F109) -> 3 | H109: =COUNTIFS('Non-Crash Events'!B:B,F109,'Non-Crash Events'!R:R,">0") -> 0 | I109: 54 | AA109: =SUMIFS('WWD Crashes'!G:G,'WWD Crashes'!C:C,F109) -> 1.45 | AB109: =_xlfn.IFS(AA109<0.125,$B$3,AA109<0.25,$B$4,AA109<0.5,$B$5,AA109<0.99,$B$6,AA109<1.5,$B$7,TRUE,$B$8)+$B$9*SUMIFS('WWD Crashes'!G:G,'WWD Crashes'!C:C,F109,'WWD Crashes'!L:L,">0")++$B$10*SUMIFS('WWD Crashes'!G:G,'WWD Crashes'!C:C,F109,'WWD Crashes'!M:M,">0") -> 20 | AC109: =MIN($B$16*SUMIF('Non-Crash Events'!B:B,F109,'Non-Crash Events'!R:R),50) -> 0 | AD109: =IF(VLOOKUP(F109,Intersections!A:E,5,FALSE)="Unique",$B$22,IF(VLOOKUP(F109,Intersections!A:E,5,FALSE)="Split",$B$23,0)) -> 0 | AE109: =VLOOKUP(F109,Intersections!A:F,6,FALSE) -> 49800 | AF109: 9 | AG109: =VLOOKUP(F109,Intersections!A:G,7,FALSE) -> 33700 | AH109: 10 | AI109: 5 | AJ109: =_xlfn.IFS(VLOOKUP(F109,Intersections!A:H,8,FALSE)<=0.7,$B$30,VLOOKUP(F109,Intersections!A:H,8,FALSE)<=2,$B$31,TRUE,0) -> 10 | AK109: =_xlfn.IFS(VLOOKUP(F109,Intersections!A:D,4,FALSE)="Urban",$B$30,TRUE,0) -> 10
F110: US-63 & 145th Ave | G110: =COUNTIF('WWD Crashes'!C:C,F110) -> 0 | H110: =COUNTIFS('Non-Crash Events'!B:B,F110,'Non-Crash Events'!R:R,">0") -> 0 | I110: 54 | AA110: =SUMIFS('WWD Crashes'!G:G,'WWD Crashes'!C:C,F110) -> 0 | AB110: =_xlfn.IFS(AA110<0.125,$B$3,AA110<0.25,$B$4,AA110<0.5,$B$5,AA110<0.99,$B$6,AA110<1.5,$B$7,TRUE,$B$8)+$B$9*SUMIFS('WWD Crashes'!G:G,'WWD Crashes'!C:C,F110,'WWD Crashes'!L:L,">0")++$B$10*SUMIFS('WWD Crashes'!G:G,'WWD Crashes'!C:C,F110,'WWD Crashes'!M:M,">0") -> 0 | AC110: =MIN($B$16*SUMIF('Non-Crash Events'!B:B,F110,'Non-Crash Events'!R:R),50) -> 0 | AD110: =IF(VLOOKUP(F110,Intersections!A:E,5,FALSE)="Unique",$B$22,IF(VLOOKUP(F110,Intersections!A:E,5,FALSE)="Split",$B$23,0)) -> 50 | AE110: =VLOOKUP(F110,Intersections!A:F,6,FALSE) -> 8200 | AF110: 2 | AG110: =VLOOKUP(F110,Intersections!A:G,7,FALSE) -> 1400 | AH110: 2 | AI110: 0 | AJ110: =_xlfn.IFS(VLOOKUP(F110,Intersections!A:H,8,FALSE)<=0.7,$B$30,VLOOKUP(F110,Intersections!A:H,8,FALSE)<=2,$B$31,TRUE,0) -> 0 | AK110: =_xlfn.IFS(VLOOKUP(F110,Intersections!A:D,4,FALSE)="Urban",$B$30,TRUE,0) -> 0
F111: I-380 & IA-100 | G111: =COUNTIF('WWD Crashes'!C:C,F111) -> 0 | H111: =COUNTIFS('Non-Crash Events'!B:B,F111,'Non-Crash Events'!R:R,">0") -> 2 | I111: 53.9 | AA111: =SUMIFS('WWD Crashes'!G:G,'WWD Crashes'!C:C,F111) -> 0 | AB111: =_xlfn.IFS(AA111<0.125,$B$3,AA111<0.25,$B$4,AA111<0.5,$B$5,AA111<0.99,$B$6,AA111<1.5,$B$7,TRUE,$B$8)+$B$9*SUMIFS('WWD Crashes'!G:G,'WWD Crashes'!C:C,F111,'WWD Crashes'!L:L,">0")++$B$10*SUMIFS('WWD Crashes'!G:G,'WWD Crashes'!C:C,F111,'WWD Crashes'!M:M,">0") -> 0 | AC111: =MIN($B$16*SUMIF('Non-Crash Events'!B:B,F111,'Non-Crash Events'!R:R),50) -> 19.9 | AD111: =IF(VLOOKUP(F111,Intersections!A:E,5,FALSE)="Unique",$B$22,IF(VLOOKUP(F111,Intersections!A:E,5,FALSE)="Split",$B$23,0)) -> 0 | AE111: =VLOOKUP(F111,Intersections!A:F,6,FALSE) -> 82000 | AF111: 10 | AG111: =VLOOKUP(F111,Intersections!A:G,7,FALSE) -> 15400 | AH111: 9 | AI111: 5 | AJ111: =_xlfn.IFS(VLOOKUP(F111,Intersections!A:H,8,FALSE)<=0.7,$B$30,VLOOKUP(F111,Intersections!A:H,8,FALSE)<=2,$B$31,TRUE,0) -> 10 | AK111: =_xlfn.IFS(VLOOKUP(F111,Intersections!A:D,4,FALSE)="Urban",$B$30,TRUE,0) -> 10
F112: I-280 & Locust St | G112: =COUNTIF('WWD Crashes'!C:C,F112) -> 1 | H112: =COUNTIFS('Non-Crash Events'!B:B,F112,'Non-Crash Events'!R:R,">0") -> 0 | I112: 53.75 | AA112: =SUMIFS('WWD Crashes'!G:G,'WWD Crashes'!C:C,F112) -> 0.25 | AB112: =_xlfn.IFS(AA112<0.125,$B$3,AA112<0.25,$B$4,AA112<0.5,$B$5,AA112<0.99,$B$6,AA112<1.5,$B$7,TRUE,$B$8)+$B$9*SUMIFS('WWD Crashes'!G:G,'WWD Crashes'!C:C,F112,'WWD Crashes'!L:L,">0")++$B$10*SUMIFS('WWD Crashes'!G:G,'WWD Crashes'!C:C,F112,'WWD Crashes'!M:M,">0") -> 28.75 | AC112: =MIN($B$16*SUMIF('Non-Crash Events'!B:B,F112,'Non-Crash Events'!R:R),50) -> 0 | AD112: =IF(VLOOKUP(F112,Intersections!A:E,5,FALSE)="Unique",$B$22,IF(VLOOKUP(F112,Intersections!A:E,5,FALSE)="Split",$B$23,0)) -> 0 | AE112: =VLOOKUP(F112,Intersections!A:F,6,FALSE) -> 24400 | AF112: 6 | AG112: =VLOOKUP(F112,Intersections!A:G,7,FALSE) -> 8800 | AH112: 9 | AI112: 0 | AJ112: =_xlfn.IFS(VLOOKUP(F112,Intersections!A:H,8,FALSE)<=0.7,$B$30,VLOOKUP(F112,Intersections!A:H,8,FALSE)<=2,$B$31,TRUE,0) -> 10 | AK112: =_xlfn.IFS(VLOOKUP(F112,Intersections!A:D,4,FALSE)="Urban",$B$30,TRUE,0) -> 0
